Workbook

Sheet HOME
I2: Risk Management Spreadsheet (RMS)
S3: Ver.7.0
I4: PSE Stock Trading Risk Management Spreadsheet | S4: ="Registered to "&'1-Tranche'!$D$2 -> Registered to Trial Version
D6: AA Excel Spreadsheets© 2016. All Rights Reserved. | U6: 1 | W6: -1263287135
W10: =IF(W6="","Please Enable Macro",IF(W6=1,IF(AND(W6=1,OR(W7="",W7=1)),"Registration Error!","Welcome!"),"Welcome!")) -> Welcome!
W11: =IF(W10="registration error!","Registered to "&REGNAME&". Please contact AAES if you received this error.",IF(W10="Please Enable Macro","All sheet calculations are based on macro, scroll down for tutorial.","Successfully "&S4&".")) -> Successfully Registered to Trial Version.
B12: =W10 -> Welcome!
F13: =W11 -> Successfully Registered to Trial Version.
N15: System Requirements: Windows OS, MS Excel
N16: Recommended: At least Windows 7 and Excel 2013
D17: How to Enable Macro: | H17: Scroll Down for Tutorial | M17: Contact us @ aaespreadsheets@gmail.com
D20: Click Enable Content. | M20: Like and Support Our Facebook Page @
D21: if Security Warning above doesn't appear, follow tutorial below. | M21: https://www.facebook.com/AAESpreadsheets/
D23: Step 1a: | E23: Go to Developer Tab and Click Macro Security (image#1)
E24: (if Developer Tab doesn't apper go to Step 1b.)
D25: image#1
M26: For updates and tutorials join our Facebook group @
M27: https://www.facebook.com/groups/AAESpreadsheets/
D32: Step 2a: | E32: Select 3rd or 4th option (Enable all macros) and click OK (image#2) | N32: How to view Developer Tab:
D33: image#2 | N33: Step 1b: | O33: Press ALT and type FTC
N34: Step 2b: | O34: Check the Developer and the Click OK button
N35: image#3
N38: Step 3b: | O38: Follow Step1a , Step2a and Step 3a. (image#3)
D39: Step 3a: | E39: Save changes and Re- OPEN this worksheet.
D51: AA Excel Spreadsheets© 2016. All Rights Reserved.

Sheet Dashboard (hidden)
D2: ='1-Tranche'!D2:E2 -> Trial Version
D4: Account Name
C6: RISK MANAGEMENT PLAN | L6: EXPECTANCY CHART | W6: RESULT-BASED ASSUMPTION FORECAST
C7: Portfolio Size: | F7: ₱100,000.00 | Z7: =RBAF!E5 -> # of Trades to Gain 52.2%: | AA7: =RBAF!F5 -> 51 trades | AE7: =RBAF!F18 -> 52.20%
C8: Position Size% Per Trade: | F8: 40.00% | Z8: =RBAF!E14 -> Expectancy Per Trade: | AA8: =TEXT(RBAF!F14,"0.00")&" ("&TEXT(RBAF!F15,"0.00%")&")" -> 975.00 (65.00%) | AE8: =MAX(Expectancy!M17:M116)*1.02 -> 343,916
C9: Equity% To Risk/Trade (1R): | F9: 1.00% | Z9: Adjusted Risk Reward Ratio: | AA9: =RBAF!F12 -> 1 : 1.87 | AE9: =MIN(Expectancy!M17:M116)*0.98 -> 96,530
E10: =IFERROR((Equity*RiskPerTrade)/(Equity*PositionPer),"") -> 2.50%
C11: TRADE STATISTICS | W11: REQUIRED WIN RATE% VS RRR
C12: Win Rate%: | F12: 25.00% | Z12: Trade Statistic's Risk Reward Ratio: | AA12: =RBAF!M6 -> 1 : 3.20
C13: Average Win%: | F13: 12.00% | Z13: Required Win Rate% to Breakeven: | AA13: =RBAF!M7 -> 23.81%
C14: Average Loss%: | F14: -3.75% | Z14: Req.Win Rate% to Gain 2x the Risk: | AA14: =RBAF!M8 -> 38.46%
C15: Ave.Position Size on Winners%: | F15: 70.00%
C16: Ave.Position Size on Losers%: | F16: 40.00% | W16: REQUIRED RRR VS WIN RATE%
N17: Portfolio Profit/Loss: | O17: =Expectancy!G10 -> ₱141,796.13 | W17: ="A Win Rate of "&TEXT(WinRate,"0.0%")&", should have at least " -> A Win Rate of 25.0%, should have at least
C18: Desired Return%: | F18: 50.00% | N18: Compounding Growth%: | O18: =Expectancy!G11 -> 141.80% | W18: =IFERROR(TEXT(ROUND(1/(WinRate/(1-WinRate)),1),"#0.00")&" : 1","") -> 3.00 : 1 | Y18: RRR To Breakeven (1:1 Adjusted RRR)
N19: Non-Compounding Growth%: | O19: =Expectancy!G12 -> 97.50% | W19: =IFERROR(TEXT(ROUND(2/(WinRate/(1-WinRate)),1),"#0.00")&" : 1","") -> 6.00 : 1 | Y19: RRR To Gain 2x The Risk (1:2 Adj. RRR)

Sheet Sheet2 (hidden)
A11: ADJUSTED
A12: POSITION SIZE
A13: =IF(AND(A1O=1,REGNAME=AR1I),('1-Tranche'!$D$7/('1-Tranche'!U13-'1-Tranche'!AB13)),"") -> 7552.641914
A14: =IF(AND(A1O=1,REGNAME=AR1I),('1-Tranche'!$D$7/('1-Tranche'!U14-'1-Tranche'!AB14)),"") -> 1425.090137
A15: =IF(AND(A1O=1,REGNAME=AR1I),('1-Tranche'!$D$7/('1-Tranche'!U15-'1-Tranche'!AB15)),"") -> 9317.667229
A16: =IF(AND(A1O=1,REGNAME=AR1I),('1-Tranche'!$D$7/('1-Tranche'!U16-'1-Tranche'!AB16)),"") -> 
A17: =IF(AND(A1O=1,REGNAME=AR1I),('1-Tranche'!$D$7/('1-Tranche'!U17-'1-Tranche'!AB17)),"") -> 
A18: =IF(AND(A1O=1,REGNAME=AR1I),('1-Tranche'!$D$7/('1-Tranche'!U18-'1-Tranche'!AB18)),"") -> 
A19: =IF(AND(A1O=1,REGNAME=AR1I),('1-Tranche'!$D$7/('1-Tranche'!U19-'1-Tranche'!AB19)),"") -> 
A20: =IF(AND(A1O=1,REGNAME=AR1I),('1-Tranche'!$D$7/('1-Tranche'!U20-'1-Tranche'!AB20)),"") -> 
A21: =IF(AND(A1O=1,REGNAME=AR1I),('1-Tranche'!$D$7/('1-Tranche'!U21-'1-Tranche'!AB21)),"") -> 
A22: =IF(AND(A1O=1,REGNAME=AR1I),('1-Tranche'!$D$7/('1-Tranche'!U22-'1-Tranche'!AB22)),"") -> 
A23: =IF(AND(A1O=1,REGNAME=AR1I),('1-Tranche'!$D$7/('1-Tranche'!U23-'1-Tranche'!AB23)),"") -> 
A24: =IF(AND(A1O=1,REGNAME=AR1I),('1-Tranche'!$D$7/('1-Tranche'!U24-'1-Tranche'!AB24)),"") -> 
A25: =IF(AND(A1O=1,REGNAME=AR1I),('1-Tranche'!$D$7/('1-Tranche'!U25-'1-Tranche'!AB25)),"") -> 
A26: =IF(AND(A1O=1,REGNAME=AR1I),('1-Tranche'!$D$7/('1-Tranche'!U26-'1-Tranche'!AB26)),"") -> 
A27: =IF(AND(A1O=1,REGNAME=AR1I),('1-Tranche'!$D$7/('1-Tranche'!U27-'1-Tranche'!AB27)),"") -> 
A28: =IF(AND(A1O=1,REGNAME=AR1I),('1-Tranche'!$D$7/('1-Tranche'!U28-'1-Tranche'!AB28)),"") -> 
A29: =IF(AND(A1O=1,REGNAME=AR1I),('1-Tranche'!$D$7/('1-Tranche'!U29-'1-Tranche'!AB29)),"") -> 
A30: =IF(AND(A1O=1,REGNAME=AR1I),('1-Tranche'!$D$7/('1-Tranche'!U30-'1-Tranche'!AB30)),"") -> 
A31: =IF(AND(A1O=1,REGNAME=AR1I),('1-Tranche'!$D$7/('1-Tranche'!U31-'1-Tranche'!AB31)),"") -> 
A32: =IF(AND(A1O=1,REGNAME=AR1I),('1-Tranche'!$D$7/('1-Tranche'!U32-'1-Tranche'!AB32)),"") -> 
A33: =IF(AND(A1O=1,REGNAME=AR1I),('1-Tranche'!$D$7/('1-Tranche'!U33-'1-Tranche'!AB33)),"") -> 
A34: =IF(AND(A1O=1,REGNAME=AR1I),('1-Tranche'!$D$7/('1-Tranche'!U34-'1-Tranche'!AB34)),"") -> 
A35: =IF(AND(A1O=1,REGNAME=AR1I),('1-Tranche'!$D$7/('1-Tranche'!U35-'1-Tranche'!AB35)),"") -> 
A36: =IF(AND(A1O=1,REGNAME=AR1I),('1-Tranche'!$D$7/('1-Tranche'!U36-'1-Tranche'!AB36)),"") -> 
A37: =IF(AND(A1O=1,REGNAME=AR1I),('1-Tranche'!$D$7/('1-Tranche'!U37-'1-Tranche'!AB37)),"") -> 
A38: =IF(AND(A1O=1,REGNAME=AR1I),('1-Tranche'!$D$7/('1-Tranche'!U38-'1-Tranche'!AB38)),"") -> 
A39: =IF(AND(A1O=1,REGNAME=AR1I),('1-Tranche'!$D$7/('1-Tranche'!U39-'1-Tranche'!AB39)),"") -> 
A40: =IF(AND(A1O=1,REGNAME=AR1I),('1-Tranche'!$D$7/('1-Tranche'!U40-'1-Tranche'!AB40)),"") -> 
A41: =IF(AND(A1O=1,REGNAME=AR1I),('1-Tranche'!$D$7/('1-Tranche'!U41-'1-Tranche'!AB41)),"") -> 
A42: =IF(AND(A1O=1,REGNAME=AR1I),('1-Tranche'!$D$7/('1-Tranche'!U42-'1-Tranche'!AB42)),"") -> 

Sheet 1-Tranche (hidden)
A1: 1 | B1: RMS-V7.1
C2: Account Name: | D2: Trial Version | AJ2: TOP RISK REWARD RATIO | AO2: RISK | AP2: REWARD | AQ2: Refresh Data | AX2: 5
C3: Portfolio Size: | D3: 100,000.00 | F3: RRR | G3: STOCK | AJ3: POSITION SIZE | AK3: ENTRY | AL3: STOP | AM3: TARGET | AN3: MARKET P. | AO3: LOSS | AP3: GAIN | AX3: 10 | AY3: Exact Value | AZ3: Support
C4: Position% Per Trade: | D4: 40.00% | F4: =IFERROR(LARGE($AN$13:$AN$42,1),"") -> 3.56 | G4: =IF(F4="","",INDEX($C$13:$C$42,MATCH(F4,$AN$13:$AN$42,0))) -> IRC | AJ4: =IF(F4="","",INDEX($AJ$13:$AJ$42,MATCH(F4,$AN$13:$AN$42,0))) -> 7,553 | AK4: =IF(F4="","",INDEX($D$13:$D$42,MATCH(F4,$AN$13:$AN$42,0))) -> 2.290 | AL4: =IF(F4="","",INDEX($E$13:$E$42,MATCH(F4,$AN$13:$AN$42,0))) -> 2.190 | AM4: =IF(F4="","",INDEX($F$13:$F$42,MATCH(F4,$AN$13:$AN$42,0))) -> 2.800 | AN4: =IF(F4="","",INDEX($G$13:$G$42,MATCH(F4,$AN$13:$AN$42,0))) -> 2.660 | AO4: =IF(F4="","",INDEX($AO$13:$AO$42,MATCH(F4,$AN$13:$AN$42,0))) -> -1,000.0 (-5.76%) | AP4: =IF(F4="","",INDEX($AP$13:$AP$42,MATCH(F4,$AN$13:$AN$42,0))) -> 3,559.7 (20.49%) | AX4: 100 | AY4: Board Lot | AZ4: Cutloss
C5: Position Size Per Trade: | D5: =D3*D4 -> 40,000.00 | F5: =IFERROR(LARGE($AN$13:$AN$42,2),"") -> 3.52 | G5: =IF(F5="","",INDEX($C$13:$C$42,MATCH(F5,$AN$13:$AN$42,0))) -> ATN | AJ5: =IF(F5="","",INDEX($AJ$13:$AJ$42,MATCH(F5,$AN$13:$AN$42,0))) -> 9,318 | AK5: =IF(F5="","",INDEX($D$13:$D$42,MATCH(F5,$AN$13:$AN$42,0))) -> 1.250 | AL5: =IF(F5="","",INDEX($E$13:$E$42,MATCH(F5,$AN$13:$AN$42,0))) -> 1.160 | AM5: =IF(F5="","",INDEX($F$13:$F$42,MATCH(F5,$AN$13:$AN$42,0))) -> 1.650 | AN5: =IF(F5="","",INDEX($G$13:$G$42,MATCH(F5,$AN$13:$AN$42,0))) -> 1.270 | AO5: =IF(F5="","",INDEX($AO$13:$AO$42,MATCH(F5,$AN$13:$AN$42,0))) -> -1,000.0 (-8.55%) | AP5: =IF(F5="","",INDEX($AP$13:$AP$42,MATCH(F5,$AN$13:$AN$42,0))) -> 3,518.6 (30.08%) | AX5: 1000 | AY5: Risk Calculation
C6: % to risk per trade: | D6: 2.50% | F6: =IFERROR(LARGE($AN$13:$AN$42,3),"") -> 3.20 | G6: =IF(F6="","",INDEX($C$13:$C$42,MATCH(F6,$AN$13:$AN$42,0))) -> PXP | AJ6: =IF(F6="","",INDEX($AJ$13:$AJ$42,MATCH(F6,$AN$13:$AN$42,0))) -> 1,425 | AK6: =IF(F6="","",INDEX($D$13:$D$42,MATCH(F6,$AN$13:$AN$42,0))) -> 16.880 | AL6: =IF(F6="","",INDEX($E$13:$E$42,MATCH(F6,$AN$13:$AN$42,0))) -> 16.420 | AM6: =IF(F6="","",INDEX($F$13:$F$42,MATCH(F6,$AN$13:$AN$42,0))) -> 19.400 | AN6: =IF(F6="","",INDEX($G$13:$G$42,MATCH(F6,$AN$13:$AN$42,0))) -> 16.300 | AO6: -1,000.0 (-4.14%) | AP6: =IF(F6="","",INDEX($AP$13:$AP$42,MATCH(F6,$AN$13:$AN$42,0))) -> 3,203.0 (13.26%) | AS6: Support | AX6: 10000 | AY6: Maximum Shares
C7: To risk per trade: | D7: =IFERROR(IF(AND(A1O=1,REGNAME=AR1I),(D5*D6),"Invalid User"),"Enable Macro") -> 1,000.00 | F7: =IFERROR(LARGE($AN$13:$AN$42,4),"") ->  | G7: =IF(F7="","",INDEX($C$13:$C$42,MATCH(F7,$AN$13:$AN$42,0))) ->  | AJ7: =IF(F7="","",INDEX($AJ$13:$AJ$42,MATCH(F7,$AN$13:$AN$42,0))) ->  | AK7: =IF(F7="","",INDEX($D$13:$D$42,MATCH(F7,$AN$13:$AN$42,0))) ->  | AL7: =IF(F7="","",INDEX($E$13:$E$42,MATCH(F7,$AN$13:$AN$42,0))) ->  | AM7: =IF(F7="","",INDEX($F$13:$F$42,MATCH(F7,$AN$13:$AN$42,0))) ->  | AN7: =IF(F7="","",INDEX($G$13:$G$42,MATCH(F7,$AN$13:$AN$42,0))) ->  | AP7: =IF(F7="","",INDEX($AP$13:$AP$42,MATCH(F7,$AN$13:$AN$42,0))) ->  | AX7: 100000
C8: Position Size option: | D8: Risk Calculation | F8: =IFERROR(LARGE($AN$13:$AN$42,5),"") ->  | G8: =IF(F8="","",INDEX($C$13:$C$42,MATCH(F8,$AN$13:$AN$42,0))) ->  | AJ8: =IF(F8="","",INDEX($AJ$13:$AJ$42,MATCH(F8,$AN$13:$AN$42,0))) ->  | AK8: =IF(F8="","",INDEX($D$13:$D$42,MATCH(F8,$AN$13:$AN$42,0))) ->  | AL8: =IF(F8="","",INDEX($E$13:$E$42,MATCH(F8,$AN$13:$AN$42,0))) ->  | AM8: =IF(F8="","",INDEX($F$13:$F$42,MATCH(F8,$AN$13:$AN$42,0))) ->  | AN8: =IF(F8="","",INDEX($G$13:$G$42,MATCH(F8,$AN$13:$AN$42,0))) ->  | AP8: =IF(F8="","",INDEX($AP$13:$AP$42,MATCH(F8,$AN$13:$AN$42,0))) -> 
C9: Position Size option: | D9: Exact Value | F9: =D7/D3 -> 0.01 | AJ9: =IFERROR("You Are Risking"&TEXT(F9," 0.0%")&" Of Your Total Equity Per Trade","") -> You Are Risking 1.0% Of Your Total Equity Per Trade | AO9: ='3-Tranche'!AP9 -> 2018-10-23T14:50:00+08:00
AV10: 1
B11: DATE | C11: STOCK | D11: ENTRY | E11: STOP | F11: TARGET | G11: MARKET PRICE | J11: Stop | K11: Board Lot | L11: Exact Shares | M11: Board Lot | O11: ORIGINAL | P11: GROSS | Q11: Fee1 | R11: Fee2 | S11: Fee3 | T11: Net Amount | U11: AEP | V11: GROSS | W11: Fee1 | X11: Fee2 | Y11: Fee3 | Z11: Sales | AA11: Net Amount | AB11: AEP | AJ11: POSITION SIZE | AK11: CAPITAL | AL11: RISK MANAGEMENT | AO11: RISK REWARD PER TRADE | AQ11: NOTES
O12: POSITION SIZE | P12: amount | V12: amount | AD12: Fee1 | AE12: Fee2 | AF12: Fee3 | AG12: Sales | AK12: ENTRY AMOUNT | AL12: RISK | AM12: REWARD | AN12: RATIO | AO12: RISK | AP12: REWARD | AV12: Trial Version
A13: 0.0001 | B13: 2018-10-19 | C13: IRC | D13: 2.290 | E13: 2.190 | F13: 2.800 | G13: 2.660 | J13: =IF(D13="","",IF($AS$6="Cutloss",#REF!,E13)) -> 2.19 | K13: =IFERROR(IF(AND(D13>='User Guide & Settings'!$Z$5,D13<='User Guide & Settings'!$AA$5),'User Guide & Settings'!$AC$5,IF(AND(D13>='User Guide & Settings'!$Z$4,D13<='User Guide & Settings'!$AA$4),'User Guide & Settings'!$AC$4,IF(AND(D13>='User Guide & Settings'!$Z$6,D13<='User Guide & Settings'!$AA$7),'User Guide & Settings'!$AC$6,IF(AND(D13>='User Guide & Settings'!$Z$8,D13<='User Guide & Settings'!$AA$8),'User Guide & Settings'!$AC$8,IF(AND(D13>='User Guide & Settings'!$Z$9,D13<='User Guide & Settings'!$AA$23),'User Guide & Settings'!$AC$23,IF(AND(D13>='User Guide & Settings'!$Z$24,D13<='User Guide & Settings'!$AA$27),'User Guide & Settings'!$AC$27,IF(D13>='User Guide & Settings'!$Z$28,'User Guide & Settings'!$AC$28,0))))))),"") -> 1000 | L13: =$D$5/D13 -> 17467.24891 | M13: =IF(K13=5,MROUND(L13,5),IF($D$9="Board lot",ROUND(L13,AX13),L13)) -> 17467.24891 | O13: =$D$7/(D13-J13) -> 10000 | P13: =O13*D13 -> 22900 | Q13: =IF(IF('User Guide & Settings'!$S$5="Amount",'User Guide & Settings'!$T$5*P13,IF('User Guide & Settings'!$S$5="Total Shares",'User Guide & Settings'!$T$5*O13,'User Guide & Settings'!$T$5))=0,MAX(IF('User Guide & Settings'!$P$5="amount",(P13*'User Guide & Settings'!$Q$5),IF('User Guide & Settings'!$P$5="Total Shares",('User Guide & Settings'!$Q$5*O13),'User Guide & Settings'!$Q$5)),'User Guide & Settings'!$R$5),MIN(IF('User Guide & Settings'!$S$5="Amount",'User Guide & Settings'!$T$5*P13,IF('User Guide & Settings'!$S$5="Total Shares",'User Guide & Settings'!$T$5*O13,'User Guide & Settings'!$T$5)),MAX(IF('User Guide & Settings'!$P$5="amount",(P13*'User Guide & Settings'!$Q$5),IF('User Guide & Settings'!$P$5="Total Shares",('User Guide & Settings'!$Q$5*O13),'User Guide & Settings'!$Q$5)),'User Guide & Settings'!$R$5))) -> 57.25 | R13: =IF(IF('User Guide & Settings'!$S$6="Amount",'User Guide & Settings'!$T$6*P13,IF('User Guide & Settings'!$S$6="Total Shares",'User Guide & Settings'!$T$6*O13,'User Guide & Settings'!$T$6))=0,MAX(IF('User Guide & Settings'!$P$6="amount",(P13*'User Guide & Settings'!$Q$6),IF('User Guide & Settings'!$P$6="Total Shares",('User Guide & Settings'!$Q$6*O13),'User Guide & Settings'!$Q$6)),'User Guide & Settings'!$R$6),MIN(IF('User Guide & Settings'!$S$6="Amount",'User Guide & Settings'!$T$6*P13,IF('User Guide & Settings'!$S$6="Total Shares",'User Guide & Settings'!$T$6*O13,'User Guide & Settings'!$T$6)),MAX(IF('User Guide & Settings'!$P$6="amount",(P13*'User Guide & Settings'!$Q$6),IF('User Guide & Settings'!$P$6="Total Shares",('User Guide & Settings'!$Q$6*O13),'User Guide & Settings'!$Q$6)),'User Guide & Settings'!$R$6))) -> 6.87 | S13: =IF(IF('User Guide & Settings'!$S$7="Amount",'User Guide & Settings'!$T$7*P13,IF('User Guide & Settings'!$S$7="Total Shares",'User Guide & Settings'!$T$7*O13,'User Guide & Settings'!$T$7))=0,MAX(IF('User Guide & Settings'!$P$7="amount",(P13*'User Guide & Settings'!$Q$7),IF('User Guide & Settings'!$P$7="Total Shares",('User Guide & Settings'!$Q$7*O13),'User Guide & Settings'!$Q$7)),'User Guide & Settings'!$R$7),MIN(IF('User Guide & Settings'!$S$7="Amount",'User Guide & Settings'!$T$7*P13,IF('User Guide & Settings'!$S$7="Total Shares",'User Guide & Settings'!$T$7*O13,'User Guide & Settings'!$T$7)),MAX(IF('User Guide & Settings'!$P$7="amount",(P13*'User Guide & Settings'!$Q$7),IF('User Guide & Settings'!$P$7="Total Shares",('User Guide & Settings'!$Q$7*O13),'User Guide & Settings'!$Q$7)),'User Guide & Settings'!$R$7))) -> 34.35 | T13: =P13+SUM(Q13:S13) -> 22998.47 | U13: =T13/O13 -> 2.299847 | V13: =O13*J13 -> 21900 | W13: =IF(IF('User Guide & Settings'!$S$5="Amount",'User Guide & Settings'!$T$5*V13,IF('User Guide & Settings'!$S$5="Total Shares",'User Guide & Settings'!$T$5*O13,'User Guide & Settings'!$T$5))=0,MAX(IF('User Guide & Settings'!$P$5="amount",(V13*'User Guide & Settings'!$Q$5),IF('User Guide & Settings'!$P$5="Total Shares",('User Guide & Settings'!$Q$5*O13),'User Guide & Settings'!$Q$5)),'User Guide & Settings'!$R$5),MIN(IF('User Guide & Settings'!$S$5="Amount",'User Guide & Settings'!$T$5*V13,IF('User Guide & Settings'!$S$5="Total Shares",'User Guide & Settings'!$T$5*O13,'User Guide & Settings'!$T$5)),MAX(IF('User Guide & Settings'!$P$5="amount",(V13*'User Guide & Settings'!$Q$5),IF('User Guide & Settings'!$P$5="Total Shares",('User Guide & Settings'!$Q$5*O13),'User Guide & Settings'!$Q$5)),'User Guide & Settings'!$R$5))) -> 54.75 | X13: =IF(IF('User Guide & Settings'!$S$6="Amount",'User Guide & Settings'!$T$6*V13,IF('User Guide & Settings'!$S$6="Total Shares",'User Guide & Settings'!$T$6*O13,'User Guide & Settings'!$T$6))=0,MAX(IF('User Guide & Settings'!$P$6="amount",(V13*'User Guide & Settings'!$Q$6),IF('User Guide & Settings'!$P$6="Total Shares",('User Guide & Settings'!$Q$6*O13),'User Guide & Settings'!$Q$6)),'User Guide & Settings'!$R$6),MIN(IF('User Guide & Settings'!$S$6="Amount",'User Guide & Settings'!$T$6*V13,IF('User Guide & Settings'!$S$6="Total Shares",'User Guide & Settings'!$T$6*O13,'User Guide & Settings'!$T$6)),MAX(IF('User Guide & Settings'!$P$6="amount",(V13*'User Guide & Settings'!$Q$6),IF('User Guide & Settings'!$P$6="Total Shares",('User Guide & Settings'!$Q$6*O13),'User Guide & Settings'!$Q$6)),'User Guide & Settings'!$R$6))) -> 6.57 | Y13: =IF(IF('User Guide & Settings'!$S$7="Amount",'User Guide & Settings'!$T$7*V13,IF('User Guide & Settings'!$S$7="Total Shares",'User Guide & Settings'!$T$7*O13,'User Guide & Settings'!$T$7))=0,MAX(IF('User Guide & Settings'!$P$7="amount",(V13*'User Guide & Settings'!$Q$7),IF('User Guide & Settings'!$P$7="Total Shares",('User Guide & Settings'!$Q$7*O13),'User Guide & Settings'!$Q$7)),'User Guide & Settings'!$R$7),MIN(IF('User Guide & Settings'!$S$7="Amount",'User Guide & Settings'!$T$7*V13,IF('User Guide & Settings'!$S$7="Total Shares",'User Guide & Settings'!$T$7*O13,'User Guide & Settings'!$T$7)),MAX(IF('User Guide & Settings'!$P$7="amount",(V13*'User Guide & Settings'!$Q$7),IF('User Guide & Settings'!$P$7="Total Shares",('User Guide & Settings'!$Q$7*O13),'User Guide & Settings'!$Q$7)),'User Guide & Settings'!$R$7))) -> 32.85 | Z13: =IF(IF('User Guide & Settings'!$S$8="Amount",'User Guide & Settings'!$T$8*V13,IF('User Guide & Settings'!$S$8="Total Shares",'User Guide & Settings'!$T$8*O13,'User Guide & Settings'!$T$8))=0,MAX(IF('User Guide & Settings'!$P$8="amount",(V13*'User Guide & Settings'!$Q$8),IF('User Guide & Settings'!$P$8="Total Shares",('User Guide & Settings'!$Q$8*O13),'User Guide & Settings'!$Q$8)),'User Guide & Settings'!$R$8),MIN(IF('User Guide & Settings'!$S$8="Amount",'User Guide & Settings'!$T$8*V13,IF('User Guide & Settings'!$S$8="Total Shares",'User Guide & Settings'!$T$8*O13,'User Guide & Settings'!$T$8)),MAX(IF('User Guide & Settings'!$P$8="amount",(V13*'User Guide & Settings'!$Q$8),IF('User Guide & Settings'!$P$8="Total Shares",('User Guide & Settings'!$Q$8*O13),'User Guide & Settings'!$Q$8)),'User Guide & Settings'!$R$8))) -> 131.4 | AA13: =V13-SUM(W13:Z13) -> 21674.43 | AB13: =AA13/O13 -> 2.167443 | AC13: =AJ13*F13 -> 21147.39736 | AD13: =IF(IF('User Guide & Settings'!$S$5="Amount",'User Guide & Settings'!$T$5*AC13,IF('User Guide & Settings'!$S$5="Total Shares",'User Guide & Settings'!$T$5*AJ13,'User Guide & Settings'!$T$5))=0,MAX(IF('User Guide & Settings'!$P$5="amount",(AC13*'User Guide & Settings'!$Q$5),IF('User Guide & Settings'!$P$5="Total Shares",('User Guide & Settings'!$Q$5*AJ13),'User Guide & Settings'!$Q$5)),'User Guide & Settings'!$R$5),MIN(IF('User Guide & Settings'!$S$5="Amount",'User Guide & Settings'!$T$5*AC13,IF('User Guide & Settings'!$S$5="Total Shares",'User Guide & Settings'!$T$5*AJ13,'User Guide & Settings'!$T$5)),MAX(IF('User Guide & Settings'!$P$5="amount",(AC13*'User Guide & Settings'!$Q$5),IF('User Guide & Settings'!$P$5="Total Shares",('User Guide & Settings'!$Q$5*AJ13),'User Guide & Settings'!$Q$5)),'User Guide & Settings'!$R$5))) -> 52.8684934 | AE13: =IF(IF('User Guide & Settings'!$S$6="Amount",'User Guide & Settings'!$T$6*AC13,IF('User Guide & Settings'!$S$6="Total Shares",'User Guide & Settings'!$T$6*AJ13,'User Guide & Settings'!$T$6))=0,MAX(IF('User Guide & Settings'!$P$6="amount",(AC13*'User Guide & Settings'!$Q$6),IF('User Guide & Settings'!$P$6="Total Shares",('User Guide & Settings'!$Q$6*AJ13),'User Guide & Settings'!$Q$6)),'User Guide & Settings'!$R$6),MIN(IF('User Guide & Settings'!$S$6="Amount",'User Guide & Settings'!$T$6*AC13,IF('User Guide & Settings'!$S$6="Total Shares",'User Guide & Settings'!$T$6*AJ13,'User Guide & Settings'!$T$6)),MAX(IF('User Guide & Settings'!$P$6="amount",(AC13*'User Guide & Settings'!$Q$6),IF('User Guide & Settings'!$P$6="Total Shares",('User Guide & Settings'!$Q$6*AJ13),'User Guide & Settings'!$Q$6)),'User Guide & Settings'!$R$6))) -> 6.344219208 | AF13: =IF(IF('User Guide & Settings'!$S$7="Amount",'User Guide & Settings'!$T$7*AC13,IF('User Guide & Settings'!$S$7="Total Shares",'User Guide & Settings'!$T$7*AJ13,'User Guide & Settings'!$T$7))=0,MAX(IF('User Guide & Settings'!$P$7="amount",(AC13*'User Guide & Settings'!$Q$7),IF('User Guide & Settings'!$P$7="Total Shares",('User Guide & Settings'!$Q$7*AJ13),'User Guide & Settings'!$Q$7)),'User Guide & Settings'!$R$7),MIN(IF('User Guide & Settings'!$S$7="Amount",'User Guide & Settings'!$T$7*AC13,IF('User Guide & Settings'!$S$7="Total Shares",'User Guide & Settings'!$T$7*AKV13,'User Guide & Settings'!$T$7)),MAX(IF('User Guide & Settings'!$P$7="amount",(AC13*'User Guide & Settings'!$Q$7),IF('User Guide & Settings'!$P$7="Total Shares",('User Guide & Settings'!$Q$7*AJ13),'User Guide & Settings'!$Q$7)),'User Guide & Settings'!$R$7))) -> 31.72109604 | AG13: =IF(IF('User Guide & Settings'!$S$8="Amount",'User Guide & Settings'!$T$8*AC13,IF('User Guide & Settings'!$S$8="Total Shares",'User Guide & Settings'!$T$8*AJ13,'User Guide & Settings'!$T$8))=0,MAX(IF('User Guide & Settings'!$P$8="amount",(AC13*'User Guide & Settings'!$Q$8),IF('User Guide & Settings'!$P$8="Total Shares",('User Guide & Settings'!$Q$8*AKV13),'User Guide & Settings'!$Q$8)),'User Guide & Settings'!$R$8),MIN(IF('User Guide & Settings'!$S$8="Amount",'User Guide & Settings'!$T$8*AC13,IF('User Guide & Settings'!$S$8="Total Shares",'User Guide & Settings'!$T$8*AJ13,'User Guide & Settings'!$T$8)),MAX(IF('User Guide & Settings'!$P$8="amount",(AC13*'User Guide & Settings'!$Q$8),IF('User Guide & Settings'!$P$8="Total Shares",('User Guide & Settings'!$Q$8*AJ13),'User Guide & Settings'!$Q$8)),'User Guide & Settings'!$R$8))) -> 126.8843842 | AJ13: =IF(D13="","",IF($D$8="Maximum shares",M13,IFERROR(IF(IF(K13=5,MROUND(Sheet2!A13,5),IF($D$9="Board lot",ROUND(Sheet2!A13,AX13),$D$7/(U13-AB13)))>M13,M13,IF(K13=5,MROUND(Sheet2!A13,5),IF($D$9="Board lot",ROUND(Sheet2!A13,AX13),$D$7/(U13-AB13)))),""))) -> 7,553 | AK13: =IFERROR(IF(AND(D13>0,E13>0,F13=""),"Enter Target", IF(OR(AND(D13>0,E13="",F13=""),AND(D13>0,E13="",F13>0)),"Enter Stop", IF(AR13<3,"",IF(F13>D13,IF(E13>=D13,"Invalid Stop",(AJ13*U13)),"Invalid Target")))),"") -> 17,369.92 | AL13: =IFERROR((TEXT(BA13/$D$7,"0.00"))&"R","") -> -1.00R | AM13: =IFERROR((TEXT(BB13/$D$7,"0.00"))&"R","") -> 3.56R | AN13: =IFERROR(IF(AR13<3,"",(BB13/$D$7)/(-BA13/$D$7))+A13,"") -> 3.56 | AO13: =IF(AL13="","",TEXT(BA13,"0,0.0")&" ("&TEXT(AZ13,"0.00%")&")") -> -1,000.0 (-5.76%) | AP13: =IF(AM13="","",TEXT(BB13,"0,0.0")&" ("&TEXT(BC13,"0.00%")&")") -> 3,559.7 (20.49%) | AQ13: notes here | AR13: =COUNT(D13:F13) -> 3 | AV13: =IFERROR(INDEX(Sheet1!E:E,MATCH(C13,Sheet1!B:B,0)),"") -> 2.66 | AX13: =IF(K13=10,-1,IF(K13=100,-2,IF(K13=1000,-3,IF(K13=10000,-4,IF(K13=100000,-5,0))))) -> -3 | AZ13: =IFERROR((BA13/AK13),"") -> -0.05757078623 | BA13: =IFERROR(IF(AR13<3,"",(AJ13*AB13)-AK13),"") -> -1000 | BB13: =IFERROR(IF(AR13<3,"",AC13-AD13-AE13-AF13-AG13-AK13),"") -> 3559.658318 | BC13: =IFERROR(BB13/AK13,"") -> 0.2049323281
A14: 0.0002 | B14: 2018-10-19 | C14: PXP | D14: 16.880 | E14: 16.420 | F14: 19.400 | G14: 16.300 | J14: =IF(D14="","",IF($AS$6="Cutloss",#REF!,E14)) -> 16.42 | K14: =IFERROR(IF(AND(D14>='User Guide & Settings'!$Z$5,D14<='User Guide & Settings'!$AA$5),'User Guide & Settings'!$AC$5,IF(AND(D14>='User Guide & Settings'!$Z$4,D14<='User Guide & Settings'!$AA$4),'User Guide & Settings'!$AC$4,IF(AND(D14>='User Guide & Settings'!$Z$6,D14<='User Guide & Settings'!$AA$7),'User Guide & Settings'!$AC$6,IF(AND(D14>='User Guide & Settings'!$Z$8,D14<='User Guide & Settings'!$AA$8),'User Guide & Settings'!$AC$8,IF(AND(D14>='User Guide & Settings'!$Z$9,D14<='User Guide & Settings'!$AA$23),'User Guide & Settings'!$AC$23,IF(AND(D14>='User Guide & Settings'!$Z$24,D14<='User Guide & Settings'!$AA$27),'User Guide & Settings'!$AC$27,IF(D14>='User Guide & Settings'!$Z$28,'User Guide & Settings'!$AC$28,0))))))),"") -> 100 | L14: 2369.668246 | M14: 2369.668246 | O14: 2173.913043 | P14: 36695.65217 | Q14: =IF(IF('User Guide & Settings'!$S$5="Amount",'User Guide & Settings'!$T$5*P14,IF('User Guide & Settings'!$S$5="Total Shares",'User Guide & Settings'!$T$5*O14,'User Guide & Settings'!$T$5))=0,MAX(IF('User Guide & Settings'!$P$5="amount",(P14*'User Guide & Settings'!$Q$5),IF('User Guide & Settings'!$P$5="Total Shares",('User Guide & Settings'!$Q$5*O14),'User Guide & Settings'!$Q$5)),'User Guide & Settings'!$R$5),MIN(IF('User Guide & Settings'!$S$5="Amount",'User Guide & Settings'!$T$5*P14,IF('User Guide & Settings'!$S$5="Total Shares",'User Guide & Settings'!$T$5*O14,'User Guide & Settings'!$T$5)),MAX(IF('User Guide & Settings'!$P$5="amount",(P14*'User Guide & Settings'!$Q$5),IF('User Guide & Settings'!$P$5="Total Shares",('User Guide & Settings'!$Q$5*O14),'User Guide & Settings'!$Q$5)),'User Guide & Settings'!$R$5))) -> 91.73913043 | R14: =IF(IF('User Guide & Settings'!$S$6="Amount",'User Guide & Settings'!$T$6*P14,IF('User Guide & Settings'!$S$6="Total Shares",'User Guide & Settings'!$T$6*O14,'User Guide & Settings'!$T$6))=0,MAX(IF('User Guide & Settings'!$P$6="amount",(P14*'User Guide & Settings'!$Q$6),IF('User Guide & Settings'!$P$6="Total Shares",('User Guide & Settings'!$Q$6*O14),'User Guide & Settings'!$Q$6)),'User Guide & Settings'!$R$6),MIN(IF('User Guide & Settings'!$S$6="Amount",'User Guide & Settings'!$T$6*P14,IF('User Guide & Settings'!$S$6="Total Shares",'User Guide & Settings'!$T$6*O14,'User Guide & Settings'!$T$6)),MAX(IF('User Guide & Settings'!$P$6="amount",(P14*'User Guide & Settings'!$Q$6),IF('User Guide & Settings'!$P$6="Total Shares",('User Guide & Settings'!$Q$6*O14),'User Guide & Settings'!$Q$6)),'User Guide & Settings'!$R$6))) -> 11.00869565 | S14: =IF(IF('User Guide & Settings'!$S$7="Amount",'User Guide & Settings'!$T$7*P14,IF('User Guide & Settings'!$S$7="Total Shares",'User Guide & Settings'!$T$7*O14,'User Guide & Settings'!$T$7))=0,MAX(IF('User Guide & Settings'!$P$7="amount",(P14*'User Guide & Settings'!$Q$7),IF('User Guide & Settings'!$P$7="Total Shares",('User Guide & Settings'!$Q$7*O14),'User Guide & Settings'!$Q$7)),'User Guide & Settings'!$R$7),MIN(IF('User Guide & Settings'!$S$7="Amount",'User Guide & Settings'!$T$7*P14,IF('User Guide & Settings'!$S$7="Total Shares",'User Guide & Settings'!$T$7*O14,'User Guide & Settings'!$T$7)),MAX(IF('User Guide & Settings'!$P$7="amount",(P14*'User Guide & Settings'!$Q$7),IF('User Guide & Settings'!$P$7="Total Shares",('User Guide & Settings'!$Q$7*O14),'User Guide & Settings'!$Q$7)),'User Guide & Settings'!$R$7))) -> 55.04347826 | T14: =P14+SUM(Q14:S14) -> 36853.44348 | U14: =T14/O14 -> 16.952584 | V14: 35695.65217 | W14: =IF(IF('User Guide & Settings'!$S$5="Amount",'User Guide & Settings'!$T$5*V14,IF('User Guide & Settings'!$S$5="Total Shares",'User Guide & Settings'!$T$5*O14,'User Guide & Settings'!$T$5))=0,MAX(IF('User Guide & Settings'!$P$5="amount",(V14*'User Guide & Settings'!$Q$5),IF('User Guide & Settings'!$P$5="Total Shares",('User Guide & Settings'!$Q$5*O14),'User Guide & Settings'!$Q$5)),'User Guide & Settings'!$R$5),MIN(IF('User Guide & Settings'!$S$5="Amount",'User Guide & Settings'!$T$5*V14,IF('User Guide & Settings'!$S$5="Total Shares",'User Guide & Settings'!$T$5*O14,'User Guide & Settings'!$T$5)),MAX(IF('User Guide & Settings'!$P$5="amount",(V14*'User Guide & Settings'!$Q$5),IF('User Guide & Settings'!$P$5="Total Shares",('User Guide & Settings'!$Q$5*O14),'User Guide & Settings'!$Q$5)),'User Guide & Settings'!$R$5))) -> 89.23913043 | X14: =IF(IF('User Guide & Settings'!$S$6="Amount",'User Guide & Settings'!$T$6*V14,IF('User Guide & Settings'!$S$6="Total Shares",'User Guide & Settings'!$T$6*O14,'User Guide & Settings'!$T$6))=0,MAX(IF('User Guide & Settings'!$P$6="amount",(V14*'User Guide & Settings'!$Q$6),IF('User Guide & Settings'!$P$6="Total Shares",('User Guide & Settings'!$Q$6*O14),'User Guide & Settings'!$Q$6)),'User Guide & Settings'!$R$6),MIN(IF('User Guide & Settings'!$S$6="Amount",'User Guide & Settings'!$T$6*V14,IF('User Guide & Settings'!$S$6="Total Shares",'User Guide & Settings'!$T$6*O14,'User Guide & Settings'!$T$6)),MAX(IF('User Guide & Settings'!$P$6="amount",(V14*'User Guide & Settings'!$Q$6),IF('User Guide & Settings'!$P$6="Total Shares",('User Guide & Settings'!$Q$6*O14),'User Guide & Settings'!$Q$6)),'User Guide & Settings'!$R$6))) -> 10.70869565 | Y14: =IF(IF('User Guide & Settings'!$S$7="Amount",'User Guide & Settings'!$T$7*V14,IF('User Guide & Settings'!$S$7="Total Shares",'User Guide & Settings'!$T$7*O14,'User Guide & Settings'!$T$7))=0,MAX(IF('User Guide & Settings'!$P$7="amount",(V14*'User Guide & Settings'!$Q$7),IF('User Guide & Settings'!$P$7="Total Shares",('User Guide & Settings'!$Q$7*O14),'User Guide & Settings'!$Q$7)),'User Guide & Settings'!$R$7),MIN(IF('User Guide & Settings'!$S$7="Amount",'User Guide & Settings'!$T$7*V14,IF('User Guide & Settings'!$S$7="Total Shares",'User Guide & Settings'!$T$7*O14,'User Guide & Settings'!$T$7)),MAX(IF('User Guide & Settings'!$P$7="amount",(V14*'User Guide & Settings'!$Q$7),IF('User Guide & Settings'!$P$7="Total Shares",('User Guide & Settings'!$Q$7*O14),'User Guide & Settings'!$Q$7)),'User Guide & Settings'!$R$7))) -> 53.54347826 | Z14: =IF(IF('User Guide & Settings'!$S$8="Amount",'User Guide & Settings'!$T$8*V14,IF('User Guide & Settings'!$S$8="Total Shares",'User Guide & Settings'!$T$8*O14,'User Guide & Settings'!$T$8))=0,MAX(IF('User Guide & Settings'!$P$8="amount",(V14*'User Guide & Settings'!$Q$8),IF('User Guide & Settings'!$P$8="Total Shares",('User Guide & Settings'!$Q$8*O14),'User Guide & Settings'!$Q$8)),'User Guide & Settings'!$R$8),MIN(IF('User Guide & Settings'!$S$8="Amount",'User Guide & Settings'!$T$8*V14,IF('User Guide & Settings'!$S$8="Total Shares",'User Guide & Settings'!$T$8*O14,'User Guide & Settings'!$T$8)),MAX(IF('User Guide & Settings'!$P$8="amount",(V14*'User Guide & Settings'!$Q$8),IF('User Guide & Settings'!$P$8="Total Shares",('User Guide & Settings'!$Q$8*O14),'User Guide & Settings'!$Q$8)),'User Guide & Settings'!$R$8))) -> 214.173913 | AA14: =V14-SUM(W14:Z14) -> 35327.98696 | AB14: =AA14/O14 -> 16.250874 | AC14: 27646.74866 | AD14: =IF(IF('User Guide & Settings'!$S$5="Amount",'User Guide & Settings'!$T$5*AC14,IF('User Guide & Settings'!$S$5="Total Shares",'User Guide & Settings'!$T$5*AJ14,'User Guide & Settings'!$T$5))=0,MAX(IF('User Guide & Settings'!$P$5="amount",(AC14*'User Guide & Settings'!$Q$5),IF('User Guide & Settings'!$P$5="Total Shares",('User Guide & Settings'!$Q$5*AJ14),'User Guide & Settings'!$Q$5)),'User Guide & Settings'!$R$5),MIN(IF('User Guide & Settings'!$S$5="Amount",'User Guide & Settings'!$T$5*AC14,IF('User Guide & Settings'!$S$5="Total Shares",'User Guide & Settings'!$T$5*AJ14,'User Guide & Settings'!$T$5)),MAX(IF('User Guide & Settings'!$P$5="amount",(AC14*'User Guide & Settings'!$Q$5),IF('User Guide & Settings'!$P$5="Total Shares",('User Guide & Settings'!$Q$5*AJ14),'User Guide & Settings'!$Q$5)),'User Guide & Settings'!$R$5))) -> 69.11687164 | AE14: =IF(IF('User Guide & Settings'!$S$6="Amount",'User Guide & Settings'!$T$6*AC14,IF('User Guide & Settings'!$S$6="Total Shares",'User Guide & Settings'!$T$6*AJ14,'User Guide & Settings'!$T$6))=0,MAX(IF('User Guide & Settings'!$P$6="amount",(AC14*'User Guide & Settings'!$Q$6),IF('User Guide & Settings'!$P$6="Total Shares",('User Guide & Settings'!$Q$6*AJ14),'User Guide & Settings'!$Q$6)),'User Guide & Settings'!$R$6),MIN(IF('User Guide & Settings'!$S$6="Amount",'User Guide & Settings'!$T$6*AC14,IF('User Guide & Settings'!$S$6="Total Shares",'User Guide & Settings'!$T$6*AJ14,'User Guide & Settings'!$T$6)),MAX(IF('User Guide & Settings'!$P$6="amount",(AC14*'User Guide & Settings'!$Q$6),IF('User Guide & Settings'!$P$6="Total Shares",('User Guide & Settings'!$Q$6*AJ14),'User Guide & Settings'!$Q$6)),'User Guide & Settings'!$R$6))) -> 8.294024597 | AF14: =IF(IF('User Guide & Settings'!$S$7="Amount",'User Guide & Settings'!$T$7*AC14,IF('User Guide & Settings'!$S$7="Total Shares",'User Guide & Settings'!$T$7*AJ14,'User Guide & Settings'!$T$7))=0,MAX(IF('User Guide & Settings'!$P$7="amount",(AC14*'User Guide & Settings'!$Q$7),IF('User Guide & Settings'!$P$7="Total Shares",('User Guide & Settings'!$Q$7*AJ14),'User Guide & Settings'!$Q$7)),'User Guide & Settings'!$R$7),MIN(IF('User Guide & Settings'!$S$7="Amount",'User Guide & Settings'!$T$7*AC14,IF('User Guide & Settings'!$S$7="Total Shares",'User Guide & Settings'!$T$7*AKV14,'User Guide & Settings'!$T$7)),MAX(IF('User Guide & Settings'!$P$7="amount",(AC14*'User Guide & Settings'!$Q$7),IF('User Guide & Settings'!$P$7="Total Shares",('User Guide & Settings'!$Q$7*AJ14),'User Guide & Settings'!$Q$7)),'User Guide & Settings'!$R$7))) -> 41.47012299 | AG14: =IF(IF('User Guide & Settings'!$S$8="Amount",'User Guide & Settings'!$T$8*AC14,IF('User Guide & Settings'!$S$8="Total Shares",'User Guide & Settings'!$T$8*AJ14,'User Guide & Settings'!$T$8))=0,MAX(IF('User Guide & Settings'!$P$8="amount",(AC14*'User Guide & Settings'!$Q$8),IF('User Guide & Settings'!$P$8="Total Shares",('User Guide & Settings'!$Q$8*AKV14),'User Guide & Settings'!$Q$8)),'User Guide & Settings'!$R$8),MIN(IF('User Guide & Settings'!$S$8="Amount",'User Guide & Settings'!$T$8*AC14,IF('User Guide & Settings'!$S$8="Total Shares",'User Guide & Settings'!$T$8*AJ14,'User Guide & Settings'!$T$8)),MAX(IF('User Guide & Settings'!$P$8="amount",(AC14*'User Guide & Settings'!$Q$8),IF('User Guide & Settings'!$P$8="Total Shares",('User Guide & Settings'!$Q$8*AJ14),'User Guide & Settings'!$Q$8)),'User Guide & Settings'!$R$8))) -> 165.8804919 | AJ14: =IF(D14="","",IF($D$8="Maximum shares",M14,IFERROR(IF(IF(K14=5,MROUND(Sheet2!A14,5),IF($D$9="Board lot",ROUND(Sheet2!A14,AX14),$D$7/(U14-AB14)))>M14,M14,IF(K14=5,MROUND(Sheet2!A14,5),IF($D$9="Board lot",ROUND(Sheet2!A14,AX14),$D$7/(U14-AB14)))),""))) -> 1,425 | AK14: 24,158.96 | AL14: -1.00R | AM14: 3.20R | AN14: 3.20 | AO14: =IF(AL14="","",TEXT(BA14,"0,0.0")&" ("&TEXT(AZ14,"0.00%")&")") -> -1,000.0 (-4.14%) | AP14: =IF(AM14="","",TEXT(BB14,"0,0.0")&" ("&TEXT(BC14,"0.00%")&")") -> 3,203.0 (13.26%) | AQ14: notes here | AR14: 3 | AV14: =IFERROR(INDEX(Sheet1!E:E,MATCH(C14,Sheet1!B:B,0)),"") -> 16.3 | AX14: -2 | AZ14: -0.04139250984 | BA14: -1000 | BB14: 3203.026891 | BC14: 0.1325813221
A15: 0.0003 | B15: 2018-10-19 | C15: ATN | D15: 1.250 | E15: 1.160 | F15: 1.650 | G15: 1.270 | J15: =IF(D15="","",IF($AS$6="Cutloss",#REF!,E15)) -> 1.16 | K15: =IFERROR(IF(AND(D15>='User Guide & Settings'!$Z$5,D15<='User Guide & Settings'!$AA$5),'User Guide & Settings'!$AC$5,IF(AND(D15>='User Guide & Settings'!$Z$4,D15<='User Guide & Settings'!$AA$4),'User Guide & Settings'!$AC$4,IF(AND(D15>='User Guide & Settings'!$Z$6,D15<='User Guide & Settings'!$AA$7),'User Guide & Settings'!$AC$6,IF(AND(D15>='User Guide & Settings'!$Z$8,D15<='User Guide & Settings'!$AA$8),'User Guide & Settings'!$AC$8,IF(AND(D15>='User Guide & Settings'!$Z$9,D15<='User Guide & Settings'!$AA$23),'User Guide & Settings'!$AC$23,IF(AND(D15>='User Guide & Settings'!$Z$24,D15<='User Guide & Settings'!$AA$27),'User Guide & Settings'!$AC$27,IF(D15>='User Guide & Settings'!$Z$28,'User Guide & Settings'!$AC$28,0))))))),"") -> 1000 | L15: 32000 | M15: 32000 | O15: 11111.11111 | P15: 13888.88889 | Q15: =IF(IF('User Guide & Settings'!$S$5="Amount",'User Guide & Settings'!$T$5*P15,IF('User Guide & Settings'!$S$5="Total Shares",'User Guide & Settings'!$T$5*O15,'User Guide & Settings'!$T$5))=0,MAX(IF('User Guide & Settings'!$P$5="amount",(P15*'User Guide & Settings'!$Q$5),IF('User Guide & Settings'!$P$5="Total Shares",('User Guide & Settings'!$Q$5*O15),'User Guide & Settings'!$Q$5)),'User Guide & Settings'!$R$5),MIN(IF('User Guide & Settings'!$S$5="Amount",'User Guide & Settings'!$T$5*P15,IF('User Guide & Settings'!$S$5="Total Shares",'User Guide & Settings'!$T$5*O15,'User Guide & Settings'!$T$5)),MAX(IF('User Guide & Settings'!$P$5="amount",(P15*'User Guide & Settings'!$Q$5),IF('User Guide & Settings'!$P$5="Total Shares",('User Guide & Settings'!$Q$5*O15),'User Guide & Settings'!$Q$5)),'User Guide & Settings'!$R$5))) -> 34.72222222 | R15: =IF(IF('User Guide & Settings'!$S$6="Amount",'User Guide & Settings'!$T$6*P15,IF('User Guide & Settings'!$S$6="Total Shares",'User Guide & Settings'!$T$6*O15,'User Guide & Settings'!$T$6))=0,MAX(IF('User Guide & Settings'!$P$6="amount",(P15*'User Guide & Settings'!$Q$6),IF('User Guide & Settings'!$P$6="Total Shares",('User Guide & Settings'!$Q$6*O15),'User Guide & Settings'!$Q$6)),'User Guide & Settings'!$R$6),MIN(IF('User Guide & Settings'!$S$6="Amount",'User Guide & Settings'!$T$6*P15,IF('User Guide & Settings'!$S$6="Total Shares",'User Guide & Settings'!$T$6*O15,'User Guide & Settings'!$T$6)),MAX(IF('User Guide & Settings'!$P$6="amount",(P15*'User Guide & Settings'!$Q$6),IF('User Guide & Settings'!$P$6="Total Shares",('User Guide & Settings'!$Q$6*O15),'User Guide & Settings'!$Q$6)),'User Guide & Settings'!$R$6))) -> 4.166666667 | S15: =IF(IF('User Guide & Settings'!$S$7="Amount",'User Guide & Settings'!$T$7*P15,IF('User Guide & Settings'!$S$7="Total Shares",'User Guide & Settings'!$T$7*O15,'User Guide & Settings'!$T$7))=0,MAX(IF('User Guide & Settings'!$P$7="amount",(P15*'User Guide & Settings'!$Q$7),IF('User Guide & Settings'!$P$7="Total Shares",('User Guide & Settings'!$Q$7*O15),'User Guide & Settings'!$Q$7)),'User Guide & Settings'!$R$7),MIN(IF('User Guide & Settings'!$S$7="Amount",'User Guide & Settings'!$T$7*P15,IF('User Guide & Settings'!$S$7="Total Shares",'User Guide & Settings'!$T$7*O15,'User Guide & Settings'!$T$7)),MAX(IF('User Guide & Settings'!$P$7="amount",(P15*'User Guide & Settings'!$Q$7),IF('User Guide & Settings'!$P$7="Total Shares",('User Guide & Settings'!$Q$7*O15),'User Guide & Settings'!$Q$7)),'User Guide & Settings'!$R$7))) -> 20.83333333 | T15: 13948.61111 | U15: 1.255375 | V15: 12888.88889 | W15: =IF(IF('User Guide & Settings'!$S$5="Amount",'User Guide & Settings'!$T$5*V15,IF('User Guide & Settings'!$S$5="Total Shares",'User Guide & Settings'!$T$5*O15,'User Guide & Settings'!$T$5))=0,MAX(IF('User Guide & Settings'!$P$5="amount",(V15*'User Guide & Settings'!$Q$5),IF('User Guide & Settings'!$P$5="Total Shares",('User Guide & Settings'!$Q$5*O15),'User Guide & Settings'!$Q$5)),'User Guide & Settings'!$R$5),MIN(IF('User Guide & Settings'!$S$5="Amount",'User Guide & Settings'!$T$5*V15,IF('User Guide & Settings'!$S$5="Total Shares",'User Guide & Settings'!$T$5*O15,'User Guide & Settings'!$T$5)),MAX(IF('User Guide & Settings'!$P$5="amount",(V15*'User Guide & Settings'!$Q$5),IF('User Guide & Settings'!$P$5="Total Shares",('User Guide & Settings'!$Q$5*O15),'User Guide & Settings'!$Q$5)),'User Guide & Settings'!$R$5))) -> 32.22222222 | X15: =IF(IF('User Guide & Settings'!$S$6="Amount",'User Guide & Settings'!$T$6*V15,IF('User Guide & Settings'!$S$6="Total Shares",'User Guide & Settings'!$T$6*O15,'User Guide & Settings'!$T$6))=0,MAX(IF('User Guide & Settings'!$P$6="amount",(V15*'User Guide & Settings'!$Q$6),IF('User Guide & Settings'!$P$6="Total Shares",('User Guide & Settings'!$Q$6*O15),'User Guide & Settings'!$Q$6)),'User Guide & Settings'!$R$6),MIN(IF('User Guide & Settings'!$S$6="Amount",'User Guide & Settings'!$T$6*V15,IF('User Guide & Settings'!$S$6="Total Shares",'User Guide & Settings'!$T$6*O15,'User Guide & Settings'!$T$6)),MAX(IF('User Guide & Settings'!$P$6="amount",(V15*'User Guide & Settings'!$Q$6),IF('User Guide & Settings'!$P$6="Total Shares",('User Guide & Settings'!$Q$6*O15),'User Guide & Settings'!$Q$6)),'User Guide & Settings'!$R$6))) -> 3.866666667 | Y15: =IF(IF('User Guide & Settings'!$S$7="Amount",'User Guide & Settings'!$T$7*V15,IF('User Guide & Settings'!$S$7="Total Shares",'User Guide & Settings'!$T$7*O15,'User Guide & Settings'!$T$7))=0,MAX(IF('User Guide & Settings'!$P$7="amount",(V15*'User Guide & Settings'!$Q$7),IF('User Guide & Settings'!$P$7="Total Shares",('User Guide & Settings'!$Q$7*O15),'User Guide & Settings'!$Q$7)),'User Guide & Settings'!$R$7),MIN(IF('User Guide & Settings'!$S$7="Amount",'User Guide & Settings'!$T$7*V15,IF('User Guide & Settings'!$S$7="Total Shares",'User Guide & Settings'!$T$7*O15,'User Guide & Settings'!$T$7)),MAX(IF('User Guide & Settings'!$P$7="amount",(V15*'User Guide & Settings'!$Q$7),IF('User Guide & Settings'!$P$7="Total Shares",('User Guide & Settings'!$Q$7*O15),'User Guide & Settings'!$Q$7)),'User Guide & Settings'!$R$7))) -> 19.33333333 | Z15: =IF(IF('User Guide & Settings'!$S$8="Amount",'User Guide & Settings'!$T$8*V15,IF('User Guide & Settings'!$S$8="Total Shares",'User Guide & Settings'!$T$8*O15,'User Guide & Settings'!$T$8))=0,MAX(IF('User Guide & Settings'!$P$8="amount",(V15*'User Guide & Settings'!$Q$8),IF('User Guide & Settings'!$P$8="Total Shares",('User Guide & Settings'!$Q$8*O15),'User Guide & Settings'!$Q$8)),'User Guide & Settings'!$R$8),MIN(IF('User Guide & Settings'!$S$8="Amount",'User Guide & Settings'!$T$8*V15,IF('User Guide & Settings'!$S$8="Total Shares",'User Guide & Settings'!$T$8*O15,'User Guide & Settings'!$T$8)),MAX(IF('User Guide & Settings'!$P$8="amount",(V15*'User Guide & Settings'!$Q$8),IF('User Guide & Settings'!$P$8="Total Shares",('User Guide & Settings'!$Q$8*O15),'User Guide & Settings'!$Q$8)),'User Guide & Settings'!$R$8))) -> 77.33333333 | AA15: 12756.13333 | AB15: 1.148052 | AC15: 15374.15093 | AD15: =IF(IF('User Guide & Settings'!$S$5="Amount",'User Guide & Settings'!$T$5*AC15,IF('User Guide & Settings'!$S$5="Total Shares",'User Guide & Settings'!$T$5*AJ15,'User Guide & Settings'!$T$5))=0,MAX(IF('User Guide & Settings'!$P$5="amount",(AC15*'User Guide & Settings'!$Q$5),IF('User Guide & Settings'!$P$5="Total Shares",('User Guide & Settings'!$Q$5*AJ15),'User Guide & Settings'!$Q$5)),'User Guide & Settings'!$R$5),MIN(IF('User Guide & Settings'!$S$5="Amount",'User Guide & Settings'!$T$5*AC15,IF('User Guide & Settings'!$S$5="Total Shares",'User Guide & Settings'!$T$5*AJ15,'User Guide & Settings'!$T$5)),MAX(IF('User Guide & Settings'!$P$5="amount",(AC15*'User Guide & Settings'!$Q$5),IF('User Guide & Settings'!$P$5="Total Shares",('User Guide & Settings'!$Q$5*AJ15),'User Guide & Settings'!$Q$5)),'User Guide & Settings'!$R$5))) -> 38.43537732 | AE15: =IF(IF('User Guide & Settings'!$S$6="Amount",'User Guide & Settings'!$T$6*AC15,IF('User Guide & Settings'!$S$6="Total Shares",'User Guide & Settings'!$T$6*AJ15,'User Guide & Settings'!$T$6))=0,MAX(IF('User Guide & Settings'!$P$6="amount",(AC15*'User Guide & Settings'!$Q$6),IF('User Guide & Settings'!$P$6="Total Shares",('User Guide & Settings'!$Q$6*AJ15),'User Guide & Settings'!$Q$6)),'User Guide & Settings'!$R$6),MIN(IF('User Guide & Settings'!$S$6="Amount",'User Guide & Settings'!$T$6*AC15,IF('User Guide & Settings'!$S$6="Total Shares",'User Guide & Settings'!$T$6*AJ15,'User Guide & Settings'!$T$6)),MAX(IF('User Guide & Settings'!$P$6="amount",(AC15*'User Guide & Settings'!$Q$6),IF('User Guide & Settings'!$P$6="Total Shares",('User Guide & Settings'!$Q$6*AJ15),'User Guide & Settings'!$Q$6)),'User Guide & Settings'!$R$6))) -> 4.612245278 | AF15: =IF(IF('User Guide & Settings'!$S$7="Amount",'User Guide & Settings'!$T$7*AC15,IF('User Guide & Settings'!$S$7="Total Shares",'User Guide & Settings'!$T$7*AJ15,'User Guide & Settings'!$T$7))=0,MAX(IF('User Guide & Settings'!$P$7="amount",(AC15*'User Guide & Settings'!$Q$7),IF('User Guide & Settings'!$P$7="Total Shares",('User Guide & Settings'!$Q$7*AJ15),'User Guide & Settings'!$Q$7)),'User Guide & Settings'!$R$7),MIN(IF('User Guide & Settings'!$S$7="Amount",'User Guide & Settings'!$T$7*AC15,IF('User Guide & Settings'!$S$7="Total Shares",'User Guide & Settings'!$T$7*AKV15,'User Guide & Settings'!$T$7)),MAX(IF('User Guide & Settings'!$P$7="amount",(AC15*'User Guide & Settings'!$Q$7),IF('User Guide & Settings'!$P$7="Total Shares",('User Guide & Settings'!$Q$7*AJ15),'User Guide & Settings'!$Q$7)),'User Guide & Settings'!$R$7))) -> 23.06122639 | AG15: =IF(IF('User Guide & Settings'!$S$8="Amount",'User Guide & Settings'!$T$8*AC15,IF('User Guide & Settings'!$S$8="Total Shares",'User Guide & Settings'!$T$8*AJ15,'User Guide & Settings'!$T$8))=0,MAX(IF('User Guide & Settings'!$P$8="amount",(AC15*'User Guide & Settings'!$Q$8),IF('User Guide & Settings'!$P$8="Total Shares",('User Guide & Settings'!$Q$8*AKV15),'User Guide & Settings'!$Q$8)),'User Guide & Settings'!$R$8),MIN(IF('User Guide & Settings'!$S$8="Amount",'User Guide & Settings'!$T$8*AC15,IF('User Guide & Settings'!$S$8="Total Shares",'User Guide & Settings'!$T$8*AJ15,'User Guide & Settings'!$T$8)),MAX(IF('User Guide & Settings'!$P$8="amount",(AC15*'User Guide & Settings'!$Q$8),IF('User Guide & Settings'!$P$8="Total Shares",('User Guide & Settings'!$Q$8*AJ15),'User Guide & Settings'!$Q$8)),'User Guide & Settings'!$R$8))) -> 92.24490557 | AJ15: =IF(D15="","",IF($D$8="Maximum shares",M15,IFERROR(IF(IF(K15=5,MROUND(Sheet2!A15,5),IF($D$9="Board lot",ROUND(Sheet2!A15,AX15),$D$7/(U15-AB15)))>M15,M15,IF(K15=5,MROUND(Sheet2!A15,5),IF($D$9="Board lot",ROUND(Sheet2!A15,AX15),$D$7/(U15-AB15)))),""))) -> 9,318 | AK15: 11,697.17 | AL15: -1.00R | AM15: 3.52R | AN15: 3.52 | AO15: -1,000.0 (-8.55%) | AP15: 3,518.6 (30.08%) | AR15: 3 | AV15: =IFERROR(INDEX(Sheet1!E:E,MATCH(C15,Sheet1!B:B,0)),"") -> 1.27 | AX15: -3 | AZ15: -0.0854907896 | BA15: -1000 | BB15: 3518.630676 | BC15: 0.3008105148
C44: Position Sizing Guidelines by Mark Minervini
C45: 1.25–2.50 percent risk of total equity (Portfolio) | AM45: Until you know your system very well, I recommend that you risk about 1% of your equity. -Van K. Tharp
C46: 10 percent maximum stop (To Risk Per Trade)
C47: Losses should average no more than 5–6 percent
C48: Never take a position larger than 50 percent | AM48: A person with no objectives and no position sizing guidelines will position size totally by emotions. -Van K. Tharp
C49: Shoot for optimal 20–25 percent positions in the best names
C50: No more than 10–12 stocks total (16–20 for larger professional
C51: portfolios)

Sheet 3-Tranche (hidden)
A1: 1 | BA1: 5
C2: Account Name: | D2: ='1-Tranche'!D2 -> Trial Version | AM2: TOP RISK REWARD RATIO | AR2: RISK | AT2: REWARD | AU2: SETTINGS | BA2: 10 | BB2: Exact Value
C3: Portfolio Size: | D3: 100,000.00 | G3: RRR | H3: STOCK | I3: POSITION SIZE | AM3: AVE. PRICE | AN3: STOP | AO3: TARGET | AP3: MARKET P. | AQ3: LOSS | AR3: LOSS | AS3: GAIN | AT3: GAIN | AU3: 1st Tranche | AV3: %LOSS | AW3: %GAIN | BA3: 100 | BB3: Board Lot
C4: Position% Per Trade: | D4: 40.00% | G4: =IFERROR(LARGE($AP$73:AP92,1),"") -> 3.05 | H4: =IF(G4="","",INDEX($C$73:C92,MATCH(G4,$AP$73:AP92,0))) -> IRC | I4: =IF(G4="","",INDEX($I$73:I92,MATCH(G4,$AP$73:AP92,0))) -> 7,000 | AM4: =IF(G4="","",INDEX($D$73:D92,MATCH(G4,$AP$73:AP92,0))) -> 2.359 | AN4: =IF(G4="","",INDEX($E$73:E92,MATCH(G4,$AP$73:AP92,0))) -> 2.250 | AO4: =IF(G4="","",INDEX($F$73:F92,MATCH(G4,$AP$73:AP92,0))) -> 2.800 | AP4: =IF(G4="","",INDEX($G$73:G92,MATCH(G4,$AP$73:AP92,0))) -> 2.660 | AQ4: =IF(G4="","",INDEX($AQ$73:AQ92,MATCH(G4,$AP$73:AP92,0))) -> -939.3246667 | AR4: =IF(AQ4="","",TEXT(AQ4,"0,00.00")&" ("&TEXT(AV4,"0.00%")&")") -> -939.32 (-5.69%) | AS4: =IF(G4="","",INDEX($AS$73:AS92,MATCH(G4,$AP$73:AP92,0))) -> 2863.693667 | AT4: =IF(AS4="","",TEXT(AS4,"0,00.00")&" ("&TEXT(AW4,"0.00%")&")") -> 2,863.69 (17.34%) | AU4: 30% | AV4: =IF(G4="","",INDEX($AV$73:AV92,MATCH(G4,$AP$73:AP92,0))) -> -0.05688344593 | AW4: =IF(G4="","",INDEX($AW$73:AW92,MATCH(G4,$AP$73:AP92,0))) -> 0.1734190208 | BA4: 1000 | BB4: Risk Calculation | BD4: =$D$5*AU4 -> 12000 | BE4: =$D$7*AU4 -> 300
C5: Position Size Per Trade: | D5: =D3*D4 -> 40,000.00 | G5: =IFERROR(LARGE($AP$73:AP93,2),"") -> 2.21 | H5: =IF(G5="","",INDEX($C$73:C93,MATCH(G5,$AP$73:AP93,0))) -> PXP | I5: =IF(G5="","",INDEX($I$73:I93,MATCH(G5,$AP$73:AP93,0))) -> 1,100 | AM5: =IF(G5="","",INDEX($D$73:D93,MATCH(G5,$AP$73:AP93,0))) -> 17.164 | AN5: =IF(G5="","",INDEX($E$73:E93,MATCH(G5,$AP$73:AP93,0))) -> 16.420 | AO5: =IF(G5="","",INDEX($F$73:F93,MATCH(G5,$AP$73:AP93,0))) -> 19.400 | AP5: =IF(G5="","",INDEX($G$73:G93,MATCH(G5,$AP$73:AP93,0))) -> 16.300 | AQ5: =IF(G5="","",INDEX($AQ$73:AQ93,MATCH(G5,$AP$73:AP93,0))) -> -1008.7583 | AR5: =IF(AQ5="","",TEXT(AQ5,"0,00.00")&" ("&TEXT(AV5,"0.00%")&")") -> -1,008.76 (-5.34%) | AS5: =IF(G5="","",INDEX($AS$73:AS93,MATCH(G5,$AP$73:AP93,0))) -> 2232.8295 | AT5: =IF(AS5="","",TEXT(AS5,"0,00.00")&" ("&TEXT(AW5,"0.00%")&")") -> 2,232.83 (11.83%) | AU5: 2nd Tranche | AV5: =IF(G5="","",INDEX($AV$73:AV93,MATCH(G5,$AP$73:AP93,0))) -> -0.05343021969 | AW5: =IF(G5="","",INDEX($AW$73:AW93,MATCH(G5,$AP$73:AP93,0))) -> 0.1182647724 | BA5: 10000 | BB5: Maximum Shares | BD5: =$D$5*AU6 -> 16000 | BE5: =$D$7*AU6 -> 400
C6: % to risk per trade: | D6: 2.50% | G6: =IFERROR(LARGE($AP$73:AP94,3),"") ->  | H6: =IF(G6="","",INDEX($C$73:C94,MATCH(G6,$AP$73:AP94,0))) ->  | I6: =IF(G6="","",INDEX($I$73:I94,MATCH(G6,$AP$73:AP94,0))) ->  | AM6: =IF(G6="","",INDEX($D$73:D94,MATCH(G6,$AP$73:AP94,0))) ->  | AN6: =IF(G6="","",INDEX($E$73:E94,MATCH(G6,$AP$73:AP94,0))) ->  | AO6: =IF(G6="","",INDEX($F$73:F94,MATCH(G6,$AP$73:AP94,0))) ->  | AP6: =IF(G6="","",INDEX($G$73:G94,MATCH(G6,$AP$73:AP94,0))) ->  | AQ6: =IF(G6="","",INDEX($AQ$73:AQ94,MATCH(G6,$AP$73:AP94,0))) ->  | AS6: =IF(G6="","",INDEX($AS$73:AS94,MATCH(G6,$AP$73:AP94,0))) ->  | AU6: 40% | AV6: =IF(G6="","",INDEX($AV$73:AV94,MATCH(G6,$AP$73:AP94,0))) ->  | AW6: =IF(G6="","",INDEX($AW$73:AW94,MATCH(G6,$AP$73:AP94,0))) ->  | BA6: 100000 | BB6: AVE. PRICE | BD6: =$D$5*AU8 -> 12000 | BE6: =$D$7*AU8 -> 300
C7: To risk per trade: | D7: =IFERROR(IF(AND(A1O=1,REGNAME=AR1I),(D5*D6),"Invalid User"),"Enable Macro") -> 1,000.00 | G7: =IFERROR(LARGE($AP$73:AP95,4),"") ->  | H7: =IF(G7="","",INDEX($C$73:C95,MATCH(G7,$AP$73:AP95,0))) ->  | I7: =IF(G7="","",INDEX($I$73:I95,MATCH(G7,$AP$73:AP95,0))) ->  | AM7: =IF(G7="","",INDEX($D$73:D95,MATCH(G7,$AP$73:AP95,0))) ->  | AN7: =IF(G7="","",INDEX($E$73:E95,MATCH(G7,$AP$73:AP95,0))) ->  | AO7: =IF(G7="","",INDEX($F$73:F95,MATCH(G7,$AP$73:AP95,0))) ->  | AP7: =IF(G7="","",INDEX($G$73:G95,MATCH(G7,$AP$73:AP95,0))) ->  | AQ7: =IF(G7="","",INDEX($AQ$73:AQ95,MATCH(G7,$AP$73:AP95,0))) ->  | AS7: =IF(G7="","",INDEX($AS$73:AS95,MATCH(G7,$AP$73:AP95,0))) ->  | AU7: 3rd Tranche | AV7: =IF(G7="","",INDEX($AR$73:AR95,MATCH(G7,$AP$73:AP95,0))) ->  | AW7: =IF(G7="","",INDEX($AT$73:AT95,MATCH(G7,$AP$73:AP95,0))) ->  | BB7: MARKET PRICE
A8: Support | C8: Position Size option: | D8: Risk Calculation | G8: =IFERROR(LARGE($AP$73:AP96,5),"") ->  | H8: =IF(G8="","",INDEX($C$73:C96,MATCH(G8,$AP$73:AP96,0))) ->  | I8: =IF(G8="","",INDEX($I$73:I96,MATCH(G8,$AP$73:AP96,0))) ->  | AM8: =IF(G8="","",INDEX($D$73:D96,MATCH(G8,$AP$73:AP96,0))) ->  | AN8: =IF(G8="","",INDEX($E$73:E96,MATCH(G8,$AP$73:AP96,0))) ->  | AO8: =IF(G8="","",INDEX($F$73:F96,MATCH(G8,$AP$73:AP96,0))) ->  | AP8: =IF(G8="","",INDEX($G$73:G96,MATCH(G8,$AP$73:AP96,0))) ->  | AQ8: =IF(G8="","",INDEX($AQ$73:AQ96,MATCH(G8,$AP$73:AP96,0))) ->  | AS8: =IF(G8="","",INDEX($AS$73:AS96,MATCH(G8,$AP$73:AP96,0))) ->  | AU8: 30% | AV8: =IF(G8="","",INDEX($AR$73:AR96,MATCH(G8,$AP$73:AP96,0))) ->  | AW8: =IF(G8="","",INDEX($AT$73:AT96,MATCH(G8,$AP$73:AP96,0))) -> 
C9: Position Size option: | D9: Board Lot | F9: =D7/D3 -> 0.01 | G9: =IFERROR("You Are Risking"&TEXT(F9," 0.0%")&" of Your Total Equity Per Trade","") -> You Are Risking 1.0% of Your Total Equity Per Trade | AP9: =Sheet1!A2 -> 2018-10-23T14:50:00+08:00
B11: DATE | C11: STOCK | D11: ENTRY | E11: STOP | F11: TARGET | G11: AVE. PRICE | H11: POSITION SIZE | J11: STOP | K11: TARGET | L11: TARGET | M11: STOP | N11: Board Lot | O11: Maximum Exact Shares | P11: Maximum Lot Shares | Q11: Risk Calc | R11: shares | S11: amount | T11: Fee1 | U11: Fee2 | V11: Fee3 | W11: Net Amount | X11: AEP | Y11: amount | Z11: Fee1 | AA11: Fee2 | AB11: Fee3 | AC11: Sales | AD11: Net Amount | AE11: AEP | AL11: Maximum Shares | AM11: CAPITAL | AN11: RISK MANAGEMENT | AR11: RISK | AT11: REWARD | AU11: NOTES
H12: Manual | I12: Auto | AG12: Fee1 | AH12: Fee2 | AI12: Fee3 | AJ12: Sales | AM12: ENTRY AMOUNT | AN12: RISK | AO12: REWARD | AP12: RATIO | AR12: LOSS | AS12: AMOUNT | AT12: GAIN | AX12: reward | AY12: Risk Per Trade
B13: 2018-10-19 | C13: IRC | D13: 2.290 | E13: 2.250 | F13: 2.800 | G13: =IFERROR(IF($G$11="Ave. Price",D73,G73),"") -> 2.359 | I13: =IF(H13>0,H13,IF(D13="","",IF($D$8="Maximum shares",AL13,IFERROR(IF(IF(N13=5,MROUND(Q13,5),IF($D$9="Board lot",ROUND(Q13,BA13),$BE$4/(X13-AE13)))>P13,P13,IF(N13=5,MROUND(Q13,5),IF($D$9="Board lot",ROUND(Q13,BA13),$BE$4/(X13-AE13)))),"")))) -> 4,000 | J13: =IF(E13=0,"",E13) -> 2.25 | K13: =IF(F13=0,"",F13) -> 2.8 | L13: =IF(OR(D13="",K13=""),"",K13) -> 2.8 | M13: =IF(OR(D13="",J13=""),"",J13) -> 2.25 | N13: =IFERROR(IF(AND(D13>='User Guide & Settings'!$Z$5,D13<='User Guide & Settings'!$AA$5),'User Guide & Settings'!$AC$5,IF(AND(D13>='User Guide & Settings'!$Z$4,D13<='User Guide & Settings'!$AA$4),'User Guide & Settings'!$AC$4,IF(AND(D13>='User Guide & Settings'!$Z$6,D13<='User Guide & Settings'!$AA$7),'User Guide & Settings'!$AC$6,IF(AND(D13>='User Guide & Settings'!$Z$8,D13<='User Guide & Settings'!$AA$8),'User Guide & Settings'!$AC$8,IF(AND(D13>='User Guide & Settings'!$Z$9,D13<='User Guide & Settings'!$AA$23),'User Guide & Settings'!$AC$23,IF(AND(D13>='User Guide & Settings'!$Z$24,D13<='User Guide & Settings'!$AA$27),'User Guide & Settings'!$AC$27,IF(D13>='User Guide & Settings'!$Z$28,'User Guide & Settings'!$AC$28,0))))))),"") -> 1000 | O13: =$BD$4/D13 -> 5240.174672 | P13: =IF(N13=5,MROUND(O13,5),IF($D$9="Board lot",ROUND(O13,BA13),O13)) -> 5000 | Q13: =$BE$4/(X13-AE13) -> 4108.350908 | R13: =$BE$4/(D13-M13) -> 7500 | S13: =R13*D13 -> 17175 | T13: =IF(IF('User Guide & Settings'!$S$5="Amount",'User Guide & Settings'!$T$5*S13,IF('User Guide & Settings'!$S$5="Total Shares",'User Guide & Settings'!$T$5*R13,'User Guide & Settings'!$T$5))=0,MAX(IF('User Guide & Settings'!$P$5="amount",(S13*'User Guide & Settings'!$Q$5),IF('User Guide & Settings'!$P$5="Total Shares",('User Guide & Settings'!$Q$5*R13),'User Guide & Settings'!$Q$5)),'User Guide & Settings'!$R$5),MIN(IF('User Guide & Settings'!$S$5="Amount",'User Guide & Settings'!$T$5*S13,IF('User Guide & Settings'!$S$5="Total Shares",'User Guide & Settings'!$T$5*R13,'User Guide & Settings'!$T$5)),MAX(IF('User Guide & Settings'!$P$5="amount",(S13*'User Guide & Settings'!$Q$5),IF('User Guide & Settings'!$P$5="Total Shares",('User Guide & Settings'!$Q$5*R13),'User Guide & Settings'!$Q$5)),'User Guide & Settings'!$R$5))) -> 42.9375 | U13: =IF(IF('User Guide & Settings'!$S$6="Amount",'User Guide & Settings'!$T$6*S13,IF('User Guide & Settings'!$S$6="Total Shares",'User Guide & Settings'!$T$6*R13,'User Guide & Settings'!$T$6))=0,MAX(IF('User Guide & Settings'!$P$6="amount",(S13*'User Guide & Settings'!$Q$6),IF('User Guide & Settings'!$P$6="Total Shares",('User Guide & Settings'!$Q$6*R13),'User Guide & Settings'!$Q$6)),'User Guide & Settings'!$R$6),MIN(IF('User Guide & Settings'!$S$6="Amount",'User Guide & Settings'!$T$6*S13,IF('User Guide & Settings'!$S$6="Total Shares",'User Guide & Settings'!$T$6*R13,'User Guide & Settings'!$T$6)),MAX(IF('User Guide & Settings'!$P$6="amount",(S13*'User Guide & Settings'!$Q$6),IF('User Guide & Settings'!$P$6="Total Shares",('User Guide & Settings'!$Q$6*R13),'User Guide & Settings'!$Q$6)),'User Guide & Settings'!$R$6))) -> 5.1525 | V13: =IF(IF('User Guide & Settings'!$S$7="Amount",'User Guide & Settings'!$T$7*S13,IF('User Guide & Settings'!$S$7="Total Shares",'User Guide & Settings'!$T$7*R13,'User Guide & Settings'!$T$7))=0,MAX(IF('User Guide & Settings'!$P$7="amount",(S13*'User Guide & Settings'!$Q$7),IF('User Guide & Settings'!$P$7="Total Shares",('User Guide & Settings'!$Q$7*R13),'User Guide & Settings'!$Q$7)),'User Guide & Settings'!$R$7),MIN(IF('User Guide & Settings'!$S$7="Amount",'User Guide & Settings'!$T$7*S13,IF('User Guide & Settings'!$S$7="Total Shares",'User Guide & Settings'!$T$7*R13,'User Guide & Settings'!$T$7)),MAX(IF('User Guide & Settings'!$P$7="amount",(S13*'User Guide & Settings'!$Q$7),IF('User Guide & Settings'!$P$7="Total Shares",('User Guide & Settings'!$Q$7*R13),'User Guide & Settings'!$Q$7)),'User Guide & Settings'!$R$7))) -> 25.7625 | W13: =S13+SUM(T13:V13) -> 17248.8525 | X13: =IFERROR(W13/R13,0) -> 2.299847 | Y13: =R13*M13 -> 16875 | Z13: =IF(IF('User Guide & Settings'!$S$5="Amount",'User Guide & Settings'!$T$5*Y13,IF('User Guide & Settings'!$S$5="Total Shares",'User Guide & Settings'!$T$5*R13,'User Guide & Settings'!$T$5))=0,MAX(IF('User Guide & Settings'!$P$5="amount",(Y13*'User Guide & Settings'!$Q$5),IF('User Guide & Settings'!$P$5="Total Shares",('User Guide & Settings'!$Q$5*R13),'User Guide & Settings'!$Q$5)),'User Guide & Settings'!$R$5),MIN(IF('User Guide & Settings'!$S$5="Amount",'User Guide & Settings'!$T$5*Y13,IF('User Guide & Settings'!$S$5="Total Shares",'User Guide & Settings'!$T$5*R13,'User Guide & Settings'!$T$5)),MAX(IF('User Guide & Settings'!$P$5="amount",(Y13*'User Guide & Settings'!$Q$5),IF('User Guide & Settings'!$P$5="Total Shares",('User Guide & Settings'!$Q$5*R13),'User Guide & Settings'!$Q$5)),'User Guide & Settings'!$R$5))) -> 42.1875 | AA13: =IF(IF('User Guide & Settings'!$S$6="Amount",'User Guide & Settings'!$T$6*Y13,IF('User Guide & Settings'!$S$6="Total Shares",'User Guide & Settings'!$T$6*R13,'User Guide & Settings'!$T$6))=0,MAX(IF('User Guide & Settings'!$P$6="amount",(Y13*'User Guide & Settings'!$Q$6),IF('User Guide & Settings'!$P$6="Total Shares",('User Guide & Settings'!$Q$6*R13),'User Guide & Settings'!$Q$6)),'User Guide & Settings'!$R$6),MIN(IF('User Guide & Settings'!$S$6="Amount",'User Guide & Settings'!$T$6*Y13,IF('User Guide & Settings'!$S$6="Total Shares",'User Guide & Settings'!$T$6*R13,'User Guide & Settings'!$T$6)),MAX(IF('User Guide & Settings'!$P$6="amount",(Y13*'User Guide & Settings'!$Q$6),IF('User Guide & Settings'!$P$6="Total Shares",('User Guide & Settings'!$Q$6*R13),'User Guide & Settings'!$Q$6)),'User Guide & Settings'!$R$6))) -> 5.0625 | AB13: =IF(IF('User Guide & Settings'!$S$7="Amount",'User Guide & Settings'!$T$7*Y13,IF('User Guide & Settings'!$S$7="Total Shares",'User Guide & Settings'!$T$7*R13,'User Guide & Settings'!$T$7))=0,MAX(IF('User Guide & Settings'!$P$7="amount",(Y13*'User Guide & Settings'!$Q$7),IF('User Guide & Settings'!$P$7="Total Shares",('User Guide & Settings'!$Q$7*R13),'User Guide & Settings'!$Q$7)),'User Guide & Settings'!$R$7),MIN(IF('User Guide & Settings'!$S$7="Amount",'User Guide & Settings'!$T$7*Y13,IF('User Guide & Settings'!$S$7="Total Shares",'User Guide & Settings'!$T$7*R13,'User Guide & Settings'!$T$7)),MAX(IF('User Guide & Settings'!$P$7="amount",(Y13*'User Guide & Settings'!$Q$7),IF('User Guide & Settings'!$P$7="Total Shares",('User Guide & Settings'!$Q$7*R13),'User Guide & Settings'!$Q$7)),'User Guide & Settings'!$R$7))) -> 25.3125 | AC13: =IF(IF('User Guide & Settings'!$S$8="Amount",'User Guide & Settings'!$T$8*Y13,IF('User Guide & Settings'!$S$8="Total Shares",'User Guide & Settings'!$T$8*R13,'User Guide & Settings'!$T$8))=0,MAX(IF('User Guide & Settings'!$P$8="amount",(Y13*'User Guide & Settings'!$Q$8),IF('User Guide & Settings'!$P$8="Total Shares",('User Guide & Settings'!$Q$8*R13),'User Guide & Settings'!$Q$8)),'User Guide & Settings'!$R$8),MIN(IF('User Guide & Settings'!$S$8="Amount",'User Guide & Settings'!$T$8*Y13,IF('User Guide & Settings'!$S$8="Total Shares",'User Guide & Settings'!$T$8*R13,'User Guide & Settings'!$T$8)),MAX(IF('User Guide & Settings'!$P$8="amount",(Y13*'User Guide & Settings'!$Q$8),IF('User Guide & Settings'!$P$8="Total Shares",('User Guide & Settings'!$Q$8*R13),'User Guide & Settings'!$Q$8)),'User Guide & Settings'!$R$8))) -> 101.25 | AD13: =Y13-SUM(Z13:AC13) -> 16701.1875 | AE13: =AD13/R13 -> 2.226825 | AF13: =L13*I13 -> 11200 | AG13: =IF(IF('User Guide & Settings'!$S$5="Amount",'User Guide & Settings'!$T$5*AF13,IF('User Guide & Settings'!$S$5="Total Shares",'User Guide & Settings'!$T$5*I13,'User Guide & Settings'!$T$5))=0,MAX(IF('User Guide & Settings'!$P$5="amount",(AF13*'User Guide & Settings'!$Q$5),IF('User Guide & Settings'!$P$5="Total Shares",('User Guide & Settings'!$Q$5*I13),'User Guide & Settings'!$Q$5)),'User Guide & Settings'!$R$5),MIN(IF('User Guide & Settings'!$S$5="Amount",'User Guide & Settings'!$T$5*AF13,IF('User Guide & Settings'!$S$5="Total Shares",'User Guide & Settings'!$T$5*I13,'User Guide & Settings'!$T$5)),MAX(IF('User Guide & Settings'!$P$5="amount",(AF13*'User Guide & Settings'!$Q$5),IF('User Guide & Settings'!$P$5="Total Shares",('User Guide & Settings'!$Q$5*I13),'User Guide & Settings'!$Q$5)),'User Guide & Settings'!$R$5))) -> 28 | AH13: =IF(IF('User Guide & Settings'!$S$6="Amount",'User Guide & Settings'!$T$6*AF13,IF('User Guide & Settings'!$S$6="Total Shares",'User Guide & Settings'!$T$6*I13,'User Guide & Settings'!$T$6))=0,MAX(IF('User Guide & Settings'!$P$6="amount",(AF13*'User Guide & Settings'!$Q$6),IF('User Guide & Settings'!$P$6="Total Shares",('User Guide & Settings'!$Q$6*I13),'User Guide & Settings'!$Q$6)),'User Guide & Settings'!$R$6),MIN(IF('User Guide & Settings'!$S$6="Amount",'User Guide & Settings'!$T$6*AF13,IF('User Guide & Settings'!$S$6="Total Shares",'User Guide & Settings'!$T$6*I13,'User Guide & Settings'!$T$6)),MAX(IF('User Guide & Settings'!$P$6="amount",(AF13*'User Guide & Settings'!$Q$6),IF('User Guide & Settings'!$P$6="Total Shares",('User Guide & Settings'!$Q$6*I13),'User Guide & Settings'!$Q$6)),'User Guide & Settings'!$R$6))) -> 3.36 | AI13: =IF(IF('User Guide & Settings'!$S$7="Amount",'User Guide & Settings'!$T$7*AF13,IF('User Guide & Settings'!$S$7="Total Shares",'User Guide & Settings'!$T$7*I13,'User Guide & Settings'!$T$7))=0,MAX(IF('User Guide & Settings'!$P$7="amount",(AF13*'User Guide & Settings'!$Q$7),IF('User Guide & Settings'!$P$7="Total Shares",('User Guide & Settings'!$Q$7*I13),'User Guide & Settings'!$Q$7)),'User Guide & Settings'!$R$7),MIN(IF('User Guide & Settings'!$S$7="Amount",'User Guide & Settings'!$T$7*AF13,IF('User Guide & Settings'!$S$7="Total Shares",'User Guide & Settings'!$T$7*I13,'User Guide & Settings'!$T$7)),MAX(IF('User Guide & Settings'!$P$7="amount",(AF13*'User Guide & Settings'!$Q$7),IF('User Guide & Settings'!$P$7="Total Shares",('User Guide & Settings'!$Q$7*I13),'User Guide & Settings'!$Q$7)),'User Guide & Settings'!$R$7))) -> 16.8 | AJ13: =IF(IF('User Guide & Settings'!$S$8="Amount",'User Guide & Settings'!$T$8*AF13,IF('User Guide & Settings'!$S$8="Total Shares",'User Guide & Settings'!$T$8*I13,'User Guide & Settings'!$T$8))=0,MAX(IF('User Guide & Settings'!$P$8="amount",(AF13*'User Guide & Settings'!$Q$8),IF('User Guide & Settings'!$P$8="Total Shares",('User Guide & Settings'!$Q$8*I13),'User Guide & Settings'!$Q$8)),'User Guide & Settings'!$R$8),MIN(IF('User Guide & Settings'!$S$8="Amount",'User Guide & Settings'!$T$8*AF13,IF('User Guide & Settings'!$S$8="Total Shares",'User Guide & Settings'!$T$8*I13,'User Guide & Settings'!$T$8)),MAX(IF('User Guide & Settings'!$P$8="amount",(AF13*'User Guide & Settings'!$Q$8),IF('User Guide & Settings'!$P$8="Total Shares",('User Guide & Settings'!$Q$8*I13),'User Guide & Settings'!$Q$8)),'User Guide & Settings'!$R$8))) -> 67.2 | AK13: =(AF13-AG13-AH13-AI13-AJ13)/I13 -> 2.77116 | AL13: =IFERROR(P13,"") -> 5000 | AM13: =IFERROR(IF(D13="","",(IF(AND(D13>0,M13="",OR(L13="",L13>0)),"Enter STOP",(IF(AND(D13>0,M13>0,L13=""),"Enter TARGET", (IF(D13<=M13,"Invalid STOP",(IF(D13>=L13,"Invalid TARGET",(I13*X13)))))))))),"") -> 9,199.39 | AN13: =IFERROR(IF(E13="","",(TEXT(AQ13/$D$7,"0.00"))&"R"),"") -> -0.94R | AO13: =IFERROR(IF(F13="","",(TEXT(AS13/$D$7,"0.00"))&"R"),"") -> 2.86R | AP13: =IFERROR((AS13/$D$7)/(-AQ13/$D$7),"") -> 3.05 | AQ13: =IF(E13="","",SUM(AY13:AY15)) -> -939.3246667 | AR13: =IF(AQ13=0,"",TEXT(AQ13,"0,00.00")&" ("&TEXT(AV13,"0.00%")&")") -> -939.32 (-5.69%) | AS13: =SUM(AX13:AX15) -> 2863.693667 | AT13: =IF(AS13=0,"",TEXT(AS13,"0,00.00")&" ("&TEXT(AW13,"0.00%")&")") -> 2,863.69 (17.34%) | AU13: notes here | AV13: =IFERROR(AQ13/SUM(AM13:AM15),"") -> -0.05688344593 | AW13: =IFERROR(AS13/SUM(AM13:AM15),"") -> 0.1734190208 | AX13: =IFERROR((AK13*I13)-AM13,"") -> 1885.252 | AY13: =IFERROR((I13*AE13)-AM13,"") -> -292.088 | BA13: =IF(N13=10,-1,IF(N13=100,-2,IF(N13=1000,-3,IF(N13=10000,-4,IF(N13=100000,-5,0))))) -> -3 | BB13: =C13 -> IRC
D14: 2.410 | I14: =IF(H14>0,H14,IF(D14="","",IF($D$8="Maximum shares",AL14,IFERROR(IF(IF(N14=5,MROUND(Q14,5),IF($D$9="Board lot",ROUND(Q14,BA14),$BE$4/(X14-AE14)))>P14,P14,IF(N14=5,MROUND(Q14,5),IF($D$9="Board lot",ROUND(Q14,BA14),$BE$4/(X14-AE14)))),"")))) -> 2,000 | J14: =IF(E13=0,"",E13) -> 2.25 | K14: =IF(F13=0,"",F13) -> 2.8 | L14: 2.8 | M14: 2.25 | N14: =IFERROR(IF(AND(D14>='User Guide & Settings'!$Z$5,D14<='User Guide & Settings'!$AA$5),'User Guide & Settings'!$AC$5,IF(AND(D14>='User Guide & Settings'!$Z$4,D14<='User Guide & Settings'!$AA$4),'User Guide & Settings'!$AC$4,IF(AND(D14>='User Guide & Settings'!$Z$6,D14<='User Guide & Settings'!$AA$7),'User Guide & Settings'!$AC$6,IF(AND(D14>='User Guide & Settings'!$Z$8,D14<='User Guide & Settings'!$AA$8),'User Guide & Settings'!$AC$8,IF(AND(D14>='User Guide & Settings'!$Z$9,D14<='User Guide & Settings'!$AA$23),'User Guide & Settings'!$AC$23,IF(AND(D14>='User Guide & Settings'!$Z$24,D14<='User Guide & Settings'!$AA$27),'User Guide & Settings'!$AC$27,IF(D14>='User Guide & Settings'!$Z$28,'User Guide & Settings'!$AC$28,0))))))),"") -> 1000 | O14: =$BD$5/D14 -> 6639.004149 | P14: 7000 | Q14: =$BE$5/(X14-AE14) -> 2016.027418 | R14: =$BE$5/(D14-M14) -> 2500 | S14: 6025 | T14: =IF(IF('User Guide & Settings'!$S$5="Amount",'User Guide & Settings'!$T$5*S14,IF('User Guide & Settings'!$S$5="Total Shares",'User Guide & Settings'!$T$5*R14,'User Guide & Settings'!$T$5))=0,MAX(IF('User Guide & Settings'!$P$5="amount",(S14*'User Guide & Settings'!$Q$5),IF('User Guide & Settings'!$P$5="Total Shares",('User Guide & Settings'!$Q$5*R14),'User Guide & Settings'!$Q$5)),'User Guide & Settings'!$R$5),MIN(IF('User Guide & Settings'!$S$5="Amount",'User Guide & Settings'!$T$5*S14,IF('User Guide & Settings'!$S$5="Total Shares",'User Guide & Settings'!$T$5*R14,'User Guide & Settings'!$T$5)),MAX(IF('User Guide & Settings'!$P$5="amount",(S14*'User Guide & Settings'!$Q$5),IF('User Guide & Settings'!$P$5="Total Shares",('User Guide & Settings'!$Q$5*R14),'User Guide & Settings'!$Q$5)),'User Guide & Settings'!$R$5))) -> 20 | U14: =IF(IF('User Guide & Settings'!$S$6="Amount",'User Guide & Settings'!$T$6*S14,IF('User Guide & Settings'!$S$6="Total Shares",'User Guide & Settings'!$T$6*R14,'User Guide & Settings'!$T$6))=0,MAX(IF('User Guide & Settings'!$P$6="amount",(S14*'User Guide & Settings'!$Q$6),IF('User Guide & Settings'!$P$6="Total Shares",('User Guide & Settings'!$Q$6*R14),'User Guide & Settings'!$Q$6)),'User Guide & Settings'!$R$6),MIN(IF('User Guide & Settings'!$S$6="Amount",'User Guide & Settings'!$T$6*S14,IF('User Guide & Settings'!$S$6="Total Shares",'User Guide & Settings'!$T$6*R14,'User Guide & Settings'!$T$6)),MAX(IF('User Guide & Settings'!$P$6="amount",(S14*'User Guide & Settings'!$Q$6),IF('User Guide & Settings'!$P$6="Total Shares",('User Guide & Settings'!$Q$6*R14),'User Guide & Settings'!$Q$6)),'User Guide & Settings'!$R$6))) -> 2.4 | V14: =IF(IF('User Guide & Settings'!$S$7="Amount",'User Guide & Settings'!$T$7*S14,IF('User Guide & Settings'!$S$7="Total Shares",'User Guide & Settings'!$T$7*R14,'User Guide & Settings'!$T$7))=0,MAX(IF('User Guide & Settings'!$P$7="amount",(S14*'User Guide & Settings'!$Q$7),IF('User Guide & Settings'!$P$7="Total Shares",('User Guide & Settings'!$Q$7*R14),'User Guide & Settings'!$Q$7)),'User Guide & Settings'!$R$7),MIN(IF('User Guide & Settings'!$S$7="Amount",'User Guide & Settings'!$T$7*S14,IF('User Guide & Settings'!$S$7="Total Shares",'User Guide & Settings'!$T$7*R14,'User Guide & Settings'!$T$7)),MAX(IF('User Guide & Settings'!$P$7="amount",(S14*'User Guide & Settings'!$Q$7),IF('User Guide & Settings'!$P$7="Total Shares",('User Guide & Settings'!$Q$7*R14),'User Guide & Settings'!$Q$7)),'User Guide & Settings'!$R$7))) -> 9.0375 | W14: =S14+SUM(T14:V14) -> 6056.4375 | X14: =W14/R14 -> 2.422575 | Y14: 5625 | Z14: =IF(IF('User Guide & Settings'!$S$5="Amount",'User Guide & Settings'!$T$5*Y14,IF('User Guide & Settings'!$S$5="Total Shares",'User Guide & Settings'!$T$5*R14,'User Guide & Settings'!$T$5))=0,MAX(IF('User Guide & Settings'!$P$5="amount",(Y14*'User Guide & Settings'!$Q$5),IF('User Guide & Settings'!$P$5="Total Shares",('User Guide & Settings'!$Q$5*R14),'User Guide & Settings'!$Q$5)),'User Guide & Settings'!$R$5),MIN(IF('User Guide & Settings'!$S$5="Amount",'User Guide & Settings'!$T$5*Y14,IF('User Guide & Settings'!$S$5="Total Shares",'User Guide & Settings'!$T$5*R14,'User Guide & Settings'!$T$5)),MAX(IF('User Guide & Settings'!$P$5="amount",(Y14*'User Guide & Settings'!$Q$5),IF('User Guide & Settings'!$P$5="Total Shares",('User Guide & Settings'!$Q$5*R14),'User Guide & Settings'!$Q$5)),'User Guide & Settings'!$R$5))) -> 20 | AA14: =IF(IF('User Guide & Settings'!$S$6="Amount",'User Guide & Settings'!$T$6*Y14,IF('User Guide & Settings'!$S$6="Total Shares",'User Guide & Settings'!$T$6*R14,'User Guide & Settings'!$T$6))=0,MAX(IF('User Guide & Settings'!$P$6="amount",(Y14*'User Guide & Settings'!$Q$6),IF('User Guide & Settings'!$P$6="Total Shares",('User Guide & Settings'!$Q$6*R14),'User Guide & Settings'!$Q$6)),'User Guide & Settings'!$R$6),MIN(IF('User Guide & Settings'!$S$6="Amount",'User Guide & Settings'!$T$6*Y14,IF('User Guide & Settings'!$S$6="Total Shares",'User Guide & Settings'!$T$6*R14,'User Guide & Settings'!$T$6)),MAX(IF('User Guide & Settings'!$P$6="amount",(Y14*'User Guide & Settings'!$Q$6),IF('User Guide & Settings'!$P$6="Total Shares",('User Guide & Settings'!$Q$6*R14),'User Guide & Settings'!$Q$6)),'User Guide & Settings'!$R$6))) -> 2.4 | AB14: =IF(IF('User Guide & Settings'!$S$7="Amount",'User Guide & Settings'!$T$7*Y14,IF('User Guide & Settings'!$S$7="Total Shares",'User Guide & Settings'!$T$7*R14,'User Guide & Settings'!$T$7))=0,MAX(IF('User Guide & Settings'!$P$7="amount",(Y14*'User Guide & Settings'!$Q$7),IF('User Guide & Settings'!$P$7="Total Shares",('User Guide & Settings'!$Q$7*R14),'User Guide & Settings'!$Q$7)),'User Guide & Settings'!$R$7),MIN(IF('User Guide & Settings'!$S$7="Amount",'User Guide & Settings'!$T$7*Y14,IF('User Guide & Settings'!$S$7="Total Shares",'User Guide & Settings'!$T$7*R14,'User Guide & Settings'!$T$7)),MAX(IF('User Guide & Settings'!$P$7="amount",(Y14*'User Guide & Settings'!$Q$7),IF('User Guide & Settings'!$P$7="Total Shares",('User Guide & Settings'!$Q$7*R14),'User Guide & Settings'!$Q$7)),'User Guide & Settings'!$R$7))) -> 8.4375 | AC14: =IF(IF('User Guide & Settings'!$S$8="Amount",'User Guide & Settings'!$T$8*Y14,IF('User Guide & Settings'!$S$8="Total Shares",'User Guide & Settings'!$T$8*R14,'User Guide & Settings'!$T$8))=0,MAX(IF('User Guide & Settings'!$P$8="amount",(Y14*'User Guide & Settings'!$Q$8),IF('User Guide & Settings'!$P$8="Total Shares",('User Guide & Settings'!$Q$8*R14),'User Guide & Settings'!$Q$8)),'User Guide & Settings'!$R$8),MIN(IF('User Guide & Settings'!$S$8="Amount",'User Guide & Settings'!$T$8*Y14,IF('User Guide & Settings'!$S$8="Total Shares",'User Guide & Settings'!$T$8*R14,'User Guide & Settings'!$T$8)),MAX(IF('User Guide & Settings'!$P$8="amount",(Y14*'User Guide & Settings'!$Q$8),IF('User Guide & Settings'!$P$8="Total Shares",('User Guide & Settings'!$Q$8*R14),'User Guide & Settings'!$Q$8)),'User Guide & Settings'!$R$8))) -> 33.75 | AD14: =Y14-SUM(Z14:AC14) -> 5560.4125 | AE14: =AD14/R14 -> 2.224165 | AF14: 5600 | AG14: =IF(IF('User Guide & Settings'!$S$5="Amount",'User Guide & Settings'!$T$5*AF14,IF('User Guide & Settings'!$S$5="Total Shares",'User Guide & Settings'!$T$5*I14,'User Guide & Settings'!$T$5))=0,MAX(IF('User Guide & Settings'!$P$5="amount",(AF14*'User Guide & Settings'!$Q$5),IF('User Guide & Settings'!$P$5="Total Shares",('User Guide & Settings'!$Q$5*I14),'User Guide & Settings'!$Q$5)),'User Guide & Settings'!$R$5),MIN(IF('User Guide & Settings'!$S$5="Amount",'User Guide & Settings'!$T$5*AF14,IF('User Guide & Settings'!$S$5="Total Shares",'User Guide & Settings'!$T$5*I14,'User Guide & Settings'!$T$5)),MAX(IF('User Guide & Settings'!$P$5="amount",(AF14*'User Guide & Settings'!$Q$5),IF('User Guide & Settings'!$P$5="Total Shares",('User Guide & Settings'!$Q$5*I14),'User Guide & Settings'!$Q$5)),'User Guide & Settings'!$R$5))) -> 20 | AH14: =IF(IF('User Guide & Settings'!$S$6="Amount",'User Guide & Settings'!$T$6*AF14,IF('User Guide & Settings'!$S$6="Total Shares",'User Guide & Settings'!$T$6*I14,'User Guide & Settings'!$T$6))=0,MAX(IF('User Guide & Settings'!$P$6="amount",(AF14*'User Guide & Settings'!$Q$6),IF('User Guide & Settings'!$P$6="Total Shares",('User Guide & Settings'!$Q$6*I14),'User Guide & Settings'!$Q$6)),'User Guide & Settings'!$R$6),MIN(IF('User Guide & Settings'!$S$6="Amount",'User Guide & Settings'!$T$6*AF14,IF('User Guide & Settings'!$S$6="Total Shares",'User Guide & Settings'!$T$6*I14,'User Guide & Settings'!$T$6)),MAX(IF('User Guide & Settings'!$P$6="amount",(AF14*'User Guide & Settings'!$Q$6),IF('User Guide & Settings'!$P$6="Total Shares",('User Guide & Settings'!$Q$6*I14),'User Guide & Settings'!$Q$6)),'User Guide & Settings'!$R$6))) -> 2.4 | AI14: =IF(IF('User Guide & Settings'!$S$7="Amount",'User Guide & Settings'!$T$7*AF14,IF('User Guide & Settings'!$S$7="Total Shares",'User Guide & Settings'!$T$7*I14,'User Guide & Settings'!$T$7))=0,MAX(IF('User Guide & Settings'!$P$7="amount",(AF14*'User Guide & Settings'!$Q$7),IF('User Guide & Settings'!$P$7="Total Shares",('User Guide & Settings'!$Q$7*I14),'User Guide & Settings'!$Q$7)),'User Guide & Settings'!$R$7),MIN(IF('User Guide & Settings'!$S$7="Amount",'User Guide & Settings'!$T$7*AF14,IF('User Guide & Settings'!$S$7="Total Shares",'User Guide & Settings'!$T$7*I14,'User Guide & Settings'!$T$7)),MAX(IF('User Guide & Settings'!$P$7="amount",(AF14*'User Guide & Settings'!$Q$7),IF('User Guide & Settings'!$P$7="Total Shares",('User Guide & Settings'!$Q$7*I14),'User Guide & Settings'!$Q$7)),'User Guide & Settings'!$R$7))) -> 8.4 | AJ14: =IF(IF('User Guide & Settings'!$S$8="Amount",'User Guide & Settings'!$T$8*AF14,IF('User Guide & Settings'!$S$8="Total Shares",'User Guide & Settings'!$T$8*I14,'User Guide & Settings'!$T$8))=0,MAX(IF('User Guide & Settings'!$P$8="amount",(AF14*'User Guide & Settings'!$Q$8),IF('User Guide & Settings'!$P$8="Total Shares",('User Guide & Settings'!$Q$8*I14),'User Guide & Settings'!$Q$8)),'User Guide & Settings'!$R$8),MIN(IF('User Guide & Settings'!$S$8="Amount",'User Guide & Settings'!$T$8*AF14,IF('User Guide & Settings'!$S$8="Total Shares",'User Guide & Settings'!$T$8*I14,'User Guide & Settings'!$T$8)),MAX(IF('User Guide & Settings'!$P$8="amount",(AF14*'User Guide & Settings'!$Q$8),IF('User Guide & Settings'!$P$8="Total Shares",('User Guide & Settings'!$Q$8*I14),'User Guide & Settings'!$Q$8)),'User Guide & Settings'!$R$8))) -> 33.6 | AK14: 2.7678 | AL14: 7000 | AM14: =IFERROR(IF(D14="","",(IF(AND(D14>0,M14="",OR(L14="",L14>0)),"Enter STOP",(IF(AND(D14>0,M14>0,L14=""),"Enter TARGET", (IF(D14<=M14,"Invalid STOP",(IF(D14>=L14,"Invalid TARGET",(I14*X14)))))))))),"") -> 4,845.15 | AX14: 690.45 | AY14: -396.82 | BA14: -3 | BB14: =C13 -> IRC
D15: 2.450 | I15: =IF(H15>0,H15,IF(D15="","",IF($D$8="Maximum shares",AL15,IFERROR(IF(IF(N15=5,MROUND(Q15,5),IF($D$9="Board lot",ROUND(Q15,BA15),$BE$4/(X15-AE15)))>P15,P15,IF(N15=5,MROUND(Q15,5),IF($D$9="Board lot",ROUND(Q15,BA15),$BE$4/(X15-AE15)))),"")))) -> 1,000 | J15: =IF(E13=0,"",E13) -> 2.25 | K15: =IF(F13=0,"",F13) -> 2.8 | L15: 2.8 | M15: 2.25 | N15: =IFERROR(IF(AND(D15>='User Guide & Settings'!$Z$5,D15<='User Guide & Settings'!$AA$5),'User Guide & Settings'!$AC$5,IF(AND(D15>='User Guide & Settings'!$Z$4,D15<='User Guide & Settings'!$AA$4),'User Guide & Settings'!$AC$4,IF(AND(D15>='User Guide & Settings'!$Z$6,D15<='User Guide & Settings'!$AA$7),'User Guide & Settings'!$AC$6,IF(AND(D15>='User Guide & Settings'!$Z$8,D15<='User Guide & Settings'!$AA$8),'User Guide & Settings'!$AC$8,IF(AND(D15>='User Guide & Settings'!$Z$9,D15<='User Guide & Settings'!$AA$23),'User Guide & Settings'!$AC$23,IF(AND(D15>='User Guide & Settings'!$Z$24,D15<='User Guide & Settings'!$AA$27),'User Guide & Settings'!$AC$27,IF(D15>='User Guide & Settings'!$Z$28,'User Guide & Settings'!$AC$28,0))))))),"") -> 1000 | O15: =$BD$6/D15 -> 4897.959184 | P15: 5000 | Q15: =$BE$6/(X15-AE15) -> 1198.003328 | R15: =$BE$6/(D15-M15) -> 1500 | S15: 3675 | T15: =IF(IF('User Guide & Settings'!$S$5="Amount",'User Guide & Settings'!$T$5*S15,IF('User Guide & Settings'!$S$5="Total Shares",'User Guide & Settings'!$T$5*R15,'User Guide & Settings'!$T$5))=0,MAX(IF('User Guide & Settings'!$P$5="amount",(S15*'User Guide & Settings'!$Q$5),IF('User Guide & Settings'!$P$5="Total Shares",('User Guide & Settings'!$Q$5*R15),'User Guide & Settings'!$Q$5)),'User Guide & Settings'!$R$5),MIN(IF('User Guide & Settings'!$S$5="Amount",'User Guide & Settings'!$T$5*S15,IF('User Guide & Settings'!$S$5="Total Shares",'User Guide & Settings'!$T$5*R15,'User Guide & Settings'!$T$5)),MAX(IF('User Guide & Settings'!$P$5="amount",(S15*'User Guide & Settings'!$Q$5),IF('User Guide & Settings'!$P$5="Total Shares",('User Guide & Settings'!$Q$5*R15),'User Guide & Settings'!$Q$5)),'User Guide & Settings'!$R$5))) -> 20 | U15: =IF(IF('User Guide & Settings'!$S$6="Amount",'User Guide & Settings'!$T$6*S15,IF('User Guide & Settings'!$S$6="Total Shares",'User Guide & Settings'!$T$6*R15,'User Guide & Settings'!$T$6))=0,MAX(IF('User Guide & Settings'!$P$6="amount",(S15*'User Guide & Settings'!$Q$6),IF('User Guide & Settings'!$P$6="Total Shares",('User Guide & Settings'!$Q$6*R15),'User Guide & Settings'!$Q$6)),'User Guide & Settings'!$R$6),MIN(IF('User Guide & Settings'!$S$6="Amount",'User Guide & Settings'!$T$6*S15,IF('User Guide & Settings'!$S$6="Total Shares",'User Guide & Settings'!$T$6*R15,'User Guide & Settings'!$T$6)),MAX(IF('User Guide & Settings'!$P$6="amount",(S15*'User Guide & Settings'!$Q$6),IF('User Guide & Settings'!$P$6="Total Shares",('User Guide & Settings'!$Q$6*R15),'User Guide & Settings'!$Q$6)),'User Guide & Settings'!$R$6))) -> 2.4 | V15: =IF(IF('User Guide & Settings'!$S$7="Amount",'User Guide & Settings'!$T$7*S15,IF('User Guide & Settings'!$S$7="Total Shares",'User Guide & Settings'!$T$7*R15,'User Guide & Settings'!$T$7))=0,MAX(IF('User Guide & Settings'!$P$7="amount",(S15*'User Guide & Settings'!$Q$7),IF('User Guide & Settings'!$P$7="Total Shares",('User Guide & Settings'!$Q$7*R15),'User Guide & Settings'!$Q$7)),'User Guide & Settings'!$R$7),MIN(IF('User Guide & Settings'!$S$7="Amount",'User Guide & Settings'!$T$7*S15,IF('User Guide & Settings'!$S$7="Total Shares",'User Guide & Settings'!$T$7*R15,'User Guide & Settings'!$T$7)),MAX(IF('User Guide & Settings'!$P$7="amount",(S15*'User Guide & Settings'!$Q$7),IF('User Guide & Settings'!$P$7="Total Shares",('User Guide & Settings'!$Q$7*R15),'User Guide & Settings'!$Q$7)),'User Guide & Settings'!$R$7))) -> 5.5125 | W15: 3702.9125 | X15: 2.468608333 | Y15: 3375 | Z15: =IF(IF('User Guide & Settings'!$S$5="Amount",'User Guide & Settings'!$T$5*Y15,IF('User Guide & Settings'!$S$5="Total Shares",'User Guide & Settings'!$T$5*R15,'User Guide & Settings'!$T$5))=0,MAX(IF('User Guide & Settings'!$P$5="amount",(Y15*'User Guide & Settings'!$Q$5),IF('User Guide & Settings'!$P$5="Total Shares",('User Guide & Settings'!$Q$5*R15),'User Guide & Settings'!$Q$5)),'User Guide & Settings'!$R$5),MIN(IF('User Guide & Settings'!$S$5="Amount",'User Guide & Settings'!$T$5*Y15,IF('User Guide & Settings'!$S$5="Total Shares",'User Guide & Settings'!$T$5*R15,'User Guide & Settings'!$T$5)),MAX(IF('User Guide & Settings'!$P$5="amount",(Y15*'User Guide & Settings'!$Q$5),IF('User Guide & Settings'!$P$5="Total Shares",('User Guide & Settings'!$Q$5*R15),'User Guide & Settings'!$Q$5)),'User Guide & Settings'!$R$5))) -> 20 | AA15: =IF(IF('User Guide & Settings'!$S$6="Amount",'User Guide & Settings'!$T$6*Y15,IF('User Guide & Settings'!$S$6="Total Shares",'User Guide & Settings'!$T$6*R15,'User Guide & Settings'!$T$6))=0,MAX(IF('User Guide & Settings'!$P$6="amount",(Y15*'User Guide & Settings'!$Q$6),IF('User Guide & Settings'!$P$6="Total Shares",('User Guide & Settings'!$Q$6*R15),'User Guide & Settings'!$Q$6)),'User Guide & Settings'!$R$6),MIN(IF('User Guide & Settings'!$S$6="Amount",'User Guide & Settings'!$T$6*Y15,IF('User Guide & Settings'!$S$6="Total Shares",'User Guide & Settings'!$T$6*R15,'User Guide & Settings'!$T$6)),MAX(IF('User Guide & Settings'!$P$6="amount",(Y15*'User Guide & Settings'!$Q$6),IF('User Guide & Settings'!$P$6="Total Shares",('User Guide & Settings'!$Q$6*R15),'User Guide & Settings'!$Q$6)),'User Guide & Settings'!$R$6))) -> 2.4 | AB15: =IF(IF('User Guide & Settings'!$S$7="Amount",'User Guide & Settings'!$T$7*Y15,IF('User Guide & Settings'!$S$7="Total Shares",'User Guide & Settings'!$T$7*R15,'User Guide & Settings'!$T$7))=0,MAX(IF('User Guide & Settings'!$P$7="amount",(Y15*'User Guide & Settings'!$Q$7),IF('User Guide & Settings'!$P$7="Total Shares",('User Guide & Settings'!$Q$7*R15),'User Guide & Settings'!$Q$7)),'User Guide & Settings'!$R$7),MIN(IF('User Guide & Settings'!$S$7="Amount",'User Guide & Settings'!$T$7*Y15,IF('User Guide & Settings'!$S$7="Total Shares",'User Guide & Settings'!$T$7*R15,'User Guide & Settings'!$T$7)),MAX(IF('User Guide & Settings'!$P$7="amount",(Y15*'User Guide & Settings'!$Q$7),IF('User Guide & Settings'!$P$7="Total Shares",('User Guide & Settings'!$Q$7*R15),'User Guide & Settings'!$Q$7)),'User Guide & Settings'!$R$7))) -> 5.0625 | AC15: =IF(IF('User Guide & Settings'!$S$8="Amount",'User Guide & Settings'!$T$8*Y15,IF('User Guide & Settings'!$S$8="Total Shares",'User Guide & Settings'!$T$8*R15,'User Guide & Settings'!$T$8))=0,MAX(IF('User Guide & Settings'!$P$8="amount",(Y15*'User Guide & Settings'!$Q$8),IF('User Guide & Settings'!$P$8="Total Shares",('User Guide & Settings'!$Q$8*R15),'User Guide & Settings'!$Q$8)),'User Guide & Settings'!$R$8),MIN(IF('User Guide & Settings'!$S$8="Amount",'User Guide & Settings'!$T$8*Y15,IF('User Guide & Settings'!$S$8="Total Shares",'User Guide & Settings'!$T$8*R15,'User Guide & Settings'!$T$8)),MAX(IF('User Guide & Settings'!$P$8="amount",(Y15*'User Guide & Settings'!$Q$8),IF('User Guide & Settings'!$P$8="Total Shares",('User Guide & Settings'!$Q$8*R15),'User Guide & Settings'!$Q$8)),'User Guide & Settings'!$R$8))) -> 20.25 | AD15: 3327.2875 | AE15: 2.218191667 | AF15: 2800 | AG15: =IF(IF('User Guide & Settings'!$S$5="Amount",'User Guide & Settings'!$T$5*AF15,IF('User Guide & Settings'!$S$5="Total Shares",'User Guide & Settings'!$T$5*I15,'User Guide & Settings'!$T$5))=0,MAX(IF('User Guide & Settings'!$P$5="amount",(AF15*'User Guide & Settings'!$Q$5),IF('User Guide & Settings'!$P$5="Total Shares",('User Guide & Settings'!$Q$5*I15),'User Guide & Settings'!$Q$5)),'User Guide & Settings'!$R$5),MIN(IF('User Guide & Settings'!$S$5="Amount",'User Guide & Settings'!$T$5*AF15,IF('User Guide & Settings'!$S$5="Total Shares",'User Guide & Settings'!$T$5*I15,'User Guide & Settings'!$T$5)),MAX(IF('User Guide & Settings'!$P$5="amount",(AF15*'User Guide & Settings'!$Q$5),IF('User Guide & Settings'!$P$5="Total Shares",('User Guide & Settings'!$Q$5*I15),'User Guide & Settings'!$Q$5)),'User Guide & Settings'!$R$5))) -> 20 | AH15: =IF(IF('User Guide & Settings'!$S$6="Amount",'User Guide & Settings'!$T$6*AF15,IF('User Guide & Settings'!$S$6="Total Shares",'User Guide & Settings'!$T$6*I15,'User Guide & Settings'!$T$6))=0,MAX(IF('User Guide & Settings'!$P$6="amount",(AF15*'User Guide & Settings'!$Q$6),IF('User Guide & Settings'!$P$6="Total Shares",('User Guide & Settings'!$Q$6*I15),'User Guide & Settings'!$Q$6)),'User Guide & Settings'!$R$6),MIN(IF('User Guide & Settings'!$S$6="Amount",'User Guide & Settings'!$T$6*AF15,IF('User Guide & Settings'!$S$6="Total Shares",'User Guide & Settings'!$T$6*I15,'User Guide & Settings'!$T$6)),MAX(IF('User Guide & Settings'!$P$6="amount",(AF15*'User Guide & Settings'!$Q$6),IF('User Guide & Settings'!$P$6="Total Shares",('User Guide & Settings'!$Q$6*I15),'User Guide & Settings'!$Q$6)),'User Guide & Settings'!$R$6))) -> 2.4 | AI15: =IF(IF('User Guide & Settings'!$S$7="Amount",'User Guide & Settings'!$T$7*AF15,IF('User Guide & Settings'!$S$7="Total Shares",'User Guide & Settings'!$T$7*I15,'User Guide & Settings'!$T$7))=0,MAX(IF('User Guide & Settings'!$P$7="amount",(AF15*'User Guide & Settings'!$Q$7),IF('User Guide & Settings'!$P$7="Total Shares",('User Guide & Settings'!$Q$7*I15),'User Guide & Settings'!$Q$7)),'User Guide & Settings'!$R$7),MIN(IF('User Guide & Settings'!$S$7="Amount",'User Guide & Settings'!$T$7*AF15,IF('User Guide & Settings'!$S$7="Total Shares",'User Guide & Settings'!$T$7*I15,'User Guide & Settings'!$T$7)),MAX(IF('User Guide & Settings'!$P$7="amount",(AF15*'User Guide & Settings'!$Q$7),IF('User Guide & Settings'!$P$7="Total Shares",('User Guide & Settings'!$Q$7*I15),'User Guide & Settings'!$Q$7)),'User Guide & Settings'!$R$7))) -> 4.2 | AJ15: =IF(IF('User Guide & Settings'!$S$8="Amount",'User Guide & Settings'!$T$8*AF15,IF('User Guide & Settings'!$S$8="Total Shares",'User Guide & Settings'!$T$8*I15,'User Guide & Settings'!$T$8))=0,MAX(IF('User Guide & Settings'!$P$8="amount",(AF15*'User Guide & Settings'!$Q$8),IF('User Guide & Settings'!$P$8="Total Shares",('User Guide & Settings'!$Q$8*I15),'User Guide & Settings'!$Q$8)),'User Guide & Settings'!$R$8),MIN(IF('User Guide & Settings'!$S$8="Amount",'User Guide & Settings'!$T$8*AF15,IF('User Guide & Settings'!$S$8="Total Shares",'User Guide & Settings'!$T$8*I15,'User Guide & Settings'!$T$8)),MAX(IF('User Guide & Settings'!$P$8="amount",(AF15*'User Guide & Settings'!$Q$8),IF('User Guide & Settings'!$P$8="Total Shares",('User Guide & Settings'!$Q$8*I15),'User Guide & Settings'!$Q$8)),'User Guide & Settings'!$R$8))) -> 16.8 | AK15: 2.7566 | AL15: 5000 | AM15: 2,468.61 | AX15: 287.9916667 | AY15: -250.4166667 | BA15: -3 | BB15: =C13 -> IRC
B16: 2018-10-19 | C16: PXP | D16: 16.880 | E16: 16.420 | F16: 19.400 | G16: =IFERROR(IF($G$11="Ave. Price",D74,G74),"") -> 17.164 | I16: 400 | J16: =IF(E16=0,"",E16) -> 16.42 | K16: =IF(F16=0,"",F16) -> 19.4 | L16: 19.4 | M16: 16.42 | N16: =IFERROR(IF(AND(D16>='User Guide & Settings'!$Z$5,D16<='User Guide & Settings'!$AA$5),'User Guide & Settings'!$AC$5,IF(AND(D16>='User Guide & Settings'!$Z$4,D16<='User Guide & Settings'!$AA$4),'User Guide & Settings'!$AC$4,IF(AND(D16>='User Guide & Settings'!$Z$6,D16<='User Guide & Settings'!$AA$7),'User Guide & Settings'!$AC$6,IF(AND(D16>='User Guide & Settings'!$Z$8,D16<='User Guide & Settings'!$AA$8),'User Guide & Settings'!$AC$8,IF(AND(D16>='User Guide & Settings'!$Z$9,D16<='User Guide & Settings'!$AA$23),'User Guide & Settings'!$AC$23,IF(AND(D16>='User Guide & Settings'!$Z$24,D16<='User Guide & Settings'!$AA$27),'User Guide & Settings'!$AC$27,IF(D16>='User Guide & Settings'!$Z$28,'User Guide & Settings'!$AC$28,0))))))),"") -> 100 | O16: =$BD$4/D16 -> 710.9004739 | P16: 700 | Q16: =$BE$4/(X16-AE16) -> 427.5270411 | R16: =$BE$4/(D16-M16) -> 652.173913 | S16: 11008.69565 | T16: =IF(IF('User Guide & Settings'!$S$5="Amount",'User Guide & Settings'!$T$5*S16,IF('User Guide & Settings'!$S$5="Total Shares",'User Guide & Settings'!$T$5*R16,'User Guide & Settings'!$T$5))=0,MAX(IF('User Guide & Settings'!$P$5="amount",(S16*'User Guide & Settings'!$Q$5),IF('User Guide & Settings'!$P$5="Total Shares",('User Guide & Settings'!$Q$5*R16),'User Guide & Settings'!$Q$5)),'User Guide & Settings'!$R$5),MIN(IF('User Guide & Settings'!$S$5="Amount",'User Guide & Settings'!$T$5*S16,IF('User Guide & Settings'!$S$5="Total Shares",'User Guide & Settings'!$T$5*R16,'User Guide & Settings'!$T$5)),MAX(IF('User Guide & Settings'!$P$5="amount",(S16*'User Guide & Settings'!$Q$5),IF('User Guide & Settings'!$P$5="Total Shares",('User Guide & Settings'!$Q$5*R16),'User Guide & Settings'!$Q$5)),'User Guide & Settings'!$R$5))) -> 27.52173913 | U16: =IF(IF('User Guide & Settings'!$S$6="Amount",'User Guide & Settings'!$T$6*S16,IF('User Guide & Settings'!$S$6="Total Shares",'User Guide & Settings'!$T$6*R16,'User Guide & Settings'!$T$6))=0,MAX(IF('User Guide & Settings'!$P$6="amount",(S16*'User Guide & Settings'!$Q$6),IF('User Guide & Settings'!$P$6="Total Shares",('User Guide & Settings'!$Q$6*R16),'User Guide & Settings'!$Q$6)),'User Guide & Settings'!$R$6),MIN(IF('User Guide & Settings'!$S$6="Amount",'User Guide & Settings'!$T$6*S16,IF('User Guide & Settings'!$S$6="Total Shares",'User Guide & Settings'!$T$6*R16,'User Guide & Settings'!$T$6)),MAX(IF('User Guide & Settings'!$P$6="amount",(S16*'User Guide & Settings'!$Q$6),IF('User Guide & Settings'!$P$6="Total Shares",('User Guide & Settings'!$Q$6*R16),'User Guide & Settings'!$Q$6)),'User Guide & Settings'!$R$6))) -> 3.302608696 | V16: =IF(IF('User Guide & Settings'!$S$7="Amount",'User Guide & Settings'!$T$7*S16,IF('User Guide & Settings'!$S$7="Total Shares",'User Guide & Settings'!$T$7*R16,'User Guide & Settings'!$T$7))=0,MAX(IF('User Guide & Settings'!$P$7="amount",(S16*'User Guide & Settings'!$Q$7),IF('User Guide & Settings'!$P$7="Total Shares",('User Guide & Settings'!$Q$7*R16),'User Guide & Settings'!$Q$7)),'User Guide & Settings'!$R$7),MIN(IF('User Guide & Settings'!$S$7="Amount",'User Guide & Settings'!$T$7*S16,IF('User Guide & Settings'!$S$7="Total Shares",'User Guide & Settings'!$T$7*R16,'User Guide & Settings'!$T$7)),MAX(IF('User Guide & Settings'!$P$7="amount",(S16*'User Guide & Settings'!$Q$7),IF('User Guide & Settings'!$P$7="Total Shares",('User Guide & Settings'!$Q$7*R16),'User Guide & Settings'!$Q$7)),'User Guide & Settings'!$R$7))) -> 16.51304348 | W16: =S16+SUM(T16:V16) -> 11056.03304 | X16: =W16/R16 -> 16.952584 | Y16: 10708.69565 | Z16: =IF(IF('User Guide & Settings'!$S$5="Amount",'User Guide & Settings'!$T$5*Y16,IF('User Guide & Settings'!$S$5="Total Shares",'User Guide & Settings'!$T$5*R16,'User Guide & Settings'!$T$5))=0,MAX(IF('User Guide & Settings'!$P$5="amount",(Y16*'User Guide & Settings'!$Q$5),IF('User Guide & Settings'!$P$5="Total Shares",('User Guide & Settings'!$Q$5*R16),'User Guide & Settings'!$Q$5)),'User Guide & Settings'!$R$5),MIN(IF('User Guide & Settings'!$S$5="Amount",'User Guide & Settings'!$T$5*Y16,IF('User Guide & Settings'!$S$5="Total Shares",'User Guide & Settings'!$T$5*R16,'User Guide & Settings'!$T$5)),MAX(IF('User Guide & Settings'!$P$5="amount",(Y16*'User Guide & Settings'!$Q$5),IF('User Guide & Settings'!$P$5="Total Shares",('User Guide & Settings'!$Q$5*R16),'User Guide & Settings'!$Q$5)),'User Guide & Settings'!$R$5))) -> 26.77173913 | AA16: =IF(IF('User Guide & Settings'!$S$6="Amount",'User Guide & Settings'!$T$6*Y16,IF('User Guide & Settings'!$S$6="Total Shares",'User Guide & Settings'!$T$6*R16,'User Guide & Settings'!$T$6))=0,MAX(IF('User Guide & Settings'!$P$6="amount",(Y16*'User Guide & Settings'!$Q$6),IF('User Guide & Settings'!$P$6="Total Shares",('User Guide & Settings'!$Q$6*R16),'User Guide & Settings'!$Q$6)),'User Guide & Settings'!$R$6),MIN(IF('User Guide & Settings'!$S$6="Amount",'User Guide & Settings'!$T$6*Y16,IF('User Guide & Settings'!$S$6="Total Shares",'User Guide & Settings'!$T$6*R16,'User Guide & Settings'!$T$6)),MAX(IF('User Guide & Settings'!$P$6="amount",(Y16*'User Guide & Settings'!$Q$6),IF('User Guide & Settings'!$P$6="Total Shares",('User Guide & Settings'!$Q$6*R16),'User Guide & Settings'!$Q$6)),'User Guide & Settings'!$R$6))) -> 3.212608696 | AB16: =IF(IF('User Guide & Settings'!$S$7="Amount",'User Guide & Settings'!$T$7*Y16,IF('User Guide & Settings'!$S$7="Total Shares",'User Guide & Settings'!$T$7*R16,'User Guide & Settings'!$T$7))=0,MAX(IF('User Guide & Settings'!$P$7="amount",(Y16*'User Guide & Settings'!$Q$7),IF('User Guide & Settings'!$P$7="Total Shares",('User Guide & Settings'!$Q$7*R16),'User Guide & Settings'!$Q$7)),'User Guide & Settings'!$R$7),MIN(IF('User Guide & Settings'!$S$7="Amount",'User Guide & Settings'!$T$7*Y16,IF('User Guide & Settings'!$S$7="Total Shares",'User Guide & Settings'!$T$7*R16,'User Guide & Settings'!$T$7)),MAX(IF('User Guide & Settings'!$P$7="amount",(Y16*'User Guide & Settings'!$Q$7),IF('User Guide & Settings'!$P$7="Total Shares",('User Guide & Settings'!$Q$7*R16),'User Guide & Settings'!$Q$7)),'User Guide & Settings'!$R$7))) -> 16.06304348 | AC16: =IF(IF('User Guide & Settings'!$S$8="Amount",'User Guide & Settings'!$T$8*Y16,IF('User Guide & Settings'!$S$8="Total Shares",'User Guide & Settings'!$T$8*R16,'User Guide & Settings'!$T$8))=0,MAX(IF('User Guide & Settings'!$P$8="amount",(Y16*'User Guide & Settings'!$Q$8),IF('User Guide & Settings'!$P$8="Total Shares",('User Guide & Settings'!$Q$8*R16),'User Guide & Settings'!$Q$8)),'User Guide & Settings'!$R$8),MIN(IF('User Guide & Settings'!$S$8="Amount",'User Guide & Settings'!$T$8*Y16,IF('User Guide & Settings'!$S$8="Total Shares",'User Guide & Settings'!$T$8*R16,'User Guide & Settings'!$T$8)),MAX(IF('User Guide & Settings'!$P$8="amount",(Y16*'User Guide & Settings'!$Q$8),IF('User Guide & Settings'!$P$8="Total Shares",('User Guide & Settings'!$Q$8*R16),'User Guide & Settings'!$Q$8)),'User Guide & Settings'!$R$8))) -> 64.25217391 | AD16: =Y16-SUM(Z16:AC16) -> 10598.39609 | AE16: =AD16/R16 -> 16.250874 | AF16: 7760 | AG16: =IF(IF('User Guide & Settings'!$S$5="Amount",'User Guide & Settings'!$T$5*AF16,IF('User Guide & Settings'!$S$5="Total Shares",'User Guide & Settings'!$T$5*I16,'User Guide & Settings'!$T$5))=0,MAX(IF('User Guide & Settings'!$P$5="amount",(AF16*'User Guide & Settings'!$Q$5),IF('User Guide & Settings'!$P$5="Total Shares",('User Guide & Settings'!$Q$5*I16),'User Guide & Settings'!$Q$5)),'User Guide & Settings'!$R$5),MIN(IF('User Guide & Settings'!$S$5="Amount",'User Guide & Settings'!$T$5*AF16,IF('User Guide & Settings'!$S$5="Total Shares",'User Guide & Settings'!$T$5*I16,'User Guide & Settings'!$T$5)),MAX(IF('User Guide & Settings'!$P$5="amount",(AF16*'User Guide & Settings'!$Q$5),IF('User Guide & Settings'!$P$5="Total Shares",('User Guide & Settings'!$Q$5*I16),'User Guide & Settings'!$Q$5)),'User Guide & Settings'!$R$5))) -> 20 | AH16: =IF(IF('User Guide & Settings'!$S$6="Amount",'User Guide & Settings'!$T$6*AF16,IF('User Guide & Settings'!$S$6="Total Shares",'User Guide & Settings'!$T$6*I16,'User Guide & Settings'!$T$6))=0,MAX(IF('User Guide & Settings'!$P$6="amount",(AF16*'User Guide & Settings'!$Q$6),IF('User Guide & Settings'!$P$6="Total Shares",('User Guide & Settings'!$Q$6*I16),'User Guide & Settings'!$Q$6)),'User Guide & Settings'!$R$6),MIN(IF('User Guide & Settings'!$S$6="Amount",'User Guide & Settings'!$T$6*AF16,IF('User Guide & Settings'!$S$6="Total Shares",'User Guide & Settings'!$T$6*I16,'User Guide & Settings'!$T$6)),MAX(IF('User Guide & Settings'!$P$6="amount",(AF16*'User Guide & Settings'!$Q$6),IF('User Guide & Settings'!$P$6="Total Shares",('User Guide & Settings'!$Q$6*I16),'User Guide & Settings'!$Q$6)),'User Guide & Settings'!$R$6))) -> 2.4 | AI16: =IF(IF('User Guide & Settings'!$S$7="Amount",'User Guide & Settings'!$T$7*AF16,IF('User Guide & Settings'!$S$7="Total Shares",'User Guide & Settings'!$T$7*I16,'User Guide & Settings'!$T$7))=0,MAX(IF('User Guide & Settings'!$P$7="amount",(AF16*'User Guide & Settings'!$Q$7),IF('User Guide & Settings'!$P$7="Total Shares",('User Guide & Settings'!$Q$7*I16),'User Guide & Settings'!$Q$7)),'User Guide & Settings'!$R$7),MIN(IF('User Guide & Settings'!$S$7="Amount",'User Guide & Settings'!$T$7*AF16,IF('User Guide & Settings'!$S$7="Total Shares",'User Guide & Settings'!$T$7*I16,'User Guide & Settings'!$T$7)),MAX(IF('User Guide & Settings'!$P$7="amount",(AF16*'User Guide & Settings'!$Q$7),IF('User Guide & Settings'!$P$7="Total Shares",('User Guide & Settings'!$Q$7*I16),'User Guide & Settings'!$Q$7)),'User Guide & Settings'!$R$7))) -> 11.64 | AJ16: =IF(IF('User Guide & Settings'!$S$8="Amount",'User Guide & Settings'!$T$8*AF16,IF('User Guide & Settings'!$S$8="Total Shares",'User Guide & Settings'!$T$8*I16,'User Guide & Settings'!$T$8))=0,MAX(IF('User Guide & Settings'!$P$8="amount",(AF16*'User Guide & Settings'!$Q$8),IF('User Guide & Settings'!$P$8="Total Shares",('User Guide & Settings'!$Q$8*I16),'User Guide & Settings'!$Q$8)),'User Guide & Settings'!$R$8),MIN(IF('User Guide & Settings'!$S$8="Amount",'User Guide & Settings'!$T$8*AF16,IF('User Guide & Settings'!$S$8="Total Shares",'User Guide & Settings'!$T$8*I16,'User Guide & Settings'!$T$8)),MAX(IF('User Guide & Settings'!$P$8="amount",(AF16*'User Guide & Settings'!$Q$8),IF('User Guide & Settings'!$P$8="Total Shares",('User Guide & Settings'!$Q$8*I16),'User Guide & Settings'!$Q$8)),'User Guide & Settings'!$R$8))) -> 46.56 | AK16: 19.1985 | AL16: 700 | AM16: 6,781.03 | AN16: =IFERROR(IF(E16="","",(TEXT(AQ16/$D$7,"0.00"))&"R"),"") -> -1.01R | AO16: =IFERROR(IF(F16="","",(TEXT(AS16/$D$7,"0.00"))&"R"),"") -> 2.23R | AP16: =IFERROR((AS16/$D$7)/(-AQ16/$D$7),"") -> 2.21 | AQ16: =IF(E16="","",SUM(AY16:AY18)) -> -1008.7583 | AR16: =IF(AQ16=0,"",TEXT(AQ16,"0,00.00")&" ("&TEXT(AV16,"0.00%")&")") -> -1,008.76 (-5.34%) | AS16: =SUM(AX16:AX18) -> 2232.8295 | AT16: =IF(AS16=0,"",TEXT(AS16,"0,00.00")&" ("&TEXT(AW16,"0.00%")&")") -> 2,232.83 (11.83%) | AU16: notes here | AV16: =IFERROR(AQ16/SUM(AM16:AM18),"") -> -0.05343021969 | AW16: =IFERROR(AS16/SUM(AM16:AM18),"") -> 0.1182647724 | AX16: 898.3664 | AY16: -280.684 | BA16: -2 | BB16: =C16 -> PXP
D17: 17.170 | I17: 400 | J17: =IF(E16=0,"",E16) -> 16.42 | K17: =IF(F16=0,"",F16) -> 19.4 | L17: 19.4 | M17: 16.42 | N17: =IFERROR(IF(AND(D17>='User Guide & Settings'!$Z$5,D17<='User Guide & Settings'!$AA$5),'User Guide & Settings'!$AC$5,IF(AND(D17>='User Guide & Settings'!$Z$4,D17<='User Guide & Settings'!$AA$4),'User Guide & Settings'!$AC$4,IF(AND(D17>='User Guide & Settings'!$Z$6,D17<='User Guide & Settings'!$AA$7),'User Guide & Settings'!$AC$6,IF(AND(D17>='User Guide & Settings'!$Z$8,D17<='User Guide & Settings'!$AA$8),'User Guide & Settings'!$AC$8,IF(AND(D17>='User Guide & Settings'!$Z$9,D17<='User Guide & Settings'!$AA$23),'User Guide & Settings'!$AC$23,IF(AND(D17>='User Guide & Settings'!$Z$24,D17<='User Guide & Settings'!$AA$27),'User Guide & Settings'!$AC$27,IF(D17>='User Guide & Settings'!$Z$28,'User Guide & Settings'!$AC$28,0))))))),"") -> 100 | O17: =$BD$5/D17 -> 931.8578917 | P17: 900 | Q17: =$BE$5/(X17-AE17) -> 402.8371823 | R17: =$BE$5/(D17-M17) -> 533.3333333 | S17: 9157.333333 | T17: =IF(IF('User Guide & Settings'!$S$5="Amount",'User Guide & Settings'!$T$5*S17,IF('User Guide & Settings'!$S$5="Total Shares",'User Guide & Settings'!$T$5*R17,'User Guide & Settings'!$T$5))=0,MAX(IF('User Guide & Settings'!$P$5="amount",(S17*'User Guide & Settings'!$Q$5),IF('User Guide & Settings'!$P$5="Total Shares",('User Guide & Settings'!$Q$5*R17),'User Guide & Settings'!$Q$5)),'User Guide & Settings'!$R$5),MIN(IF('User Guide & Settings'!$S$5="Amount",'User Guide & Settings'!$T$5*S17,IF('User Guide & Settings'!$S$5="Total Shares",'User Guide & Settings'!$T$5*R17,'User Guide & Settings'!$T$5)),MAX(IF('User Guide & Settings'!$P$5="amount",(S17*'User Guide & Settings'!$Q$5),IF('User Guide & Settings'!$P$5="Total Shares",('User Guide & Settings'!$Q$5*R17),'User Guide & Settings'!$Q$5)),'User Guide & Settings'!$R$5))) -> 22.89333333 | U17: =IF(IF('User Guide & Settings'!$S$6="Amount",'User Guide & Settings'!$T$6*S17,IF('User Guide & Settings'!$S$6="Total Shares",'User Guide & Settings'!$T$6*R17,'User Guide & Settings'!$T$6))=0,MAX(IF('User Guide & Settings'!$P$6="amount",(S17*'User Guide & Settings'!$Q$6),IF('User Guide & Settings'!$P$6="Total Shares",('User Guide & Settings'!$Q$6*R17),'User Guide & Settings'!$Q$6)),'User Guide & Settings'!$R$6),MIN(IF('User Guide & Settings'!$S$6="Amount",'User Guide & Settings'!$T$6*S17,IF('User Guide & Settings'!$S$6="Total Shares",'User Guide & Settings'!$T$6*R17,'User Guide & Settings'!$T$6)),MAX(IF('User Guide & Settings'!$P$6="amount",(S17*'User Guide & Settings'!$Q$6),IF('User Guide & Settings'!$P$6="Total Shares",('User Guide & Settings'!$Q$6*R17),'User Guide & Settings'!$Q$6)),'User Guide & Settings'!$R$6))) -> 2.7472 | V17: =IF(IF('User Guide & Settings'!$S$7="Amount",'User Guide & Settings'!$T$7*S17,IF('User Guide & Settings'!$S$7="Total Shares",'User Guide & Settings'!$T$7*R17,'User Guide & Settings'!$T$7))=0,MAX(IF('User Guide & Settings'!$P$7="amount",(S17*'User Guide & Settings'!$Q$7),IF('User Guide & Settings'!$P$7="Total Shares",('User Guide & Settings'!$Q$7*R17),'User Guide & Settings'!$Q$7)),'User Guide & Settings'!$R$7),MIN(IF('User Guide & Settings'!$S$7="Amount",'User Guide & Settings'!$T$7*S17,IF('User Guide & Settings'!$S$7="Total Shares",'User Guide & Settings'!$T$7*R17,'User Guide & Settings'!$T$7)),MAX(IF('User Guide & Settings'!$P$7="amount",(S17*'User Guide & Settings'!$Q$7),IF('User Guide & Settings'!$P$7="Total Shares",('User Guide & Settings'!$Q$7*R17),'User Guide & Settings'!$Q$7)),'User Guide & Settings'!$R$7))) -> 13.736 | W17: 9196.709867 | X17: 17.243831 | Y17: 8757.333333 | Z17: =IF(IF('User Guide & Settings'!$S$5="Amount",'User Guide & Settings'!$T$5*Y17,IF('User Guide & Settings'!$S$5="Total Shares",'User Guide & Settings'!$T$5*R17,'User Guide & Settings'!$T$5))=0,MAX(IF('User Guide & Settings'!$P$5="amount",(Y17*'User Guide & Settings'!$Q$5),IF('User Guide & Settings'!$P$5="Total Shares",('User Guide & Settings'!$Q$5*R17),'User Guide & Settings'!$Q$5)),'User Guide & Settings'!$R$5),MIN(IF('User Guide & Settings'!$S$5="Amount",'User Guide & Settings'!$T$5*Y17,IF('User Guide & Settings'!$S$5="Total Shares",'User Guide & Settings'!$T$5*R17,'User Guide & Settings'!$T$5)),MAX(IF('User Guide & Settings'!$P$5="amount",(Y17*'User Guide & Settings'!$Q$5),IF('User Guide & Settings'!$P$5="Total Shares",('User Guide & Settings'!$Q$5*R17),'User Guide & Settings'!$Q$5)),'User Guide & Settings'!$R$5))) -> 21.89333333 | AA17: =IF(IF('User Guide & Settings'!$S$6="Amount",'User Guide & Settings'!$T$6*Y17,IF('User Guide & Settings'!$S$6="Total Shares",'User Guide & Settings'!$T$6*R17,'User Guide & Settings'!$T$6))=0,MAX(IF('User Guide & Settings'!$P$6="amount",(Y17*'User Guide & Settings'!$Q$6),IF('User Guide & Settings'!$P$6="Total Shares",('User Guide & Settings'!$Q$6*R17),'User Guide & Settings'!$Q$6)),'User Guide & Settings'!$R$6),MIN(IF('User Guide & Settings'!$S$6="Amount",'User Guide & Settings'!$T$6*Y17,IF('User Guide & Settings'!$S$6="Total Shares",'User Guide & Settings'!$T$6*R17,'User Guide & Settings'!$T$6)),MAX(IF('User Guide & Settings'!$P$6="amount",(Y17*'User Guide & Settings'!$Q$6),IF('User Guide & Settings'!$P$6="Total Shares",('User Guide & Settings'!$Q$6*R17),'User Guide & Settings'!$Q$6)),'User Guide & Settings'!$R$6))) -> 2.6272 | AB17: =IF(IF('User Guide & Settings'!$S$7="Amount",'User Guide & Settings'!$T$7*Y17,IF('User Guide & Settings'!$S$7="Total Shares",'User Guide & Settings'!$T$7*R17,'User Guide & Settings'!$T$7))=0,MAX(IF('User Guide & Settings'!$P$7="amount",(Y17*'User Guide & Settings'!$Q$7),IF('User Guide & Settings'!$P$7="Total Shares",('User Guide & Settings'!$Q$7*R17),'User Guide & Settings'!$Q$7)),'User Guide & Settings'!$R$7),MIN(IF('User Guide & Settings'!$S$7="Amount",'User Guide & Settings'!$T$7*Y17,IF('User Guide & Settings'!$S$7="Total Shares",'User Guide & Settings'!$T$7*R17,'User Guide & Settings'!$T$7)),MAX(IF('User Guide & Settings'!$P$7="amount",(Y17*'User Guide & Settings'!$Q$7),IF('User Guide & Settings'!$P$7="Total Shares",('User Guide & Settings'!$Q$7*R17),'User Guide & Settings'!$Q$7)),'User Guide & Settings'!$R$7))) -> 13.136 | AC17: =IF(IF('User Guide & Settings'!$S$8="Amount",'User Guide & Settings'!$T$8*Y17,IF('User Guide & Settings'!$S$8="Total Shares",'User Guide & Settings'!$T$8*R17,'User Guide & Settings'!$T$8))=0,MAX(IF('User Guide & Settings'!$P$8="amount",(Y17*'User Guide & Settings'!$Q$8),IF('User Guide & Settings'!$P$8="Total Shares",('User Guide & Settings'!$Q$8*R17),'User Guide & Settings'!$Q$8)),'User Guide & Settings'!$R$8),MIN(IF('User Guide & Settings'!$S$8="Amount",'User Guide & Settings'!$T$8*Y17,IF('User Guide & Settings'!$S$8="Total Shares",'User Guide & Settings'!$T$8*R17,'User Guide & Settings'!$T$8)),MAX(IF('User Guide & Settings'!$P$8="amount",(Y17*'User Guide & Settings'!$Q$8),IF('User Guide & Settings'!$P$8="Total Shares",('User Guide & Settings'!$Q$8*R17),'User Guide & Settings'!$Q$8)),'User Guide & Settings'!$R$8))) -> 52.544 | AD17: 8667.1328 | AE17: 16.250874 | AF17: 7760 | AG17: =IF(IF('User Guide & Settings'!$S$5="Amount",'User Guide & Settings'!$T$5*AF17,IF('User Guide & Settings'!$S$5="Total Shares",'User Guide & Settings'!$T$5*I17,'User Guide & Settings'!$T$5))=0,MAX(IF('User Guide & Settings'!$P$5="amount",(AF17*'User Guide & Settings'!$Q$5),IF('User Guide & Settings'!$P$5="Total Shares",('User Guide & Settings'!$Q$5*I17),'User Guide & Settings'!$Q$5)),'User Guide & Settings'!$R$5),MIN(IF('User Guide & Settings'!$S$5="Amount",'User Guide & Settings'!$T$5*AF17,IF('User Guide & Settings'!$S$5="Total Shares",'User Guide & Settings'!$T$5*I17,'User Guide & Settings'!$T$5)),MAX(IF('User Guide & Settings'!$P$5="amount",(AF17*'User Guide & Settings'!$Q$5),IF('User Guide & Settings'!$P$5="Total Shares",('User Guide & Settings'!$Q$5*I17),'User Guide & Settings'!$Q$5)),'User Guide & Settings'!$R$5))) -> 20 | AH17: =IF(IF('User Guide & Settings'!$S$6="Amount",'User Guide & Settings'!$T$6*AF17,IF('User Guide & Settings'!$S$6="Total Shares",'User Guide & Settings'!$T$6*I17,'User Guide & Settings'!$T$6))=0,MAX(IF('User Guide & Settings'!$P$6="amount",(AF17*'User Guide & Settings'!$Q$6),IF('User Guide & Settings'!$P$6="Total Shares",('User Guide & Settings'!$Q$6*I17),'User Guide & Settings'!$Q$6)),'User Guide & Settings'!$R$6),MIN(IF('User Guide & Settings'!$S$6="Amount",'User Guide & Settings'!$T$6*AF17,IF('User Guide & Settings'!$S$6="Total Shares",'User Guide & Settings'!$T$6*I17,'User Guide & Settings'!$T$6)),MAX(IF('User Guide & Settings'!$P$6="amount",(AF17*'User Guide & Settings'!$Q$6),IF('User Guide & Settings'!$P$6="Total Shares",('User Guide & Settings'!$Q$6*I17),'User Guide & Settings'!$Q$6)),'User Guide & Settings'!$R$6))) -> 2.4 | AI17: =IF(IF('User Guide & Settings'!$S$7="Amount",'User Guide & Settings'!$T$7*AF17,IF('User Guide & Settings'!$S$7="Total Shares",'User Guide & Settings'!$T$7*I17,'User Guide & Settings'!$T$7))=0,MAX(IF('User Guide & Settings'!$P$7="amount",(AF17*'User Guide & Settings'!$Q$7),IF('User Guide & Settings'!$P$7="Total Shares",('User Guide & Settings'!$Q$7*I17),'User Guide & Settings'!$Q$7)),'User Guide & Settings'!$R$7),MIN(IF('User Guide & Settings'!$S$7="Amount",'User Guide & Settings'!$T$7*AF17,IF('User Guide & Settings'!$S$7="Total Shares",'User Guide & Settings'!$T$7*I17,'User Guide & Settings'!$T$7)),MAX(IF('User Guide & Settings'!$P$7="amount",(AF17*'User Guide & Settings'!$Q$7),IF('User Guide & Settings'!$P$7="Total Shares",('User Guide & Settings'!$Q$7*I17),'User Guide & Settings'!$Q$7)),'User Guide & Settings'!$R$7))) -> 11.64 | AJ17: =IF(IF('User Guide & Settings'!$S$8="Amount",'User Guide & Settings'!$T$8*AF17,IF('User Guide & Settings'!$S$8="Total Shares",'User Guide & Settings'!$T$8*I17,'User Guide & Settings'!$T$8))=0,MAX(IF('User Guide & Settings'!$P$8="amount",(AF17*'User Guide & Settings'!$Q$8),IF('User Guide & Settings'!$P$8="Total Shares",('User Guide & Settings'!$Q$8*I17),'User Guide & Settings'!$Q$8)),'User Guide & Settings'!$R$8),MIN(IF('User Guide & Settings'!$S$8="Amount",'User Guide & Settings'!$T$8*AF17,IF('User Guide & Settings'!$S$8="Total Shares",'User Guide & Settings'!$T$8*I17,'User Guide & Settings'!$T$8)),MAX(IF('User Guide & Settings'!$P$8="amount",(AF17*'User Guide & Settings'!$Q$8),IF('User Guide & Settings'!$P$8="Total Shares",('User Guide & Settings'!$Q$8*I17),'User Guide & Settings'!$Q$8)),'User Guide & Settings'!$R$8))) -> 46.56 | AK17: 19.1985 | AL17: 900 | AM17: 6,897.53 | AX17: 781.8676 | AY17: -397.1828 | BA17: -2 | BB17: =C16 -> PXP
D18: 17.250 | I18: 300 | J18: =IF(E16=0,"",E16) -> 16.42 | K18: =IF(F16=0,"",F16) -> 19.4 | L18: 19.4 | M18: 16.42 | N18: =IFERROR(IF(AND(D18>='User Guide & Settings'!$Z$5,D18<='User Guide & Settings'!$AA$5),'User Guide & Settings'!$AC$5,IF(AND(D18>='User Guide & Settings'!$Z$4,D18<='User Guide & Settings'!$AA$4),'User Guide & Settings'!$AC$4,IF(AND(D18>='User Guide & Settings'!$Z$6,D18<='User Guide & Settings'!$AA$7),'User Guide & Settings'!$AC$6,IF(AND(D18>='User Guide & Settings'!$Z$8,D18<='User Guide & Settings'!$AA$8),'User Guide & Settings'!$AC$8,IF(AND(D18>='User Guide & Settings'!$Z$9,D18<='User Guide & Settings'!$AA$23),'User Guide & Settings'!$AC$23,IF(AND(D18>='User Guide & Settings'!$Z$24,D18<='User Guide & Settings'!$AA$27),'User Guide & Settings'!$AC$27,IF(D18>='User Guide & Settings'!$Z$28,'User Guide & Settings'!$AC$28,0))))))),"") -> 100 | O18: =$BD$6/D18 -> 695.6521739 | P18: 700 | Q18: =$BE$6/(X18-AE18) -> 271.9924809 | R18: =$BE$6/(D18-M18) -> 361.4457831 | S18: 6234.939759 | T18: =IF(IF('User Guide & Settings'!$S$5="Amount",'User Guide & Settings'!$T$5*S18,IF('User Guide & Settings'!$S$5="Total Shares",'User Guide & Settings'!$T$5*R18,'User Guide & Settings'!$T$5))=0,MAX(IF('User Guide & Settings'!$P$5="amount",(S18*'User Guide & Settings'!$Q$5),IF('User Guide & Settings'!$P$5="Total Shares",('User Guide & Settings'!$Q$5*R18),'User Guide & Settings'!$Q$5)),'User Guide & Settings'!$R$5),MIN(IF('User Guide & Settings'!$S$5="Amount",'User Guide & Settings'!$T$5*S18,IF('User Guide & Settings'!$S$5="Total Shares",'User Guide & Settings'!$T$5*R18,'User Guide & Settings'!$T$5)),MAX(IF('User Guide & Settings'!$P$5="amount",(S18*'User Guide & Settings'!$Q$5),IF('User Guide & Settings'!$P$5="Total Shares",('User Guide & Settings'!$Q$5*R18),'User Guide & Settings'!$Q$5)),'User Guide & Settings'!$R$5))) -> 20 | U18: =IF(IF('User Guide & Settings'!$S$6="Amount",'User Guide & Settings'!$T$6*S18,IF('User Guide & Settings'!$S$6="Total Shares",'User Guide & Settings'!$T$6*R18,'User Guide & Settings'!$T$6))=0,MAX(IF('User Guide & Settings'!$P$6="amount",(S18*'User Guide & Settings'!$Q$6),IF('User Guide & Settings'!$P$6="Total Shares",('User Guide & Settings'!$Q$6*R18),'User Guide & Settings'!$Q$6)),'User Guide & Settings'!$R$6),MIN(IF('User Guide & Settings'!$S$6="Amount",'User Guide & Settings'!$T$6*S18,IF('User Guide & Settings'!$S$6="Total Shares",'User Guide & Settings'!$T$6*R18,'User Guide & Settings'!$T$6)),MAX(IF('User Guide & Settings'!$P$6="amount",(S18*'User Guide & Settings'!$Q$6),IF('User Guide & Settings'!$P$6="Total Shares",('User Guide & Settings'!$Q$6*R18),'User Guide & Settings'!$Q$6)),'User Guide & Settings'!$R$6))) -> 2.4 | V18: =IF(IF('User Guide & Settings'!$S$7="Amount",'User Guide & Settings'!$T$7*S18,IF('User Guide & Settings'!$S$7="Total Shares",'User Guide & Settings'!$T$7*R18,'User Guide & Settings'!$T$7))=0,MAX(IF('User Guide & Settings'!$P$7="amount",(S18*'User Guide & Settings'!$Q$7),IF('User Guide & Settings'!$P$7="Total Shares",('User Guide & Settings'!$Q$7*R18),'User Guide & Settings'!$Q$7)),'User Guide & Settings'!$R$7),MIN(IF('User Guide & Settings'!$S$7="Amount",'User Guide & Settings'!$T$7*S18,IF('User Guide & Settings'!$S$7="Total Shares",'User Guide & Settings'!$T$7*R18,'User Guide & Settings'!$T$7)),MAX(IF('User Guide & Settings'!$P$7="amount",(S18*'User Guide & Settings'!$Q$7),IF('User Guide & Settings'!$P$7="Total Shares",('User Guide & Settings'!$Q$7*R18),'User Guide & Settings'!$Q$7)),'User Guide & Settings'!$R$7))) -> 9.352409639 | W18: 6266.692169 | X18: 17.33784833 | Y18: 5934.939759 | Z18: =IF(IF('User Guide & Settings'!$S$5="Amount",'User Guide & Settings'!$T$5*Y18,IF('User Guide & Settings'!$S$5="Total Shares",'User Guide & Settings'!$T$5*R18,'User Guide & Settings'!$T$5))=0,MAX(IF('User Guide & Settings'!$P$5="amount",(Y18*'User Guide & Settings'!$Q$5),IF('User Guide & Settings'!$P$5="Total Shares",('User Guide & Settings'!$Q$5*R18),'User Guide & Settings'!$Q$5)),'User Guide & Settings'!$R$5),MIN(IF('User Guide & Settings'!$S$5="Amount",'User Guide & Settings'!$T$5*Y18,IF('User Guide & Settings'!$S$5="Total Shares",'User Guide & Settings'!$T$5*R18,'User Guide & Settings'!$T$5)),MAX(IF('User Guide & Settings'!$P$5="amount",(Y18*'User Guide & Settings'!$Q$5),IF('User Guide & Settings'!$P$5="Total Shares",('User Guide & Settings'!$Q$5*R18),'User Guide & Settings'!$Q$5)),'User Guide & Settings'!$R$5))) -> 20 | AA18: =IF(IF('User Guide & Settings'!$S$6="Amount",'User Guide & Settings'!$T$6*Y18,IF('User Guide & Settings'!$S$6="Total Shares",'User Guide & Settings'!$T$6*R18,'User Guide & Settings'!$T$6))=0,MAX(IF('User Guide & Settings'!$P$6="amount",(Y18*'User Guide & Settings'!$Q$6),IF('User Guide & Settings'!$P$6="Total Shares",('User Guide & Settings'!$Q$6*R18),'User Guide & Settings'!$Q$6)),'User Guide & Settings'!$R$6),MIN(IF('User Guide & Settings'!$S$6="Amount",'User Guide & Settings'!$T$6*Y18,IF('User Guide & Settings'!$S$6="Total Shares",'User Guide & Settings'!$T$6*R18,'User Guide & Settings'!$T$6)),MAX(IF('User Guide & Settings'!$P$6="amount",(Y18*'User Guide & Settings'!$Q$6),IF('User Guide & Settings'!$P$6="Total Shares",('User Guide & Settings'!$Q$6*R18),'User Guide & Settings'!$Q$6)),'User Guide & Settings'!$R$6))) -> 2.4 | AB18: =IF(IF('User Guide & Settings'!$S$7="Amount",'User Guide & Settings'!$T$7*Y18,IF('User Guide & Settings'!$S$7="Total Shares",'User Guide & Settings'!$T$7*R18,'User Guide & Settings'!$T$7))=0,MAX(IF('User Guide & Settings'!$P$7="amount",(Y18*'User Guide & Settings'!$Q$7),IF('User Guide & Settings'!$P$7="Total Shares",('User Guide & Settings'!$Q$7*R18),'User Guide & Settings'!$Q$7)),'User Guide & Settings'!$R$7),MIN(IF('User Guide & Settings'!$S$7="Amount",'User Guide & Settings'!$T$7*Y18,IF('User Guide & Settings'!$S$7="Total Shares",'User Guide & Settings'!$T$7*R18,'User Guide & Settings'!$T$7)),MAX(IF('User Guide & Settings'!$P$7="amount",(Y18*'User Guide & Settings'!$Q$7),IF('User Guide & Settings'!$P$7="Total Shares",('User Guide & Settings'!$Q$7*R18),'User Guide & Settings'!$Q$7)),'User Guide & Settings'!$R$7))) -> 8.902409639 | AC18: =IF(IF('User Guide & Settings'!$S$8="Amount",'User Guide & Settings'!$T$8*Y18,IF('User Guide & Settings'!$S$8="Total Shares",'User Guide & Settings'!$T$8*R18,'User Guide & Settings'!$T$8))=0,MAX(IF('User Guide & Settings'!$P$8="amount",(Y18*'User Guide & Settings'!$Q$8),IF('User Guide & Settings'!$P$8="Total Shares",('User Guide & Settings'!$Q$8*R18),'User Guide & Settings'!$Q$8)),'User Guide & Settings'!$R$8),MIN(IF('User Guide & Settings'!$S$8="Amount",'User Guide & Settings'!$T$8*Y18,IF('User Guide & Settings'!$S$8="Total Shares",'User Guide & Settings'!$T$8*R18,'User Guide & Settings'!$T$8)),MAX(IF('User Guide & Settings'!$P$8="amount",(Y18*'User Guide & Settings'!$Q$8),IF('User Guide & Settings'!$P$8="Total Shares",('User Guide & Settings'!$Q$8*R18),'User Guide & Settings'!$Q$8)),'User Guide & Settings'!$R$8))) -> 35.60963855 | AD18: 5868.027711 | AE18: 16.23487667 | AF18: 5820 | AG18: =IF(IF('User Guide & Settings'!$S$5="Amount",'User Guide & Settings'!$T$5*AF18,IF('User Guide & Settings'!$S$5="Total Shares",'User Guide & Settings'!$T$5*I18,'User Guide & Settings'!$T$5))=0,MAX(IF('User Guide & Settings'!$P$5="amount",(AF18*'User Guide & Settings'!$Q$5),IF('User Guide & Settings'!$P$5="Total Shares",('User Guide & Settings'!$Q$5*I18),'User Guide & Settings'!$Q$5)),'User Guide & Settings'!$R$5),MIN(IF('User Guide & Settings'!$S$5="Amount",'User Guide & Settings'!$T$5*AF18,IF('User Guide & Settings'!$S$5="Total Shares",'User Guide & Settings'!$T$5*I18,'User Guide & Settings'!$T$5)),MAX(IF('User Guide & Settings'!$P$5="amount",(AF18*'User Guide & Settings'!$Q$5),IF('User Guide & Settings'!$P$5="Total Shares",('User Guide & Settings'!$Q$5*I18),'User Guide & Settings'!$Q$5)),'User Guide & Settings'!$R$5))) -> 20 | AH18: =IF(IF('User Guide & Settings'!$S$6="Amount",'User Guide & Settings'!$T$6*AF18,IF('User Guide & Settings'!$S$6="Total Shares",'User Guide & Settings'!$T$6*I18,'User Guide & Settings'!$T$6))=0,MAX(IF('User Guide & Settings'!$P$6="amount",(AF18*'User Guide & Settings'!$Q$6),IF('User Guide & Settings'!$P$6="Total Shares",('User Guide & Settings'!$Q$6*I18),'User Guide & Settings'!$Q$6)),'User Guide & Settings'!$R$6),MIN(IF('User Guide & Settings'!$S$6="Amount",'User Guide & Settings'!$T$6*AF18,IF('User Guide & Settings'!$S$6="Total Shares",'User Guide & Settings'!$T$6*I18,'User Guide & Settings'!$T$6)),MAX(IF('User Guide & Settings'!$P$6="amount",(AF18*'User Guide & Settings'!$Q$6),IF('User Guide & Settings'!$P$6="Total Shares",('User Guide & Settings'!$Q$6*I18),'User Guide & Settings'!$Q$6)),'User Guide & Settings'!$R$6))) -> 2.4 | AI18: =IF(IF('User Guide & Settings'!$S$7="Amount",'User Guide & Settings'!$T$7*AF18,IF('User Guide & Settings'!$S$7="Total Shares",'User Guide & Settings'!$T$7*I18,'User Guide & Settings'!$T$7))=0,MAX(IF('User Guide & Settings'!$P$7="amount",(AF18*'User Guide & Settings'!$Q$7),IF('User Guide & Settings'!$P$7="Total Shares",('User Guide & Settings'!$Q$7*I18),'User Guide & Settings'!$Q$7)),'User Guide & Settings'!$R$7),MIN(IF('User Guide & Settings'!$S$7="Amount",'User Guide & Settings'!$T$7*AF18,IF('User Guide & Settings'!$S$7="Total Shares",'User Guide & Settings'!$T$7*I18,'User Guide & Settings'!$T$7)),MAX(IF('User Guide & Settings'!$P$7="amount",(AF18*'User Guide & Settings'!$Q$7),IF('User Guide & Settings'!$P$7="Total Shares",('User Guide & Settings'!$Q$7*I18),'User Guide & Settings'!$Q$7)),'User Guide & Settings'!$R$7))) -> 8.73 | AJ18: =IF(IF('User Guide & Settings'!$S$8="Amount",'User Guide & Settings'!$T$8*AF18,IF('User Guide & Settings'!$S$8="Total Shares",'User Guide & Settings'!$T$8*I18,'User Guide & Settings'!$T$8))=0,MAX(IF('User Guide & Settings'!$P$8="amount",(AF18*'User Guide & Settings'!$Q$8),IF('User Guide & Settings'!$P$8="Total Shares",('User Guide & Settings'!$Q$8*I18),'User Guide & Settings'!$Q$8)),'User Guide & Settings'!$R$8),MIN(IF('User Guide & Settings'!$S$8="Amount",'User Guide & Settings'!$T$8*AF18,IF('User Guide & Settings'!$S$8="Total Shares",'User Guide & Settings'!$T$8*I18,'User Guide & Settings'!$T$8)),MAX(IF('User Guide & Settings'!$P$8="amount",(AF18*'User Guide & Settings'!$Q$8),IF('User Guide & Settings'!$P$8="Total Shares",('User Guide & Settings'!$Q$8*I18),'User Guide & Settings'!$Q$8)),'User Guide & Settings'!$R$8))) -> 34.92 | AK18: 19.17983333 | AL18: 700 | AM18: 5,201.35 | AX18: 552.5955 | AY18: -330.8915 | BA18: -2 | BB18: =C16 -> PXP
B73: 1e-05 | C73: =C13 -> IRC | D73: =IFERROR(SUM(AM13:AM15)/SUM(I13:I15),"") -> 2.359020905 | E73: =E13 -> 2.25 | F73: =F13 -> 2.8 | G73: =IFERROR(INDEX(Sheet1!E:E,MATCH(C73,Sheet1!B:B,0)),"") -> 2.66 | I73: =SUM(I13:I15) -> 7000 | AL73: =SUM(AL13:AL15) -> 17000 | AM73: =SUM(AM13:AM15) -> 16513.14633 | AN73: =AN13 -> -0.94R | AO73: =AO13 -> 2.86R | AP73: =IFERROR(AP13+B73,"") -> 3.048682912 | AQ73: =AQ13 -> -939.3246667 | AS73: =AS13 -> 2863.693667 | AV73: =AV13 -> -0.05688344593 | AW73: =AW13 -> 0.1734190208
B74: 2e-05 | C74: =C16 -> PXP | D74: =IFERROR(SUM(AM16:AM18)/SUM(I16:I18),"") -> 17.16356409 | E74: =E16 -> 16.42 | F74: =F16 -> 19.4 | G74: =IFERROR(INDEX(Sheet1!E:E,MATCH(C74,Sheet1!B:B,0)),"") -> 16.3 | I74: =SUM(I16:I18) -> 1100 | AL74: =SUM(AL16:AL18) -> 2300 | AM74: =SUM(AM16:AM18) -> 18879.9205 | AN74: =AN16 -> -1.01R | AO74: =AO16 -> 2.23R | AP74: =IFERROR(AP16+B74,"") -> 2.213463498 | AQ74: =AQ16 -> -1008.7583 | AS74: =AS16 -> 2232.8295 | AV74: =AV16 -> -0.05343021969 | AW74: =AW16 -> 0.1182647724

Sheet Expectancy (hidden)
B2: Account Name: | C2: =REGNAME -> Trial Version | G2: =C6 -> Strategy 1 | I2: =D6 -> Strategy 2 | K2: EXPECTANCY CHART
B3: Portfolio Size: | C3: 100,000.00 | F3: #Win Trades: | G3: =T4 &"/"&C4 -> 25/100 | I3: =U4 &"/"&C4 -> 30/100
B4: # of Trades: | C4: 100 | F4: #Loss Trades: | G4: =C4-T4&"/"&C4 -> 75/100 | I4: =C4-U4&"/"&C4 -> 70/100 | T4: =COUNTIF($K$17:$K$116,$C$8) -> 25 | U4: =COUNTIF($AH$17:$AH$116,$D$8) -> 30
F5: RRR: | G5: =IFERROR("1 : "&TEXT((C8*C7)/(-C9*C7),"#.00"),0) -> 1 : 3.20 | I5: =IFERROR("1 : "&TEXT((D8*D7)/(-D9*D7),"#.00"),0) -> 1 : 3.75 | T5: =C4-T4 -> 75 | U5: =C4-U4 -> 70 | Y5: =H17 -> 40000
B6: Strategy: | C6: Strategy 1 | D6: Strategy 2 | F6: Average Port Gain/Trade: | G6: =(C8*C10) -> 8.40% | I6: =(D8*D10) -> 6.00%
B7: Win Rate%: | C7: 25.00% | D7: 30.00% | F7: Average Port Loss/Trade: | G7: =(C9*C11) -> -1.50% | I7: =(D9*D11) -> -1.60% | T7: Non-Compounding | Y7: =C8 -> 0.12
B8: Average Win%: | C8: 12.00% | D8: 15.00% | F8: Expected RRR: | G8: =IFERROR("1 : "&TEXT(G6/-G7,"0.00"),0) -> 1 : 5.60 | I8: =IFERROR("1 : "&TEXT(I6/-I7,"0.00"),0) -> 1 : 3.75 | T8: Compounding | Y8: =C9 -> -0.0375
B9: Average Loss%: | C9: -3.75% | D9: -4.00% | F9: End Capital: | G9: =OFFSET(M16,C4,0) -> 241,796.13 | I9: =OFFSET(AJ16,C4,0) -> 185,708.96 | Y9: =C4 -> 100
B10: Ave.Position Size on Winners: | C10: 70% | D10: 40% | F10: Portfolio Profit/Loss: | G10: =G9-C3 -> 141,796.13 | I10: =I9-C3 -> 85,708.96 | T10: =IFERROR(TEXT((C8*C7)/(-C9*C7),"#.00"),2) -> 3.20
B11: Ave.Position Size on Losers: | C11: 40% | D11: 40% | F11: Compounding Growth%: | G11: =IFERROR(G10/C3,0) -> 141.80% | I11: =IFERROR(I10/C3,0) -> 85.71% | X11: =ROUND(C4*C7,0) -> 25 | Y11: =C4-X11 -> 75 | AA11: =ROUND(C4*D7,0) -> 30 | AB11: =C4-AA11 -> 70
F12: Non-Compounding Growth%: | G12: =(T4*(C8*C10))+(T5*(C9*C11)) -> 97.50% | I12: =(U4*(D8*D10))+(U5*(D9*D11)) -> 68.00%
B14: WIN RATE% | C14: REWARD | D14: RISK | E14: 10 TRADES | H14: =C6&" - TRADE DETAILS" -> Strategy 1 - TRADE DETAILS | L14: Select Chart Option>> | M14: Compounding
B15: 25% | C15: 3.2 | D15: : 1 | E15: % GAIN/LOSS | G15: No. | H15: ENTRY AMOUNT | I15: RESULT | J15: GAIN/LOSS | K15: G&L % | L15: EXIT AMOUNT | M15: END CAPITAL | N15: GROWTH RATE | R15: ST1 | T15: ST2 | V15: W | W15: L | Y15: =C7 -> 0.25 | Z15: =20*Y15 -> 5 | AA15: =D7 -> 0.3 | AB15: =20*AA15 -> 6 | AC15: result | AD15: W | AE15: L | AF15: entry | AG15: G/L | AH15: GL% | AI15: exit | AJ15: END CAPITAL
G16: 0 | M16: =C3 -> $100,000.00
C17: =-D17*$C$15 -> 6% | D17: -2% | E17: =IFERROR((BP19-$Y$5)/$Y$5,"") -> 4.57% | G17: =Q17 -> 1 | H17: =IF($M$14="non-compounding",IF(I17="loss",($C$3*$C$11),($C$3*$C$10)),IFERROR(IF(G17="","",IF(I17="win",$C$10*C3,$C$11*C3)),"")) -> 40,000.00 | I17: =IF(G17="","",IF(K17<0,"LOSS","WIN")) -> LOSS | J17: =IFERROR(H17*K17,"") -> -1,500.00 | K17: =R17 -> -3.8% | L17: =IFERROR(J17+H17,"") -> 38,500.00 | M17: =IFERROR(IF(I17="win",($C$3*(1-$C$10)),($C$3*(1-$C$11)))+L17,"") -> 98,500.00 | N17: =IFERROR((M17-$C$3)/$C$3,"") -> -1.50% | P17: =MAX(M17:M116,AJ17:AJ116)*1.05 -> 354,031.23 | Q17: =IFERROR(IF(S17>$C$4,"",S17),"") -> 1 | R17: =IF(S15>=$C$4,"",IF(V17>$X$11,$C$9,IF(W17>=$Y$11,$C$8,U17))) -> -0.0375 | S17: 1 | T17: =IF(S15>=$C$4,"",IF(AD17>$AA$11,$D$9,IF(AE17>=$AB$11,$D$8,AC17))) -> -0.04 | U17: =CHOOSE(RANDBETWEEN(1,20),$Z$18,$Z$19,$Z$20,$Z$21,$Z$22,$Z$23,$Z$24,$Z$25,$Z$26,$Z$27,$Z$28,$Z$29,$Z$30,$Z$31,$Z$32,$Z$33,$Z$34,$Z$35,$Z$36,$Z$37) -> -0.0375 | V17: =COUNTIF($U17:U$17,$C$8) -> 0 | W17: =COUNTIF($U15:U$17,$C$9) -> 1 | Y17: =C8 -> 0.12 | Z17: =C9 -> -0.0375 | AA17: =D8 -> 0.15 | AB17: =D9 -> -0.04 | AC17: =CHOOSE(RANDBETWEEN(1,20),$AB$18,$AB$19,$AB$20,$AB$21,$AB$22,$AB$23,$AB$24,$AB$25,$AB$26,$AB$27,$AB$28,$AB$29,$AB$30,$AB$31,$AB$32,$AB$33,$AB$34,$AB$35,$AB$36,$AB$37) -> -0.04 | AD17: =COUNTIF($AC17:AC$17,$D$8) -> 0 | AE17: =COUNTIF($AC15:AC$17,$D$9) -> 1 | AF17: =IF($M$14="non-compounding",IF(AH17<0,($C$3*$D$11),($C$3*$D$10)),IFERROR(IF(G17="","",IF(AH17>0,$D$10*C3,$D$11*C3)),"")) -> 40000 | AG17: =IFERROR(AF17*AH17,"") -> -1600 | AH17: =IF(S15>=$C$4,"",IF(AD17>$AA$11,$D$9,IF(AE17>=$AB$11,$D$8,AC17))) -> -0.04 | AI17: =IFERROR(AG17+AF17,"") -> 38400 | AJ17: =IFERROR(IF(AH17>0,($C$3*(1-$D$10)),($C$3*(1-$D$11)))+AI17,"") -> 98400 | AL17: 10 | AM17: 1 | AN17: 2 | AO17: 3 | AP17: 4 | AQ17: 5 | AR17: 6 | AS17: 7 | AT17: 8 | AU17: 9 | AV17: 10
B18: Optimal Gain/Loss Ratio | C18: 10% | D18: -3% | E18: =IFERROR((BP20-$Y$5)/$Y$5,"") -> 6.37% | G18: 2 | H18: =IFERROR(IF($M$14="non-compounding",IF(I18="loss",($C$3*$C$11),($C$3*$C$10)),IF(G18="","",IF(I18="win",$C$10*M17,$C$11*M17))),"") -> 68,950.00 | I18: WIN | J18: 8,274.00 | K18: =IF(S17>=$C$4,"",IF(V18>=$X$11,$C$9,IF(W18>=$Y$11,$C$8,U18))) -> 12.0% | L18: 77,224.00 | M18: =IF($M$14="non-compounding",SUM($J$17:J18)+$C$3,IFERROR(IF(I18="win",(M17*(1-$C$10)),(M17*(1-$C$11)))+L18,"")) -> 106,774.00 | N18: 6.77% | P18: =MIN(M17:M116,AJ17:AJ116)*0.9 -> 83,851.18 | Q18: 2 | R18: =IF(S17>=$C$4,"",IF(V18>$X$11,$C$9,IF(W18>=$Y$11,$C$8,U18))) -> 0.12 | S18: 2 | T18: =IF(S17>=$C$4,"",IF(AD18>$AA$11,$D$9,IF(AE18>=$AB$11,$D$8,AC18))) -> -0.04 | U18: 0.12 | V18: =COUNTIF($U$17:U17,$C$8) -> 0 | W18: =COUNTIF($U$17:U17,$C$9) -> 1 | Y18: 1 | Z18: =IF(Y18<=$Z$15,$Y$17,$Z$17) -> 0.12 | AB18: =IF(Y18<=$AB$15,$AA$17,$AB$17) -> 0.15 | AC18: =CHOOSE(RANDBETWEEN(1,20),$AB$18,$AB$19,$AB$20,$AB$21,$AB$22,$AB$23,$AB$24,$AB$25,$AB$26,$AB$27,$AB$28,$AB$29,$AB$30,$AB$31,$AB$32,$AB$33,$AB$34,$AB$35,$AB$36,$AB$37) -> -0.04 | AD18: =COUNTIF($AC$17:AC17,$D$8) -> 0 | AE18: =COUNTIF($AC$17:AC17,$D$9) -> 1 | AF18: =IFERROR(IF($M$14="non-compounding",IF(AH18<0,($C$3*$D$11),($C$3*$D$10)),IF(G18="","",IF(AH18>0,$D$10*AJ17,$D$11*AJ17))),"") -> 39360 | AG18: -1574.4 | AH18: =IF(S17>=$C$4,"",IF(AD18>=$AA$11,$D$9,IF(AE18>=$AB$11,$D$8,AC18))) -> -0.04 | AI18: =IFERROR(AG18+AF18,"") -> 37785.6 | AJ18: =IF($M$14="non-compounding",SUM($AG$17:AG18)+$C$3,IFERROR(IF(AH18>0,(AJ17*(1-$D$10)),(AJ17*(1-$D$11)))+AI18,"")) -> 96825.6
B19: Calculator | C19: 13% | D19: -4% | E19: 7.85% | G19: 3 | H19: 74,741.80 | I19: WIN | J19: 8,969.02 | K19: 12.0% | L19: 83,710.82 | M19: =IF($M$14="non-compounding",SUM($J$17:J19)+$C$3,IFERROR(IF(I19="win",(M18*(1-$C$10)),(M18*(1-$C$11)))+L19,"")) -> 115,743.02 | N19: 15.74% | Q19: 3 | R19: 0.12 | S19: 3 | T19: -0.04 | U19: 0.12 | V19: =COUNTIF($U$17:U18,$C$8) -> 1 | W19: =COUNTIF($U$17:U18,$C$9) -> 1 | Y19: 2 | Z19: 0.12 | AB19: 0.15 | AC19: -0.04 | AD19: =COUNTIF($AC$17:AC18,$D$8) -> 0 | AE19: =COUNTIF($AC$17:AC18,$D$9) -> 2 | AF19: 38730.24 | AG19: =IFERROR(AF19*AH19,"") -> -1549.2096 | AH19: =IF(S18>=$C$4,"",IF(AD19>=$AA$11,$D$9,IF(AE19>=$AB$11,$D$8,AC19))) -> -0.04 | AI19: 37181.0304 | AJ19: =IF($M$14="non-compounding",SUM($AG$17:AG19)+$C$3,IFERROR(IF(AH19>0,(AJ18*(1-$D$10)),(AJ18*(1-$D$11)))+AI19,"")) -> 95276.3904 | AM19: =IF(AM$17>ROUND($B$15*$AL$17,0),$D17,$C17) -> 0.064 | AN19: 0.064 | AO19: 0.064 | AP19: -0.02 | AQ19: -0.02 | AR19: -0.02 | AS19: -0.02 | AT19: -0.02 | AU19: -0.02 | AV19: -0.02 | AW19: =AM19*$Y$5 -> 2560 | AX19: =AN19*BG19 -> 2723.84 | AY19: 2898.16576 | AZ19: -963.6401152 | BA19: -944.3673129 | BB19: -925.4799666 | BC19: -906.9703673 | BD19: -888.83096 | BE19: -871.0543408 | BF19: -853.6332539 | BG19: =($Y$5+AW19) -> 42560 | BH19: =AX19+BG19 -> 45283.84 | BI19: 48182.00576 | BJ19: 47218.36564 | BK19: 46273.99833 | BL19: 45348.51837 | BM19: 44441.548 | BN19: 43552.71704 | BO19: 42681.6627 | BP19: 41828.02944 | BQ19: =(BG19-$Y$5)/$Y$5 -> 0.064 | BR19: =(BH19-$Y$5)/$Y$5 -> 0.132096 | BS19: =(BI19-$Y$5)/$Y$5 -> 0.204550144 | BT19: =(BJ19-$Y$5)/$Y$5 -> 0.1804591411 | BU19: =(BK19-$Y$5)/$Y$5 -> 0.1568499583 | BV19: =(BL19-$Y$5)/$Y$5 -> 0.1337129591 | BW19: =(BM19-$Y$5)/$Y$5 -> 0.1110386999 | BX19: =(BN19-$Y$5)/$Y$5 -> 0.08881792595 | BY19: =(BO19-$Y$5)/$Y$5 -> 0.06704156743
B20: =IFERROR(CONCATENATE(INDEX(C17:C45,MATCH(B21,$E$17:$E$45,0))*100,"% / ",INDEX(D17:D45,MATCH(B21,$E$17:$E$45,0))*100,"%"),0) -> 25.6% / -8% | C20: 16% | D20: -5% | E20: 9.00% | G20: 4 | H20: 81,020.11 | I20: WIN | J20: 9,722.41 | K20: 12.0% | L20: 90,742.52 | M20: =IF($M$14="non-compounding",SUM($J$17:J20)+$C$3,IFERROR(IF(I20="win",(M19*(1-$C$10)),(M19*(1-$C$11)))+L20,"")) -> 125,465.43 | N20: 25.47% | Q20: 4 | R20: 0.12 | S20: 4 | T20: 0.15 | U20: 0.12 | V20: =COUNTIF($U$17:U19,$C$8) -> 2 | W20: =COUNTIF($U$17:U19,$C$9) -> 1 | Y20: 3 | Z20: 0.12 | AB20: 0.15 | AC20: 0.15 | AD20: =COUNTIF($AC$17:AC19,$D$8) -> 0 | AE20: =COUNTIF($AC$17:AC19,$D$9) -> 3 | AF20: 38110.55616 | AG20: =IFERROR(AF20*AH20,"") -> 5716.583424 | AH20: 0.15 | AI20: 43827.13958 | AJ20: =IF($M$14="non-compounding",SUM($AG$17:AG20)+$C$3,IFERROR(IF(AH20>0,(AJ19*(1-$D$10)),(AJ19*(1-$D$11)))+AI20,"")) -> 100992.9738 | AM20: =IF(AM$17>ROUND($B$15*$AL$17,0),$D18,$C18) -> 0.096 | AN20: 0.096 | AO20: 0.096 | AP20: -0.03 | AQ20: -0.03 | AR20: -0.03 | AS20: -0.03 | AT20: -0.03 | AU20: -0.03 | AV20: -0.03 | AW20: 3840 | AX20: 4208.64 | AY20: 4612.66944 | AZ20: -1579.839283 | BA20: -1532.444105 | BB20: -1486.470782 | BC20: -1441.876658 | BD20: -1398.620358 | BE20: -1356.661748 | BF20: -1315.961895 | BG20: 43840 | BH20: 48048.64 | BI20: 52661.30944 | BJ20: 51081.47016 | BK20: 49549.02605 | BL20: 48062.55527 | BM20: 46620.67861 | BN20: 45222.05825 | BO20: 43865.39651 | BP20: 42549.43461 | BQ20: 0.096 | BR20: 0.201216 | BS20: 0.316532736 | BT20: 0.2770367539 | BU20: 0.2387256513 | BV20: 0.2015638818 | BW20: 0.1655169653 | BX20: 0.1305514564 | BY20: 0.09663491266
B21: =IFERROR(MAX(E17:E45),0) -> 10.53% | C21: 19% | D21: -6% | E21: 9.83% | G21: 5 | H21: 50,186.17 | I21: LOSS | J21: -1,881.98 | K21: -3.8% | L21: 48,304.19 | M21: =IF($M$14="non-compounding",SUM($J$17:J21)+$C$3,IFERROR(IF(I21="win",(M20*(1-$C$10)),(M20*(1-$C$11)))+L21,"")) -> 123,583.45 | N21: 23.58% | Q21: 5 | R21: -0.0375 | S21: 5 | T21: -0.04 | U21: -0.0375 | V21: =COUNTIF($U$17:U20,$C$8) -> 3 | W21: =COUNTIF($U$17:U20,$C$9) -> 1 | Y21: 4 | Z21: 0.12 | AB21: 0.15 | AC21: -0.04 | AD21: =COUNTIF($AC$17:AC20,$D$8) -> 1 | AE21: =COUNTIF($AC$17:AC20,$D$9) -> 3 | AF21: 40397.18953 | AG21: -1615.887581 | AH21: -0.04 | AI21: 38781.30195 | AJ21: =IF($M$14="non-compounding",SUM($AG$17:AG21)+$C$3,IFERROR(IF(AH21>0,(AJ20*(1-$D$10)),(AJ20*(1-$D$11)))+AI21,"")) -> 99377.08624 | AM21: =IF(AM$17>ROUND($B$15*$AL$17,0),$D19,$C19) -> 0.128 | AN21: 0.128 | AO21: 0.128 | AP21: -0.04 | AQ21: -0.04 | AR21: -0.04 | AS21: -0.04 | AT21: -0.04 | AU21: -0.04 | AV21: -0.04 | AW21: 5120 | AX21: 5775.36 | AY21: 6514.60608 | AZ21: -2296.398643 | BA21: -2204.542697 | BB21: -2116.36099 | BC21: -2031.70655 | BD21: -1950.438288 | BE21: -1872.420756 | BF21: -1797.523926 | BG21: 45120 | BH21: 50895.36 | BI21: 57409.96608 | BJ21: 55113.56744 | BK21: 52909.02474 | BL21: 50792.66375 | BM21: 48760.9572 | BN21: 46810.51891 | BO21: 44938.09816 | BP21: 43140.57423 | BQ21: 0.128 | BR21: 0.272384 | BS21: 0.435249152 | BT21: 0.3778391859 | BU21: 0.3227256185 | BV21: 0.2698165937 | BW21: 0.21902393 | BX21: 0.1702629728 | BY21: 0.1234524539
C22: 22% | D22: -7% | E22: 10.34% | G22: 6 | H22: 49,433.38 | I22: LOSS | J22: -1,853.75 | K22: -3.8% | L22: 47,579.63 | M22: =IF($M$14="non-compounding",SUM($J$17:J22)+$C$3,IFERROR(IF(I22="win",(M21*(1-$C$10)),(M21*(1-$C$11)))+L22,"")) -> 121,729.70 | N22: 21.73% | Q22: 6 | R22: -0.0375 | S22: 6 | T22: -0.04 | U22: -0.0375 | V22: =COUNTIF($U$17:U21,$C$8) -> 3 | W22: =COUNTIF($U$17:U21,$C$9) -> 2 | Y22: 5 | Z22: 0.12 | AB22: 0.15 | AC22: -0.04 | AD22: =COUNTIF($AC$17:AC21,$D$8) -> 1 | AE22: =COUNTIF($AC$17:AC21,$D$9) -> 4 | AF22: 39750.8345 | AG22: -1590.03338 | AH22: -0.04 | AI22: 38160.80112 | AJ22: =IF($M$14="non-compounding",SUM($AG$17:AG22)+$C$3,IFERROR(IF(AH22>0,(AJ21*(1-$D$10)),(AJ21*(1-$D$11)))+AI22,"")) -> 97787.05286 | AM22: =IF(AM$17>ROUND($B$15*$AL$17,0),$D20,$C20) -> 0.16 | AN22: 0.16 | AO22: 0.16 | AP22: -0.05 | AQ22: -0.05 | AR22: -0.05 | AS22: -0.05 | AT22: -0.05 | AU22: -0.05 | AV22: -0.05 | AW22: 6400 | AX22: 7424 | AY22: 8611.84 | AZ22: -3121.792 | BA22: -2965.7024 | BB22: -2817.41728 | BC22: -2676.546416 | BD22: -2542.719095 | BE22: -2415.58314 | BF22: -2294.803983 | BG22: 46400 | BH22: 53824 | BI22: 62435.84 | BJ22: 59314.048 | BK22: 56348.3456 | BL22: 53530.92832 | BM22: 50854.3819 | BN22: 48311.66281 | BO22: 45896.07967 | BP22: 43601.27568 | BQ22: 0.16 | BR22: 0.3456 | BS22: 0.560896 | BT22: 0.4828512 | BU22: 0.40870864 | BV22: 0.338273208 | BW22: 0.2713595476 | BX22: 0.2077915702 | BY22: 0.1474019917
C23: 26% | D23: -8% | E23: 10.53% | G23: 7 | H23: 48,691.88 | I23: LOSS | J23: -1,825.95 | K23: -3.8% | L23: 46,865.93 | M23: =IF($M$14="non-compounding",SUM($J$17:J23)+$C$3,IFERROR(IF(I23="win",(M22*(1-$C$10)),(M22*(1-$C$11)))+L23,"")) -> 119,903.75 | N23: 19.90% | Q23: 7 | R23: -0.0375 | S23: 7 | T23: -0.04 | U23: -0.0375 | V23: =COUNTIF($U$17:U22,$C$8) -> 3 | W23: =COUNTIF($U$17:U22,$C$9) -> 3 | Y23: 6 | Z23: -0.0375 | AB23: 0.15 | AC23: -0.04 | AD23: =COUNTIF($AC$17:AC22,$D$8) -> 1 | AE23: =COUNTIF($AC$17:AC22,$D$9) -> 5 | AF23: 39114.82115 | AG23: -1564.592846 | AH23: -0.04 | AI23: 37550.2283 | AJ23: =IF($M$14="non-compounding",SUM($AG$17:AG23)+$C$3,IFERROR(IF(AH23>0,(AJ22*(1-$D$10)),(AJ22*(1-$D$11)))+AI23,"")) -> 96222.46002 | AM23: =IF(AM$17>ROUND($B$15*$AL$17,0),$D21,$C21) -> 0.192 | AN23: 0.192 | AO23: 0.192 | AP23: -0.06 | AQ23: -0.06 | AR23: -0.06 | AS23: -0.06 | AT23: -0.06 | AU23: -0.06 | AV23: -0.06 | AW23: 7680 | AX23: 9154.56 | AY23: 10912.23552 | AZ23: -4064.807731 | BA23: -3820.919267 | BB23: -3591.664111 | BC23: -3376.164265 | BD23: -3173.594409 | BE23: -2983.178744 | BF23: -2804.18802 | BG23: 47680 | BH23: 56834.56 | BI23: 67746.79552 | BJ23: 63681.98779 | BK23: 59861.06852 | BL23: 56269.40441 | BM23: 52893.24015 | BN23: 49719.64574 | BO23: 46736.46699 | BP23: 43932.27897 | BQ23: 0.192 | BR23: 0.420864 | BS23: 0.693669888 | BT23: 0.5920496947 | BU23: 0.496526713 | BV23: 0.4067351103 | BW23: 0.3223310036 | BX23: 0.2429911434 | BY23: 0.1684116748
C24: 29% | D24: -9% | E24: 10.42% | G24: 8 | H24: 47,961.50 | I24: LOSS | J24: -1,798.56 | K24: -3.8% | L24: 46,162.94 | M24: =IF($M$14="non-compounding",SUM($J$17:J24)+$C$3,IFERROR(IF(I24="win",(M23*(1-$C$10)),(M23*(1-$C$11)))+L24,"")) -> 118,105.19 | N24: 18.11% | Q24: 8 | R24: -0.0375 | S24: 8 | T24: -0.04 | U24: -0.0375 | V24: =COUNTIF($U$17:U23,$C$8) -> 3 | W24: =COUNTIF($U$17:U23,$C$9) -> 4 | Y24: 7 | Z24: -0.0375 | AB24: -0.04 | AC24: -0.04 | AD24: =COUNTIF($AC$17:AC23,$D$8) -> 1 | AE24: =COUNTIF($AC$17:AC23,$D$9) -> 6 | AF24: 38488.98401 | AG24: -1539.55936 | AH24: -0.04 | AI24: 36949.42465 | AJ24: =IF($M$14="non-compounding",SUM($AG$17:AG24)+$C$3,IFERROR(IF(AH24>0,(AJ23*(1-$D$10)),(AJ23*(1-$D$11)))+AI24,"")) -> 94682.90066 | AM24: =IF(AM$17>ROUND($B$15*$AL$17,0),$D22,$C22) -> 0.224 | AN24: 0.224 | AO24: 0.224 | AP24: -0.07 | AQ24: -0.07 | AR24: -0.07 | AS24: -0.07 | AT24: -0.07 | AU24: -0.07 | AV24: -0.07 | AW24: 8960 | AX24: 10967.04 | AY24: 13423.65696 | AZ24: -5134.548787 | BA24: -4775.130372 | BB24: -4440.871246 | BC24: -4130.010259 | BD24: -3840.909541 | BE24: -3572.045873 | BF24: -3322.002662 | BG24: 48960 | BH24: 59927.04 | BI24: 73350.69696 | BJ24: 68216.14817 | BK24: 63441.0178 | BL24: 59000.14655 | BM24: 54870.1363 | BN24: 51029.22676 | BO24: 47457.18088 | BP24: 44135.17822 | BQ24: 0.224 | BR24: 0.498176 | BS24: 0.833767424 | BT24: 0.7054037043 | BU24: 0.586025445 | BV24: 0.4750036639 | BW24: 0.3717534074 | BX24: 0.2757306689 | BY24: 0.1864295221
C25: 32% | D25: -10% | E25: 10.01% | G25: 9 | H25: 47,242.08 | I25: LOSS | J25: -1,771.58 | K25: -3.8% | L25: 45,470.50 | M25: =IF($M$14="non-compounding",SUM($J$17:J25)+$C$3,IFERROR(IF(I25="win",(M24*(1-$C$10)),(M24*(1-$C$11)))+L25,"")) -> 116,333.62 | N25: 16.33% | Q25: 9 | R25: -0.0375 | S25: 9 | T25: -0.04 | U25: -0.0375 | V25: =COUNTIF($U$17:U24,$C$8) -> 3 | W25: =COUNTIF($U$17:U24,$C$9) -> 5 | Y25: 8 | Z25: -0.0375 | AB25: -0.04 | AC25: -0.04 | AD25: =COUNTIF($AC$17:AC24,$D$8) -> 1 | AE25: =COUNTIF($AC$17:AC24,$D$9) -> 7 | AF25: 37873.16026 | AG25: -1514.926411 | AH25: -0.04 | AI25: 36358.23385 | AJ25: =IF($M$14="non-compounding",SUM($AG$17:AG25)+$C$3,IFERROR(IF(AH25>0,(AJ24*(1-$D$10)),(AJ24*(1-$D$11)))+AI25,"")) -> 93167.97425 | AM25: =IF(AM$17>ROUND($B$15*$AL$17,0),$D23,$C23) -> 0.256 | AN25: 0.256 | AO25: 0.256 | AP25: -0.08 | AQ25: -0.08 | AR25: -0.08 | AS25: -0.08 | AT25: -0.08 | AU25: -0.08 | AV25: -0.08 | AW25: 10240 | AX25: 12861.44 | AY25: 16153.96864 | AZ25: -6340.432691 | BA25: -5833.198076 | BB25: -5366.54223 | BC25: -4937.218851 | BD25: -4542.241343 | BE25: -4178.862036 | BF25: -3844.553073 | BG25: 50240 | BH25: 63101.44 | BI25: 79255.40864 | BJ25: 72914.97595 | BK25: 67081.77787 | BL25: 61715.23564 | BM25: 56778.01679 | BN25: 52235.77545 | BO25: 48056.91341 | BP25: 44212.36034 | BQ25: 0.256 | BR25: 0.577536 | BS25: 0.981385216 | BT25: 0.8228743987 | BU25: 0.6770444468 | BV25: 0.5428808911 | BW25: 0.4194504198 | BX25: 0.3058943862 | BY25: 0.2014228353
C26: 35% | D26: =D25-1% -> -11.00% | E26: 9.31% | G26: 10 | H26: 46,533.45 | I26: LOSS | J26: -1,745.00 | K26: -3.8% | L26: 44,788.44 | M26: =IF($M$14="non-compounding",SUM($J$17:J26)+$C$3,IFERROR(IF(I26="win",(M25*(1-$C$10)),(M25*(1-$C$11)))+L26,"")) -> 114,588.61 | N26: 14.59% | Q26: 10 | R26: -0.0375 | S26: 10 | T26: 0.15 | U26: -0.0375 | V26: =COUNTIF($U$17:U25,$C$8) -> 3 | W26: =COUNTIF($U$17:U25,$C$9) -> 6 | Y26: 9 | Z26: -0.0375 | AB26: -0.04 | AC26: 0.15 | AD26: =COUNTIF($AC$17:AC25,$D$8) -> 1 | AE26: =COUNTIF($AC$17:AC25,$D$9) -> 8 | AF26: 37267.1897 | AG26: 5590.078455 | AH26: 0.15 | AI26: 42857.26815 | AJ26: =IF($M$14="non-compounding",SUM($AG$17:AG26)+$C$3,IFERROR(IF(AH26>0,(AJ25*(1-$D$10)),(AJ25*(1-$D$11)))+AI26,"")) -> 98758.0527 | AM26: =IF(AM$17>ROUND($B$15*$AL$17,0),$D24,$C24) -> 0.288 | AN26: 0.288 | AO26: 0.288 | AP26: -0.09 | AQ26: -0.09 | AR26: -0.09 | AS26: -0.09 | AT26: -0.09 | AU26: -0.09 | AV26: -0.09 | AW26: 11520 | AX26: 14837.76 | AY26: 19111.03488 | AZ26: -7692.191539 | BA26: -6999.894301 | BB26: -6369.903814 | BC26: -5796.61247 | BD26: -5274.917348 | BE26: -4800.174787 | BF26: -4368.159056 | BG26: 51520 | BH26: 66357.76 | BI26: 85468.79488 | BJ26: 77776.60334 | BK26: 70776.70904 | BL26: 64406.80523 | BM26: 58610.19276 | BN26: 53335.27541 | BO26: 48535.10062 | BP26: 44166.94157 | BQ26: 0.288 | BR26: 0.658944 | BS26: 1.136719872 | BT26: 0.9444150835 | BU26: 0.769417726 | BV26: 0.6101701307 | BW26: 0.4652548189 | BX26: 0.3333818852 | BY26: 0.2133775155
C27: 38% | D27: -12.00% | E27: 8.34% | G27: 11 | H27: 45,835.44 | I27: LOSS | J27: -1,718.83 | K27: -3.8% | L27: 44,116.62 | M27: =IF($M$14="non-compounding",SUM($J$17:J27)+$C$3,IFERROR(IF(I27="win",(M26*(1-$C$10)),(M26*(1-$C$11)))+L27,"")) -> 112,869.78 | N27: 12.87% | Q27: 11 | R27: -0.0375 | S27: 11 | T27: -0.04 | U27: -0.0375 | V27: =COUNTIF($U$17:U26,$C$8) -> 3 | W27: =COUNTIF($U$17:U26,$C$9) -> 7 | Y27: 10 | Z27: -0.0375 | AB27: -0.04 | AC27: -0.04 | AD27: =COUNTIF($AC$17:AC26,$D$8) -> 2 | AE27: =COUNTIF($AC$17:AC26,$D$9) -> 8 | AF27: 39503.22108 | AG27: -1580.128843 | AH27: -0.04 | AI27: 37923.09224 | AJ27: =IF($M$14="non-compounding",SUM($AG$17:AG27)+$C$3,IFERROR(IF(AH27>0,(AJ26*(1-$D$10)),(AJ26*(1-$D$11)))+AI27,"")) -> 97177.92386 | AM27: =IF(AM$17>ROUND($B$15*$AL$17,0),$D25,$C25) -> 0.32 | AN27: 0.32 | AO27: 0.32 | AP27: -0.1 | AQ27: -0.1 | AR27: -0.1 | AS27: -0.1 | AT27: -0.1 | AU27: -0.1 | AV27: -0.1 | AW27: 12800 | AX27: 16896 | AY27: 22302.72 | AZ27: -9199.872 | BA27: -8279.8848 | BB27: -7451.89632 | BC27: -6706.706688 | BD27: -6036.036019 | BE27: -5432.432417 | BF27: -4889.189176 | BG27: 52800 | BH27: 69696 | BI27: 91998.72 | BJ27: 82798.848 | BK27: 74518.9632 | BL27: 67067.06688 | BM27: 60360.36019 | BN27: 54324.32417 | BO27: 48891.89176 | BP27: 44002.70258 | BQ27: 0.32 | BR27: 0.7424 | BS27: 1.299968 | BT27: 1.0699712 | BU27: 0.86297408 | BV27: 0.676676672 | BW27: 0.5090090048 | BX27: 0.3581081043 | BY27: 0.2222972939
C28: 42% | D28: -13.00% | E28: 7.11% | G28: 12 | H28: 79,008.85 | I28: WIN | J28: 9,481.06 | K28: 12.0% | L28: 88,489.91 | M28: =IF($M$14="non-compounding",SUM($J$17:J28)+$C$3,IFERROR(IF(I28="win",(M27*(1-$C$10)),(M27*(1-$C$11)))+L28,"")) -> 122,350.84 | N28: 22.35% | Q28: 12 | R28: 0.12 | S28: 12 | T28: -0.04 | U28: 0.12 | V28: =COUNTIF($U$17:U27,$C$8) -> 3 | W28: =COUNTIF($U$17:U27,$C$9) -> 8 | Y28: 11 | Z28: -0.0375 | AB28: -0.04 | AC28: -0.04 | AD28: =COUNTIF($AC$17:AC27,$D$8) -> 2 | AE28: =COUNTIF($AC$17:AC27,$D$9) -> 9 | AF28: 38871.16954 | AG28: -1554.846782 | AH28: -0.04 | AI28: 37316.32276 | AJ28: =IF($M$14="non-compounding",SUM($AG$17:AG28)+$C$3,IFERROR(IF(AH28>0,(AJ27*(1-$D$10)),(AJ27*(1-$D$11)))+AI28,"")) -> 95623.07708 | AM28: =IF(AM$17>ROUND($B$15*$AL$17,0),$D26,$C26) -> 0.352 | AN28: 0.352 | AO28: 0.352 | AP28: -0.11 | AQ28: -0.11 | AR28: -0.11 | AS28: -0.11 | AT28: -0.11 | AU28: -0.11 | AV28: -0.11 | AW28: 14080 | AX28: 19036.16 | AY28: 25736.88832 | AZ28: -10873.83532 | BA28: -9677.713431 | BB28: -8613.164953 | BC28: -7665.716808 | BD28: -6822.487959 | BE28: -6072.014284 | BF28: -5404.092713 | BG28: 54080 | BH28: 73116.16 | BI28: 98853.04832 | BJ28: 87979.213 | BK28: 78301.49957 | BL28: 69688.33462 | BM28: 62022.61781 | BN28: 55200.12985 | BO28: 49128.11557 | BP28: 43724.02286 | BQ28: 0.352 | BR28: 0.827904 | BS28: 1.471326208 | BT28: 1.199480325 | BU28: 0.9575374894 | BV28: 0.7422083655 | BW28: 0.5505654453 | BX28: 0.3800032463 | BY28: 0.2282028892
C29: 45% | D29: -14.00% | E29: 5.63% | G29: 13 | H29: 85,645.59 | I29: WIN | J29: 10,277.47 | K29: 12.0% | L29: 95,923.06 | M29: =IF($M$14="non-compounding",SUM($J$17:J29)+$C$3,IFERROR(IF(I29="win",(M28*(1-$C$10)),(M28*(1-$C$11)))+L29,"")) -> 132,628.32 | N29: 32.63% | Q29: 13 | R29: 0.12 | S29: 13 | T29: 0.15 | U29: 0.12 | V29: =COUNTIF($U$17:U28,$C$8) -> 4 | W29: =COUNTIF($U$17:U28,$C$9) -> 8 | Y29: 12 | Z29: -0.0375 | AB29: -0.04 | AC29: 0.15 | AD29: =COUNTIF($AC$17:AC28,$D$8) -> 2 | AE29: =COUNTIF($AC$17:AC28,$D$9) -> 10 | AF29: 38249.23083 | AG29: 5737.384625 | AH29: 0.15 | AI29: 43986.61546 | AJ29: =IF($M$14="non-compounding",SUM($AG$17:AG29)+$C$3,IFERROR(IF(AH29>0,(AJ28*(1-$D$10)),(AJ28*(1-$D$11)))+AI29,"")) -> 101360.4617 | AM29: =IF(AM$17>ROUND($B$15*$AL$17,0),$D27,$C27) -> 0.384 | AN29: 0.384 | AO29: 0.384 | AP29: -0.12 | AQ29: -0.12 | AR29: -0.12 | AS29: -0.12 | AT29: -0.12 | AU29: -0.12 | AV29: -0.12 | AW29: 15360 | AX29: 21258.24 | AY29: 29421.40416 | AZ29: -12724.7573 | BA29: -11197.78642 | BB29: -9854.052053 | BC29: -8671.565806 | BD29: -7630.977909 | BE29: -6715.26056 | BF29: -5909.429293 | BG29: 55360 | BH29: 76618.24 | BI29: 106039.6442 | BJ29: 93314.88686 | BK29: 82117.10044 | BL29: 72263.04839 | BM29: 63591.48258 | BN29: 55960.50467 | BO29: 49245.24411 | BP29: 43335.81482 | BQ29: 0.384 | BR29: 0.915456 | BS29: 1.650991104 | BT29: 1.332872172 | BU29: 1.052927511 | BV29: 0.8065762096 | BW29: 0.5897870645 | BX29: 0.3990126167 | BY29: 0.2311311027
C30: 48% | D30: -15.00% | E30: 3.92% | G30: 14 | H30: 92,839.82 | I30: WIN | J30: 11,140.78 | K30: 12.0% | L30: 103,980.60 | M30: =IF($M$14="non-compounding",SUM($J$17:J30)+$C$3,IFERROR(IF(I30="win",(M29*(1-$C$10)),(M29*(1-$C$11)))+L30,"")) -> 143,769.09 | N30: 43.77% | Q30: 14 | R30: 0.12 | S30: 14 | T30: 0.15 | U30: 0.12 | V30: =COUNTIF($U$17:U29,$C$8) -> 5 | W30: =COUNTIF($U$17:U29,$C$9) -> 8 | Y30: 13 | Z30: -0.0375 | AB30: -0.04 | AC30: 0.15 | AD30: =COUNTIF($AC$17:AC29,$D$8) -> 3 | AE30: =COUNTIF($AC$17:AC29,$D$9) -> 10 | AF30: 40544.18468 | AG30: 6081.627702 | AH30: 0.15 | AI30: 46625.81238 | AJ30: =IF($M$14="non-compounding",SUM($AG$17:AG30)+$C$3,IFERROR(IF(AH30>0,(AJ29*(1-$D$10)),(AJ29*(1-$D$11)))+AI30,"")) -> 107442.0894 | AM30: =IF(AM$17>ROUND($B$15*$AL$17,0),$D28,$C28) -> 0.416 | AN30: 0.416 | AO30: 0.416 | AP30: -0.13 | AQ30: -0.13 | AR30: -0.13 | AS30: -0.13 | AT30: -0.13 | AU30: -0.13 | AV30: -0.13 | AW30: 16640 | AX30: 23562.24 | AY30: 33364.13184 | AZ30: -14763.62834 | BA30: -12844.35666 | BB30: -11174.59029 | BC30: -9721.893552 | BD30: -8458.04739 | BE30: -7358.50123 | BF30: -6401.89607 | BG30: 56640 | BH30: 80202.24 | BI30: 113566.3718 | BJ30: 98802.7435 | BK30: 85958.38685 | BL30: 74783.79656 | BM30: 65061.903 | BN30: 56603.85561 | BO30: 49245.35438 | BP30: 42843.45831 | BQ30: 0.416 | BR30: 1.005056 | BS30: 1.839159296 | BT30: 1.470068588 | BU30: 1.148959671 | BV30: 0.8695949139 | BW30: 0.6265475751 | BX30: 0.4150963903 | BY30: 0.2311338596
C31: 51% | D31: -16.00% | E31: 2.00% | G31: 15 | H31: 57,507.64 | I31: LOSS | J31: -2,156.54 | K31: -3.8% | L31: 55,351.10 | M31: =IF($M$14="non-compounding",SUM($J$17:J31)+$C$3,IFERROR(IF(I31="win",(M30*(1-$C$10)),(M30*(1-$C$11)))+L31,"")) -> 141,612.56 | N31: 41.61% | Q31: 15 | R31: -0.0375 | S31: 15 | T31: 0.15 | U31: -0.0375 | V31: =COUNTIF($U$17:U30,$C$8) -> 6 | W31: =COUNTIF($U$17:U30,$C$9) -> 8 | Y31: 14 | Z31: -0.0375 | AB31: -0.04 | AC31: 0.15 | AD31: =COUNTIF($AC$17:AC30,$D$8) -> 4 | AE31: =COUNTIF($AC$17:AC30,$D$9) -> 10 | AF31: 42976.83576 | AG31: 6446.525364 | AH31: 0.15 | AI31: 49423.36113 | AJ31: =IF($M$14="non-compounding",SUM($AG$17:AG31)+$C$3,IFERROR(IF(AH31>0,(AJ30*(1-$D$10)),(AJ30*(1-$D$11)))+AI31,"")) -> 113888.6148 | AM31: =IF(AM$17>ROUND($B$15*$AL$17,0),$D29,$C29) -> 0.448 | AN31: 0.448 | AO31: 0.448 | AP31: -0.14 | AQ31: -0.14 | AR31: -0.14 | AS31: -0.14 | AT31: -0.14 | AU31: -0.14 | AV31: -0.14 | AW31: 17920 | AX31: 25948.16 | AY31: 37572.93568 | AZ31: -17001.7534 | BA31: -14621.50792 | BB31: -12574.49681 | BC31: -10814.06726 | BD31: -9300.097841 | BE31: -7998.084144 | BF31: -6878.352364 | BG31: 57920 | BH31: 83868.16 | BI31: 121441.0957 | BJ31: 104439.3423 | BK31: 89817.83436 | BL31: 77243.33755 | BM31: 66429.2703 | BN31: 57129.17245 | BO31: 49131.08831 | BP31: 42252.73595 | BQ31: 0.448 | BR31: 1.096704 | BS31: 2.036027392 | BT31: 1.610983557 | BU31: 1.245445859 | BV31: 0.9310834388 | BW31: 0.6607317574 | BX31: 0.4282293114 | BY31: 0.2282772078
C32: 54% | D32: -17.00% | E32: -0.12% | G32: 16 | H32: 56,645.02 | I32: LOSS | J32: -2,124.19 | K32: -3.8% | L32: 54,520.83 | M32: =IF($M$14="non-compounding",SUM($J$17:J32)+$C$3,IFERROR(IF(I32="win",(M31*(1-$C$10)),(M31*(1-$C$11)))+L32,"")) -> 139,488.37 | N32: 39.49% | Q32: 16 | R32: -0.0375 | S32: 16 | T32: -0.04 | U32: -0.0375 | V32: =COUNTIF($U$17:U31,$C$8) -> 6 | W32: =COUNTIF($U$17:U31,$C$9) -> 9 | Y32: 15 | Z32: -0.0375 | AB32: -0.04 | AC32: -0.04 | AD32: =COUNTIF($AC$17:AC31,$D$8) -> 5 | AE32: =COUNTIF($AC$17:AC31,$D$9) -> 10 | AF32: 45555.44591 | AG32: -1822.217836 | AH32: -0.04 | AI32: 43733.22807 | AJ32: =IF($M$14="non-compounding",SUM($AG$17:AG32)+$C$3,IFERROR(IF(AH32>0,(AJ31*(1-$D$10)),(AJ31*(1-$D$11)))+AI32,"")) -> 112066.3969 | AM32: =IF(AM$17>ROUND($B$15*$AL$17,0),$D30,$C30) -> 0.48 | AN32: 0.48 | AO32: 0.48 | AP32: -0.15 | AQ32: -0.15 | AR32: -0.15 | AS32: -0.15 | AT32: -0.15 | AU32: -0.15 | AV32: -0.15 | AW32: 19200 | AX32: 28416 | AY32: 42055.68 | AZ32: -19450.752 | BA32: -16533.1392 | BB32: -14053.16832 | BC32: -11945.19307 | BD32: -10153.41411 | BE32: -8630.401995 | BF32: -7335.841695 | BG32: 59200 | BH32: 87616 | BI32: 129671.68 | BJ32: 110220.928 | BK32: 93687.7888 | BL32: 79634.62048 | BM32: 67689.42741 | BN32: 57536.0133 | BO32: 48905.6113 | BP32: 41569.76961 | BQ32: 0.48 | BR32: 1.1904 | BS32: 2.241792 | BT32: 1.7555232 | BU32: 1.34219472 | BV32: 0.990865512 | BW32: 0.6922356852 | BX32: 0.4384003324 | BY32: 0.2226402826
C33: 58% | D33: -18.00% | E33: -2.42% | G33: 17 | H33: 97,641.86 | I33: WIN | J33: 11,717.02 | K33: 12.0% | L33: 109,358.88 | M33: =IF($M$14="non-compounding",SUM($J$17:J33)+$C$3,IFERROR(IF(I33="win",(M32*(1-$C$10)),(M32*(1-$C$11)))+L33,"")) -> 151,205.39 | N33: 51.21% | Q33: 17 | R33: 0.12 | S33: 17 | T33: 0.15 | U33: 0.12 | V33: =COUNTIF($U$17:U32,$C$8) -> 6 | W33: =COUNTIF($U$17:U32,$C$9) -> 10 | Y33: 16 | Z33: -0.0375 | AB33: -0.04 | AC33: 0.15 | AD33: =COUNTIF($AC$17:AC32,$D$8) -> 5 | AE33: =COUNTIF($AC$17:AC32,$D$9) -> 11 | AF33: 44826.55877 | AG33: 6723.983816 | AH33: 0.15 | AI33: 51550.54259 | AJ33: =IF($M$14="non-compounding",SUM($AG$17:AG33)+$C$3,IFERROR(IF(AH33>0,(AJ32*(1-$D$10)),(AJ32*(1-$D$11)))+AI33,"")) -> 118790.3807 | AM33: =IF(AM$17>ROUND($B$15*$AL$17,0),$D31,$C31) -> 0.512 | AN33: 0.512 | AO33: 0.512 | AP33: -0.16 | AQ33: -0.16 | AR33: -0.16 | AS33: -0.16 | AT33: -0.16 | AU33: -0.16 | AV33: -0.16 | AW33: 20480 | AX33: 30965.76 | AY33: 46820.22912 | AZ33: -22122.55826 | BA33: -18582.94894 | BB33: -15609.67711 | BC33: -13112.12877 | BD33: -11014.18817 | BE33: -9251.91806 | BF33: -7771.611171 | BG33: 60480 | BH33: 91445.76 | BI33: 138265.9891 | BJ33: 116143.4309 | BK33: 97560.48192 | BL33: 81950.80482 | BM33: 68838.67604 | BN33: 57824.48788 | BO33: 48572.56982 | BP33: 40800.95865 | BQ33: 0.512 | BR33: 1.286144 | BS33: 2.456649728 | BT33: 1.903585772 | BU33: 1.439012048 | BV33: 1.04877012 | BW33: 0.7209669011 | BX33: 0.4456121969 | BY33: 0.2143142454
C34: 61% | D34: -19.00% | E34: -4.88% | G34: 18 | H34: 60,482.16 | I34: LOSS | J34: -2,268.08 | K34: -3.8% | L34: 58,214.08 | M34: =IF($M$14="non-compounding",SUM($J$17:J34)+$C$3,IFERROR(IF(I34="win",(M33*(1-$C$10)),(M33*(1-$C$11)))+L34,"")) -> 148,937.31 | N34: 48.94% | Q34: 18 | R34: -0.0375 | S34: 18 | T34: -0.04 | U34: -0.0375 | V34: =COUNTIF($U$17:U33,$C$8) -> 7 | W34: =COUNTIF($U$17:U33,$C$9) -> 10 | Y34: 17 | Z34: -0.0375 | AB34: -0.04 | AC34: -0.04 | AD34: =COUNTIF($AC$17:AC33,$D$8) -> 6 | AE34: =COUNTIF($AC$17:AC33,$D$9) -> 11 | AF34: 47516.1523 | AG34: -1900.646092 | AH34: -0.04 | AI34: 45615.50621 | AJ34: =IF($M$14="non-compounding",SUM($AG$17:AG34)+$C$3,IFERROR(IF(AH34>0,(AJ33*(1-$D$10)),(AJ33*(1-$D$11)))+AI34,"")) -> 116889.7347 | AM34: =IF(AM$17>ROUND($B$15*$AL$17,0),$D32,$C32) -> 0.544 | AN34: 0.544 | AO34: 0.544 | AP34: -0.17 | AQ34: -0.17 | AR34: -0.17 | AS34: -0.17 | AT34: -0.17 | AU34: -0.17 | AV34: -0.17 | AW34: 21760 | AX34: 33597.44 | AY34: 51874.44736 | AZ34: -25029.42085 | BA34: -20774.41931 | BB34: -17242.76802 | BC34: -14311.49746 | BD34: -11878.54289 | BE34: -9859.1906 | BF34: -8183.128198 | BG34: 61760 | BH34: 95357.44 | BI34: 147231.8874 | BJ34: 122202.4665 | BK34: 101428.0472 | BL34: 84185.27918 | BM34: 69873.78172 | BN34: 57995.23883 | BO34: 48136.04823 | BP34: 39952.92003 | BQ34: 0.544 | BR34: 1.383936 | BS34: 2.680797184 | BT34: 2.055061663 | BU34: 1.53570118 | BV34: 1.104631979 | BW34: 0.7468445429 | BX34: 0.4498809706 | BY34: 0.2034012056
C35: 64% | D35: -20.00% | E35: -7.50% | G35: 19 | H35: 59,574.92 | I35: LOSS | J35: -2,234.06 | K35: -3.8% | L35: 57,340.87 | M35: =IF($M$14="non-compounding",SUM($J$17:J35)+$C$3,IFERROR(IF(I35="win",(M34*(1-$C$10)),(M34*(1-$C$11)))+L35,"")) -> 146,703.25 | N35: 46.70% | Q35: 19 | R35: -0.0375 | S35: 19 | T35: -0.04 | U35: -0.0375 | V35: =COUNTIF($U$17:U34,$C$8) -> 7 | W35: =COUNTIF($U$17:U34,$C$9) -> 11 | Y35: 18 | Z35: -0.0375 | AB35: -0.04 | AC35: -0.04 | AD35: =COUNTIF($AC$17:AC34,$D$8) -> 6 | AE35: =COUNTIF($AC$17:AC34,$D$9) -> 12 | AF35: 46755.89386 | AG35: -1870.235754 | AH35: -0.04 | AI35: 44885.65811 | AJ35: =IF($M$14="non-compounding",SUM($AG$17:AG35)+$C$3,IFERROR(IF(AH35>0,(AJ34*(1-$D$10)),(AJ34*(1-$D$11)))+AI35,"")) -> 115019.4989 | AM35: =IF(AM$17>ROUND($B$15*$AL$17,0),$D33,$C33) -> 0.576 | AN35: 0.576 | AO35: 0.576 | AP35: -0.18 | AQ35: -0.18 | AR35: -0.18 | AS35: -0.18 | AT35: -0.18 | AU35: -0.18 | AV35: -0.18 | AW35: 23040 | AX35: =AN35*BG35 -> 36311.04 | AY35: =AO35*BH35 -> 57226.19904 | AZ35: =AP35*BI35 -> -28183.90303 | BA35: =AQ35*BJ35 -> -23110.80048 | BB35: =AR35*BK35 -> -18950.8564 | BC35: =AS35*BL35 -> -15539.70224 | BD35: =AT35*BM35 -> -12742.55584 | BE35: =AU35*BN35 -> -10448.89579 | BF35: =AV35*BO35 -> -8568.094547 | BG35: 63040 | BH35: =AX35+BG35 -> 99351.04 | BI35: 156577.239 | BJ35: 128393.336 | BK35: 105282.5355 | BL35: 86331.67914 | BM35: 70791.97689 | BN35: 58049.42105 | BO35: 47600.52526 | BP35: 39032.43071 | BQ35: 0.576 | BR35: 1.483776 | BS35: 2.914430976 | BT35: 2.2098334 | BU35: 1.632063388 | BV35: 1.158291978 | BW35: 0.7697994223 | BX35: 0.4512355263 | BY35: 0.1900131315
C36: 67% | D36: -21.00% | E36: -10.24% | G36: 20 | H36: 58,681.30 | I36: LOSS | J36: -2,200.55 | K36: -3.8% | L36: 56,480.75 | M36: =IF($M$14="non-compounding",SUM($J$17:J36)+$C$3,IFERROR(IF(I36="win",(M35*(1-$C$10)),(M35*(1-$C$11)))+L36,"")) -> 144,502.70 | N36: 44.50% | Q36: 20 | R36: -0.0375 | S36: 20 | T36: 0.15 | U36: -0.0375 | V36: =COUNTIF($U$17:U35,$C$8) -> 7 | W36: =COUNTIF($U$17:U35,$C$9) -> 12 | Y36: 19 | Z36: -0.0375 | AB36: -0.04 | AC36: 0.15 | AD36: =COUNTIF($AC$17:AC35,$D$8) -> 6 | AE36: =COUNTIF($AC$17:AC35,$D$9) -> 13 | AF36: 46007.79956 | AG36: 6901.169934 | AH36: 0.15 | AI36: 52908.96949 | AJ36: =IF($M$14="non-compounding",SUM($AG$17:AG36)+$C$3,IFERROR(IF(AH36>0,(AJ35*(1-$D$10)),(AJ35*(1-$D$11)))+AI36,"")) -> 121920.6688 | AM36: =IF(AM$17>ROUND($B$15*$AL$17,0),$D34,$C34) -> 0.608 | AN36: 0.608 | AO36: 0.608 | AP36: -0.19 | AQ36: -0.19 | AR36: -0.19 | AS36: -0.19 | AT36: -0.19 | AU36: -0.19 | AV36: -0.19 | AW36: 24320 | AX36: 39106.56 | AY36: 62883.34848 | AZ36: -31598.88261 | BA36: -25595.09492 | BB36: -20732.02688 | BC36: -16792.94177 | BD36: -13602.28284 | BE36: -11017.8491 | BF36: -8924.457769 | BG36: 64320 | BH36: 103426.56 | BI36: 166309.9085 | BJ36: 134711.0259 | BK36: 109115.931 | BL36: 88383.90407 | BM36: 71590.9623 | BN36: 57988.67946 | BO36: 46970.83036 | BP36: 38046.3726 | BQ36: 0.608 | BR36: 1.585664 | BS36: 3.157747712 | BT36: 2.367775647 | BU36: 1.727898274 | BV36: 1.209597602 | BW36: 0.7897740575 | BX36: 0.4497169865 | BY36: 0.1742707591
C37: 70% | D37: -22.00% | E37: -13.09% | G37: 21 | H37: 57,801.08 | I37: LOSS | J37: -2,167.54 | K37: -3.8% | L37: 55,633.54 | M37: =IF($M$14="non-compounding",SUM($J$17:J37)+$C$3,IFERROR(IF(I37="win",(M36*(1-$C$10)),(M36*(1-$C$11)))+L37,"")) -> 142,335.16 | N37: 42.34% | Q37: 21 | R37: -0.0375 | S37: 21 | T37: -0.04 | U37: -0.0375 | V37: =COUNTIF($U$17:U36,$C$8) -> 7 | W37: =COUNTIF($U$17:U36,$C$9) -> 13 | Y37: 20 | Z37: -0.0375 | AB37: -0.04 | AC37: -0.04 | AD37: =COUNTIF($AC$17:AC36,$D$8) -> 7 | AE37: =COUNTIF($AC$17:AC36,$D$9) -> 13 | AF37: 48768.26753 | AG37: -1950.730701 | AH37: -0.04 | AI37: 46817.53683 | AJ37: =IF($M$14="non-compounding",SUM($AG$17:AG37)+$C$3,IFERROR(IF(AH37>0,(AJ36*(1-$D$10)),(AJ36*(1-$D$11)))+AI37,"")) -> 119969.9381 | AM37: =IF(AM$17>ROUND($B$15*$AL$17,0),$D35,$C35) -> 0.64 | AN37: 0.64 | AO37: 0.64 | AP37: -0.2 | AQ37: -0.2 | AR37: -0.2 | AS37: -0.2 | AT37: -0.2 | AU37: -0.2 | AV37: -0.2 | AW37: 25600 | AX37: 41984 | AY37: 68853.76 | AZ37: -35287.552 | BA37: -28230.0416 | BB37: -22584.03328 | BC37: -18067.22662 | BD37: -14453.7813 | BE37: -11563.02504 | BF37: -9250.420031 | BG37: 65600 | BH37: 107584 | BI37: 176437.76 | BJ37: 141150.208 | BK37: 112920.1664 | BL37: 90336.13312 | BM37: 72268.9065 | BN37: 57815.1252 | BO37: 46252.10016 | BP37: 37001.68013 | BQ37: 0.64 | BR37: 1.6896 | BS37: 3.410944 | BT37: 2.5287552 | BU37: 1.82300416 | BV37: 1.258403328 | BW37: 0.8067226624 | BX37: 0.4453781299 | BY37: 0.1563025039
C38: 74% | D38: -23.00% | E38: -16.04% | G38: 22 | H38: 56,934.07 | I38: LOSS | J38: -2,135.03 | K38: -3.8% | L38: 54,799.04 | M38: =IF($M$14="non-compounding",SUM($J$17:J38)+$C$3,IFERROR(IF(I38="win",(M37*(1-$C$10)),(M37*(1-$C$11)))+L38,"")) -> 140,200.14 | N38: 40.20% | Q38: 22 | R38: -0.0375 | S38: 22 | T38: -0.04 | U38: -0.0375 | V38: =COUNTIF($U$17:U37,$C$8) -> 7 | W38: =COUNTIF($U$17:U37,$C$9) -> 14 | AC38: -0.04 | AD38: =COUNTIF($AC$17:AC37,$D$8) -> 7 | AE38: =COUNTIF($AC$17:AC37,$D$9) -> 14 | AF38: 47987.97525 | AG38: -1919.51901 | AH38: -0.04 | AI38: 46068.45624 | AJ38: =IF($M$14="non-compounding",SUM($AG$17:AG38)+$C$3,IFERROR(IF(AH38>0,(AJ37*(1-$D$10)),(AJ37*(1-$D$11)))+AI38,"")) -> 118050.4191 | AM38: =IF(AM$17>ROUND($B$15*$AL$17,0),$D36,$C36) -> 0.672 | AN38: 0.672 | AO38: 0.672 | AP38: -0.21 | AQ38: -0.21 | AR38: -0.21 | AS38: -0.21 | AT38: -0.21 | AU38: -0.21 | AV38: -0.21 | AW38: 26880 | AX38: 44943.36 | AY38: 75145.29792 | AZ38: -39263.41816 | BA38: -31018.10035 | BB38: -24504.29928 | BC38: -19358.39643 | BD38: -15293.13318 | BE38: -12081.57521 | BF38: -9544.444416 | BG38: 66880 | BH38: 111823.36 | BI38: 186968.6579 | BJ38: 147705.2398 | BK38: 116687.1394 | BL38: 92182.84013 | BM38: 72824.4437 | BN38: 57531.31053 | BO38: 45449.73532 | BP38: 35905.2909 | BQ38: 0.672 | BR38: 1.795584 | BS38: 3.674216448 | BT38: 2.692630994 | BU38: 1.917178485 | BV38: 1.304571003 | BW38: 0.8206110926 | BX38: 0.4382827632 | BY38: 0.1362433829
C39: 77% | D39: -24.00% | E39: -19.06% | G39: 23 | H39: 56,080.05 | I39: LOSS | J39: -2,103.00 | K39: -3.8% | L39: 53,977.05 | M39: =IF($M$14="non-compounding",SUM($J$17:J39)+$C$3,IFERROR(IF(I39="win",(M38*(1-$C$10)),(M38*(1-$C$11)))+L39,"")) -> 138,097.13 | N39: 38.10% | Q39: 23 | R39: -0.0375 | S39: 23 | T39: 0.15 | U39: -0.0375 | V39: =COUNTIF($U$17:U38,$C$8) -> 7 | W39: =COUNTIF($U$17:U38,$C$9) -> 15 | AC39: 0.15 | AD39: =COUNTIF($AC$17:AC38,$D$8) -> 7 | AE39: =COUNTIF($AC$17:AC38,$D$9) -> 15 | AF39: 47220.16765 | AG39: 7083.025147 | AH39: 0.15 | AI39: 54303.1928 | AJ39: =IF($M$14="non-compounding",SUM($AG$17:AG39)+$C$3,IFERROR(IF(AH39>0,(AJ38*(1-$D$10)),(AJ38*(1-$D$11)))+AI39,"")) -> 125133.4443 | AM39: =IF(AM$17>ROUND($B$15*$AL$17,0),$D37,$C37) -> 0.704 | AN39: 0.704 | AO39: 0.704 | AP39: -0.22 | AQ39: -0.22 | AR39: -0.22 | AS39: -0.22 | AT39: -0.22 | AU39: -0.22 | AV39: -0.22 | AW39: 28160 | AX39: 47984.64 | AY39: 81765.82656 | AZ39: -43540.30264 | BA39: -33961.43606 | BB39: -26489.92013 | BC39: -20662.1377 | BD39: -16116.46741 | BE39: -12570.84458 | BF39: -9805.25877 | BG39: 68160 | BH39: 116144.64 | BI39: 197910.4666 | BJ39: 154370.1639 | BK39: 120408.7279 | BL39: 93918.80773 | BM39: 73256.67003 | BN39: 57140.20262 | BO39: 44569.35804 | BP39: 34764.09927 | BQ39: 0.704 | BR39: 1.903616 | BS39: 3.947761664 | BT39: 2.859254098 | BU39: 2.010218196 | BV39: 1.347970193 | BW39: 0.8314167507 | BX39: 0.4285050655 | BY39: 0.1142339511
C40: 80% | D40: -25.00% | E40: -22.15% | G40: 24 | H40: 96,667.99 | I40: WIN | J40: 11,600.16 | K40: 12.0% | L40: 108,268.15 | M40: =IF($M$14="non-compounding",SUM($J$17:J40)+$C$3,IFERROR(IF(I40="win",(M39*(1-$C$10)),(M39*(1-$C$11)))+L40,"")) -> 149,697.29 | N40: 49.70% | Q40: 24 | R40: 0.12 | S40: 24 | T40: 0.15 | U40: 0.12 | V40: =COUNTIF($U$17:U39,$C$8) -> 7 | W40: =COUNTIF($U$17:U39,$C$9) -> 16 | AC40: 0.15 | AD40: =COUNTIF($AC$17:AC39,$D$8) -> 8 | AE40: =COUNTIF($AC$17:AC39,$D$9) -> 15 | AF40: 50053.37771 | AG40: 7508.006656 | AH40: 0.15 | AI40: 57561.38436 | AJ40: =IF($M$14="non-compounding",SUM($AG$17:AG40)+$C$3,IFERROR(IF(AH40>0,(AJ39*(1-$D$10)),(AJ39*(1-$D$11)))+AI40,"")) -> 132641.4509 | AM40: =IF(AM$17>ROUND($B$15*$AL$17,0),$D38,$C38) -> 0.736 | AN40: 0.736 | AO40: 0.736 | AP40: -0.23 | AQ40: -0.23 | AR40: -0.23 | AS40: -0.23 | AT40: -0.23 | AU40: -0.23 | AV40: -0.23 | AW40: 29440 | AX40: 51107.84 | AY40: 88723.21024 | AZ40: -48132.34156 | BA40: -37061.903 | BB40: -28537.66531 | BC40: -21974.00229 | BD40: -16919.98176 | BE40: -13028.38596 | BF40: -10031.85719 | BG40: 69440 | BH40: 120547.84 | BI40: 209271.0502 | BJ40: 161138.7087 | BK40: 124076.8057 | BL40: 95539.14038 | BM40: 73565.13809 | BN40: 56645.15633 | BO40: 43616.77037 | BP40: 33584.91319 | BQ40: 0.736 | BR40: 2.013696 | BS40: 4.231776256 | BT40: 3.028467717 | BU40: 2.101920142 | BV40: 1.388478509 | BW40: 0.8391284523 | BX40: 0.4161289083 | BY40: 0.09041925937
C41: 83% | D41: -26.00% | E41: -25.29% | G41: 25 | H41: 59,878.92 | I41: LOSS | J41: -2,245.46 | K41: -3.8% | L41: 57,633.46 | M41: =IF($M$14="non-compounding",SUM($J$17:J41)+$C$3,IFERROR(IF(I41="win",(M40*(1-$C$10)),(M40*(1-$C$11)))+L41,"")) -> 147,451.83 | N41: 47.45% | Q41: 25 | R41: -0.0375 | S41: 25 | T41: -0.04 | U41: -0.0375 | V41: =COUNTIF($U$17:U40,$C$8) -> 8 | W41: =COUNTIF($U$17:U40,$C$9) -> 16 | AC41: -0.04 | AD41: =COUNTIF($AC$17:AC40,$D$8) -> 9 | AE41: =COUNTIF($AC$17:AC40,$D$9) -> 15 | AF41: 53056.58037 | AG41: -2122.263215 | AH41: -0.04 | AI41: 50934.31716 | AJ41: =IF($M$14="non-compounding",SUM($AG$17:AG41)+$C$3,IFERROR(IF(AH41>0,(AJ40*(1-$D$10)),(AJ40*(1-$D$11)))+AI41,"")) -> 130519.1877 | AM41: =IF(AM$17>ROUND($B$15*$AL$17,0),$D39,$C39) -> 0.768 | AN41: 0.768 | AO41: 0.768 | AP41: -0.24 | AQ41: -0.24 | AR41: -0.24 | AS41: -0.24 | AT41: -0.24 | AU41: -0.24 | AV41: -0.24 | AW41: 30720 | AX41: 54312.96 | AY41: 96025.31328 | AZ41: -53053.98559 | BA41: -40321.02905 | BB41: -30643.98208 | BC41: -23289.42638 | BD41: -17699.96405 | BE41: -13451.97268 | BF41: -10223.49923 | BG41: 70720 | BH41: 125032.96 | BI41: 221058.2733 | BJ41: 168004.2877 | BK41: 127683.2586 | BL41: 97039.27657 | BM41: 73749.85019 | BN41: 56049.88615 | BO41: 42597.91347 | BP41: 32374.41424 | BQ41: 0.768 | BR41: 2.125824 | BS41: 4.526456832 | BT41: 3.200107192 | BU41: 2.192081466 | BV41: 1.425981914 | BW41: 0.8437462549 | BX41: 0.4012471537 | BY41: 0.0649478368
C42: 86% | D42: -27.00% | E42: -28.45% | G42: 26 | H42: 103,216.28 | I42: WIN | J42: 12,385.95 | K42: 12.0% | L42: 115,602.24 | M42: =IF($M$14="non-compounding",SUM($J$17:J42)+$C$3,IFERROR(IF(I42="win",(M41*(1-$C$10)),(M41*(1-$C$11)))+L42,"")) -> 159,837.79 | N42: 59.84% | Q42: 26 | R42: 0.12 | S42: 26 | T42: 0.15 | U42: 0.12 | V42: =COUNTIF($U$17:U41,$C$8) -> 8 | W42: =COUNTIF($U$17:U41,$C$9) -> 17 | AC42: 0.15 | AD42: =COUNTIF($AC$17:AC41,$D$8) -> 9 | AE42: =COUNTIF($AC$17:AC41,$D$9) -> 16 | AF42: 52207.67508 | AG42: 7831.151263 | AH42: 0.15 | AI42: 60038.82635 | AJ42: =IF($M$14="non-compounding",SUM($AG$17:AG42)+$C$3,IFERROR(IF(AH42>0,(AJ41*(1-$D$10)),(AJ41*(1-$D$11)))+AI42,"")) -> 138350.339 | AM42: =IF(AM$17>ROUND($B$15*$AL$17,0),$D40,$C40) -> 0.8 | AN42: 0.8 | AO42: 0.8 | AP42: -0.25 | AQ42: -0.25 | AR42: -0.25 | AS42: -0.25 | AT42: -0.25 | AU42: -0.25 | AV42: -0.25 | AW42: 32000 | AX42: 57600 | AY42: 103680 | AZ42: -58320 | BA42: -43740 | BB42: -32805 | BC42: -24603.75 | BD42: -18452.8125 | BE42: -13839.60938 | BF42: -10379.70703 | BG42: 72000 | BH42: 129600 | BI42: 233280 | BJ42: 174960 | BK42: 131220 | BL42: 98415 | BM42: 73811.25 | BN42: 55358.4375 | BO42: 41518.82812 | BP42: 31139.12109 | BQ42: 0.8 | BR42: 2.24 | BS42: 4.832 | BT42: 3.374 | BU42: 2.2805 | BV42: 1.460375 | BW42: 0.84528125 | BX42: 0.3839609375 | BY42: 0.03797070312
C43: 90% | D43: -28.00% | E43: -31.63% | G43: 27 | H43: 111,886.45 | I43: WIN | J43: 13,426.37 | K43: 12.0% | L43: 125,312.83 | M43: =IF($M$14="non-compounding",SUM($J$17:J43)+$C$3,IFERROR(IF(I43="win",(M42*(1-$C$10)),(M42*(1-$C$11)))+L43,"")) -> 173,264.16 | N43: 73.26% | Q43: 27 | R43: 0.12 | S43: 27 | T43: 0.15 | U43: 0.12 | V43: =COUNTIF($U$17:U42,$C$8) -> 9 | W43: =COUNTIF($U$17:U42,$C$9) -> 17 | AC43: 0.15 | AD43: =COUNTIF($AC$17:AC42,$D$8) -> 10 | AE43: =COUNTIF($AC$17:AC42,$D$9) -> 16 | AF43: 55340.13559 | AG43: 8301.020338 | AH43: 0.15 | AI43: 63641.15593 | AJ43: =IF($M$14="non-compounding",SUM($AG$17:AG43)+$C$3,IFERROR(IF(AH43>0,(AJ42*(1-$D$10)),(AJ42*(1-$D$11)))+AI43,"")) -> 146651.3593 | AM43: =IF(AM$17>ROUND($B$15*$AL$17,0),$D41,$C41) -> 0.832 | AN43: 0.832 | AO43: 0.832 | AP43: -0.26 | AQ43: -0.26 | AR43: -0.26 | AS43: -0.26 | AT43: -0.26 | AU43: -0.26 | AV43: -0.26 | AW43: 33280 | AX43: 60968.96 | AY43: 111695.1347 | AZ43: -63945.46463 | BA43: -47319.64382 | BB43: -35016.53643 | BC43: -25912.23696 | BD43: -19175.05535 | BE43: -14189.54096 | BF43: -10500.26031 | BG43: 73280 | BH43: 134248.96 | BI43: 245944.0947 | BJ43: 181998.6301 | BK43: 134678.9863 | BL43: 99662.44984 | BM43: 73750.21288 | BN43: 54575.15753 | BO43: 40385.61657 | BP43: 29885.35626 | BQ43: 0.832 | BR43: 2.356224 | BS43: 5.148602368 | BT43: 3.549965752 | BU43: 2.366974657 | BV43: 1.491561246 | BW43: 0.843755322 | BX43: 0.3643789383 | BY43: 0.009640414337
C44: 93% | D44: -29.00% | E44: -34.82% | G44: 28 | H44: 69,305.66 | I44: LOSS | J44: -2,598.96 | K44: -3.8% | L44: 66,706.70 | M44: =IF($M$14="non-compounding",SUM($J$17:J44)+$C$3,IFERROR(IF(I44="win",(M43*(1-$C$10)),(M43*(1-$C$11)))+L44,"")) -> 170,665.20 | N44: 70.67% | Q44: 28 | R44: -0.0375 | S44: 28 | T44: -0.04 | U44: -0.0375 | V44: =COUNTIF($U$17:U43,$C$8) -> 10 | W44: =COUNTIF($U$17:U43,$C$9) -> 17 | AC44: -0.04 | AD44: =COUNTIF($AC$17:AC43,$D$8) -> 11 | AE44: =COUNTIF($AC$17:AC43,$D$9) -> 16 | AF44: 58660.54373 | AG44: -2346.421749 | AH44: -0.04 | AI44: 56314.12198 | AJ44: =IF($M$14="non-compounding",SUM($AG$17:AG44)+$C$3,IFERROR(IF(AH44>0,(AJ43*(1-$D$10)),(AJ43*(1-$D$11)))+AI44,"")) -> 144304.9376 | AM44: =IF(AM$17>ROUND($B$15*$AL$17,0),$D42,$C42) -> 0.864 | AN44: 0.864 | AO44: 0.864 | AP44: -0.27 | AQ44: -0.27 | AR44: -0.27 | AS44: -0.27 | AT44: -0.27 | AU44: -0.27 | AV44: -0.27 | AW44: 34560 | AX44: 64419.84 | AY44: 120078.5818 | AZ44: -69945.77388 | BA44: -51060.41493 | BB44: -37274.1029 | BC44: -27210.09512 | BD44: -19863.36943 | BE44: -14500.25969 | BF44: -10585.18957 | BG44: 74560 | BH44: 138979.84 | BI44: 259058.4218 | BJ44: 189112.6479 | BK44: 138052.233 | BL44: 100778.1301 | BM44: 73568.03494 | BN44: 53704.66551 | BO44: 39204.40582 | BP44: 28619.21625 | BQ44: 0.864 | BR44: 2.474496 | BS44: 5.476460544 | BT44: 3.727816197 | BU44: 2.451305824 | BV44: 1.519453251 | BW44: 0.8392008736 | BX44: 0.3426166377 | BY44: -0.01988985448
C45: 96% | D45: -30.00% | E45: -37.99% | G45: 29 | H45: 119,465.64 | I45: WIN | J45: 14,335.88 | K45: 12.0% | L45: 133,801.52 | M45: =IF($M$14="non-compounding",SUM($J$17:J45)+$C$3,IFERROR(IF(I45="win",(M44*(1-$C$10)),(M44*(1-$C$11)))+L45,"")) -> 185,001.08 | N45: 85.00% | Q45: 29 | R45: 0.12 | S45: 29 | T45: -0.04 | U45: 0.12 | V45: =COUNTIF($U$17:U44,$C$8) -> 10 | W45: =COUNTIF($U$17:U44,$C$9) -> 18 | AC45: -0.04 | AD45: =COUNTIF($AC$17:AC44,$D$8) -> 11 | AE45: =COUNTIF($AC$17:AC44,$D$9) -> 17 | AF45: 57721.97503 | AG45: -2308.879001 | AH45: -0.04 | AI45: 55413.09602 | AJ45: =IF($M$14="non-compounding",SUM($AG$17:AG45)+$C$3,IFERROR(IF(AH45>0,(AJ44*(1-$D$10)),(AJ44*(1-$D$11)))+AI45,"")) -> 141996.0586 | AM45: =IF(AM$17>ROUND($B$15*$AL$17,0),$D43,$C43) -> 0.896 | AN45: 0.896 | AO45: 0.896 | AP45: -0.28 | AQ45: -0.28 | AR45: -0.28 | AS45: -0.28 | AT45: -0.28 | AU45: -0.28 | AV45: -0.28 | AW45: 35840 | AX45: 67952.64 | AY45: 128838.2054 | AZ45: -76336.63672 | BA45: -54962.37844 | BB45: -39572.91248 | BC45: -28492.49698 | BD45: -20514.59783 | BE45: -14770.51044 | BF45: -10634.76751 | BG45: 75840 | BH45: 143792.64 | BI45: 272630.8454 | BJ45: 196294.2087 | BK45: 141331.8303 | BL45: 101758.9178 | BM45: 73266.42082 | BN45: 52751.82299 | BO45: 37981.31255 | BP45: 27346.54504 | BQ45: 0.896 | BR45: 2.594816 | BS45: 5.815771136 | BT45: 3.907355218 | BU45: 2.533295757 | BV45: 1.543972945 | BW45: 0.8316605204 | BX45: 0.3187955747 | BY45: -0.05046718624
G46: 30 | H46: 74,000.43 | I46: LOSS | J46: -2,775.02 | K46: -3.8% | L46: 71,225.41 | M46: =IF($M$14="non-compounding",SUM($J$17:J46)+$C$3,IFERROR(IF(I46="win",(M45*(1-$C$10)),(M45*(1-$C$11)))+L46,"")) -> 182,226.06 | N46: 82.23% | Q46: 30 | R46: -0.0375 | S46: 30 | T46: -0.04 | U46: -0.0375 | V46: =COUNTIF($U$17:U45,$C$8) -> 11 | W46: =COUNTIF($U$17:U45,$C$9) -> 18 | AC46: -0.04 | AD46: =COUNTIF($AC$17:AC45,$D$8) -> 11 | AE46: =COUNTIF($AC$17:AC45,$D$9) -> 18 | AF46: 56798.42342 | AG46: -2271.936937 | AH46: -0.04 | AI46: 54526.48649 | AJ46: =IF($M$14="non-compounding",SUM($AG$17:AG46)+$C$3,IFERROR(IF(AH46>0,(AJ45*(1-$D$10)),(AJ45*(1-$D$11)))+AI46,"")) -> 139724.1216 | AM46: =IF(AM$17>ROUND($B$15*$AL$17,0),$D44,$C44) -> 0.928 | AN46: 0.928 | AO46: 0.928 | AP46: -0.29 | AQ46: -0.29 | AR46: -0.29 | AS46: -0.29 | AT46: -0.29 | AU46: -0.29 | AV46: -0.29 | AW46: 37120 | AX46: 71567.36 | AY46: 137981.8701 | AZ46: -83134.07672 | BA46: -59025.19447 | BB46: -41907.88808 | BC46: -29754.60053 | BD46: -21125.76638 | BE46: -14999.29413 | BF46: -10649.49883 | BG46: 77120 | BH46: 148687.36 | BI46: 286669.2301 | BJ46: 203535.1534 | BK46: 144509.9589 | BL46: 102602.0708 | BM46: 72847.47027 | BN46: 51721.70389 | BO46: 36722.40976 | BP46: 26072.91093 | BQ46: 0.928 | BR46: 2.717184 | BS46: 6.166730752 | BT46: 4.088378834 | BU46: 2.612748972 | BV46: 1.56505177 | BW46: 0.8211867568 | BX46: 0.2930425973 | BY46: -0.08193975588
G47: 31 | H47: 72,890.42 | I47: LOSS | J47: -2,733.39 | K47: -3.8% | L47: 70,157.03 | M47: =IF($M$14="non-compounding",SUM($J$17:J47)+$C$3,IFERROR(IF(I47="win",(M46*(1-$C$10)),(M46*(1-$C$11)))+L47,"")) -> 179,492.67 | N47: 79.49% | Q47: 31 | R47: -0.0375 | S47: 31 | T47: -0.04 | U47: -0.0375 | V47: =COUNTIF($U$17:U46,$C$8) -> 11 | W47: =COUNTIF($U$17:U46,$C$9) -> 19 | AC47: -0.04 | AD47: =COUNTIF($AC$17:AC46,$D$8) -> 11 | AE47: =COUNTIF($AC$17:AC46,$D$9) -> 19 | AF47: 55889.64865 | AG47: -2235.585946 | AH47: -0.04 | AI47: 53654.0627 | AJ47: =IF($M$14="non-compounding",SUM($AG$17:AG47)+$C$3,IFERROR(IF(AH47>0,(AJ46*(1-$D$10)),(AJ46*(1-$D$11)))+AI47,"")) -> 137488.5357 | AM47: =IF(AM$17>ROUND($B$15*$AL$17,0),$D45,$C45) -> 0.96 | AN47: 0.96 | AO47: 0.96 | AP47: -0.3 | AQ47: -0.3 | AR47: -0.3 | AS47: -0.3 | AT47: -0.3 | AU47: -0.3 | AV47: -0.3 | AW47: 38400 | AX47: 75264 | AY47: 147517.44 | AZ47: -90354.432 | BA47: -63248.1024 | BB47: -44273.67168 | BC47: -30991.57018 | BD47: -21694.09912 | BE47: -15185.86939 | BF47: -10630.10857 | BG47: 78400 | BH47: 153664 | BI47: 301181.44 | BJ47: 210827.008 | BK47: 147578.9056 | BL47: 103305.2339 | BM47: 72313.66374 | BN47: 50619.56462 | BO47: 35433.69523 | BP47: 24803.58666 | BQ47: 0.96 | BR47: 2.8416 | BS47: 6.529536 | BT47: 4.2706752 | BU47: 2.68947264 | BV47: 1.582630848 | BW47: 0.8078415936 | BX47: 0.2654891155 | BY47: -0.1141576191
G48: 32 | H48: 71,797.07 | I48: LOSS | J48: -2,692.39 | K48: -3.8% | L48: 69,104.68 | M48: =IF($M$14="non-compounding",SUM($J$17:J48)+$C$3,IFERROR(IF(I48="win",(M47*(1-$C$10)),(M47*(1-$C$11)))+L48,"")) -> 176,800.28 | N48: 76.80% | Q48: 32 | R48: -0.0375 | S48: 32 | T48: -0.04 | U48: -0.0375 | V48: =COUNTIF($U$17:U47,$C$8) -> 11 | W48: =COUNTIF($U$17:U47,$C$9) -> 20 | AC48: -0.04 | AD48: =COUNTIF($AC$17:AC47,$D$8) -> 11 | AE48: =COUNTIF($AC$17:AC47,$D$9) -> 20 | AF48: 54995.41427 | AG48: -2199.816571 | AH48: -0.04 | AI48: 52795.5977 | AJ48: =IF($M$14="non-compounding",SUM($AG$17:AG48)+$C$3,IFERROR(IF(AH48>0,(AJ47*(1-$D$10)),(AJ47*(1-$D$11)))+AI48,"")) -> 135288.7191
G49: =Q49 -> 33 | H49: 70,720.11 | I49: =IF(G49="","",IF(K49<0,"LOSS","WIN")) -> LOSS | J49: =IFERROR(H49*K49,"") -> -2,652.00 | K49: -3.8% | L49: =IFERROR(J49+H49,"") -> 68,068.11 | M49: =IF($M$14="non-compounding",SUM($J$17:J49)+$C$3,IFERROR(IF(I49="win",(M48*(1-$C$10)),(M48*(1-$C$11)))+L49,"")) -> 174,148.27 | N49: =IFERROR((M49-$C$3)/$C$3,"") -> 74.15% | Q49: =IFERROR(IF(S49>$C$4,"",S49),"") -> 33 | R49: =IF(S48>=$C$4,"",IF(V49>$X$11,$C$9,IF(W49>=$Y$11,$C$8,U49))) -> -0.0375 | S49: 33 | T49: -0.04 | U49: =CHOOSE(RANDBETWEEN(1,20),$Z$18,$Z$19,$Z$20,$Z$21,$Z$22,$Z$23,$Z$24,$Z$25,$Z$26,$Z$27,$Z$28,$Z$29,$Z$30,$Z$31,$Z$32,$Z$33,$Z$34,$Z$35,$Z$36,$Z$37) -> -0.0375 | V49: =COUNTIF($U$17:U48,$C$8) -> 11 | W49: =COUNTIF($U$17:U48,$C$9) -> 21 | AC49: -0.04 | AD49: =COUNTIF($AC$17:AC48,$D$8) -> 11 | AE49: =COUNTIF($AC$17:AC48,$D$9) -> 21 | AF49: 54115.48764 | AG49: -2164.619506 | AH49: -0.04 | AI49: 51950.86814 | AJ49: =IF($M$14="non-compounding",SUM($AG$17:AG49)+$C$3,IFERROR(IF(AH49>0,(AJ48*(1-$D$10)),(AJ48*(1-$D$11)))+AI49,"")) -> 133124.0996
G50: 34 | H50: =IFERROR(IF($M$14="non-compounding",IF(I50="loss",($C$3*$C$11),($C$3*$C$10)),IF(G50="","",IF(I50="win",$C$10*M49,$C$11*M49))),"") -> 69,659.31 | I50: LOSS | J50: -2,612.22 | K50: =IF(S49>=$C$4,"",IF(V50>=$X$11,$C$9,IF(W50>=$Y$11,$C$8,U50))) -> -3.8% | L50: 67,047.09 | M50: =IF($M$14="non-compounding",SUM($J$17:J50)+$C$3,IFERROR(IF(I50="win",(M49*(1-$C$10)),(M49*(1-$C$11)))+L50,"")) -> 171,536.05 | N50: 71.54% | Q50: 34 | R50: -0.0375 | S50: 34 | T50: -0.04 | U50: -0.0375 | V50: =COUNTIF($U$17:U49,$C$8) -> 11 | W50: =COUNTIF($U$17:U49,$C$9) -> 22 | AC50: -0.04 | AD50: =COUNTIF($AC$17:AC49,$D$8) -> 11 | AE50: =COUNTIF($AC$17:AC49,$D$9) -> 22 | AF50: =IFERROR(IF($M$14="non-compounding",IF(AH50<0,($C$3*$D$11),($C$3*$D$10)),IF(G50="","",IF(AH50>0,$D$10*AJ49,$D$11*AJ49))),"") -> 53249.63984 | AG50: -2129.985594 | AH50: -0.04 | AI50: 51119.65425 | AJ50: =IF($M$14="non-compounding",SUM($AG$17:AG50)+$C$3,IFERROR(IF(AH50>0,(AJ49*(1-$D$10)),(AJ49*(1-$D$11)))+AI50,"")) -> 130994.114
G51: 35 | H51: 120,075.24 | I51: WIN | J51: 14,409.03 | K51: 12.0% | L51: 134,484.26 | M51: =IF($M$14="non-compounding",SUM($J$17:J51)+$C$3,IFERROR(IF(I51="win",(M50*(1-$C$10)),(M50*(1-$C$11)))+L51,"")) -> 185,945.08 | N51: 85.95% | Q51: 35 | R51: 0.12 | S51: 35 | T51: -0.04 | U51: 0.12 | V51: =COUNTIF($U$17:U50,$C$8) -> 11 | W51: =COUNTIF($U$17:U50,$C$9) -> 23 | AC51: -0.04 | AD51: =COUNTIF($AC$17:AC50,$D$8) -> 11 | AE51: =COUNTIF($AC$17:AC50,$D$9) -> 23 | AF51: 52397.6456 | AG51: -2095.905824 | AH51: -0.04 | AI51: 50301.73978 | AJ51: =IF($M$14="non-compounding",SUM($AG$17:AG51)+$C$3,IFERROR(IF(AH51>0,(AJ50*(1-$D$10)),(AJ50*(1-$D$11)))+AI51,"")) -> 128898.2082
G52: 36 | H52: 130,161.55 | I52: WIN | J52: 15,619.39 | K52: 12.0% | L52: 145,780.94 | M52: =IF($M$14="non-compounding",SUM($J$17:J52)+$C$3,IFERROR(IF(I52="win",(M51*(1-$C$10)),(M51*(1-$C$11)))+L52,"")) -> 201,564.46 | N52: 101.56% | Q52: 36 | R52: 0.12 | S52: 36 | T52: -0.04 | U52: 0.12 | V52: =COUNTIF($U$17:U51,$C$8) -> 12 | W52: =COUNTIF($U$17:U51,$C$9) -> 23 | AC52: -0.04 | AD52: =COUNTIF($AC$17:AC51,$D$8) -> 11 | AE52: =COUNTIF($AC$17:AC51,$D$9) -> 24 | AF52: 51559.28327 | AG52: -2062.371331 | AH52: -0.04 | AI52: 49496.91194 | AJ52: =IF($M$14="non-compounding",SUM($AG$17:AG52)+$C$3,IFERROR(IF(AH52>0,(AJ51*(1-$D$10)),(AJ51*(1-$D$11)))+AI52,"")) -> 126835.8369
G53: 37 | H53: 80,625.79 | I53: LOSS | J53: -3,023.47 | K53: -3.8% | L53: 77,602.32 | M53: =IF($M$14="non-compounding",SUM($J$17:J53)+$C$3,IFERROR(IF(I53="win",(M52*(1-$C$10)),(M52*(1-$C$11)))+L53,"")) -> 198,541.00 | N53: 98.54% | Q53: 37 | R53: -0.0375 | S53: 37 | T53: 0.15 | U53: -0.0375 | V53: =COUNTIF($U$17:U52,$C$8) -> 13 | W53: =COUNTIF($U$17:U52,$C$9) -> 23 | AC53: 0.15 | AD53: =COUNTIF($AC$17:AC52,$D$8) -> 11 | AE53: =COUNTIF($AC$17:AC52,$D$9) -> 25 | AF53: 50734.33474 | AG53: 7610.150211 | AH53: 0.15 | AI53: 58344.48495 | AJ53: =IF($M$14="non-compounding",SUM($AG$17:AG53)+$C$3,IFERROR(IF(AH53>0,(AJ52*(1-$D$10)),(AJ52*(1-$D$11)))+AI53,"")) -> 134445.9871
G54: 38 | H54: 79,416.40 | I54: LOSS | J54: -2,978.11 | K54: -3.8% | L54: 76,438.28 | M54: =IF($M$14="non-compounding",SUM($J$17:J54)+$C$3,IFERROR(IF(I54="win",(M53*(1-$C$10)),(M53*(1-$C$11)))+L54,"")) -> 195,562.88 | N54: 95.56% | Q54: 38 | R54: -0.0375 | S54: 38 | T54: -0.04 | U54: -0.0375 | V54: =COUNTIF($U$17:U53,$C$8) -> 13 | W54: =COUNTIF($U$17:U53,$C$9) -> 24 | AC54: -0.04 | AD54: =COUNTIF($AC$17:AC53,$D$8) -> 12 | AE54: =COUNTIF($AC$17:AC53,$D$9) -> 25 | AF54: 53778.39483 | AG54: -2151.135793 | AH54: -0.04 | AI54: 51627.25903 | AJ54: =IF($M$14="non-compounding",SUM($AG$17:AG54)+$C$3,IFERROR(IF(AH54>0,(AJ53*(1-$D$10)),(AJ53*(1-$D$11)))+AI54,"")) -> 132294.8513
G55: 39 | H55: 136,894.02 | I55: WIN | J55: 16,427.28 | K55: 12.0% | L55: 153,321.30 | M55: =IF($M$14="non-compounding",SUM($J$17:J55)+$C$3,IFERROR(IF(I55="win",(M54*(1-$C$10)),(M54*(1-$C$11)))+L55,"")) -> 211,990.17 | N55: 111.99% | Q55: 39 | R55: 0.12 | S55: 39 | T55: -0.04 | U55: 0.12 | V55: =COUNTIF($U$17:U54,$C$8) -> 13 | W55: =COUNTIF($U$17:U54,$C$9) -> 25 | AC55: -0.04 | AD55: =COUNTIF($AC$17:AC54,$D$8) -> 12 | AE55: =COUNTIF($AC$17:AC54,$D$9) -> 26 | AF55: 52917.94051 | AG55: -2116.71762 | AH55: -0.04 | AI55: 50801.22289 | AJ55: =IF($M$14="non-compounding",SUM($AG$17:AG55)+$C$3,IFERROR(IF(AH55>0,(AJ54*(1-$D$10)),(AJ54*(1-$D$11)))+AI55,"")) -> 130178.1337
G56: 40 | H56: 84,796.07 | I56: LOSS | J56: -3,179.85 | K56: -3.8% | L56: 81,616.21 | M56: =IF($M$14="non-compounding",SUM($J$17:J56)+$C$3,IFERROR(IF(I56="win",(M55*(1-$C$10)),(M55*(1-$C$11)))+L56,"")) -> 208,810.31 | N56: 108.81% | Q56: 40 | R56: -0.0375 | S56: 40 | T56: -0.04 | U56: -0.0375 | V56: =COUNTIF($U$17:U55,$C$8) -> 14 | W56: =COUNTIF($U$17:U55,$C$9) -> 25 | AC56: -0.04 | AD56: =COUNTIF($AC$17:AC55,$D$8) -> 12 | AE56: =COUNTIF($AC$17:AC55,$D$9) -> 27 | AF56: 52071.25346 | AG56: -2082.850138 | AH56: -0.04 | AI56: 49988.40332 | AJ56: =IF($M$14="non-compounding",SUM($AG$17:AG56)+$C$3,IFERROR(IF(AH56>0,(AJ55*(1-$D$10)),(AJ55*(1-$D$11)))+AI56,"")) -> 128095.2835
G57: 41 | H57: 83,524.13 | I57: LOSS | J57: -3,132.15 | K57: -3.8% | L57: 80,391.97 | M57: =IF($M$14="non-compounding",SUM($J$17:J57)+$C$3,IFERROR(IF(I57="win",(M56*(1-$C$10)),(M56*(1-$C$11)))+L57,"")) -> 205,678.16 | N57: 105.68% | Q57: 41 | R57: -0.0375 | S57: 41 | T57: 0.15 | U57: -0.0375 | V57: =COUNTIF($U$17:U56,$C$8) -> 14 | W57: =COUNTIF($U$17:U56,$C$9) -> 26 | AC57: 0.15 | AD57: =COUNTIF($AC$17:AC56,$D$8) -> 12 | AE57: =COUNTIF($AC$17:AC56,$D$9) -> 28 | AF57: 51238.11341 | AG57: 7685.717011 | AH57: 0.15 | AI57: 58923.83042 | AJ57: =IF($M$14="non-compounding",SUM($AG$17:AG57)+$C$3,IFERROR(IF(AH57>0,(AJ56*(1-$D$10)),(AJ56*(1-$D$11)))+AI57,"")) -> 135781.0005
G58: 42 | H58: 82,271.26 | I58: LOSS | J58: -3,085.17 | K58: -3.8% | L58: 79,186.09 | M58: =IF($M$14="non-compounding",SUM($J$17:J58)+$C$3,IFERROR(IF(I58="win",(M57*(1-$C$10)),(M57*(1-$C$11)))+L58,"")) -> 202,592.99 | N58: 102.59% | Q58: 42 | R58: -0.0375 | S58: 42 | T58: -0.04 | U58: -0.0375 | V58: =COUNTIF($U$17:U57,$C$8) -> 14 | W58: =COUNTIF($U$17:U57,$C$9) -> 27 | AC58: -0.04 | AD58: =COUNTIF($AC$17:AC57,$D$8) -> 13 | AE58: =COUNTIF($AC$17:AC57,$D$9) -> 28 | AF58: 54312.40021 | AG58: -2172.496008 | AH58: -0.04 | AI58: 52139.9042 | AJ58: =IF($M$14="non-compounding",SUM($AG$17:AG58)+$C$3,IFERROR(IF(AH58>0,(AJ57*(1-$D$10)),(AJ57*(1-$D$11)))+AI58,"")) -> 133608.5045
G59: 43 | H59: 141,815.09 | I59: WIN | J59: 17,017.81 | K59: 12.0% | L59: 158,832.90 | M59: =IF($M$14="non-compounding",SUM($J$17:J59)+$C$3,IFERROR(IF(I59="win",(M58*(1-$C$10)),(M58*(1-$C$11)))+L59,"")) -> 219,610.80 | N59: 119.61% | Q59: 43 | R59: 0.12 | S59: 43 | T59: -0.04 | U59: 0.12 | V59: =COUNTIF($U$17:U58,$C$8) -> 14 | W59: =COUNTIF($U$17:U58,$C$9) -> 28 | AC59: -0.04 | AD59: =COUNTIF($AC$17:AC58,$D$8) -> 13 | AE59: =COUNTIF($AC$17:AC58,$D$9) -> 29 | AF59: 53443.40181 | AG59: -2137.736072 | AH59: -0.04 | AI59: 51305.66573 | AJ59: =IF($M$14="non-compounding",SUM($AG$17:AG59)+$C$3,IFERROR(IF(AH59>0,(AJ58*(1-$D$10)),(AJ58*(1-$D$11)))+AI59,"")) -> 131470.7684
G60: 44 | H60: 87,844.32 | I60: LOSS | J60: -3,294.16 | K60: -3.8% | L60: 84,550.16 | M60: =IF($M$14="non-compounding",SUM($J$17:J60)+$C$3,IFERROR(IF(I60="win",(M59*(1-$C$10)),(M59*(1-$C$11)))+L60,"")) -> 216,316.63 | N60: 116.32% | Q60: 44 | R60: -0.0375 | S60: 44 | T60: -0.04 | U60: -0.0375 | V60: =COUNTIF($U$17:U59,$C$8) -> 15 | W60: =COUNTIF($U$17:U59,$C$9) -> 28 | AC60: -0.04 | AD60: =COUNTIF($AC$17:AC59,$D$8) -> 13 | AE60: =COUNTIF($AC$17:AC59,$D$9) -> 30 | AF60: 52588.30738 | AG60: -2103.532295 | AH60: -0.04 | AI60: 50484.77508 | AJ60: =IF($M$14="non-compounding",SUM($AG$17:AG60)+$C$3,IFERROR(IF(AH60>0,(AJ59*(1-$D$10)),(AJ59*(1-$D$11)))+AI60,"")) -> 129367.2361
G61: 45 | H61: 86,526.65 | I61: LOSS | J61: -3,244.75 | K61: -3.8% | L61: 83,281.90 | M61: =IF($M$14="non-compounding",SUM($J$17:J61)+$C$3,IFERROR(IF(I61="win",(M60*(1-$C$10)),(M60*(1-$C$11)))+L61,"")) -> 213,071.88 | N61: 113.07% | Q61: 45 | R61: -0.0375 | S61: 45 | T61: 0.15 | U61: -0.0375 | V61: =COUNTIF($U$17:U60,$C$8) -> 15 | W61: =COUNTIF($U$17:U60,$C$9) -> 29 | AC61: 0.15 | AD61: =COUNTIF($AC$17:AC60,$D$8) -> 13 | AE61: =COUNTIF($AC$17:AC60,$D$9) -> 31 | AF61: 51746.89446 | AG61: 7762.034169 | AH61: 0.15 | AI61: 59508.92863 | AJ61: =IF($M$14="non-compounding",SUM($AG$17:AG61)+$C$3,IFERROR(IF(AH61>0,(AJ60*(1-$D$10)),(AJ60*(1-$D$11)))+AI61,"")) -> 137129.2703
G62: 46 | H62: 85,228.75 | I62: LOSS | J62: -3,196.08 | K62: -3.8% | L62: 82,032.68 | M62: =IF($M$14="non-compounding",SUM($J$17:J62)+$C$3,IFERROR(IF(I62="win",(M61*(1-$C$10)),(M61*(1-$C$11)))+L62,"")) -> 209,875.81 | N62: 109.88% | Q62: 46 | R62: -0.0375 | S62: 46 | T62: 0.15 | U62: -0.0375 | V62: =COUNTIF($U$17:U61,$C$8) -> 15 | W62: =COUNTIF($U$17:U61,$C$9) -> 30 | AC62: 0.15 | AD62: =COUNTIF($AC$17:AC61,$D$8) -> 14 | AE62: =COUNTIF($AC$17:AC61,$D$9) -> 31 | AF62: 54851.70813 | AG62: 8227.756219 | AH62: 0.15 | AI62: 63079.46435 | AJ62: =IF($M$14="non-compounding",SUM($AG$17:AG62)+$C$3,IFERROR(IF(AH62>0,(AJ61*(1-$D$10)),(AJ61*(1-$D$11)))+AI62,"")) -> 145357.0265
G63: 47 | H63: 83,950.32 | I63: LOSS | J63: -3,148.14 | K63: -3.8% | L63: 80,802.19 | M63: =IF($M$14="non-compounding",SUM($J$17:J63)+$C$3,IFERROR(IF(I63="win",(M62*(1-$C$10)),(M62*(1-$C$11)))+L63,"")) -> 206,727.67 | N63: 106.73% | Q63: 47 | R63: -0.0375 | S63: 47 | T63: -0.04 | U63: -0.0375 | V63: =COUNTIF($U$17:U62,$C$8) -> 15 | W63: =COUNTIF($U$17:U62,$C$9) -> 31 | AC63: -0.04 | AD63: =COUNTIF($AC$17:AC62,$D$8) -> 15 | AE63: =COUNTIF($AC$17:AC62,$D$9) -> 31 | AF63: 58142.81061 | AG63: -2325.712425 | AH63: -0.04 | AI63: 55817.09819 | AJ63: =IF($M$14="non-compounding",SUM($AG$17:AG63)+$C$3,IFERROR(IF(AH63>0,(AJ62*(1-$D$10)),(AJ62*(1-$D$11)))+AI63,"")) -> 143031.3141
G64: 48 | H64: 144,709.37 | I64: WIN | J64: 17,365.12 | K64: 12.0% | L64: 162,074.49 | M64: =IF($M$14="non-compounding",SUM($J$17:J64)+$C$3,IFERROR(IF(I64="win",(M63*(1-$C$10)),(M63*(1-$C$11)))+L64,"")) -> 224,092.79 | N64: 124.09% | Q64: 48 | R64: 0.12 | S64: 48 | T64: 0.15 | U64: 0.12 | V64: =COUNTIF($U$17:U63,$C$8) -> 15 | W64: =COUNTIF($U$17:U63,$C$9) -> 32 | AC64: 0.15 | AD64: =COUNTIF($AC$17:AC63,$D$8) -> 15 | AE64: =COUNTIF($AC$17:AC63,$D$9) -> 32 | AF64: 57212.52564 | AG64: 8581.878847 | AH64: 0.15 | AI64: 65794.40449 | AJ64: =IF($M$14="non-compounding",SUM($AG$17:AG64)+$C$3,IFERROR(IF(AH64>0,(AJ63*(1-$D$10)),(AJ63*(1-$D$11)))+AI64,"")) -> 151613.193
G65: 49 | H65: 89,637.12 | I65: LOSS | J65: -3,361.39 | K65: -3.8% | L65: 86,275.73 | M65: =IF($M$14="non-compounding",SUM($J$17:J65)+$C$3,IFERROR(IF(I65="win",(M64*(1-$C$10)),(M64*(1-$C$11)))+L65,"")) -> 220,731.40 | N65: 120.73% | Q65: 49 | R65: -0.0375 | S65: 49 | T65: -0.04 | U65: -0.0375 | V65: =COUNTIF($U$17:U64,$C$8) -> 16 | W65: =COUNTIF($U$17:U64,$C$9) -> 32 | AC65: -0.04 | AD65: =COUNTIF($AC$17:AC64,$D$8) -> 16 | AE65: =COUNTIF($AC$17:AC64,$D$9) -> 32 | AF65: 60645.27718 | AG65: -2425.811087 | AH65: -0.04 | AI65: 58219.4661 | AJ65: =IF($M$14="non-compounding",SUM($AG$17:AG65)+$C$3,IFERROR(IF(AH65>0,(AJ64*(1-$D$10)),(AJ64*(1-$D$11)))+AI65,"")) -> 149187.3819
G66: 50 | H66: 88,292.56 | I66: LOSS | J66: -3,310.97 | K66: -3.8% | L66: 84,981.59 | M66: =IF($M$14="non-compounding",SUM($J$17:J66)+$C$3,IFERROR(IF(I66="win",(M65*(1-$C$10)),(M65*(1-$C$11)))+L66,"")) -> 217,420.43 | N66: 117.42% | Q66: 50 | R66: -0.0375 | S66: 50 | T66: 0.15 | U66: -0.0375 | V66: =COUNTIF($U$17:U65,$C$8) -> 16 | W66: =COUNTIF($U$17:U65,$C$9) -> 33 | AC66: 0.15 | AD66: =COUNTIF($AC$17:AC65,$D$8) -> 16 | AE66: =COUNTIF($AC$17:AC65,$D$9) -> 33 | AF66: 59674.95275 | AG66: 8951.242912 | AH66: 0.15 | AI66: 68626.19566 | AJ66: =IF($M$14="non-compounding",SUM($AG$17:AG66)+$C$3,IFERROR(IF(AH66>0,(AJ65*(1-$D$10)),(AJ65*(1-$D$11)))+AI66,"")) -> 158138.6248
G67: 51 | H67: 86,968.17 | I67: LOSS | J67: -3,261.31 | K67: -3.8% | L67: 83,706.87 | M67: =IF($M$14="non-compounding",SUM($J$17:J67)+$C$3,IFERROR(IF(I67="win",(M66*(1-$C$10)),(M66*(1-$C$11)))+L67,"")) -> 214,159.12 | N67: 114.16% | Q67: 51 | R67: -0.0375 | S67: 51 | T67: -0.04 | U67: -0.0375 | V67: =COUNTIF($U$17:U66,$C$8) -> 16 | W67: =COUNTIF($U$17:U66,$C$9) -> 34 | AC67: -0.04 | AD67: =COUNTIF($AC$17:AC66,$D$8) -> 17 | AE67: =COUNTIF($AC$17:AC66,$D$9) -> 33 | AF67: 63255.44991 | AG67: -2530.217997 | AH67: -0.04 | AI67: 60725.23192 | AJ67: =IF($M$14="non-compounding",SUM($AG$17:AG67)+$C$3,IFERROR(IF(AH67>0,(AJ66*(1-$D$10)),(AJ66*(1-$D$11)))+AI67,"")) -> 155608.4068
G68: 52 | H68: 85,663.65 | I68: LOSS | J68: -3,212.39 | K68: -3.8% | L68: 82,451.26 | M68: =IF($M$14="non-compounding",SUM($J$17:J68)+$C$3,IFERROR(IF(I68="win",(M67*(1-$C$10)),(M67*(1-$C$11)))+L68,"")) -> 210,946.74 | N68: 110.95% | Q68: 52 | R68: -0.0375 | S68: 52 | T68: 0.15 | U68: -0.0375 | V68: =COUNTIF($U$17:U67,$C$8) -> 16 | W68: =COUNTIF($U$17:U67,$C$9) -> 35 | AC68: 0.15 | AD68: =COUNTIF($AC$17:AC67,$D$8) -> 17 | AE68: =COUNTIF($AC$17:AC67,$D$9) -> 34 | AF68: 62243.36271 | AG68: 9336.504407 | AH68: 0.15 | AI68: 71579.86712 | AJ68: =IF($M$14="non-compounding",SUM($AG$17:AG68)+$C$3,IFERROR(IF(AH68>0,(AJ67*(1-$D$10)),(AJ67*(1-$D$11)))+AI68,"")) -> 164944.9112
G69: 53 | H69: 84,378.70 | I69: LOSS | J69: -3,164.20 | K69: -3.8% | L69: 81,214.49 | M69: =IF($M$14="non-compounding",SUM($J$17:J69)+$C$3,IFERROR(IF(I69="win",(M68*(1-$C$10)),(M68*(1-$C$11)))+L69,"")) -> 207,782.54 | N69: 107.78% | Q69: 53 | R69: -0.0375 | S69: 53 | T69: -0.04 | U69: -0.0375 | V69: =COUNTIF($U$17:U68,$C$8) -> 16 | W69: =COUNTIF($U$17:U68,$C$9) -> 36 | AC69: -0.04 | AD69: =COUNTIF($AC$17:AC68,$D$8) -> 18 | AE69: =COUNTIF($AC$17:AC68,$D$9) -> 34 | AF69: 65977.96448 | AG69: -2639.118579 | AH69: -0.04 | AI69: 63338.8459 | AJ69: =IF($M$14="non-compounding",SUM($AG$17:AG69)+$C$3,IFERROR(IF(AH69>0,(AJ68*(1-$D$10)),(AJ68*(1-$D$11)))+AI69,"")) -> 162305.7926
G70: 54 | H70: 83,113.01 | I70: LOSS | J70: -3,116.74 | K70: -3.8% | L70: 79,996.28 | M70: =IF($M$14="non-compounding",SUM($J$17:J70)+$C$3,IFERROR(IF(I70="win",(M69*(1-$C$10)),(M69*(1-$C$11)))+L70,"")) -> 204,665.80 | N70: 104.67% | Q70: 54 | R70: -0.0375 | S70: 54 | T70: 0.15 | U70: -0.0375 | V70: =COUNTIF($U$17:U69,$C$8) -> 16 | W70: =COUNTIF($U$17:U69,$C$9) -> 37 | AC70: 0.15 | AD70: =COUNTIF($AC$17:AC69,$D$8) -> 18 | AE70: =COUNTIF($AC$17:AC69,$D$9) -> 35 | AF70: 64922.31705 | AG70: 9738.347557 | AH70: 0.15 | AI70: 74660.6646 | AJ70: =IF($M$14="non-compounding",SUM($AG$17:AG70)+$C$3,IFERROR(IF(AH70>0,(AJ69*(1-$D$10)),(AJ69*(1-$D$11)))+AI70,"")) -> 172044.1402
G71: 55 | H71: 81,866.32 | I71: LOSS | J71: -3,069.99 | K71: -3.8% | L71: 78,796.33 | M71: =IF($M$14="non-compounding",SUM($J$17:J71)+$C$3,IFERROR(IF(I71="win",(M70*(1-$C$10)),(M70*(1-$C$11)))+L71,"")) -> 201,595.81 | N71: 101.60% | Q71: 55 | R71: -0.0375 | S71: 55 | T71: -0.04 | U71: -0.0375 | V71: =COUNTIF($U$17:U70,$C$8) -> 16 | W71: =COUNTIF($U$17:U70,$C$9) -> 38 | AC71: -0.04 | AD71: =COUNTIF($AC$17:AC70,$D$8) -> 19 | AE71: =COUNTIF($AC$17:AC70,$D$9) -> 35 | AF71: 68817.65607 | AG71: -2752.706243 | AH71: -0.04 | AI71: 66064.94983 | AJ71: =IF($M$14="non-compounding",SUM($AG$17:AG71)+$C$3,IFERROR(IF(AH71>0,(AJ70*(1-$D$10)),(AJ70*(1-$D$11)))+AI71,"")) -> 169291.4339
G72: 56 | H72: 80,638.32 | I72: LOSS | J72: -3,023.94 | K72: -3.8% | L72: 77,614.39 | M72: =IF($M$14="non-compounding",SUM($J$17:J72)+$C$3,IFERROR(IF(I72="win",(M71*(1-$C$10)),(M71*(1-$C$11)))+L72,"")) -> 198,571.87 | N72: 98.57% | Q72: 56 | R72: -0.0375 | S72: 56 | T72: 0.15 | U72: -0.0375 | V72: =COUNTIF($U$17:U71,$C$8) -> 16 | W72: =COUNTIF($U$17:U71,$C$9) -> 39 | AC72: 0.15 | AD72: =COUNTIF($AC$17:AC71,$D$8) -> 19 | AE72: =COUNTIF($AC$17:AC71,$D$9) -> 36 | AF72: 67716.57357 | AG72: 10157.48604 | AH72: 0.15 | AI72: 77874.05961 | AJ72: =IF($M$14="non-compounding",SUM($AG$17:AG72)+$C$3,IFERROR(IF(AH72>0,(AJ71*(1-$D$10)),(AJ71*(1-$D$11)))+AI72,"")) -> 179448.92
G73: 57 | H73: 139,000.31 | I73: WIN | J73: 16,680.04 | K73: 12.0% | L73: 155,680.35 | M73: =IF($M$14="non-compounding",SUM($J$17:J73)+$C$3,IFERROR(IF(I73="win",(M72*(1-$C$10)),(M72*(1-$C$11)))+L73,"")) -> 215,251.91 | N73: 115.25% | Q73: 57 | R73: 0.12 | S73: 57 | T73: -0.04 | U73: 0.12 | V73: =COUNTIF($U$17:U72,$C$8) -> 16 | W73: =COUNTIF($U$17:U72,$C$9) -> 40 | AC73: -0.04 | AD73: =COUNTIF($AC$17:AC72,$D$8) -> 20 | AE73: =COUNTIF($AC$17:AC72,$D$9) -> 36 | AF73: 71779.56799 | AG73: -2871.182719 | AH73: -0.04 | AI73: 68908.38527 | AJ73: =IF($M$14="non-compounding",SUM($AG$17:AG73)+$C$3,IFERROR(IF(AH73>0,(AJ72*(1-$D$10)),(AJ72*(1-$D$11)))+AI73,"")) -> 176577.7372
G74: 58 | H74: 86,100.76 | I74: LOSS | J74: -3,228.78 | K74: -3.8% | L74: 82,871.99 | M74: =IF($M$14="non-compounding",SUM($J$17:J74)+$C$3,IFERROR(IF(I74="win",(M73*(1-$C$10)),(M73*(1-$C$11)))+L74,"")) -> 212,023.13 | N74: 112.02% | Q74: 58 | R74: -0.0375 | S74: 58 | T74: -0.04 | U74: -0.0375 | V74: =COUNTIF($U$17:U73,$C$8) -> 17 | W74: =COUNTIF($U$17:U73,$C$9) -> 40 | AC74: -0.04 | AD74: =COUNTIF($AC$17:AC73,$D$8) -> 20 | AE74: =COUNTIF($AC$17:AC73,$D$9) -> 37 | AF74: 70631.0949 | AG74: -2825.243796 | AH74: -0.04 | AI74: 67805.8511 | AJ74: =IF($M$14="non-compounding",SUM($AG$17:AG74)+$C$3,IFERROR(IF(AH74>0,(AJ73*(1-$D$10)),(AJ73*(1-$D$11)))+AI74,"")) -> 173752.4934
G75: 59 | H75: 84,809.25 | I75: LOSS | J75: -3,180.35 | K75: -3.8% | L75: 81,628.91 | M75: =IF($M$14="non-compounding",SUM($J$17:J75)+$C$3,IFERROR(IF(I75="win",(M74*(1-$C$10)),(M74*(1-$C$11)))+L75,"")) -> 208,842.79 | N75: 108.84% | Q75: 59 | R75: -0.0375 | S75: 59 | T75: -0.04 | U75: -0.0375 | V75: =COUNTIF($U$17:U74,$C$8) -> 17 | W75: =COUNTIF($U$17:U74,$C$9) -> 41 | AC75: -0.04 | AD75: =COUNTIF($AC$17:AC74,$D$8) -> 20 | AE75: =COUNTIF($AC$17:AC74,$D$9) -> 38 | AF75: 69500.99738 | AG75: -2780.039895 | AH75: -0.04 | AI75: 66720.95748 | AJ75: =IF($M$14="non-compounding",SUM($AG$17:AG75)+$C$3,IFERROR(IF(AH75>0,(AJ74*(1-$D$10)),(AJ74*(1-$D$11)))+AI75,"")) -> 170972.4536
G76: 60 | H76: 83,537.11 | I76: LOSS | J76: -3,132.64 | K76: -3.8% | L76: 80,404.47 | M76: =IF($M$14="non-compounding",SUM($J$17:J76)+$C$3,IFERROR(IF(I76="win",(M75*(1-$C$10)),(M75*(1-$C$11)))+L76,"")) -> 205,710.14 | N76: 105.71% | Q76: 60 | R76: -0.0375 | S76: 60 | T76: -0.04 | U76: -0.0375 | V76: =COUNTIF($U$17:U75,$C$8) -> 17 | W76: =COUNTIF($U$17:U75,$C$9) -> 42 | AC76: -0.04 | AD76: =COUNTIF($AC$17:AC75,$D$8) -> 20 | AE76: =COUNTIF($AC$17:AC75,$D$9) -> 39 | AF76: 68388.98142 | AG76: -2735.559257 | AH76: -0.04 | AI76: 65653.42216 | AJ76: =IF($M$14="non-compounding",SUM($AG$17:AG76)+$C$3,IFERROR(IF(AH76>0,(AJ75*(1-$D$10)),(AJ75*(1-$D$11)))+AI76,"")) -> 168236.8943
G77: 61 | H77: 82,284.06 | I77: LOSS | J77: -3,085.65 | K77: -3.8% | L77: 79,198.41 | M77: =IF($M$14="non-compounding",SUM($J$17:J77)+$C$3,IFERROR(IF(I77="win",(M76*(1-$C$10)),(M76*(1-$C$11)))+L77,"")) -> 202,624.49 | N77: 102.62% | Q77: 61 | R77: -0.0375 | S77: 61 | T77: -0.04 | U77: -0.0375 | V77: =COUNTIF($U$17:U76,$C$8) -> 17 | W77: =COUNTIF($U$17:U76,$C$9) -> 43 | AC77: -0.04 | AD77: =COUNTIF($AC$17:AC76,$D$8) -> 20 | AE77: =COUNTIF($AC$17:AC76,$D$9) -> 40 | AF77: 67294.75772 | AG77: -2691.790309 | AH77: -0.04 | AI77: 64602.96741 | AJ77: =IF($M$14="non-compounding",SUM($AG$17:AG77)+$C$3,IFERROR(IF(AH77>0,(AJ76*(1-$D$10)),(AJ76*(1-$D$11)))+AI77,"")) -> 165545.104
G78: 62 | H78: 141,837.14 | I78: WIN | J78: 17,020.46 | K78: 12.0% | L78: 158,857.60 | M78: =IF($M$14="non-compounding",SUM($J$17:J78)+$C$3,IFERROR(IF(I78="win",(M77*(1-$C$10)),(M77*(1-$C$11)))+L78,"")) -> 219,644.95 | N78: 119.64% | Q78: 62 | R78: 0.12 | S78: 62 | T78: -0.04 | U78: 0.12 | V78: =COUNTIF($U$17:U77,$C$8) -> 17 | W78: =COUNTIF($U$17:U77,$C$9) -> 44 | AC78: -0.04 | AD78: =COUNTIF($AC$17:AC77,$D$8) -> 20 | AE78: =COUNTIF($AC$17:AC77,$D$9) -> 41 | AF78: 66218.0416 | AG78: -2648.721664 | AH78: -0.04 | AI78: 63569.31993 | AJ78: =IF($M$14="non-compounding",SUM($AG$17:AG78)+$C$3,IFERROR(IF(AH78>0,(AJ77*(1-$D$10)),(AJ77*(1-$D$11)))+AI78,"")) -> 162896.3823
G79: 63 | H79: 87,857.98 | I79: LOSS | J79: -3,294.67 | K79: -3.8% | L79: 84,563.31 | M79: =IF($M$14="non-compounding",SUM($J$17:J79)+$C$3,IFERROR(IF(I79="win",(M78*(1-$C$10)),(M78*(1-$C$11)))+L79,"")) -> 216,350.28 | N79: 116.35% | Q79: 63 | R79: -0.0375 | S79: 63 | T79: -0.04 | U79: -0.0375 | V79: =COUNTIF($U$17:U78,$C$8) -> 18 | W79: =COUNTIF($U$17:U78,$C$9) -> 44 | AC79: -0.04 | AD79: =COUNTIF($AC$17:AC78,$D$8) -> 20 | AE79: =COUNTIF($AC$17:AC78,$D$9) -> 42 | AF79: 65158.55293 | AG79: -2606.342117 | AH79: -0.04 | AI79: 62552.21081 | AJ79: =IF($M$14="non-compounding",SUM($AG$17:AG79)+$C$3,IFERROR(IF(AH79>0,(AJ78*(1-$D$10)),(AJ78*(1-$D$11)))+AI79,"")) -> 160290.0402
G80: 64 | H80: 86,540.11 | I80: LOSS | J80: -3,245.25 | K80: -3.8% | L80: 83,294.86 | M80: =IF($M$14="non-compounding",SUM($J$17:J80)+$C$3,IFERROR(IF(I80="win",(M79*(1-$C$10)),(M79*(1-$C$11)))+L80,"")) -> 213,105.02 | N80: 113.11% | Q80: 64 | R80: -0.0375 | S80: 64 | T80: 0.15 | U80: -0.0375 | V80: =COUNTIF($U$17:U79,$C$8) -> 18 | W80: =COUNTIF($U$17:U79,$C$9) -> 45 | AC80: 0.15 | AD80: =COUNTIF($AC$17:AC79,$D$8) -> 20 | AE80: =COUNTIF($AC$17:AC79,$D$9) -> 43 | AF80: 64116.01608 | AG80: 9617.402412 | AH80: 0.15 | AI80: 73733.4185 | AJ80: =IF($M$14="non-compounding",SUM($AG$17:AG80)+$C$3,IFERROR(IF(AH80>0,(AJ79*(1-$D$10)),(AJ79*(1-$D$11)))+AI80,"")) -> 169907.4426
G81: =Q81 -> 65 | H81: 85,242.01 | I81: =IF(G81="","",IF(K81<0,"LOSS","WIN")) -> LOSS | J81: =IFERROR(H81*K81,"") -> -3,196.58 | K81: -3.8% | L81: =IFERROR(J81+H81,"") -> 82,045.43 | M81: =IF($M$14="non-compounding",SUM($J$17:J81)+$C$3,IFERROR(IF(I81="win",(M80*(1-$C$10)),(M80*(1-$C$11)))+L81,"")) -> 209,908.45 | N81: =IFERROR((M81-$C$3)/$C$3,"") -> 109.91% | Q81: =IFERROR(IF(S81>$C$4,"",S81),"") -> 65 | R81: =IF(S80>=$C$4,"",IF(V81>$X$11,$C$9,IF(W81>=$Y$11,$C$8,U81))) -> -0.0375 | S81: 65 | T81: 0.15 | U81: =CHOOSE(RANDBETWEEN(1,20),$Z$18,$Z$19,$Z$20,$Z$21,$Z$22,$Z$23,$Z$24,$Z$25,$Z$26,$Z$27,$Z$28,$Z$29,$Z$30,$Z$31,$Z$32,$Z$33,$Z$34,$Z$35,$Z$36,$Z$37) -> -0.0375 | V81: =COUNTIF($U$17:U80,$C$8) -> 18 | W81: =COUNTIF($U$17:U80,$C$9) -> 46 | AC81: 0.15 | AD81: =COUNTIF($AC$17:AC80,$D$8) -> 21 | AE81: =COUNTIF($AC$17:AC80,$D$9) -> 43 | AF81: 67962.97705 | AG81: 10194.44656 | AH81: 0.15 | AI81: 78157.42361 | AJ81: =IF($M$14="non-compounding",SUM($AG$17:AG81)+$C$3,IFERROR(IF(AH81>0,(AJ80*(1-$D$10)),(AJ80*(1-$D$11)))+AI81,"")) -> 180101.8892
G82: 66 | H82: =IFERROR(IF($M$14="non-compounding",IF(I82="loss",($C$3*$C$11),($C$3*$C$10)),IF(G82="","",IF(I82="win",$C$10*M81,$C$11*M81))),"") -> 146,935.91 | I82: WIN | J82: 17,632.31 | K82: =IF(S81>=$C$4,"",IF(V82>=$X$11,$C$9,IF(W82>=$Y$11,$C$8,U82))) -> 12.0% | L82: 164,568.22 | M82: =IF($M$14="non-compounding",SUM($J$17:J82)+$C$3,IFERROR(IF(I82="win",(M81*(1-$C$10)),(M81*(1-$C$11)))+L82,"")) -> 227,540.76 | N82: 127.54% | Q82: 66 | R82: 0.12 | S82: 66 | T82: =IF(S81>=$C$4,"",IF(AD82>$AA$11,$D$9,IF(AE82>=$AB$11,$D$8,AC82))) -> 0.15 | U82: 0.12 | V82: =COUNTIF($U$17:U81,$C$8) -> 18 | W82: =COUNTIF($U$17:U81,$C$9) -> 47 | AC82: =CHOOSE(RANDBETWEEN(1,20),$AB$18,$AB$19,$AB$20,$AB$21,$AB$22,$AB$23,$AB$24,$AB$25,$AB$26,$AB$27,$AB$28,$AB$29,$AB$30,$AB$31,$AB$32,$AB$33,$AB$34,$AB$35,$AB$36,$AB$37) -> 0.15 | AD82: =COUNTIF($AC$17:AC81,$D$8) -> 22 | AE82: =COUNTIF($AC$17:AC81,$D$9) -> 43 | AF82: =IFERROR(IF($M$14="non-compounding",IF(AH82<0,($C$3*$D$11),($C$3*$D$10)),IF(G82="","",IF(AH82>0,$D$10*AJ81,$D$11*AJ81))),"") -> 72040.75567 | AG82: 10806.11335 | AH82: 0.15 | AI82: =IFERROR(AG82+AF82,"") -> 82846.86902 | AJ82: =IF($M$14="non-compounding",SUM($AG$17:AG82)+$C$3,IFERROR(IF(AH82>0,(AJ81*(1-$D$10)),(AJ81*(1-$D$11)))+AI82,"")) -> 190908.0025
G83: 67 | H83: 91,016.30 | I83: LOSS | J83: -3,413.11 | K83: -3.8% | L83: 87,603.19 | M83: =IF($M$14="non-compounding",SUM($J$17:J83)+$C$3,IFERROR(IF(I83="win",(M82*(1-$C$10)),(M82*(1-$C$11)))+L83,"")) -> 224,127.64 | N83: 124.13% | Q83: 67 | R83: -0.0375 | S83: 67 | T83: -0.04 | U83: -0.0375 | V83: =COUNTIF($U$17:U82,$C$8) -> 19 | W83: =COUNTIF($U$17:U82,$C$9) -> 47 | AC83: -0.04 | AD83: =COUNTIF($AC$17:AC82,$D$8) -> 23 | AE83: =COUNTIF($AC$17:AC82,$D$9) -> 43 | AF83: 76363.20101 | AG83: -3054.52804 | AH83: =IF(S82>=$C$4,"",IF(AD83>=$AA$11,$D$9,IF(AE83>=$AB$11,$D$8,AC83))) -> -0.04 | AI83: 73308.67297 | AJ83: =IF($M$14="non-compounding",SUM($AG$17:AG83)+$C$3,IFERROR(IF(AH83>0,(AJ82*(1-$D$10)),(AJ82*(1-$D$11)))+AI83,"")) -> 187853.4745
G84: 68 | H84: 89,651.06 | I84: LOSS | J84: -3,361.91 | K84: -3.8% | L84: 86,289.14 | M84: =IF($M$14="non-compounding",SUM($J$17:J84)+$C$3,IFERROR(IF(I84="win",(M83*(1-$C$10)),(M83*(1-$C$11)))+L84,"")) -> 220,765.73 | N84: 120.77% | Q84: 68 | R84: -0.0375 | S84: 68 | T84: -0.04 | U84: -0.0375 | V84: =COUNTIF($U$17:U83,$C$8) -> 19 | W84: =COUNTIF($U$17:U83,$C$9) -> 48 | AC84: -0.04 | AD84: =COUNTIF($AC$17:AC83,$D$8) -> 23 | AE84: =COUNTIF($AC$17:AC83,$D$9) -> 44 | AF84: 75141.3898 | AG84: =IFERROR(AF84*AH84,"") -> -3005.655592 | AH84: -0.04 | AI84: 72135.7342 | AJ84: =IF($M$14="non-compounding",SUM($AG$17:AG84)+$C$3,IFERROR(IF(AH84>0,(AJ83*(1-$D$10)),(AJ83*(1-$D$11)))+AI84,"")) -> 184847.8189
G85: 69 | H85: 154,536.01 | I85: WIN | J85: 18,544.32 | K85: 12.0% | L85: 173,080.33 | M85: =IF($M$14="non-compounding",SUM($J$17:J85)+$C$3,IFERROR(IF(I85="win",(M84*(1-$C$10)),(M84*(1-$C$11)))+L85,"")) -> 239,310.05 | N85: 139.31% | Q85: 69 | R85: 0.12 | S85: 69 | T85: -0.04 | U85: 0.12 | V85: =COUNTIF($U$17:U84,$C$8) -> 19 | W85: =COUNTIF($U$17:U84,$C$9) -> 49 | AC85: -0.04 | AD85: =COUNTIF($AC$17:AC84,$D$8) -> 23 | AE85: =COUNTIF($AC$17:AC84,$D$9) -> 45 | AF85: 73939.12756 | AG85: -2957.565102 | AH85: -0.04 | AI85: 70981.56246 | AJ85: =IF($M$14="non-compounding",SUM($AG$17:AG85)+$C$3,IFERROR(IF(AH85>0,(AJ84*(1-$D$10)),(AJ84*(1-$D$11)))+AI85,"")) -> 181890.2538
G86: 70 | H86: 95,724.02 | I86: LOSS | J86: -3,589.65 | K86: -3.8% | L86: 92,134.37 | M86: =IF($M$14="non-compounding",SUM($J$17:J86)+$C$3,IFERROR(IF(I86="win",(M85*(1-$C$10)),(M85*(1-$C$11)))+L86,"")) -> 235,720.40 | N86: 135.72% | Q86: 70 | R86: -0.0375 | S86: 70 | T86: -0.04 | U86: -0.0375 | V86: =COUNTIF($U$17:U85,$C$8) -> 20 | W86: =COUNTIF($U$17:U85,$C$9) -> 49 | AC86: -0.04 | AD86: =COUNTIF($AC$17:AC85,$D$8) -> 23 | AE86: =COUNTIF($AC$17:AC85,$D$9) -> 46 | AF86: 72756.10152 | AG86: -2910.244061 | AH86: -0.04 | AI86: 69845.85746 | AJ86: =IF($M$14="non-compounding",SUM($AG$17:AG86)+$C$3,IFERROR(IF(AH86>0,(AJ85*(1-$D$10)),(AJ85*(1-$D$11)))+AI86,"")) -> 178980.0097
G87: 71 | H87: 94,288.16 | I87: LOSS | J87: -3,535.81 | K87: -3.8% | L87: 90,752.35 | M87: =IF($M$14="non-compounding",SUM($J$17:J87)+$C$3,IFERROR(IF(I87="win",(M86*(1-$C$10)),(M86*(1-$C$11)))+L87,"")) -> 232,184.59 | N87: 132.18% | Q87: 71 | R87: -0.0375 | S87: 71 | T87: 0.15 | U87: -0.0375 | V87: =COUNTIF($U$17:U86,$C$8) -> 20 | W87: =COUNTIF($U$17:U86,$C$9) -> 50 | AC87: 0.15 | AD87: =COUNTIF($AC$17:AC86,$D$8) -> 23 | AE87: =COUNTIF($AC$17:AC86,$D$9) -> 47 | AF87: 71592.00389 | AG87: 10738.80058 | AH87: 0.15 | AI87: 82330.80448 | AJ87: =IF($M$14="non-compounding",SUM($AG$17:AG87)+$C$3,IFERROR(IF(AH87>0,(AJ86*(1-$D$10)),(AJ86*(1-$D$11)))+AI87,"")) -> 189718.8103
G88: 72 | H88: 162,529.22 | I88: WIN | J88: 19,503.51 | K88: 12.0% | L88: 182,032.72 | M88: =IF($M$14="non-compounding",SUM($J$17:J88)+$C$3,IFERROR(IF(I88="win",(M87*(1-$C$10)),(M87*(1-$C$11)))+L88,"")) -> 251,688.10 | N88: 151.69% | Q88: 72 | R88: 0.12 | S88: 72 | T88: -0.04 | U88: 0.12 | V88: =COUNTIF($U$17:U87,$C$8) -> 20 | W88: =COUNTIF($U$17:U87,$C$9) -> 51 | AC88: -0.04 | AD88: =COUNTIF($AC$17:AC87,$D$8) -> 24 | AE88: =COUNTIF($AC$17:AC87,$D$9) -> 47 | AF88: 75887.52413 | AG88: -3035.500965 | AH88: -0.04 | AI88: 72852.02316 | AJ88: =IF($M$14="non-compounding",SUM($AG$17:AG88)+$C$3,IFERROR(IF(AH88>0,(AJ87*(1-$D$10)),(AJ87*(1-$D$11)))+AI88,"")) -> 186683.3094
G89: 73 | H89: 176,181.67 | I89: WIN | J89: 21,141.80 | K89: 12.0% | L89: 197,323.47 | M89: =IF($M$14="non-compounding",SUM($J$17:J89)+$C$3,IFERROR(IF(I89="win",(M88*(1-$C$10)),(M88*(1-$C$11)))+L89,"")) -> 272,829.90 | N89: 172.83% | Q89: 73 | R89: 0.12 | S89: 73 | T89: 0.15 | U89: 0.12 | V89: =COUNTIF($U$17:U88,$C$8) -> 21 | W89: =COUNTIF($U$17:U88,$C$9) -> 51 | AC89: 0.15 | AD89: =COUNTIF($AC$17:AC88,$D$8) -> 24 | AE89: =COUNTIF($AC$17:AC88,$D$9) -> 48 | AF89: 74673.32374 | AG89: 11200.99856 | AH89: 0.15 | AI89: 85874.3223 | AJ89: =IF($M$14="non-compounding",SUM($AG$17:AG89)+$C$3,IFERROR(IF(AH89>0,(AJ88*(1-$D$10)),(AJ88*(1-$D$11)))+AI89,"")) -> 197884.3079
G90: 74 | H90: 190,980.93 | I90: WIN | J90: 22,917.71 | K90: 12.0% | L90: 213,898.64 | M90: =IF($M$14="non-compounding",SUM($J$17:J90)+$C$3,IFERROR(IF(I90="win",(M89*(1-$C$10)),(M89*(1-$C$11)))+L90,"")) -> 295,747.61 | N90: 195.75% | Q90: 74 | R90: 0.12 | S90: 74 | T90: 0.15 | U90: 0.12 | V90: =COUNTIF($U$17:U89,$C$8) -> 22 | W90: =COUNTIF($U$17:U89,$C$9) -> 51 | AC90: 0.15 | AD90: =COUNTIF($AC$17:AC89,$D$8) -> 25 | AE90: =COUNTIF($AC$17:AC89,$D$9) -> 48 | AF90: 79153.72317 | AG90: 11873.05847 | AH90: 0.15 | AI90: 91026.78164 | AJ90: =IF($M$14="non-compounding",SUM($AG$17:AG90)+$C$3,IFERROR(IF(AH90>0,(AJ89*(1-$D$10)),(AJ89*(1-$D$11)))+AI90,"")) -> 209757.3664
G91: 75 | H91: 207,023.33 | I91: WIN | J91: 24,842.80 | K91: 12.0% | L91: 231,866.13 | M91: =IF($M$14="non-compounding",SUM($J$17:J91)+$C$3,IFERROR(IF(I91="win",(M90*(1-$C$10)),(M90*(1-$C$11)))+L91,"")) -> 320,590.41 | N91: 220.59% | Q91: 75 | R91: 0.12 | S91: 75 | T91: -0.04 | U91: 0.12 | V91: =COUNTIF($U$17:U90,$C$8) -> 23 | W91: =COUNTIF($U$17:U90,$C$9) -> 51 | AC91: -0.04 | AD91: =COUNTIF($AC$17:AC90,$D$8) -> 26 | AE91: =COUNTIF($AC$17:AC90,$D$9) -> 48 | AF91: 83902.94656 | AG91: -3356.117862 | AH91: -0.04 | AI91: 80546.82869 | AJ91: =IF($M$14="non-compounding",SUM($AG$17:AG91)+$C$3,IFERROR(IF(AH91>0,(AJ90*(1-$D$10)),(AJ90*(1-$D$11)))+AI91,"")) -> 206401.2485
G92: 76 | H92: 128,236.16 | I92: LOSS | J92: -4,808.86 | K92: -3.8% | L92: 123,427.31 | M92: =IF($M$14="non-compounding",SUM($J$17:J92)+$C$3,IFERROR(IF(I92="win",(M91*(1-$C$10)),(M91*(1-$C$11)))+L92,"")) -> 315,781.55 | N92: 215.78% | Q92: 76 | R92: -0.0375 | S92: 76 | T92: -0.04 | U92: -0.0375 | V92: =COUNTIF($U$17:U91,$C$8) -> 24 | W92: =COUNTIF($U$17:U91,$C$9) -> 51 | AC92: -0.04 | AD92: =COUNTIF($AC$17:AC91,$D$8) -> 26 | AE92: =COUNTIF($AC$17:AC91,$D$9) -> 49 | AF92: 82560.49941 | AG92: -3302.419976 | AH92: -0.04 | AI92: 79258.07943 | AJ92: =IF($M$14="non-compounding",SUM($AG$17:AG92)+$C$3,IFERROR(IF(AH92>0,(AJ91*(1-$D$10)),(AJ91*(1-$D$11)))+AI92,"")) -> 203098.8285
G93: 77 | H93: 126,312.62 | I93: LOSS | J93: -4,736.72 | K93: -3.8% | L93: 121,575.90 | M93: =IF($M$14="non-compounding",SUM($J$17:J93)+$C$3,IFERROR(IF(I93="win",(M92*(1-$C$10)),(M92*(1-$C$11)))+L93,"")) -> 311,044.83 | N93: 211.04% | Q93: 77 | R93: -0.0375 | S93: 77 | T93: -0.04 | U93: -0.0375 | V93: =COUNTIF($U$17:U92,$C$8) -> 24 | W93: =COUNTIF($U$17:U92,$C$9) -> 52 | AC93: -0.04 | AD93: =COUNTIF($AC$17:AC92,$D$8) -> 26 | AE93: =COUNTIF($AC$17:AC92,$D$9) -> 50 | AF93: 81239.53142 | AG93: -3249.581257 | AH93: -0.04 | AI93: 77989.95016 | AJ93: =IF($M$14="non-compounding",SUM($AG$17:AG93)+$C$3,IFERROR(IF(AH93>0,(AJ92*(1-$D$10)),(AJ92*(1-$D$11)))+AI93,"")) -> 199849.2473
G94: 78 | H94: 217,731.38 | I94: WIN | J94: 26,127.77 | K94: 12.0% | L94: 243,859.15 | M94: =IF($M$14="non-compounding",SUM($J$17:J94)+$C$3,IFERROR(IF(I94="win",(M93*(1-$C$10)),(M93*(1-$C$11)))+L94,"")) -> 337,172.60 | N94: 237.17% | Q94: 78 | R94: 0.12 | S94: 78 | T94: -0.04 | U94: 0.12 | V94: =COUNTIF($U$17:U93,$C$8) -> 24 | W94: =COUNTIF($U$17:U93,$C$9) -> 53 | AC94: -0.04 | AD94: =COUNTIF($AC$17:AC93,$D$8) -> 26 | AE94: =COUNTIF($AC$17:AC93,$D$9) -> 51 | AF94: 79939.69892 | AG94: -3197.587957 | AH94: -0.04 | AI94: 76742.11096 | AJ94: =IF($M$14="non-compounding",SUM($AG$17:AG94)+$C$3,IFERROR(IF(AH94>0,(AJ93*(1-$D$10)),(AJ93*(1-$D$11)))+AI94,"")) -> 196651.6593
G95: 79 | H95: 134,869.04 | I95: LOSS | J95: -5,057.59 | K95: -3.8% | L95: 129,811.45 | M95: =IF($M$14="non-compounding",SUM($J$17:J95)+$C$3,IFERROR(IF(I95="win",(M94*(1-$C$10)),(M94*(1-$C$11)))+L95,"")) -> 332,115.01 | N95: 232.12% | Q95: 79 | R95: -0.0375 | S95: 79 | T95: -0.04 | U95: -0.0375 | V95: =COUNTIF($U$17:U94,$C$8) -> 25 | W95: =COUNTIF($U$17:U94,$C$9) -> 53 | AC95: -0.04 | AD95: =COUNTIF($AC$17:AC94,$D$8) -> 26 | AE95: =COUNTIF($AC$17:AC94,$D$9) -> 52 | AF95: 78660.66373 | AG95: -3146.426549 | AH95: -0.04 | AI95: 75514.23718 | AJ95: =IF($M$14="non-compounding",SUM($AG$17:AG95)+$C$3,IFERROR(IF(AH95>0,(AJ94*(1-$D$10)),(AJ94*(1-$D$11)))+AI95,"")) -> 193505.2328
G96: 80 | H96: 132,846.00 | I96: LOSS | J96: -4,981.73 | K96: -3.8% | L96: 127,864.28 | M96: =IF($M$14="non-compounding",SUM($J$17:J96)+$C$3,IFERROR(IF(I96="win",(M95*(1-$C$10)),(M95*(1-$C$11)))+L96,"")) -> 327,133.28 | N96: 227.13% | Q96: 80 | R96: -0.0375 | S96: 80 | T96: -0.04 | U96: -0.0375 | V96: =COUNTIF($U$17:U95,$C$8) -> 25 | W96: =COUNTIF($U$17:U95,$C$9) -> 54 | AC96: -0.04 | AD96: =COUNTIF($AC$17:AC95,$D$8) -> 26 | AE96: =COUNTIF($AC$17:AC95,$D$9) -> 53 | AF96: 77402.09311 | AG96: -3096.083725 | AH96: -0.04 | AI96: 74306.00939 | AJ96: =IF($M$14="non-compounding",SUM($AG$17:AG96)+$C$3,IFERROR(IF(AH96>0,(AJ95*(1-$D$10)),(AJ95*(1-$D$11)))+AI96,"")) -> 190409.1491
G97: 81 | H97: 130,853.31 | I97: LOSS | J97: -4,907.00 | K97: -3.8% | L97: 125,946.31 | M97: =IF($M$14="non-compounding",SUM($J$17:J97)+$C$3,IFERROR(IF(I97="win",(M96*(1-$C$10)),(M96*(1-$C$11)))+L97,"")) -> 322,226.28 | N97: 222.23% | Q97: 81 | R97: -0.0375 | S97: 81 | T97: 0.15 | U97: -0.0375 | V97: =COUNTIF($U$17:U96,$C$8) -> 25 | W97: =COUNTIF($U$17:U96,$C$9) -> 55 | AC97: 0.15 | AD97: =COUNTIF($AC$17:AC96,$D$8) -> 26 | AE97: =COUNTIF($AC$17:AC96,$D$9) -> 54 | AF97: 76163.65962 | AG97: 11424.54894 | AH97: 0.15 | AI97: 87588.20857 | AJ97: =IF($M$14="non-compounding",SUM($AG$17:AG97)+$C$3,IFERROR(IF(AH97>0,(AJ96*(1-$D$10)),(AJ96*(1-$D$11)))+AI97,"")) -> 201833.698
G98: 82 | H98: 128,890.51 | I98: LOSS | J98: -4,833.39 | K98: -3.8% | L98: 124,057.12 | M98: =IF($M$14="non-compounding",SUM($J$17:J98)+$C$3,IFERROR(IF(I98="win",(M97*(1-$C$10)),(M97*(1-$C$11)))+L98,"")) -> 317,392.89 | N98: 217.39% | Q98: 82 | R98: 0.12 | S98: 82 | T98: -0.04 | U98: 0.12 | V98: =COUNTIF($U$17:U97,$C$8) -> 25 | W98: =COUNTIF($U$17:U97,$C$9) -> 56 | AC98: -0.04 | AD98: =COUNTIF($AC$17:AC97,$D$8) -> 27 | AE98: =COUNTIF($AC$17:AC97,$D$9) -> 54 | AF98: 80733.4792 | AG98: -3229.339168 | AH98: -0.04 | AI98: 77504.14003 | AJ98: =IF($M$14="non-compounding",SUM($AG$17:AG98)+$C$3,IFERROR(IF(AH98>0,(AJ97*(1-$D$10)),(AJ97*(1-$D$11)))+AI98,"")) -> 198604.3588
G99: 83 | H99: 126,957.16 | I99: LOSS | J99: -4,760.89 | K99: -3.8% | L99: 122,196.26 | M99: =IF($M$14="non-compounding",SUM($J$17:J99)+$C$3,IFERROR(IF(I99="win",(M98*(1-$C$10)),(M98*(1-$C$11)))+L99,"")) -> 312,632.00 | N99: 212.63% | Q99: 83 | R99: -0.0375 | S99: 83 | T99: -0.04 | U99: 0.12 | V99: =COUNTIF($U$17:U98,$C$8) -> 26 | W99: =COUNTIF($U$17:U98,$C$9) -> 56 | AC99: -0.04 | AD99: =COUNTIF($AC$17:AC98,$D$8) -> 27 | AE99: =COUNTIF($AC$17:AC98,$D$9) -> 55 | AF99: 79441.74353 | AG99: -3177.669741 | AH99: -0.04 | AI99: 76264.07379 | AJ99: =IF($M$14="non-compounding",SUM($AG$17:AG99)+$C$3,IFERROR(IF(AH99>0,(AJ98*(1-$D$10)),(AJ98*(1-$D$11)))+AI99,"")) -> 195426.6891
G100: 84 | H100: 125,052.80 | I100: LOSS | J100: -4,689.48 | K100: -3.8% | L100: 120,363.32 | M100: =IF($M$14="non-compounding",SUM($J$17:J100)+$C$3,IFERROR(IF(I100="win",(M99*(1-$C$10)),(M99*(1-$C$11)))+L100,"")) -> 307,942.52 | N100: 207.94% | Q100: 84 | R100: -0.0375 | S100: 84 | T100: -0.04 | U100: 0.12 | V100: =COUNTIF($U$17:U99,$C$8) -> 27 | W100: =COUNTIF($U$17:U99,$C$9) -> 56 | AC100: -0.04 | AD100: =COUNTIF($AC$17:AC99,$D$8) -> 27 | AE100: =COUNTIF($AC$17:AC99,$D$9) -> 56 | AF100: 78170.67564 | AG100: -3126.827026 | AH100: -0.04 | AI100: 75043.84861 | AJ100: =IF($M$14="non-compounding",SUM($AG$17:AG100)+$C$3,IFERROR(IF(AH100>0,(AJ99*(1-$D$10)),(AJ99*(1-$D$11)))+AI100,"")) -> 192299.8621
G101: 85 | H101: 123,177.01 | I101: LOSS | J101: -4,619.14 | K101: -3.8% | L101: 118,557.87 | M101: =IF($M$14="non-compounding",SUM($J$17:J101)+$C$3,IFERROR(IF(I101="win",(M100*(1-$C$10)),(M100*(1-$C$11)))+L101,"")) -> 303,323.38 | N101: 203.32% | Q101: 85 | R101: -0.0375 | S101: 85 | T101: -0.04 | U101: 0.12 | V101: =COUNTIF($U$17:U100,$C$8) -> 28 | W101: =COUNTIF($U$17:U100,$C$9) -> 56 | AC101: -0.04 | AD101: =COUNTIF($AC$17:AC100,$D$8) -> 27 | AE101: =COUNTIF($AC$17:AC100,$D$9) -> 57 | AF101: 76919.94483 | AG101: -3076.797793 | AH101: -0.04 | AI101: 73843.14704 | AJ101: =IF($M$14="non-compounding",SUM($AG$17:AG101)+$C$3,IFERROR(IF(AH101>0,(AJ100*(1-$D$10)),(AJ100*(1-$D$11)))+AI101,"")) -> 189223.0643
G102: 86 | H102: 121,329.35 | I102: LOSS | J102: -4,549.85 | K102: -3.8% | L102: 116,779.50 | M102: =IF($M$14="non-compounding",SUM($J$17:J102)+$C$3,IFERROR(IF(I102="win",(M101*(1-$C$10)),(M101*(1-$C$11)))+L102,"")) -> 298,773.53 | N102: 198.77% | Q102: 86 | R102: -0.0375 | S102: 86 | T102: 0.15 | U102: -0.0375 | V102: =COUNTIF($U$17:U101,$C$8) -> 29 | W102: =COUNTIF($U$17:U101,$C$9) -> 56 | AC102: 0.15 | AD102: =COUNTIF($AC$17:AC101,$D$8) -> 27 | AE102: =COUNTIF($AC$17:AC101,$D$9) -> 58 | AF102: 75689.22571 | AG102: 11353.38386 | AH102: 0.15 | AI102: 87042.60957 | AJ102: =IF($M$14="non-compounding",SUM($AG$17:AG102)+$C$3,IFERROR(IF(AH102>0,(AJ101*(1-$D$10)),(AJ101*(1-$D$11)))+AI102,"")) -> 200576.4481
G103: 87 | H103: 119,509.41 | I103: LOSS | J103: -4,481.60 | K103: -3.8% | L103: 115,027.81 | M103: =IF($M$14="non-compounding",SUM($J$17:J103)+$C$3,IFERROR(IF(I103="win",(M102*(1-$C$10)),(M102*(1-$C$11)))+L103,"")) -> 294,291.93 | N103: 194.29% | Q103: 87 | R103: -0.0375 | S103: 87 | T103: -0.04 | U103: -0.0375 | V103: =COUNTIF($U$17:U102,$C$8) -> 29 | W103: =COUNTIF($U$17:U102,$C$9) -> 57 | AC103: -0.04 | AD103: =COUNTIF($AC$17:AC102,$D$8) -> 28 | AE103: =COUNTIF($AC$17:AC102,$D$9) -> 58 | AF103: 80230.57925 | AG103: -3209.22317 | AH103: -0.04 | AI103: 77021.35608 | AJ103: =IF($M$14="non-compounding",SUM($AG$17:AG103)+$C$3,IFERROR(IF(AH103>0,(AJ102*(1-$D$10)),(AJ102*(1-$D$11)))+AI103,"")) -> 197367.225
G104: 88 | H104: 117,716.77 | I104: LOSS | J104: -4,414.38 | K104: -3.8% | L104: 113,302.39 | M104: =IF($M$14="non-compounding",SUM($J$17:J104)+$C$3,IFERROR(IF(I104="win",(M103*(1-$C$10)),(M103*(1-$C$11)))+L104,"")) -> 289,877.55 | N104: 189.88% | Q104: 88 | R104: -0.0375 | S104: 88 | T104: -0.04 | U104: 0.12 | V104: =COUNTIF($U$17:U103,$C$8) -> 29 | W104: =COUNTIF($U$17:U103,$C$9) -> 58 | AC104: -0.04 | AD104: =COUNTIF($AC$17:AC103,$D$8) -> 28 | AE104: =COUNTIF($AC$17:AC103,$D$9) -> 59 | AF104: 78946.88999 | AG104: -3157.875599 | AH104: -0.04 | AI104: 75789.01439 | AJ104: =IF($M$14="non-compounding",SUM($AG$17:AG104)+$C$3,IFERROR(IF(AH104>0,(AJ103*(1-$D$10)),(AJ103*(1-$D$11)))+AI104,"")) -> 194209.3494
G105: 89 | H105: 115,951.02 | I105: LOSS | J105: -4,348.16 | K105: -3.8% | L105: 111,602.86 | M105: =IF($M$14="non-compounding",SUM($J$17:J105)+$C$3,IFERROR(IF(I105="win",(M104*(1-$C$10)),(M104*(1-$C$11)))+L105,"")) -> 285,529.38 | N105: 185.53% | Q105: 89 | R105: -0.0375 | S105: 89 | T105: -0.04 | U105: -0.0375 | V105: =COUNTIF($U$17:U104,$C$8) -> 30 | W105: =COUNTIF($U$17:U104,$C$9) -> 58 | AC105: -0.04 | AD105: =COUNTIF($AC$17:AC104,$D$8) -> 28 | AE105: =COUNTIF($AC$17:AC104,$D$9) -> 60 | AF105: 77683.73975 | AG105: -3107.34959 | AH105: -0.04 | AI105: 74576.39016 | AJ105: =IF($M$14="non-compounding",SUM($AG$17:AG105)+$C$3,IFERROR(IF(AH105>0,(AJ104*(1-$D$10)),(AJ104*(1-$D$11)))+AI105,"")) -> 191101.9998
G106: 90 | H106: 114,211.75 | I106: LOSS | J106: -4,282.94 | K106: -3.8% | L106: 109,928.81 | M106: =IF($M$14="non-compounding",SUM($J$17:J106)+$C$3,IFERROR(IF(I106="win",(M105*(1-$C$10)),(M105*(1-$C$11)))+L106,"")) -> 281,246.44 | N106: 181.25% | Q106: 90 | R106: -0.0375 | S106: 90 | T106: -0.04 | U106: -0.0375 | V106: =COUNTIF($U$17:U105,$C$8) -> 30 | W106: =COUNTIF($U$17:U105,$C$9) -> 59 | AC106: -0.04 | AD106: =COUNTIF($AC$17:AC105,$D$8) -> 28 | AE106: =COUNTIF($AC$17:AC105,$D$9) -> 61 | AF106: 76440.79991 | AG106: -3057.631996 | AH106: -0.04 | AI106: 73383.16791 | AJ106: =IF($M$14="non-compounding",SUM($AG$17:AG106)+$C$3,IFERROR(IF(AH106>0,(AJ105*(1-$D$10)),(AJ105*(1-$D$11)))+AI106,"")) -> 188044.3678
G107: 91 | H107: 112,498.58 | I107: LOSS | J107: -4,218.70 | K107: -3.8% | L107: 108,279.88 | M107: =IF($M$14="non-compounding",SUM($J$17:J107)+$C$3,IFERROR(IF(I107="win",(M106*(1-$C$10)),(M106*(1-$C$11)))+L107,"")) -> 277,027.75 | N107: 177.03% | Q107: 91 | R107: -0.0375 | S107: 91 | T107: -0.04 | U107: -0.0375 | V107: =COUNTIF($U$17:U106,$C$8) -> 30 | W107: =COUNTIF($U$17:U106,$C$9) -> 60 | AC107: -0.04 | AD107: =COUNTIF($AC$17:AC106,$D$8) -> 28 | AE107: =COUNTIF($AC$17:AC106,$D$9) -> 62 | AF107: 75217.74711 | AG107: -3008.709884 | AH107: -0.04 | AI107: 72209.03723 | AJ107: =IF($M$14="non-compounding",SUM($AG$17:AG107)+$C$3,IFERROR(IF(AH107>0,(AJ106*(1-$D$10)),(AJ106*(1-$D$11)))+AI107,"")) -> 185035.6579
G108: 92 | H108: 110,811.10 | I108: LOSS | J108: -4,155.42 | K108: -3.8% | L108: 106,655.68 | M108: =IF($M$14="non-compounding",SUM($J$17:J108)+$C$3,IFERROR(IF(I108="win",(M107*(1-$C$10)),(M107*(1-$C$11)))+L108,"")) -> 272,872.33 | N108: 172.87% | Q108: 92 | R108: -0.0375 | S108: 92 | T108: 0.15 | U108: -0.0375 | V108: =COUNTIF($U$17:U107,$C$8) -> 30 | W108: =COUNTIF($U$17:U107,$C$9) -> 61 | AC108: 0.15 | AD108: =COUNTIF($AC$17:AC107,$D$8) -> 28 | AE108: =COUNTIF($AC$17:AC107,$D$9) -> 63 | AF108: 74014.26316 | AG108: 11102.13947 | AH108: 0.15 | AI108: 85116.40263 | AJ108: =IF($M$14="non-compounding",SUM($AG$17:AG108)+$C$3,IFERROR(IF(AH108>0,(AJ107*(1-$D$10)),(AJ107*(1-$D$11)))+AI108,"")) -> 196137.7974
G109: 93 | H109: 109,148.93 | I109: LOSS | J109: -4,093.08 | K109: -3.8% | L109: 105,055.85 | M109: =IF($M$14="non-compounding",SUM($J$17:J109)+$C$3,IFERROR(IF(I109="win",(M108*(1-$C$10)),(M108*(1-$C$11)))+L109,"")) -> 268,779.24 | N109: 168.78% | Q109: 93 | R109: -0.0375 | S109: 93 | T109: -0.04 | U109: -0.0375 | V109: =COUNTIF($U$17:U108,$C$8) -> 30 | W109: =COUNTIF($U$17:U108,$C$9) -> 62 | AC109: -0.04 | AD109: =COUNTIF($AC$17:AC108,$D$8) -> 29 | AE109: =COUNTIF($AC$17:AC108,$D$9) -> 63 | AF109: 78455.11895 | AG109: -3138.204758 | AH109: -0.04 | AI109: 75316.91419 | AJ109: =IF($M$14="non-compounding",SUM($AG$17:AG109)+$C$3,IFERROR(IF(AH109>0,(AJ108*(1-$D$10)),(AJ108*(1-$D$11)))+AI109,"")) -> 192999.5926
G110: 94 | H110: 107,511.70 | I110: LOSS | J110: -4,031.69 | K110: -3.8% | L110: 103,480.01 | M110: =IF($M$14="non-compounding",SUM($J$17:J110)+$C$3,IFERROR(IF(I110="win",(M109*(1-$C$10)),(M109*(1-$C$11)))+L110,"")) -> 264,747.56 | N110: 164.75% | Q110: 94 | R110: -0.0375 | S110: 94 | T110: -0.04 | U110: -0.0375 | V110: =COUNTIF($U$17:U109,$C$8) -> 30 | W110: =COUNTIF($U$17:U109,$C$9) -> 63 | AC110: -0.04 | AD110: =COUNTIF($AC$17:AC109,$D$8) -> 29 | AE110: =COUNTIF($AC$17:AC109,$D$9) -> 64 | AF110: 77199.83704 | AG110: -3087.993482 | AH110: -0.04 | AI110: 74111.84356 | AJ110: =IF($M$14="non-compounding",SUM($AG$17:AG110)+$C$3,IFERROR(IF(AH110>0,(AJ109*(1-$D$10)),(AJ109*(1-$D$11)))+AI110,"")) -> 189911.5991
G111: 95 | H111: 105,899.02 | I111: LOSS | J111: -3,971.21 | K111: -3.8% | L111: 101,927.81 | M111: =IF($M$14="non-compounding",SUM($J$17:J111)+$C$3,IFERROR(IF(I111="win",(M110*(1-$C$10)),(M110*(1-$C$11)))+L111,"")) -> 260,776.34 | N111: 160.78% | Q111: 95 | R111: -0.0375 | S111: 95 | T111: -0.04 | U111: -0.0375 | V111: =COUNTIF($U$17:U110,$C$8) -> 30 | W111: =COUNTIF($U$17:U110,$C$9) -> 64 | AC111: -0.04 | AD111: =COUNTIF($AC$17:AC110,$D$8) -> 29 | AE111: =COUNTIF($AC$17:AC110,$D$9) -> 65 | AF111: 75964.63965 | AG111: -3038.585586 | AH111: -0.04 | AI111: 72926.05407 | AJ111: =IF($M$14="non-compounding",SUM($AG$17:AG111)+$C$3,IFERROR(IF(AH111>0,(AJ110*(1-$D$10)),(AJ110*(1-$D$11)))+AI111,"")) -> 186873.0135
G112: 96 | H112: 104,310.54 | I112: LOSS | J112: -3,911.65 | K112: -3.8% | L112: 100,398.89 | M112: =IF($M$14="non-compounding",SUM($J$17:J112)+$C$3,IFERROR(IF(I112="win",(M111*(1-$C$10)),(M111*(1-$C$11)))+L112,"")) -> 256,864.70 | N112: 156.86% | Q112: 96 | R112: -0.0375 | S112: 96 | T112: -0.04 | U112: 0.12 | V112: =COUNTIF($U$17:U111,$C$8) -> 30 | W112: =COUNTIF($U$17:U111,$C$9) -> 65 | AC112: -0.04 | AD112: =COUNTIF($AC$17:AC111,$D$8) -> 29 | AE112: =COUNTIF($AC$17:AC111,$D$9) -> 66 | AF112: 74749.20542 | AG112: -2989.968217 | AH112: -0.04 | AI112: 71759.2372 | AJ112: =IF($M$14="non-compounding",SUM($AG$17:AG112)+$C$3,IFERROR(IF(AH112>0,(AJ111*(1-$D$10)),(AJ111*(1-$D$11)))+AI112,"")) -> 183883.0453
G113: 97 | H113: 102,745.88 | I113: LOSS | J113: =IFERROR(H113*K113,"") -> -3,852.97 | K113: -3.8% | L113: 98,892.91 | M113: =IF($M$14="non-compounding",SUM($J$17:J113)+$C$3,IFERROR(IF(I113="win",(M112*(1-$C$10)),(M112*(1-$C$11)))+L113,"")) -> 253,011.73 | N113: =IFERROR((M113-$C$3)/$C$3,"") -> 153.01% | Q113: 97 | R113: -0.0375 | S113: 97 | T113: -0.04 | U113: -0.0375 | V113: =COUNTIF($U$17:U112,$C$8) -> 31 | W113: =COUNTIF($U$17:U112,$C$9) -> 65 | AC113: -0.04 | AD113: =COUNTIF($AC$17:AC112,$D$8) -> 29 | AE113: =COUNTIF($AC$17:AC112,$D$9) -> 67 | AF113: 73553.21813 | AG113: -2942.128725 | AH113: -0.04 | AI113: 70611.0894 | AJ113: =IF($M$14="non-compounding",SUM($AG$17:AG113)+$C$3,IFERROR(IF(AH113>0,(AJ112*(1-$D$10)),(AJ112*(1-$D$11)))+AI113,"")) -> 180940.9166
G114: 98 | H114: =IFERROR(IF($M$14="non-compounding",IF(I114="loss",($C$3*$C$11),($C$3*$C$10)),IF(G114="","",IF(I114="win",$C$10*M113,$C$11*M113))),"") -> 101,204.69 | I114: LOSS | J114: -3,795.18 | K114: -3.8% | L114: 97,409.51 | M114: =IF($M$14="non-compounding",SUM($J$17:J114)+$C$3,IFERROR(IF(I114="win",(M113*(1-$C$10)),(M113*(1-$C$11)))+L114,"")) -> 249,216.55 | N114: 149.22% | Q114: 98 | R114: -0.0375 | S114: 98 | T114: -0.04 | U114: -0.0375 | V114: =COUNTIF($U$17:U113,$C$8) -> 31 | W114: =COUNTIF($U$17:U113,$C$9) -> 66 | AC114: -0.04 | AD114: =COUNTIF($AC$17:AC113,$D$8) -> 29 | AE114: =COUNTIF($AC$17:AC113,$D$9) -> 68 | AF114: 72376.36664 | AG114: -2895.054666 | AH114: -0.04 | AI114: 69481.31197 | AJ114: =IF($M$14="non-compounding",SUM($AG$17:AG114)+$C$3,IFERROR(IF(AH114>0,(AJ113*(1-$D$10)),(AJ113*(1-$D$11)))+AI114,"")) -> 178045.8619
G115: 99 | H115: 99,686.62 | I115: LOSS | J115: -3,738.25 | K115: -3.8% | L115: 95,948.37 | M115: =IF($M$14="non-compounding",SUM($J$17:J115)+$C$3,IFERROR(IF(I115="win",(M114*(1-$C$10)),(M114*(1-$C$11)))+L115,"")) -> 245,478.30 | N115: 145.48% | Q115: 99 | R115: -0.0375 | S115: 99 | T115: -0.04 | U115: 0.12 | V115: =COUNTIF($U$17:U114,$C$8) -> 31 | W115: =COUNTIF($U$17:U114,$C$9) -> 67 | AC115: -0.04 | AD115: =COUNTIF($AC$17:AC114,$D$8) -> 29 | AE115: =COUNTIF($AC$17:AC114,$D$9) -> 69 | AF115: 71218.34477 | AG115: -2848.733791 | AH115: -0.04 | AI115: 68369.61098 | AJ115: =IF($M$14="non-compounding",SUM($AG$17:AG115)+$C$3,IFERROR(IF(AH115>0,(AJ114*(1-$D$10)),(AJ114*(1-$D$11)))+AI115,"")) -> 175197.1281
G116: 100 | H116: 98,191.32 | I116: LOSS | J116: -3,682.17 | K116: -3.8% | L116: 94,509.15 | M116: =IF($M$14="non-compounding",SUM($J$17:J116)+$C$3,IFERROR(IF(I116="win",(M115*(1-$C$10)),(M115*(1-$C$11)))+L116,"")) -> 241,796.13 | N116: 141.80% | Q116: 100 | R116: -0.0375 | S116: 100 | T116: 0.15 | U116: -0.0375 | V116: =COUNTIF($U$17:U115,$C$8) -> 32 | W116: =COUNTIF($U$17:U115,$C$9) -> 67 | AC116: -0.04 | AD116: =COUNTIF($AC$17:AC115,$D$8) -> 29 | AE116: =COUNTIF($AC$17:AC115,$D$9) -> 70 | AF116: 70078.85126 | AG116: 10511.82769 | AH116: 0.15 | AI116: 80590.67895 | AJ116: =IF($M$14="non-compounding",SUM($AG$17:AG116)+$C$3,IFERROR(IF(AH116>0,(AJ115*(1-$D$10)),(AJ115*(1-$D$11)))+AI116,"")) -> 185708.9558

Sheet RBAF (hidden)
C2: RESULT-BASED ASSUMPTION FORECAST
B4: Account Name: | C4: =Expectancy!C2 -> Trial Version | J4: REQUIRED WIN RATE% VS RRR | P4: =P5 -> 3.2 | Q4: =1/(1+($P$5/2)) -> 0.3846153846
B5: Portfolio Size: | C5: 100,000.00 | E5: =IFERROR(IF(U17<0,"# of Trades to Loss "&TEXT(F18,"0.0%")&":","# of Trades to Gain "&TEXT(F18,"0.0%")&":"),"") -> # of Trades to Gain 52.2%: | F5: =IFERROR(IF(RBAF!U17<0,(RBAF!U16+RBAF!U18)&" trades",RBAF!U17&" trades"),0) -> 51 trades | P5: =C7/-C8 -> 3.2 | Q5: =1/(1+($P$5/1)) -> 0.2380952381
B6: Win Rate%: | C6: 25.00% | E6: #Win Trades: | F6: =IFERROR(IF(RBAF!$U$17<0,RBAF!U16,ROUND((RBAF!U17)*RBAF!C6,0)),0) -> 13 | K6: 3.00 | L6: Risk Reward Ratio: | M6: =IFERROR("1 : "&TEXT((C7/-C8),"#0.00"),0) -> 1 : 3.20 | Q6: winrate
B7: Average Gain %: | C7: 12.00% | E7: #Loss Trades: | F7: =IFERROR(IF(RBAF!$U$17<0,RBAF!U18,(RBAF!U17)-RBAF!U19),0) -> 38 | K7: 2.00 | L7: Win% for 1:1 Adjusted RRR: | M7: =IFERROR(Q5,0) -> 23.81% | P7: RR | Q7: 1:1 | R7: 2:1
B8: Average Loss %: | C8: -3.75% | E8: Average Gain: | F8: =RBAF!C7*C14 -> 8,400.00 | K8: 1.00 | L8: Win% for 1:2 Adjusted RRR: | M8: =IFERROR(Q4,0) -> 38.46% | P8: =P9+1 -> 8 | Q8: =1/(1+($P8/1)) -> 0.1111111111 | R8: =1/(1+($P8/2)) -> 0.2
B9: Ave.Position Size on Winners %: | C9: 70.00% | E9: Average Loss: | F9: =RBAF!C8*C15 -> -1,500.00 | P9: 7 | Q9: 0.125 | R9: 0.2222222222
B10: Ave.Position Size on Losers %: | C10: 40.00% | E10: Average Port Gain/Trade: | F10: =IFERROR(F8/$C$5,"") -> 8.40% | P10: 6 | Q10: 0.1428571429 | R10: 0.25
B11: Desired Return %: | C11: 50.00% | E11: Average Port Loss/Trade: | F11: =IFERROR(F9/$C$5,"") -> -1.50% | P11: 5 | Q11: 0.1666666667 | R11: 0.2857142857
E12: Adjusted Risk Reward Ratio: | F12: =IFERROR("1 : "&TEXT((RBAF!C6*F8)/(-F9*(1-RBAF!C6)),"#0.00"),"") -> 1 : 1.87 | P12: 4 | Q12: 0.2 | R12: 0.3333333333
E13: EDGE Ratio: | F13: =IFERROR(TEXT((F8)/(-F9),"#0.00"),"") -> 5.60 | P13: 3 | Q13: 0.25 | R13: 0.4
B14: Ave.Position Size on Winners: | C14: =RBAF!C9*RBAF!C5 -> 70,000.00 | E14: Expectancy Per Trade: | F14: =IFERROR((RBAF!C6*F8)+(F9*(1-RBAF!C6)),"") -> 975.00 | P14: =P15+1 -> 2 | Q14: 0.3333333333 | R14: 0.5
B15: Ave.Position Size on Losers: | C15: =C10*C5 -> 40,000.00 | E15: Expectancy Per Trade %: | F15: =IFERROR(((1+(F8/-F9))*C6-1),"") -> 65.00% | P15: 1 | Q15: 0.5 | R15: 0.6666666667 | U15: =C7/-C8 -> 3.2
B16: Desired Return: | C16: =C5*C11 -> 50,000.00 | E16: End Capital: | F16: =RBAF!F17+RBAF!C5 -> 152,200.00 | P16: =P15-0.3 -> 0.7 | Q16: 0.5882352941 | R16: 0.7407407407 | U16: =ROUND((RBAF!C14/-RBAF!F14)*C6,0) -> -18
E17: Gain/Loss: | F17: =U23+U22 -> 52,200.00 | J17: %GAIN TO RECOVER | P17: =P16-0.3 -> 0.4 | Q17: 0.7142857143 | R17: 0.8333333333 | U17: =ROUND(((C5*C11)/RBAF!F14),0) -> 51
E18: %Gain/Loss | F18: =IFERROR(F17/RBAF!C5,"") -> 52.20% | J18: %Loss | K18: Amount Loss | L18: Portfolio Remain | M18: %Gain To Recover | O18: =-J19/2 -> 0.125 | P18: 0.1 | Q18: 0.9090909091 | R18: 0.9523809524 | U18: =ROUND((RBAF!C14/-RBAF!F14),0)-U16 -> -54
J19: -25.00% | K19: =C5*J19 -> -25,000.00 | L19: =C5+K19 -> 75,000.00 | M19: =IFERROR(-K19/L19,0) -> 33.33% | U19: =IFERROR(IF($U$17<0,U16,ROUND((U17)*C6,0)),0) -> 13
B20: =IFERROR(IF(U17<0,U20,U21),"") -> You will achieve your desired return of 50.0% in 51 trades by consistently maintaining your statistics of 25.0% win rate, and an average %gain/loss of 12.0%/-3.8% | J20: =J21+$O$18 -> -12.50% | K20: =L20-$C$5 -> -12,500.00 | L20: =$C$5*(1+J20) -> 87,500.00 | M20: =IFERROR(-K20/L20,0) -> 14.29% | U20: ="You will loss "&TEXT(RBAF!F18,"0.0%")&" of your Portfolio in "&RBAF!F5&" by consistently maintaining your statistics of "&TEXT(C6,".0%")&" win rate, and an average %gain/loss of "&TEXT(C7,"0.0%")&"/"&TEXT(C8,"0.0%") -> You will loss 52.2% of your Portfolio in 51 trades by consistently maintaining your statistics of 25.0% win rate, and an average %gain/loss of 12.0%/-3.8%
J21: =J19 -> -25.00% | K21: -25,000.00 | L21: 75,000.00 | M21: =IFERROR(-K21/L21,0) -> 33.33% | U21: ="You will achieve your desired return of "&TEXT(C11,".0%")&" in "&RBAF!F5&" by consistently maintaining your statistics of "&TEXT(C6,".0%")&" win rate, and an average %gain/loss of "&TEXT(C7,"0.0%")&"/"&TEXT(C8,"0.0%") -> You will achieve your desired return of 50.0% in 51 trades by consistently maintaining your statistics of 25.0% win rate, and an average %gain/loss of 12.0%/-3.8%
J22: =J21-5% -> -30.00% | K22: -30,000.00 | L22: 70,000.00 | M22: 42.86% | U22: =RBAF!F8*RBAF!F6 -> 109200
J23: =J22-5% -> -35.00% | K23: -35,000.00 | L23: 65,000.00 | M23: 53.85% | U23: =RBAF!F9*RBAF!F7 -> -57000
J24: =J23-5% -> -40.00% | K24: -40,000.00 | L24: 60,000.00 | M24: 66.67% | U24: =U23+U22 -> 52200
J25: =J24-5% -> -45.00% | K25: -45,000.00 | L25: 55,000.00 | M25: 81.82%
J26: -50.00% | K26: -50,000.00 | L26: 50,000.00 | M26: 100.00%
J27: -55.00% | K27: -55,000.00 | L27: 45,000.00 | M27: 122.22%
J28: -60.00% | K28: -60,000.00 | L28: 40,000.00 | M28: 150.00%
J29: -65.00% | K29: -65,000.00 | L29: 35,000.00 | M29: 185.71%
J30: -70.00% | K30: -70,000.00 | L30: 30,000.00 | M30: 233.33%

Sheet Trade Plan (hidden)
AA1: 5058451
F3: Account Name: | G3: ='1-Tranche'!D2 -> Trial Version
D4: Account Equity Value: | G4: 100,000.00 | R4: PORTFOLIO | U4: PORTFOLIO FORECAST | AA4: =I12 -> SL & TP in Price | AH4: BROKER FEE SETTINGS
R5: MARKET VALUE | U5: =U13 -> Target Price | X5: =X13 -> Stop-loss or Trail Stop | AA5: =K12 -> SL & TP in % | AH5: Fees | AI5: From | AJ5: Multiply by | AK5: Minimum | AL5: From | AM5: Maximum
Q6: Total Bought Value: | R6: =IF(SUM(N15:N29)=0,"No Stock Position",SUM(N15:N29)) -> $70,852.00 | U6: =R6 -> $70,852.00 | X6: =R6 -> $70,852.00 | AH6: ='User Guide & Settings'!O5 -> Commission | AI6: ='User Guide & Settings'!P5 -> Amount | AJ6: ='User Guide & Settings'!Q5 -> 0.0025 | AK6: ='User Guide & Settings'!R5 -> 20 | AL6: ='User Guide & Settings'!S5 -> Amount | AM6: ='User Guide & Settings'!T5 -> 0
F7: Position Size Per Trade (%): | G7: 40.00% | H7: =G4*G7 -> 40,000.00 | Q7: Total Portfolio Trade Value: | R7: =SUM(Q15:Q29) -> $72,940.89 | U7: =IFERROR(U6+U8,0) -> $95,270.22 | X7: =IFERROR(X6+X8,0) -> $70,270.22 | Z7: Market Price | AH7: ='User Guide & Settings'!O6 -> VAT | AI7: ='User Guide & Settings'!P6 -> Amount | AJ7: ='User Guide & Settings'!Q6 -> 0.0003 | AK7: ='User Guide & Settings'!R6 -> 2.4 | AL7: ='User Guide & Settings'!S6 -> Amount | AM7: ='User Guide & Settings'!T6 -> 0
F8: Equity % to risk per trade (1R): | G8: 1.00% | H8: =G4*G8 -> 1,000.00 | Q8: Total Equities Gain/Loss: | R8: =IFERROR(SUM(AL15:AL29),0) -> $2,088.89 | U8: =SUM(AN15:AN29) -> $24,418.22 | X8: =SUM(AP15:AP29) -> $(581.78) | Z8: Ave. Price | AH8: ='User Guide & Settings'!O7 -> Tax | AI8: ='User Guide & Settings'!P7 -> Amount | AJ8: ='User Guide & Settings'!Q7 -> 0.0015 | AK8: ='User Guide & Settings'!R7 -> 0 | AL8: ='User Guide & Settings'!S7 -> Amount | AM8: ='User Guide & Settings'!T7 -> 0
Q9: Total Equities %Gain/Loss: | R9: =IFERROR(R8/R6,0) -> 2.95% | U9: =IFERROR(U8/U6,0) -> 34.46% | X9: =IFERROR(X8/X6,0) -> -0.82% | AA9: LONG | AH9: ='User Guide & Settings'!O8 -> Sales Tax | AI9: ='User Guide & Settings'!P8 -> Amount | AJ9: ='User Guide & Settings'!Q8 -> 0.006 | AK9: ='User Guide & Settings'!R8 -> 0 | AL9: ='User Guide & Settings'!S8 -> Amount | AM9: ='User Guide & Settings'!T8 -> 0
F10: Cash Balance: | G10: =IFERROR(G4-R6-R8,"") -> 27,059.11 | Q10: Total Account Equity Value: | R10: =IFERROR(R7+G10,"") -> $100,000.00 | U10: =U7+G4 -> $195,270.22 | X10: =X7+G4 -> $170,270.22 | AA10: SHORT
AA11: Value
E12: OPEN STOCK POSITIONS | I12: SL & TP in Price | K12: SL & TP in % | N12: MARKET PRICE | Q12: UNREALIZED GAIN/LOSS | U12: Select Option>> | X12: R-Multiple | AA12: R-Multiple
C13: No. | D13: TYPE | E13: STOCK CODE | F13: TOTAL SHARES | G13: AVERAGE PRICE | H13: MARKET PRICE | I13: Stop-loss or Trail Stop | J13: Target Price | K13: %Stop-loss | L13: %Target Price | Q13: PORTFOLIO | U13: Target Price | X13: Stop-loss or Trail Stop | AA13: code
K14: -5.0% | L14: 20.0% | Q14: VALUE | R14: PROFIT/LOSS | S14: %P&L | AA14: Target Price (%) | AB14: Cut-loss
C15: 1 | D15: LONG | E15: NIKL | F15: 15,000 | G15: 2.5560 | H15: 2.7400 | I15: 2.6000 | J15: 4.0000 | K15: =IFERROR(IF(AD15="L",((N15+AU15)/F15)*(1+$K$14),((N15+SUM(AQ15:AS15))/F15)*(1-$K$14)),"") -> 2.4532 | L15: =IFERROR(IF(AD15="L",((N15+AU15)/F15)*(1+$L$14),((N15+SUM(AQ15:AS15))/F15)*(1-$L$14)),"") -> 3.0988 | N15: =G15*F15 -> 38340 | O15: =IFERROR(INDEX(Sheet1!$E$2:$E$390,MATCH(E15,Sheet1!$B$2:$B$390,0)),"") -> 2.7 | P15: =H15*F15 -> 41100 | Q15: =IF(F15=0,"",IF((H15=""),"Update Price",P15-AJ15)) -> 40,676.67 | R15: =IFERROR(IF($X$12="R-Multiple",AK15,AL15),"") -> 2.34R | S15: =IFERROR((AL15/N15),"") -> 6.09% | U15: =IFERROR(IF($X$12="R-Multiple",AM15,AN15),"") -> 21.27R | V15: =IFERROR(AN15/N15,"") -> 55.46% | X15: =IFERROR(IF($X$12="R-Multiple",AO15,AP15),"") -> 0.27R | Y15: =IFERROR(AP15/N15,"") -> 0.69% | Z15: =AL15 -> 2336.67 | AA15: =IF($U$13=$K$13,K15,IF($U$13=$L$13,L15,IF($U$13=$I$13,I15,IF($U$13=$J$13,J15,0)))) -> 4 | AB15: =IF($X$13=$K$13,K15,IF($X$13=$L$13,L15,IF($X$13=$I$13,I15,IF($X$13=$J$13,J15,0)))) -> 2.6 | AD15: =IF(D15="SHORT","s","L") -> L | AF15: =IF(F15="","",IF(IF($AL$6="Amount",$AM$6*P15,IF($AL$6="Total Shares",$AM$6*F15,$AM$6))=0,MAX(IF($AI$6="amount",(P15*$AJ$6),IF($AI$6="Total Shares",($AJ$6*F15),$AJ$6)),$AK$6),MIN(IF($AL$6="Amount",$AM$6*P15,IF($AL$6="Total Shares",$AM$6*F15,$AM$6)),MAX(IF($AI$6="amount",(P15*$AJ$6),IF($AI$6="Total Shares",($AJ$6*F15),$AJ$6)),$AK$6)))) -> 102.75 | AG15: =IF(F15="","",IF(IF($AL$7="Amount",$AM$7*P15,IF($AL$7="Total Shares",$AM$7*F15,$AM$7))=0,MAX(IF($AI$7="amount",(P15*$AJ$7),IF($AI$7="Total Shares",($AJ$7*F15),$AJ$7)),$AK$7),MIN(IF($AL$7="Amount",$AM$7*P15,IF($AL$7="Total Shares",$AM$7*F15,$AM$7)),MAX(IF($AI$7="amount",(P15*$AJ$7),IF($AI$7="Total Shares",($AJ$7*F15),$AJ$7)),$AK$7)))) -> 12.33 | AH15: =IF(IF($AL$8="Amount",$AM$8*P15,IF($AL$8="Total Shares",$AM$8*F15,$AM$8))=0,MAX(IF($AI$8="amount",(P15*$AJ$8),IF($AI$8="Total Shares",($AJ$8*F15),$AJ$8)),$AK$8),MIN(IF($AL$8="Amount",$AM$8*P15,IF($AL$8="Total Shares",$AM$8*F15,$AM$8)),MAX(IF($AI$8="amount",(P15*$AJ$8),IF($AI$8="Total Shares",($AJ$8*F15),$AJ$8)),$AK$8))) -> 61.65 | AI15: =IF(IF($AL$9="Amount",$AM$9*P15,IF($AL$9="Total Shares",$AM$9*F15,$AM$9))=0,MAX(IF($AI$9="amount",(P15*$AJ$9),IF($AI$9="Total Shares",($AJ$9*F15),$AJ$9)),$AK$9),MIN(IF($AL$9="Amount",$AM$9*P15,IF($AL$9="Total Shares",$AM$9*F15,$AM$9)),MAX(IF($AI$9="amount",(P15*$AJ$9),IF($AI$9="Total Shares",($AJ$9*F15),$AJ$9)),$AK$9))) -> 246.6 | AJ15: =SUM(AF15:AI15) -> 423.33 | AK15: =TEXT((AL15/$H$8),"0.00R") -> 2.34R | AL15: =IF(N15=0,"",IF(AD15="L",Q15-N15,(N15-Q15)-AI15)) -> 2336.67 | AM15: =TEXT((AN15/$H$8),"0.00R") -> 21.27R | AN15: =IF(N15=0,"",IF(AD15="L",(((AA15*F15)-AU15)-N15),(N15-((AA15*F15)-AT15)))) -> 21265.098 | AO15: =IF(AN15="","",TEXT((AP15/$H$8),"0.00R")) -> 0.27R | AP15: =IF(AB15=0,"",IFERROR(IF(AD15="L",(((AB15*F15)-AU15)-N15),(N15-((AB15*F15)-AT15))),"")) -> 265.098 | AQ15: =IF(F15="","",IF(IF($AL$6="Amount",$AM$6*N15,IF($AL$6="Total Shares",$AM$6*F15,$AM$6))=0,MAX(IF($AI$6="amount",(N15*$AJ$6),IF($AI$6="Total Shares",($AJ$6*F15),$AJ$6)),$AK$6),MIN(IF($AL$6="Amount",$AM$6*N15,IF($AL$6="Total Shares",$AM$6*F15,$AM$6)),MAX(IF($AI$6="amount",(N15*$AJ$6),IF($AI$6="Total Shares",($AJ$6*F15),$AJ$6)),$AK$6)))) -> 95.85 | AR15: =IF(F15="","",IF(IF($AL$7="Amount",$AM$7*N15,IF($AL$7="Total Shares",$AM$7*F15,$AM$7))=0,MAX(IF($AI$7="amount",(N15*$AJ$7),IF($AI$7="Total Shares",($AJ$7*F15),$AJ$7)),$AK$7),MIN(IF($AL$7="Amount",$AM$7*N15,IF($AL$7="Total Shares",$AM$7*F15,$AM$7)),MAX(IF($AI$7="amount",(N15*$AJ$7),IF($AI$7="Total Shares",($AJ$7*F15),$AJ$7)),$AK$7)))) -> 11.502 | AS15: =IF(IF($AL$8="Amount",$AM$8*N15,IF($AL$8="Total Shares",$AM$8*F15,$AM$8))=0,MAX(IF($AI$8="amount",(N15*$AJ$8),IF($AI$8="Total Shares",($AJ$8*F15),$AJ$8)),$AK$8),MIN(IF($AL$8="Amount",$AM$8*N15,IF($AL$8="Total Shares",$AM$8*F15,$AM$8)),MAX(IF($AI$8="amount",(N15*$AJ$8),IF($AI$8="Total Shares",($AJ$8*F15),$AJ$8)),$AK$8))) -> 57.51 | AT15: =IF(IF($AL$9="Amount",$AM$9*N15,IF($AL$9="Total Shares",$AM$9*F15,$AM$9))=0,MAX(IF($AI$9="amount",(N15*$AJ$9),IF($AI$9="Total Shares",($AJ$9*F15),$AJ$9)),$AK$9),MIN(IF($AL$9="Amount",$AM$9*N15,IF($AL$9="Total Shares",$AM$9*F15,$AM$9)),MAX(IF($AI$9="amount",(N15*$AJ$9),IF($AI$9="Total Shares",($AJ$9*F15),$AJ$9)),$AK$9))) -> 230.04 | AU15: =SUM(AQ15:AT15) -> 394.902
C16: =C15+1 -> 2 | D16: LONG | E16: PXP | F16: 2,000 | G16: 16.2560 | H16: 16.3000 | I16: 16.0000 | J16: 18.0000 | K16: 15.6023 | L16: 19.7081 | N16: 32512 | O16: =IFERROR(INDEX(Sheet1!$E$2:$E$390,MATCH(E16,Sheet1!$B$2:$B$390,0)),"") -> 16.3 | P16: 32600 | Q16: 32,264.22 | R16: -0.25R | S16: -0.76% | U16: 3.15R | V16: 9.70% | X16: -0.85R | Y16: -2.60% | Z16: -247.78 | AA16: 18 | AB16: 16 | AD16: L | AF16: 81.5 | AG16: 9.78 | AH16: 48.9 | AI16: 195.6 | AJ16: =SUM(AF16:AI16) -> 335.78 | AK16: -0.25R | AL16: -247.78 | AM16: 3.15R | AN16: 3153.1264 | AO16: =IF(AN16="","",TEXT((AP16/$H$8),"0.00R")) -> -0.85R | AP16: -846.8736 | AQ16: 81.28 | AR16: 9.7536 | AS16: 48.768 | AT16: 195.072 | AU16: =SUM(AQ16:AT16) -> 334.8736

Sheet User Guide & Settings (hidden)
B2: USER GUIDE AND SETTINGS
D3: Risk management Spreadsheet (RMS) | O3: BROKER FEE SETTINGS | Z3: From | AA3: To
D4: AA Excel Spreadsheets© 2016. All Rights Reserved. | O4: Fees | P4: From | Q4: Multiply by | R4: Minimum | S4: From | T4: Maximum | W4: Trade | Z4: 0.0001 | AA4: 0.0099 | AB4: 0.0001 | AC4: 1,000,000
O5: Commission | P5: Amount | Q5: 0.00250 | R5: 20.0 | S5: Amount | W5: Amount | Z5: 0.01 | AA5: 0.049 | AB5: 0.001 | AC5: 100,000
O6: VAT | P6: Amount | Q6: 0.00030 | R6: 2.4 | S6: Amount | W6: Total Shares | Z6: 0.05 | AA6: 0.249 | AB6: 0.001 | AC6: 10,000
C7: Credits to: | D7: Think And Trade Like A Champion by Mark Minervini | O7: Tax | P7: Amount | Q7: 0.00150 | S7: Amount | Z7: 0.25 | AA7: 0.495 | AB7: 0.005 | AC7: 10,000
D8: Super Trader by Van K.Tharp and The Trading Code by Jason Cam | O8: Sales Tax | P8: Amount | Q8: 0.00600 | S8: Amount | Z8: 0.5 | AA8: 4.99 | AB8: 0.01 | AC8: 1,000
Z9: 5 | AA9: 9.99 | AB9: 0.01 | AC9: 100
B10: >> | Z10: 10 | AA10: 19.98 | AB10: 0.02 | AC10: 100
C12: Dashboard
C14: Your stats will literally make their way into your trading and guide you. -Mark Minervini
Z23: 20 | AA23: 49.95 | AB23: 0.05 | AC23: 100
C24: 1 Tranche Position Sizing | Z24: 50 | AA24: 99.95 | AB24: 0.05 | AC24: 10
C25: Position sizing will help you find the approximate volume of shares to buy or sell to control your maximum risk per position. | Z25: 100 | AA25: 199.9 | AB25: 0.1 | AC25: 10
Z26: 200 | AA26: 499.8 | AB26: 0.2 | AC26: 10
Z27: 500 | AA27: 999.5 | AB27: 0.5 | AC27: 10
Z28: 1000 | AA28: 1999 | AB28: 1 | AC28: 5
Z29: 2000 | AA29: 4998 | AB29: 2 | AC29: 5
Z30: 5000 | AA30: UP | AB30: 5 | AC30: 5
C37: 3 Tranche Position Sizing
C39: I start with a much smaller position, 5 to 10 percent of my portfolio, so that my risk is less until a stock can prove itself. If the stock performs as I had hoped, I will increase my position size accordingly or add additional names as they meet my buy criteria. - Mark Minervini
C51: Features and Analysis
C52: Top Risk Reward Ratio
C53: All trade plan entries are sorted by largest RRR
C54: This allows you to focus on trade setups with higher RRR
C56: Cell Format Price Alert
C57: TARGET PRICE HIT | F57: Market price >=Target Price
C58: ENTRY PRICE HIT | F58: Market price >= Entry <TP
C59: NO ALERT | F59: Market price > Stop <= Entry
C60: STOP PRICE HIT | F60: Market price <= Stop Price
C62: Market Price
C63: Realtime Price update
C65: Position Size
C66: Shares to buy to manage risk when price did not go with your bias, losses will not exceed your risk plan when executing stop price.
C70: Risk Management
C71: Based on R-Multiple
C74: Expectancy Guide
C76: If you don’t know your own trading results, how can you intelligently set expectations?
C79: Record where you bought and where you sold every single trade. Pretty soon you’ll have a track record of average losses and average wins, and the frequency of the wins and losses. -Mark Minervini
C87: Result-Based Assumption Forecast
C88: Based on your own results, you can determine what it will take in terms of position size and number of trades to achieve your desired performance.
C93: Obviously, to develop a Results-Based Assumption Forecast (RBAF), you need some data; the more the better. When you’re starting out, you will not have many results to analyze. So, the sooner you get started, the sooner you will be armed with valuable data.
C102: Trade Plan Sheet
C104: Trade Plan Sheet will allow you to forecast your portfolio value based on your trade plan execution.
C116: Stock Trading Journal Spreadsheet | J116: Trading Journal | N116: Visit our Facebook page to learn more | Contact us to get the latest trial version
C118: Winners realize the limitation of only committing things to memory. They are always prepared, and they keep a journal they can reflect upon and compare expectations to reality.
C122: If you want to deal with reality, especially when it comes to position sizing. Use the math of your results as a tool, and hone your edge by calculating the amount of risk you should be taking based on your own performance. - Mark Minervini
K126: Also available in foreign version for other markets worldwide
C129: Settings
C131: Philippine Stock Exchange (PSE) Default Settings
C141: Contact Us
C142: aaespreadsheets@gmail.com
C143: www.facebook.com/AAESpreadsheets
C144: https://www.facebook.com/groups

Sheet Sheet1 (hidden)
A1: Date | B1: symbol | C1: Name | D1: Currency | E1: Closing | F1: % change | G1: Volume | H1: Value
A2: 2018-10-23T14:50:00+08:00 | B2: 2GO | C2: 2GO Group | D2: PHP | E2: 11.5 | F2: -1.71 | G2: 16900 | J2: 0.0001 | K2: 1 | L2: =IFERROR(Table1[[#This Row],[% change]]+J2,"") -> -1.7099 | M2: =IFERROR(Table1[[#This Row],[Volume]]*Table1[[#This Row],[Closing]]+J2,"") -> 194350.0001
A3: 2018-10-23T14:50:00+08:00 | B3: 8990P | C3: HOUSE PREF A | D3: PHP | E3: 99 | F3: 3.07 | G3: 1300 | J3: 0.0002 | K3: 2 | L3: =IFERROR(Table1[[#This Row],[% change]]+J3,"") -> 3.0702 | M3: =IFERROR(Table1[[#This Row],[Volume]]*Table1[[#This Row],[Closing]]+J3,"") -> 128700.0002
A4: 2018-10-23T14:50:00+08:00 | B4: AB | C4: Atok A | D4: PHP | E4: 17.4 | F4: -0.46 | G4: 5700 | J4: 0.0003 | K4: 3 | L4: =IFERROR(Table1[[#This Row],[% change]]+J4,"") -> -0.4597 | M4: =IFERROR(Table1[[#This Row],[Volume]]*Table1[[#This Row],[Closing]]+J4,"") -> 99180.0003
A5: 2018-10-23T14:50:00+08:00 | B5: ABA | C5: ABACORE CAPITAL | D5: PHP | E5: 0.465 | F5: 1.09 | G5: 28010000 | J5: 0.0004 | K5: 4 | L5: =IFERROR(Table1[[#This Row],[% change]]+J5,"") -> 1.0904 | M5: =IFERROR(Table1[[#This Row],[Volume]]*Table1[[#This Row],[Closing]]+J5,"") -> 13024650
A6: 2018-10-23T14:50:00+08:00 | B6: ABG | C6: Asiabest Gorup | D6: PHP | E6: 26 | F6: -1.14 | G6: 15500 | J6: 0.0005 | K6: 5 | L6: =IFERROR(Table1[[#This Row],[% change]]+J6,"") -> -1.1395 | M6: =IFERROR(Table1[[#This Row],[Volume]]*Table1[[#This Row],[Closing]]+J6,"") -> 403000.0005
A7: 2018-10-23T14:50:00+08:00 | B7: ABS | C7: ABS-CBN | D7: PHP | E7: 21.5 | F7: 0.94 | G7: 7800 | J7: 0.0006 | K7: 6 | L7: =IFERROR(Table1[[#This Row],[% change]]+J7,"") -> 0.9406 | M7: =IFERROR(Table1[[#This Row],[Volume]]*Table1[[#This Row],[Closing]]+J7,"") -> 167700.0006
A8: 2018-10-23T14:50:00+08:00 | B8: ABSP | C8: ABS-CBN PDR | D8: PHP | E8: 21.55 | F8: 0.23 | G8: 1300 | J8: 0.0007 | K8: 7 | L8: =IFERROR(Table1[[#This Row],[% change]]+J8,"") -> 0.2307 | M8: =IFERROR(Table1[[#This Row],[Volume]]*Table1[[#This Row],[Closing]]+J8,"") -> 28015.0007
A9: 2018-10-23T14:50:00+08:00 | B9: AC | C9: Ayala Corp | D9: PHP | E9: 912 | F9: -1.78 | G9: 49750 | J9: 0.0008 | K9: 8 | L9: =IFERROR(Table1[[#This Row],[% change]]+J9,"") -> -1.7792 | M9: =IFERROR(Table1[[#This Row],[Volume]]*Table1[[#This Row],[Closing]]+J9,"") -> 45372000
A10: 2018-10-23T14:50:00+08:00 | B10: ACE | C10: Acesite Hotel | D10: PHP | E10: 1.46 | F10: 5.8 | G10: 8000 | J10: 0.0009 | K10: 9 | L10: =IFERROR(Table1[[#This Row],[% change]]+J10,"") -> 5.8009 | M10: =IFERROR(Table1[[#This Row],[Volume]]*Table1[[#This Row],[Closing]]+J10,"") -> 11680.0009
A11: 2018-10-23T14:50:00+08:00 | B11: ACPB1 | C11: AC PREF B1 | D11: PHP | E11: 470 | F11: 2.17 | G11: 50 | J11: 0.001 | K11: 10 | L11: =IFERROR(Table1[[#This Row],[% change]]+J11,"") -> 2.171 | M11: =IFERROR(Table1[[#This Row],[Volume]]*Table1[[#This Row],[Closing]]+J11,"") -> 23500.001
A12: 2018-10-23T14:50:00+08:00 | B12: ACPB2 | C12: AC PREF B2 | D12: PHP | E12: 490 | F12: 0.2 | G12: 50 | J12: 0.0011 | K12: 11 | L12: =IFERROR(Table1[[#This Row],[% change]]+J12,"") -> 0.2011 | M12: =IFERROR(Table1[[#This Row],[Volume]]*Table1[[#This Row],[Closing]]+J12,"") -> 24500.0011
A13: 2018-10-23T14:50:00+08:00 | B13: ACR | C13: Alsons Cons | D13: PHP | E13: 1.29 | F13: -0.77 | G13: 58000 | J13: 0.0012 | K13: 12 | L13: =IFERROR(Table1[[#This Row],[% change]]+J13,"") -> -0.7688 | M13: =IFERROR(Table1[[#This Row],[Volume]]*Table1[[#This Row],[Closing]]+J13,"") -> 74820.0012
A14: 2018-10-23T14:50:00+08:00 | B14: AEV | C14: Aboitiz | D14: PHP | E14: 48 | F14: 0.63 | G14: 276000 | J14: 0.0013 | K14: 13 | L14: =IFERROR(Table1[[#This Row],[% change]]+J14,"") -> 0.6313 | M14: =IFERROR(Table1[[#This Row],[Volume]]*Table1[[#This Row],[Closing]]+J14,"") -> 13248000
A15: 2018-10-23T14:50:00+08:00 | B15: AGI | C15: Alliance Global | D15: PHP | E15: 11.92 | F15: -1.49 | G15: 2120500 | J15: 0.0014 | K15: 14 | L15: =IFERROR(Table1[[#This Row],[% change]]+J15,"") -> -1.4886 | M15: =IFERROR(Table1[[#This Row],[Volume]]*Table1[[#This Row],[Closing]]+J15,"") -> 25276360
A16: 2018-10-23T14:50:00+08:00 | B16: ALCO | C16: Arthaland | D16: PHP | E16: 0.65 | F16: 0 | G16: 110000 | J16: 0.0015 | K16: 15 | L16: =IFERROR(Table1[[#This Row],[% change]]+J16,"") -> 0.0015 | M16: =IFERROR(Table1[[#This Row],[Volume]]*Table1[[#This Row],[Closing]]+J16,"") -> 71500.0015
A17: 2018-10-23T14:50:00+08:00 | B17: ALCPB | C17: ALCO PREF B | D17: PHP | E17: 100.3 | F17: 0 | G17: 10000 | J17: 0.0016 | K17: 16 | L17: =IFERROR(Table1[[#This Row],[% change]]+J17,"") -> 0.0016 | M17: =IFERROR(Table1[[#This Row],[Volume]]*Table1[[#This Row],[Closing]]+J17,"") -> 1003000.002
A18: 2018-10-23T14:50:00+08:00 | B18: ALI | C18: Ayala Land | D18: PHP | E18: 40.05 | F18: -2.67 | G18: 4012100 | J18: 0.0017 | K18: 17 | L18: =IFERROR(Table1[[#This Row],[% change]]+J18,"") -> -2.6683 | M18: =IFERROR(Table1[[#This Row],[Volume]]*Table1[[#This Row],[Closing]]+J18,"") -> 160684605
A19: 2018-10-23T14:50:00+08:00 | B19: ANI | C19: AgriNurture | D19: PHP | E19: 18 | F19: -0.22 | G19: 351000 | J19: 0.0018 | K19: 18 | L19: =IFERROR(Table1[[#This Row],[% change]]+J19,"") -> -0.2182 | M19: =IFERROR(Table1[[#This Row],[Volume]]*Table1[[#This Row],[Closing]]+J19,"") -> 6318000.002
A20: 2018-10-23T14:50:00+08:00 | B20: ANS | C20: Anscor | D20: PHP | E20: 6.2 | F20: 0.65 | G20: 186800 | J20: 0.0019 | K20: 19 | L20: =IFERROR(Table1[[#This Row],[% change]]+J20,"") -> 0.6519 | M20: =IFERROR(Table1[[#This Row],[Volume]]*Table1[[#This Row],[Closing]]+J20,"") -> 1158160.002
A21: 2018-10-23T14:50:00+08:00 | B21: AP | C21: Aboitiz Power | D21: PHP | E21: 34.45 | F21: -0.72 | G21: 4368900 | J21: 0.002 | K21: 20 | L21: =IFERROR(Table1[[#This Row],[% change]]+J21,"") -> -0.718 | M21: =IFERROR(Table1[[#This Row],[Volume]]*Table1[[#This Row],[Closing]]+J21,"") -> 150508605
A22: 2018-10-23T14:50:00+08:00 | B22: APC | C22: APC Group | D22: PHP | E22: 0.44 | F22: -2.22 | G22: 70000 | J22: 0.0021 | K22: 21 | L22: =IFERROR(Table1[[#This Row],[% change]]+J22,"") -> -2.2179 | M22: =IFERROR(Table1[[#This Row],[Volume]]*Table1[[#This Row],[Closing]]+J22,"") -> 30800.0021
A23: 2018-10-23T14:50:00+08:00 | B23: APL | C23: APOLLO GLOBAL | D23: PHP | E23: 0.042 | F23: 2.44 | G23: 1300000 | J23: 0.0022 | K23: 22 | L23: =IFERROR(Table1[[#This Row],[% change]]+J23,"") -> 2.4422 | M23: =IFERROR(Table1[[#This Row],[Volume]]*Table1[[#This Row],[Closing]]+J23,"") -> 54600.0022
A24: 2018-10-23T14:50:00+08:00 | B24: APO | C24: Anglo-Phil Hldg | D24: PHP | E24: 0.74 | F24: -15.91 | G24: 127000 | J24: 0.0023 | K24: 23 | L24: =IFERROR(Table1[[#This Row],[% change]]+J24,"") -> -15.9077 | M24: =IFERROR(Table1[[#This Row],[Volume]]*Table1[[#This Row],[Closing]]+J24,"") -> 93980.0023
A25: 2018-10-23T14:50:00+08:00 | B25: APX | C25: Apex Mining A | D25: PHP | E25: 1.65 | F25: 3.12 | G25: 7121000 | J25: 0.0024 | K25: 24 | L25: =IFERROR(Table1[[#This Row],[% change]]+J25,"") -> 3.1224 | M25: =IFERROR(Table1[[#This Row],[Volume]]*Table1[[#This Row],[Closing]]+J25,"") -> 11749650
A26: 2018-10-23T14:50:00+08:00 | B26: AR | C26: Abra Mining | D26: PHP | E26: 0.0023 | F26: 0 | G26: 44000000 | J26: 0.0025 | K26: 25 | L26: =IFERROR(Table1[[#This Row],[% change]]+J26,"") -> 0.0025 | M26: =IFERROR(Table1[[#This Row],[Volume]]*Table1[[#This Row],[Closing]]+J26,"") -> 101200.0025
A27: 2018-10-23T14:50:00+08:00 | B27: AT | C27: Atlas Mining | D27: PHP | E27: 2.9 | F27: -0.34 | G27: 22000 | J27: 0.0026 | K27: 26 | L27: =IFERROR(Table1[[#This Row],[% change]]+J27,"") -> -0.3374 | M27: =IFERROR(Table1[[#This Row],[Volume]]*Table1[[#This Row],[Closing]]+J27,"") -> 63800.0026
A28: 2018-10-23T14:50:00+08:00 | B28: ATN | C28: ATN Holdings A | D28: PHP | E28: 1.27 | F28: 3.25 | G28: 17587000 | J28: 0.0027 | K28: 27 | L28: =IFERROR(Table1[[#This Row],[% change]]+J28,"") -> 3.2527 | M28: =IFERROR(Table1[[#This Row],[Volume]]*Table1[[#This Row],[Closing]]+J28,"") -> 22335490
A29: 2018-10-23T14:50:00+08:00 | B29: ATNB | C29: ATN Holdings B | D29: PHP | E29: 1.26 | F29: 2.44 | G29: 4694000 | J29: 0.0028 | K29: 28 | L29: =IFERROR(Table1[[#This Row],[% change]]+J29,"") -> 2.4428 | M29: =IFERROR(Table1[[#This Row],[Volume]]*Table1[[#This Row],[Closing]]+J29,"") -> 5914440.003
A30: 2018-10-23T14:50:00+08:00 | B30: BCOR | C30: Prime Gaming | D30: PHP | E30: 1.76 | F30: 2.33 | G30: 2343000 | J30: 0.0029 | K30: 29 | L30: =IFERROR(Table1[[#This Row],[% change]]+J30,"") -> 2.3329 | M30: =IFERROR(Table1[[#This Row],[Volume]]*Table1[[#This Row],[Closing]]+J30,"") -> 4123680.003
A31: 2018-10-23T14:50:00+08:00 | B31: BDO | C31: Banco de Oro | D31: PHP | E31: 122.5 | F31: -0.33 | G31: 1043410 | J31: 0.003 | K31: 30 | L31: =IFERROR(Table1[[#This Row],[% change]]+J31,"") -> -0.327 | M31: =IFERROR(Table1[[#This Row],[Volume]]*Table1[[#This Row],[Closing]]+J31,"") -> 127817725
A32: 2018-10-23T14:50:00+08:00 | B32: BEL | C32: Belle Corp. | D32: PHP | E32: 2.44 | F32: 0.83 | G32: 445000 | J32: 0.0031 | K32: 31 | L32: =IFERROR(Table1[[#This Row],[% change]]+J32,"") -> 0.8331 | M32: =IFERROR(Table1[[#This Row],[Volume]]*Table1[[#This Row],[Closing]]+J32,"") -> 1085800.003
A33: 2018-10-23T14:50:00+08:00 | B33: BLFI | C33: BDO Leasing | D33: PHP | E33: 2.26 | F33: 0 | G33: 2000 | J33: 0.0032 | K33: 32 | L33: =IFERROR(Table1[[#This Row],[% change]]+J33,"") -> 0.0032 | M33: =IFERROR(Table1[[#This Row],[Volume]]*Table1[[#This Row],[Closing]]+J33,"") -> 4520.0032
A34: 2018-10-23T14:50:00+08:00 | B34: BLOOM | C34: Bloomberry | D34: PHP | E34: 8.49 | F34: -3.52 | G34: 7148500 | J34: 0.0033 | K34: 33 | L34: =IFERROR(Table1[[#This Row],[% change]]+J34,"") -> -3.5167 | M34: =IFERROR(Table1[[#This Row],[Volume]]*Table1[[#This Row],[Closing]]+J34,"") -> 60690765
A35: 2018-10-23T14:50:00+08:00 | B35: BPI | C35: BPI | D35: PHP | E35: 83.45 | F35: 0.12 | G35: 650720 | J35: 0.0034 | K35: 34 | L35: =IFERROR(Table1[[#This Row],[% change]]+J35,"") -> 0.1234 | M35: =IFERROR(Table1[[#This Row],[Volume]]*Table1[[#This Row],[Closing]]+J35,"") -> 54302584
A36: 2018-10-23T14:50:00+08:00 | B36: BRN | C36: A. Brown | D36: PHP | E36: 0.79 | F36: 1.28 | G36: 1085000 | J36: 0.0035 | K36: 35 | L36: =IFERROR(Table1[[#This Row],[% change]]+J36,"") -> 1.2835 | M36: =IFERROR(Table1[[#This Row],[Volume]]*Table1[[#This Row],[Closing]]+J36,"") -> 857150.0035
A37: 2018-10-23T14:50:00+08:00 | B37: BSC | C37: BASIC ENERGY | D37: PHP | E37: 0.223 | F37: -0.45 | G37: 30000 | J37: 0.0036 | K37: 36 | L37: =IFERROR(Table1[[#This Row],[% change]]+J37,"") -> -0.4464 | M37: =IFERROR(Table1[[#This Row],[Volume]]*Table1[[#This Row],[Closing]]+J37,"") -> 6690.0036
A38: 2018-10-23T14:50:00+08:00 | B38: CAT | C38: Tarlac | D38: PHP | E38: 17.5 | F38: -1.02 | G38: 15500 | J38: 0.0037 | K38: 37 | L38: =IFERROR(Table1[[#This Row],[% change]]+J38,"") -> -1.0163 | M38: =IFERROR(Table1[[#This Row],[Volume]]*Table1[[#This Row],[Closing]]+J38,"") -> 271250.0037
A39: 2018-10-23T14:50:00+08:00 | B39: CEB | C39: 5J | D39: PHP | E39: 65.5 | F39: 0.08 | G39: 95760 | J39: 0.0038 | K39: 38 | L39: =IFERROR(Table1[[#This Row],[% change]]+J39,"") -> 0.0838 | M39: =IFERROR(Table1[[#This Row],[Volume]]*Table1[[#This Row],[Closing]]+J39,"") -> 6272280.004
A40: 2018-10-23T14:50:00+08:00 | B40: CEI | C40: Crown Equities | D40: PHP | E40: 0.222 | F40: 1.37 | G40: 1780000 | J40: 0.0039 | K40: 39 | L40: =IFERROR(Table1[[#This Row],[% change]]+J40,"") -> 1.3739 | M40: =IFERROR(Table1[[#This Row],[Volume]]*Table1[[#This Row],[Closing]]+J40,"") -> 395160.0039
A41: 2018-10-23T14:50:00+08:00 | B41: CEU | C41: Centro Escolar | D41: PHP | E41: 8 | F41: 0 | G41: 5500 | J41: 0.004 | K41: 40 | L41: =IFERROR(Table1[[#This Row],[% change]]+J41,"") -> 0.004 | M41: =IFERROR(Table1[[#This Row],[Volume]]*Table1[[#This Row],[Closing]]+J41,"") -> 44000.004
A42: 2018-10-23T14:50:00+08:00 | B42: CHI | C42: Cebu Holdings | D42: PHP | E42: 5.05 | F42: 1 | G42: 100 | J42: 0.0041 | K42: 41 | L42: =IFERROR(Table1[[#This Row],[% change]]+J42,"") -> 1.0041 | M42: =IFERROR(Table1[[#This Row],[Volume]]*Table1[[#This Row],[Closing]]+J42,"") -> 505.0041
A43: 2018-10-23T14:50:00+08:00 | B43: CHIB | C43: Chinabank | D43: PHP | E43: 28.1 | F43: 0 | G43: 39000 | J43: 0.0042 | K43: 42 | L43: =IFERROR(Table1[[#This Row],[% change]]+J43,"") -> 0.0042 | M43: =IFERROR(Table1[[#This Row],[Volume]]*Table1[[#This Row],[Closing]]+J43,"") -> 1095900.004
A44: 2018-10-23T14:50:00+08:00 | B44: CHP | C44: Cemex Hldg | D44: PHP | E44: 2.27 | F44: -2.99 | G44: 6674000 | J44: 0.0043 | K44: 43 | L44: =IFERROR(Table1[[#This Row],[% change]]+J44,"") -> -2.9857 | M44: =IFERROR(Table1[[#This Row],[Volume]]*Table1[[#This Row],[Closing]]+J44,"") -> 15149980
A45: 2018-10-23T14:50:00+08:00 | B45: CIC | C45: CONCEPCION | D45: PHP | E45: 38.6 | F45: -0.26 | G45: 700 | J45: 0.0044 | K45: 44 | L45: =IFERROR(Table1[[#This Row],[% change]]+J45,"") -> -0.2556 | M45: =IFERROR(Table1[[#This Row],[Volume]]*Table1[[#This Row],[Closing]]+J45,"") -> 27020.0044
A46: 2018-10-23T14:50:00+08:00 | B46: CLC | C46: CHELSEA | D46: PHP | E46: 5.89 | F46: 3.88 | G46: 3088600 | J46: 0.0045 | K46: 45 | L46: =IFERROR(Table1[[#This Row],[% change]]+J46,"") -> 3.8845 | M46: =IFERROR(Table1[[#This Row],[Volume]]*Table1[[#This Row],[Closing]]+J46,"") -> 18191854
A47: 2018-10-23T14:50:00+08:00 | B47: CLI | C47: CEB LANDMASTERS | D47: PHP | E47: 4.36 | F47: -1.36 | G47: 55000 | J47: 0.0046 | K47: 46 | L47: =IFERROR(Table1[[#This Row],[% change]]+J47,"") -> -1.3554 | M47: =IFERROR(Table1[[#This Row],[Volume]]*Table1[[#This Row],[Closing]]+J47,"") -> 239800.0046
A48: 2018-10-23T14:50:00+08:00 | B48: CNPF | C48: CENTURY FOOD | D48: PHP | E48: 13.2 | F48: -1.2 | G48: 300800 | J48: 0.0047 | K48: 47 | L48: =IFERROR(Table1[[#This Row],[% change]]+J48,"") -> -1.1953 | M48: =IFERROR(Table1[[#This Row],[Volume]]*Table1[[#This Row],[Closing]]+J48,"") -> 3970560.005
A49: 2018-10-23T14:50:00+08:00 | B49: COAL | C49: Coal Asia | D49: PHP | E49: 0.3 | F49: -1.64 | G49: 10000 | J49: 0.0048 | K49: 48 | L49: =IFERROR(Table1[[#This Row],[% change]]+J49,"") -> -1.6352 | M49: =IFERROR(Table1[[#This Row],[Volume]]*Table1[[#This Row],[Closing]]+J49,"") -> 3000.0048
A50: 2018-10-23T14:50:00+08:00 | B50: COL | C50: COL Financial | D50: PHP | E50: 15.82 | F50: 0 | G50: 2700 | J50: 0.0049 | K50: 49 | L50: =IFERROR(Table1[[#This Row],[% change]]+J50,"") -> 0.0049 | M50: =IFERROR(Table1[[#This Row],[Volume]]*Table1[[#This Row],[Closing]]+J50,"") -> 42714.0049
A51: 2018-10-23T14:50:00+08:00 | B51: COSCO | C51: COSCO CAPITAL | D51: PHP | E51: 6.81 | F51: -2.44 | G51: 1823400 | J51: 0.005 | K51: 50 | L51: =IFERROR(Table1[[#This Row],[% change]]+J51,"") -> -2.435 | M51: =IFERROR(Table1[[#This Row],[Volume]]*Table1[[#This Row],[Closing]]+J51,"") -> 12417354.01
A52: 2018-10-23T14:50:00+08:00 | B52: CPG | C52: CPG | D52: PHP | E52: 0.42 | F52: 0 | G52: 1680000 | J52: 0.0051 | K52: 51 | L52: =IFERROR(Table1[[#This Row],[% change]]+J52,"") -> 0.0051 | M52: =IFERROR(Table1[[#This Row],[Volume]]*Table1[[#This Row],[Closing]]+J52,"") -> 705600.0051
A53: 2018-10-23T14:50:00+08:00 | B53: CPM | C53: Century Peak | D53: PHP | E53: 1.91 | F53: 0 | G53: 231000 | J53: 0.0052 | K53: 52 | L53: =IFERROR(Table1[[#This Row],[% change]]+J53,"") -> 0.0052 | M53: =IFERROR(Table1[[#This Row],[Volume]]*Table1[[#This Row],[Closing]]+J53,"") -> 441210.0052
A54: 2018-10-23T14:50:00+08:00 | B54: CROWN | C54: CROWN ASIA | D54: PHP | E54: 1.63 | F54: 1.88 | G54: 220000 | J54: 0.0053 | K54: 53 | L54: =IFERROR(Table1[[#This Row],[% change]]+J54,"") -> 1.8853 | M54: =IFERROR(Table1[[#This Row],[Volume]]*Table1[[#This Row],[Closing]]+J54,"") -> 358600.0053
A55: 2018-10-23T14:50:00+08:00 | B55: CYBR | C55: Cyber Bay | D55: PHP | E55: 0.395 | F55: -1.25 | G55: 40000 | J55: 0.0054 | K55: 54 | L55: =IFERROR(Table1[[#This Row],[% change]]+J55,"") -> -1.2446 | M55: =IFERROR(Table1[[#This Row],[Volume]]*Table1[[#This Row],[Closing]]+J55,"") -> 15800.0054
A56: 2018-10-23T14:50:00+08:00 | B56: DAVIN | C56: DAVINCI CAPITAL | D56: PHP | E56: 4.8 | F56: 17.07 | G56: 77000 | J56: 0.0055 | K56: 55 | L56: =IFERROR(Table1[[#This Row],[% change]]+J56,"") -> 17.0755 | M56: =IFERROR(Table1[[#This Row],[Volume]]*Table1[[#This Row],[Closing]]+J56,"") -> 369600.0055
A57: 2018-10-23T14:50:00+08:00 | B57: DD | C57: DOUBLEDRAGON | D57: PHP | E57: 20.2 | F57: -0.25 | G57: 284300 | J57: 0.0056 | K57: 56 | L57: =IFERROR(Table1[[#This Row],[% change]]+J57,"") -> -0.2444 | M57: =IFERROR(Table1[[#This Row],[Volume]]*Table1[[#This Row],[Closing]]+J57,"") -> 5742860.006
A58: 2018-10-23T14:50:00+08:00 | B58: DDPR | C58: DD PREF | D58: PHP | E58: 96.5 | F58: -0.52 | G58: 30690 | J58: 0.0057 | K58: 57 | L58: =IFERROR(Table1[[#This Row],[% change]]+J58,"") -> -0.5143 | M58: =IFERROR(Table1[[#This Row],[Volume]]*Table1[[#This Row],[Closing]]+J58,"") -> 2961585.006
A59: 2018-10-23T14:50:00+08:00 | B59: DELM | C59: DEL MONTE | D59: PHP | E59: 6.64 | F59: -6.48 | G59: 3300 | J59: 0.0058 | K59: 58 | L59: =IFERROR(Table1[[#This Row],[% change]]+J59,"") -> -6.4742 | M59: =IFERROR(Table1[[#This Row],[Volume]]*Table1[[#This Row],[Closing]]+J59,"") -> 21912.0058
A60: 2018-10-23T14:50:00+08:00 | B60: DFNN | C60: Diversified | D60: PHP | E60: 7.65 | F60: -4.38 | G60: 396100 | J60: 0.0059 | K60: 59 | L60: =IFERROR(Table1[[#This Row],[% change]]+J60,"") -> -4.3741 | M60: =IFERROR(Table1[[#This Row],[Volume]]*Table1[[#This Row],[Closing]]+J60,"") -> 3030165.006
A61: 2018-10-23T14:50:00+08:00 | B61: DIZ | C61: Dizon Mines | D61: PHP | E61: 7.29 | F61: -1.62 | G61: 1600 | J61: 0.006 | K61: 60 | L61: =IFERROR(Table1[[#This Row],[% change]]+J61,"") -> -1.614 | M61: =IFERROR(Table1[[#This Row],[Volume]]*Table1[[#This Row],[Closing]]+J61,"") -> 11664.006
A62: 2018-10-23T14:50:00+08:00 | B62: DMC | C62: DMCI Holdings | D62: PHP | E62: 12.14 | F62: 0.33 | G62: 1402000 | J62: 0.0061 | K62: 61 | L62: =IFERROR(Table1[[#This Row],[% change]]+J62,"") -> 0.3361 | M62: =IFERROR(Table1[[#This Row],[Volume]]*Table1[[#This Row],[Closing]]+J62,"") -> 17020280.01
A63: 2018-10-23T14:50:00+08:00 | B63: DMPA1 | C63: USD DMPL A1 | D63: PHP | E63: 10 | F63: 0 | G63: 1000 | J63: 0.0062 | K63: 62 | L63: =IFERROR(Table1[[#This Row],[% change]]+J63,"") -> 0.0062 | M63: =IFERROR(Table1[[#This Row],[Volume]]*Table1[[#This Row],[Closing]]+J63,"") -> 10000.0062
A64: 2018-10-23T14:50:00+08:00 | B64: DMPA2 | C64: USD DMPL A2 | D64: PHP | E64: 10 | F64: 0 | G64: 7500 | J64: 0.0063 | K64: 63 | L64: =IFERROR(Table1[[#This Row],[% change]]+J64,"") -> 0.0063 | M64: =IFERROR(Table1[[#This Row],[Volume]]*Table1[[#This Row],[Closing]]+J64,"") -> 75000.0063
A65: 2018-10-23T14:50:00+08:00 | B65: DMW | C65: DM WENCESLAO | D65: PHP | E65: 8.15 | F65: 2 | G65: 64000 | J65: 0.0064 | K65: 64 | L65: =IFERROR(Table1[[#This Row],[% change]]+J65,"") -> 2.0064 | M65: =IFERROR(Table1[[#This Row],[Volume]]*Table1[[#This Row],[Closing]]+J65,"") -> 521600.0064
A66: 2018-10-23T14:50:00+08:00 | B66: DNL | C66: DNL INDUS | D66: PHP | E66: 10.72 | F66: -0.37 | G66: 206300 | J66: 0.0065 | K66: 65 | L66: =IFERROR(Table1[[#This Row],[% change]]+J66,"") -> -0.3635 | M66: =IFERROR(Table1[[#This Row],[Volume]]*Table1[[#This Row],[Closing]]+J66,"") -> 2211536.007
A67: 2018-10-23T14:50:00+08:00 | B67: DWC | C67: DISCOVERY WORLD | D67: PHP | E67: 2.18 | F67: -0.46 | G67: 11000 | J67: 0.0066 | K67: 66 | L67: =IFERROR(Table1[[#This Row],[% change]]+J67,"") -> -0.4534 | M67: =IFERROR(Table1[[#This Row],[Volume]]*Table1[[#This Row],[Closing]]+J67,"") -> 23980.0066
A68: 2018-10-23T14:50:00+08:00 | B68: EAGLE | C68: EAGLE CEMENT | D68: PHP | E68: 15 | F68: 0.54 | G68: 173700 | J68: 0.0067 | K68: 67 | L68: =IFERROR(Table1[[#This Row],[% change]]+J68,"") -> 0.5467 | M68: =IFERROR(Table1[[#This Row],[Volume]]*Table1[[#This Row],[Closing]]+J68,"") -> 2605500.007
A69: 2018-10-23T14:50:00+08:00 | B69: ECP | C69: Easycall | D69: PHP | E69: 13.1 | F69: -6.43 | G69: 271600 | J69: 0.0068 | K69: 68 | L69: =IFERROR(Table1[[#This Row],[% change]]+J69,"") -> -6.4232 | M69: =IFERROR(Table1[[#This Row],[Volume]]*Table1[[#This Row],[Closing]]+J69,"") -> 3557960.007
A70: 2018-10-23T14:50:00+08:00 | B70: EDC | C70: Energy Devt. | D70: PHP | E70: 8 | F70: 11.11 | G70: 139700 | J70: 0.0069 | K70: 69 | L70: =IFERROR(Table1[[#This Row],[% change]]+J70,"") -> 11.1169 | M70: =IFERROR(Table1[[#This Row],[Volume]]*Table1[[#This Row],[Closing]]+J70,"") -> 1117600.007
A71: 2018-10-23T14:50:00+08:00 | B71: EEI | C71: EEI Corp. | D71: PHP | E71: 8.63 | F71: 5.5 | G71: 240800 | J71: 0.007 | K71: 70 | L71: =IFERROR(Table1[[#This Row],[% change]]+J71,"") -> 5.507 | M71: =IFERROR(Table1[[#This Row],[Volume]]*Table1[[#This Row],[Closing]]+J71,"") -> 2078104.007
A72: 2018-10-23T14:50:00+08:00 | B72: ELI | C72: Empire East | D72: PHP | E72: 0.52 | F72: 0 | G72: 21000 | J72: 0.0071 | K72: 71 | L72: =IFERROR(Table1[[#This Row],[% change]]+J72,"") -> 0.0071 | M72: =IFERROR(Table1[[#This Row],[Volume]]*Table1[[#This Row],[Closing]]+J72,"") -> 10920.0071
A73: 2018-10-23T14:50:00+08:00 | B73: EMP | C73: EMPERADOR | D73: PHP | E73: 6.99 | F73: -0.29 | G73: 284900 | J73: 0.0072 | K73: 72 | L73: =IFERROR(Table1[[#This Row],[% change]]+J73,"") -> -0.2828 | M73: =IFERROR(Table1[[#This Row],[Volume]]*Table1[[#This Row],[Closing]]+J73,"") -> 1991451.007
A74: 2018-10-23T14:50:00+08:00 | B74: EURO | C74: Euromed | D74: PHP | E74: 1.7 | F74: 0.59 | G74: 1000 | J74: 0.0073 | K74: 73 | L74: =IFERROR(Table1[[#This Row],[% change]]+J74,"") -> 0.5973 | M74: =IFERROR(Table1[[#This Row],[Volume]]*Table1[[#This Row],[Closing]]+J74,"") -> 1700.0073
A75: 2018-10-23T14:50:00+08:00 | B75: EW | C75: EW | D75: PHP | E75: 11.72 | F75: 0 | G75: 320800 | J75: 0.0074 | K75: 74 | L75: =IFERROR(Table1[[#This Row],[% change]]+J75,"") -> 0.0074 | M75: =IFERROR(Table1[[#This Row],[Volume]]*Table1[[#This Row],[Closing]]+J75,"") -> 3759776.007
A76: 2018-10-23T14:50:00+08:00 | B76: FB | C76: Purefoods | D76: PHP | E76: 84.5 | F76: -0.35 | G76: 794140 | J76: 0.0075 | K76: 75 | L76: =IFERROR(Table1[[#This Row],[% change]]+J76,"") -> -0.3425 | M76: =IFERROR(Table1[[#This Row],[Volume]]*Table1[[#This Row],[Closing]]+J76,"") -> 67104830.01
A77: 2018-10-23T14:50:00+08:00 | B77: FDC | C77: Filinvest Dev. | D77: PHP | E77: 7.2 | F77: 0 | G77: 32800 | J77: 0.0076 | K77: 76 | L77: =IFERROR(Table1[[#This Row],[% change]]+J77,"") -> 0.0076 | M77: =IFERROR(Table1[[#This Row],[Volume]]*Table1[[#This Row],[Closing]]+J77,"") -> 236160.0076
A78: 2018-10-23T14:50:00+08:00 | B78: FERRO | C78: FERRONOUX HLDG | D78: PHP | E78: 4.01 | F78: -4.52 | G78: 52000 | J78: 0.0077 | K78: 77 | L78: =IFERROR(Table1[[#This Row],[% change]]+J78,"") -> -4.5123 | M78: =IFERROR(Table1[[#This Row],[Volume]]*Table1[[#This Row],[Closing]]+J78,"") -> 208520.0077
A79: 2018-10-23T14:50:00+08:00 | B79: FGEN | C79: First Gen | D79: PHP | E79: 16.16 | F79: 1.13 | G79: 549400 | J79: 0.0078 | K79: 78 | L79: =IFERROR(Table1[[#This Row],[% change]]+J79,"") -> 1.1378 | M79: =IFERROR(Table1[[#This Row],[Volume]]*Table1[[#This Row],[Closing]]+J79,"") -> 8878304.008
A80: 2018-10-23T14:50:00+08:00 | B80: FLI | C80: Filinvest Land | D80: PHP | E80: 1.44 | F80: -0.69 | G80: 1252000 | J80: 0.0079 | K80: 79 | L80: =IFERROR(Table1[[#This Row],[% change]]+J80,"") -> -0.6821 | M80: =IFERROR(Table1[[#This Row],[Volume]]*Table1[[#This Row],[Closing]]+J80,"") -> 1802880.008
A81: 2018-10-23T14:50:00+08:00 | B81: FMETF | C81: FIRST METRO ETF | D81: PHP | E81: 108.3 | F81: -0.28 | G81: 4520 | J81: 0.008 | K81: 80 | L81: =IFERROR(Table1[[#This Row],[% change]]+J81,"") -> -0.272 | M81: =IFERROR(Table1[[#This Row],[Volume]]*Table1[[#This Row],[Closing]]+J81,"") -> 489516.008
A82: 2018-10-23T14:50:00+08:00 | B82: FNI | C82: FERRONICKEL | D82: PHP | E82: 1.86 | F82: 2.2 | G82: 5398000 | J82: 0.0081 | K82: 81 | L82: =IFERROR(Table1[[#This Row],[% change]]+J82,"") -> 2.2081 | M82: =IFERROR(Table1[[#This Row],[Volume]]*Table1[[#This Row],[Closing]]+J82,"") -> 10040280.01
A83: 2018-10-23T14:50:00+08:00 | B83: FOOD | C83: Tuna | D83: PHP | E83: 1 | F83: -0.99 | G83: 4122000 | J83: 0.0082 | K83: 82 | L83: =IFERROR(Table1[[#This Row],[% change]]+J83,"") -> -0.9818 | M83: =IFERROR(Table1[[#This Row],[Volume]]*Table1[[#This Row],[Closing]]+J83,"") -> 4122000.008
A84: 2018-10-23T14:50:00+08:00 | B84: FPH | C84: First Phil Hldg | D84: PHP | E84: 64.45 | F84: 0.7 | G84: 4070 | J84: 0.0083 | K84: 83 | L84: =IFERROR(Table1[[#This Row],[% change]]+J84,"") -> 0.7083 | M84: =IFERROR(Table1[[#This Row],[Volume]]*Table1[[#This Row],[Closing]]+J84,"") -> 262311.5083
A85: 2018-10-23T14:50:00+08:00 | B85: GEO | C85: GEOGRACE | D85: PHP | E85: 0.231 | F85: 5.48 | G85: 2310000 | J85: 0.0084 | K85: 84 | L85: =IFERROR(Table1[[#This Row],[% change]]+J85,"") -> 5.4884 | M85: =IFERROR(Table1[[#This Row],[Volume]]*Table1[[#This Row],[Closing]]+J85,"") -> 533610.0084
A86: 2018-10-23T14:50:00+08:00 | B86: GERI | C86: Global-Estate | D86: PHP | E86: 1.07 | F86: 0.94 | G86: 521000 | J86: 0.0085 | K86: 85 | L86: =IFERROR(Table1[[#This Row],[% change]]+J86,"") -> 0.9485 | M86: =IFERROR(Table1[[#This Row],[Volume]]*Table1[[#This Row],[Closing]]+J86,"") -> 557470.0085
A87: 2018-10-23T14:50:00+08:00 | B87: GLO | C87: Globe Telecom | D87: PHP | E87: 2032 | F87: 1.7 | G87: 21615 | J87: 0.0086 | K87: 86 | L87: =IFERROR(Table1[[#This Row],[% change]]+J87,"") -> 1.7086 | M87: =IFERROR(Table1[[#This Row],[Volume]]*Table1[[#This Row],[Closing]]+J87,"") -> 43921680.01
A88: 2018-10-23T14:50:00+08:00 | B88: GMA7 | C88: GMA Network | D88: PHP | E88: 5.14 | F88: 0 | G88: 162200 | J88: 0.0087 | K88: 87 | L88: =IFERROR(Table1[[#This Row],[% change]]+J88,"") -> 0.0087 | M88: =IFERROR(Table1[[#This Row],[Volume]]*Table1[[#This Row],[Closing]]+J88,"") -> 833708.0087
A89: 2018-10-23T14:50:00+08:00 | B89: GMAP | C89: GMA Holdings | D89: PHP | E89: 4.95 | F89: 0 | G89: 45000 | J89: 0.0088 | K89: 88 | L89: =IFERROR(Table1[[#This Row],[% change]]+J89,"") -> 0.0088 | M89: =IFERROR(Table1[[#This Row],[Volume]]*Table1[[#This Row],[Closing]]+J89,"") -> 222750.0088
A90: 2018-10-23T14:50:00+08:00 | B90: GSMI | C90: Ginebra | D90: PHP | E90: 25.5 | F90: -1.35 | G90: 7900 | J90: 0.0089 | K90: 89 | L90: =IFERROR(Table1[[#This Row],[% change]]+J90,"") -> -1.3411 | M90: =IFERROR(Table1[[#This Row],[Volume]]*Table1[[#This Row],[Closing]]+J90,"") -> 201450.0089
A91: 2018-10-23T14:50:00+08:00 | B91: GTCAP | C91: GT Capital | D91: PHP | E91: 788 | F91: 1.68 | G91: 172460 | J91: 0.009 | K91: 90 | L91: =IFERROR(Table1[[#This Row],[% change]]+J91,"") -> 1.689 | M91: =IFERROR(Table1[[#This Row],[Volume]]*Table1[[#This Row],[Closing]]+J91,"") -> 135898480
A92: 2018-10-23T14:50:00+08:00 | B92: H2O | C92: PHIL H2O | D92: PHP | E92: 4.56 | F92: -7.32 | G92: 192000 | J92: 0.0091 | K92: 91 | L92: =IFERROR(Table1[[#This Row],[% change]]+J92,"") -> -7.3109 | M92: =IFERROR(Table1[[#This Row],[Volume]]*Table1[[#This Row],[Closing]]+J92,"") -> 875520.0091
A93: 2018-10-23T14:50:00+08:00 | B93: HI | C93: House of Inv | D93: PHP | E93: 5.95 | F93: -1 | G93: 1800 | J93: 0.0092 | K93: 92 | L93: =IFERROR(Table1[[#This Row],[% change]]+J93,"") -> -0.9908 | M93: =IFERROR(Table1[[#This Row],[Volume]]*Table1[[#This Row],[Closing]]+J93,"") -> 10710.0092
A94: 2018-10-23T14:50:00+08:00 | B94: HLCM | C94: Holcim | D94: PHP | E94: 6.5 | F94: 1.56 | G94: 13700 | J94: 0.0093 | K94: 93 | L94: =IFERROR(Table1[[#This Row],[% change]]+J94,"") -> 1.5693 | M94: =IFERROR(Table1[[#This Row],[Volume]]*Table1[[#This Row],[Closing]]+J94,"") -> 89050.0093
A95: 2018-10-23T14:50:00+08:00 | B95: HOUSE | C95: 8990 HLDG | D95: PHP | E95: 7.01 | F95: -0.57 | G95: 48700 | J95: 0.0094 | K95: 94 | L95: =IFERROR(Table1[[#This Row],[% change]]+J95,"") -> -0.5606 | M95: =IFERROR(Table1[[#This Row],[Volume]]*Table1[[#This Row],[Closing]]+J95,"") -> 341387.0094
A96: 2018-10-23T14:50:00+08:00 | B96: HVN | C96: GOLDEN BRIA | D96: PHP | E96: 300.8 | F96: -2.97 | G96: 3600 | J96: 0.0095 | K96: 95 | L96: =IFERROR(Table1[[#This Row],[% change]]+J96,"") -> -2.9605 | M96: =IFERROR(Table1[[#This Row],[Volume]]*Table1[[#This Row],[Closing]]+J96,"") -> 1082880.009
A97: 2018-10-23T14:50:00+08:00 | B97: I | C97: IRemit | D97: PHP | E97: 1.58 | F97: -4.24 | G97: 12000 | J97: 0.0096 | K97: 96 | L97: =IFERROR(Table1[[#This Row],[% change]]+J97,"") -> -4.2304 | M97: =IFERROR(Table1[[#This Row],[Volume]]*Table1[[#This Row],[Closing]]+J97,"") -> 18960.0096
A98: 2018-10-23T14:50:00+08:00 | B98: ICT | C98: Intl Container | D98: PHP | E98: 93 | F98: -0.21 | G98: 194530 | J98: 0.0097 | K98: 97 | L98: =IFERROR(Table1[[#This Row],[% change]]+J98,"") -> -0.2003 | M98: =IFERROR(Table1[[#This Row],[Volume]]*Table1[[#This Row],[Closing]]+J98,"") -> 18091290.01
A99: 2018-10-23T14:50:00+08:00 | B99: IDC | C99: Italpinas | D99: PHP | E99: 4.81 | F99: 0.21 | G99: 411000 | J99: 0.0098 | K99: 98 | L99: =IFERROR(Table1[[#This Row],[% change]]+J99,"") -> 0.2198 | M99: =IFERROR(Table1[[#This Row],[Volume]]*Table1[[#This Row],[Closing]]+J99,"") -> 1976910.01
A100: 2018-10-23T14:50:00+08:00 | B100: IMI | C100: Integ. Micro | D100: PHP | E100: 11.58 | F100: -2.53 | G100: 280600 | J100: 0.0099 | K100: 99 | L100: =IFERROR(Table1[[#This Row],[% change]]+J100,"") -> -2.5201 | M100: =IFERROR(Table1[[#This Row],[Volume]]*Table1[[#This Row],[Closing]]+J100,"") -> 3249348.01
A101: 2018-10-23T14:50:00+08:00 | B101: IMP | C101: IMPERIAL | D101: PHP | E101: 1.95 | F101: -2.5 | G101: 21000 | J101: 0.01 | K101: 100 | L101: =IFERROR(Table1[[#This Row],[% change]]+J101,"") -> -2.49 | M101: =IFERROR(Table1[[#This Row],[Volume]]*Table1[[#This Row],[Closing]]+J101,"") -> 40950.01
A102: 2018-10-23T14:50:00+08:00 | B102: ION | C102: Ionics | D102: PHP | E102: 1.74 | F102: 0.58 | G102: 128000 | J102: 0.0101 | K102: 101 | L102: =IFERROR(Table1[[#This Row],[% change]]+J102,"") -> 0.5901 | M102: =IFERROR(Table1[[#This Row],[Volume]]*Table1[[#This Row],[Closing]]+J102,"") -> 222720.0101
A103: 2018-10-23T14:50:00+08:00 | B103: IPO | C103: IPeople | D103: PHP | E103: 12.5 | F103: 0.97 | G103: 100 | J103: 0.0102 | K103: 102 | L103: =IFERROR(Table1[[#This Row],[% change]]+J103,"") -> 0.9802 | M103: =IFERROR(Table1[[#This Row],[Volume]]*Table1[[#This Row],[Closing]]+J103,"") -> 1250.0102
A104: 2018-10-23T14:50:00+08:00 | B104: IRC | C104: Interport A | D104: PHP | E104: 2.66 | F104: 3.1 | G104: 32923000 | J104: 0.0103 | K104: 103 | L104: =IFERROR(Table1[[#This Row],[% change]]+J104,"") -> 3.1103 | M104: =IFERROR(Table1[[#This Row],[Volume]]*Table1[[#This Row],[Closing]]+J104,"") -> 87575180.01
A105: 2018-10-23T14:50:00+08:00 | B105: IS | C105: Island Info | D105: PHP | E105: 0.108 | F105: -0.92 | G105: 340000 | J105: 0.0104 | K105: 104 | L105: =IFERROR(Table1[[#This Row],[% change]]+J105,"") -> -0.9096 | M105: =IFERROR(Table1[[#This Row],[Volume]]*Table1[[#This Row],[Closing]]+J105,"") -> 36720.0104
A106: 2018-10-23T14:50:00+08:00 | B106: JAS | C106: Jackstones | D106: PHP | E106: 3.1 | F106: 2.31 | G106: 12000 | J106: 0.0105 | K106: 105 | L106: =IFERROR(Table1[[#This Row],[% change]]+J106,"") -> 2.3205 | M106: =IFERROR(Table1[[#This Row],[Volume]]*Table1[[#This Row],[Closing]]+J106,"") -> 37200.0105
A107: 2018-10-23T14:50:00+08:00 | B107: JFC | C107: Jollibee | D107: PHP | E107: 269.2 | F107: -1.03 | G107: 480900 | J107: 0.0106 | K107: 106 | L107: =IFERROR(Table1[[#This Row],[% change]]+J107,"") -> -1.0194 | M107: =IFERROR(Table1[[#This Row],[Volume]]*Table1[[#This Row],[Closing]]+J107,"") -> 129458280
A108: 2018-10-23T14:50:00+08:00 | B108: JGS | C108: JG Summit | D108: PHP | E108: 47.85 | F108: -1.85 | G108: 221200 | J108: 0.0107 | K108: 107 | L108: =IFERROR(Table1[[#This Row],[% change]]+J108,"") -> -1.8393 | M108: =IFERROR(Table1[[#This Row],[Volume]]*Table1[[#This Row],[Closing]]+J108,"") -> 10584420.01
A109: 2018-10-23T14:50:00+08:00 | B109: LC | C109: Lepanto A | D109: PHP | E109: 0.109 | F109: -2.68 | G109: 80000 | J109: 0.0108 | K109: 108 | L109: =IFERROR(Table1[[#This Row],[% change]]+J109,"") -> -2.6692 | M109: =IFERROR(Table1[[#This Row],[Volume]]*Table1[[#This Row],[Closing]]+J109,"") -> 8720.0108
A110: 2018-10-23T14:50:00+08:00 | B110: LCB | C110: Lepanto B | D110: PHP | E110: 0.112 | F110: 0 | G110: 440000 | J110: 0.0109 | K110: 109 | L110: =IFERROR(Table1[[#This Row],[% change]]+J110,"") -> 0.0109 | M110: =IFERROR(Table1[[#This Row],[Volume]]*Table1[[#This Row],[Closing]]+J110,"") -> 49280.0109
A111: 2018-10-23T14:50:00+08:00 | B111: LFM | C111: Liberty Flour | D111: PHP | E111: 60 | F111: 33.33 | G111: 200 | J111: 0.011 | K111: 110 | L111: =IFERROR(Table1[[#This Row],[% change]]+J111,"") -> 33.341 | M111: =IFERROR(Table1[[#This Row],[Volume]]*Table1[[#This Row],[Closing]]+J111,"") -> 12000.011
A112: 2018-10-23T14:50:00+08:00 | B112: LIHC | C112: Lodestar | D112: PHP | E112: 0.54 | F112: -1.82 | G112: 1064000 | J112: 0.0111 | K112: 111 | L112: =IFERROR(Table1[[#This Row],[% change]]+J112,"") -> -1.8089 | M112: =IFERROR(Table1[[#This Row],[Volume]]*Table1[[#This Row],[Closing]]+J112,"") -> 574560.0111
A113: 2018-10-23T14:50:00+08:00 | B113: LMG | C113: LMG Chemicals | D113: PHP | E113: 4.85 | F113: 1.25 | G113: 39000 | J113: 0.0112 | K113: 112 | L113: =IFERROR(Table1[[#This Row],[% change]]+J113,"") -> 1.2612 | M113: =IFERROR(Table1[[#This Row],[Volume]]*Table1[[#This Row],[Closing]]+J113,"") -> 189150.0112
A114: 2018-10-23T14:50:00+08:00 | B114: LOTO | C114: Pacific Online | D114: PHP | E114: 10.7 | F114: 0 | G114: 1000 | J114: 0.0113 | K114: 113 | L114: =IFERROR(Table1[[#This Row],[% change]]+J114,"") -> 0.0113 | M114: =IFERROR(Table1[[#This Row],[Volume]]*Table1[[#This Row],[Closing]]+J114,"") -> 10700.0113
A115: 2018-10-23T14:50:00+08:00 | B115: LPZ | C115: Benpres Hldg. | D115: PHP | E115: 4.43 | F115: 0.45 | G115: 456000 | J115: 0.0114 | K115: 114 | L115: =IFERROR(Table1[[#This Row],[% change]]+J115,"") -> 0.4614 | M115: =IFERROR(Table1[[#This Row],[Volume]]*Table1[[#This Row],[Closing]]+J115,"") -> 2020080.011
A116: 2018-10-23T14:50:00+08:00 | B116: LR | C116: Leisure | D116: PHP | E116: 3.46 | F116: -2.54 | G116: 488000 | J116: 0.0115 | K116: 115 | L116: =IFERROR(Table1[[#This Row],[% change]]+J116,"") -> -2.5285 | M116: =IFERROR(Table1[[#This Row],[Volume]]*Table1[[#This Row],[Closing]]+J116,"") -> 1688480.012
A117: 2018-10-23T14:50:00+08:00 | B117: LRP | C117: LR PREF | D117: PHP | E117: 1.03 | F117: 0.98 | G117: 11000 | J117: 0.0116 | K117: 116 | L117: =IFERROR(Table1[[#This Row],[% change]]+J117,"") -> 0.9916 | M117: =IFERROR(Table1[[#This Row],[Volume]]*Table1[[#This Row],[Closing]]+J117,"") -> 11330.0116
A118: 2018-10-23T14:50:00+08:00 | B118: LRW | C118: LR WARRANT | D118: PHP | E118: 2.39 | F118: -0.83 | G118: 319000 | J118: 0.0117 | K118: 117 | L118: =IFERROR(Table1[[#This Row],[% change]]+J118,"") -> -0.8183 | M118: =IFERROR(Table1[[#This Row],[Volume]]*Table1[[#This Row],[Closing]]+J118,"") -> 762410.0117
A119: 2018-10-23T14:50:00+08:00 | B119: LSC | C119: LorenzoShipping | D119: PHP | E119: 0.85 | F119: -1.16 | G119: 31000 | J119: 0.0118 | K119: 118 | L119: =IFERROR(Table1[[#This Row],[% change]]+J119,"") -> -1.1482 | M119: =IFERROR(Table1[[#This Row],[Volume]]*Table1[[#This Row],[Closing]]+J119,"") -> 26350.0118
A120: 2018-10-23T14:50:00+08:00 | B120: LTG | C120: LT GROUP | D120: PHP | E120: 13.88 | F120: 2.81 | G120: 9022400 | J120: 0.0119 | K120: 119 | L120: =IFERROR(Table1[[#This Row],[% change]]+J120,"") -> 2.8219 | M120: =IFERROR(Table1[[#This Row],[Volume]]*Table1[[#This Row],[Closing]]+J120,"") -> 125230912
A121: 2018-10-23T14:50:00+08:00 | B121: MAC | C121: Macroasia | D121: PHP | E121: 17.9 | F121: -1.43 | G121: 893200 | J121: 0.012 | K121: 120 | L121: =IFERROR(Table1[[#This Row],[% change]]+J121,"") -> -1.418 | M121: =IFERROR(Table1[[#This Row],[Volume]]*Table1[[#This Row],[Closing]]+J121,"") -> 15988280.01
A122: 2018-10-23T14:50:00+08:00 | B122: MAH | C122: MetroAlliance A | D122: PHP | E122: 1.35 | F122: 0.75 | G122: 20000 | J122: 0.0121 | K122: 121 | L122: =IFERROR(Table1[[#This Row],[% change]]+J122,"") -> 0.7621 | M122: =IFERROR(Table1[[#This Row],[Volume]]*Table1[[#This Row],[Closing]]+J122,"") -> 27000.0121
A123: 2018-10-23T14:50:00+08:00 | B123: MARC | C123: Marcventures | D123: PHP | E123: 1.23 | F123: -4.65 | G123: 41000 | J123: 0.0122 | K123: 122 | L123: =IFERROR(Table1[[#This Row],[% change]]+J123,"") -> -4.6378 | M123: =IFERROR(Table1[[#This Row],[Volume]]*Table1[[#This Row],[Closing]]+J123,"") -> 50430.0122
A124: 2018-10-23T14:50:00+08:00 | B124: MAXS | C124: MAXS GROUP | D124: PHP | E124: 11.2 | F124: 1.63 | G124: 21800 | J124: 0.0123 | K124: 123 | L124: =IFERROR(Table1[[#This Row],[% change]]+J124,"") -> 1.6423 | M124: =IFERROR(Table1[[#This Row],[Volume]]*Table1[[#This Row],[Closing]]+J124,"") -> 244160.0123
A125: 2018-10-23T14:50:00+08:00 | B125: MBT | C125: Metrobank | D125: PHP | E125: 68.1 | F125: -1.3 | G125: 1402680 | J125: 0.0124 | K125: 124 | L125: =IFERROR(Table1[[#This Row],[% change]]+J125,"") -> -1.2876 | M125: =IFERROR(Table1[[#This Row],[Volume]]*Table1[[#This Row],[Closing]]+J125,"") -> 95522508.01
A126: 2018-10-23T14:50:00+08:00 | B126: MED | C126: Medco Hldg. | D126: PHP | E126: 0.485 | F126: -1.02 | G126: 620000 | J126: 0.0125 | K126: 125 | L126: =IFERROR(Table1[[#This Row],[% change]]+J126,"") -> -1.0075 | M126: =IFERROR(Table1[[#This Row],[Volume]]*Table1[[#This Row],[Closing]]+J126,"") -> 300700.0125
A127: 2018-10-23T14:50:00+08:00 | B127: MEG | C127: Megaworld | D127: PHP | E127: 4.45 | F127: -1.11 | G127: 5187000 | J127: 0.0126 | K127: 126 | L127: =IFERROR(Table1[[#This Row],[% change]]+J127,"") -> -1.0974 | M127: =IFERROR(Table1[[#This Row],[Volume]]*Table1[[#This Row],[Closing]]+J127,"") -> 23082150.01
A128: 2018-10-23T14:50:00+08:00 | B128: MER | C128: Meralco A | D128: PHP | E128: 351 | F128: -0.23 | G128: 77400 | J128: 0.0127 | K128: 127 | L128: =IFERROR(Table1[[#This Row],[% change]]+J128,"") -> -0.2173 | M128: =IFERROR(Table1[[#This Row],[Volume]]*Table1[[#This Row],[Closing]]+J128,"") -> 27167400.01
A129: 2018-10-23T14:50:00+08:00 | B129: MG | C129: MG HOLDINGS | D129: PHP | E129: 0.179 | F129: -0.56 | G129: 190000 | J129: 0.0128 | K129: 128 | L129: =IFERROR(Table1[[#This Row],[% change]]+J129,"") -> -0.5472 | M129: =IFERROR(Table1[[#This Row],[Volume]]*Table1[[#This Row],[Closing]]+J129,"") -> 34010.0128
A130: 2018-10-23T14:50:00+08:00 | B130: MHC | C130: Mabuhay Hldg. | D130: PHP | E130: 0.6 | F130: 15.38 | G130: 14540000 | J130: 0.0129 | K130: 129 | L130: =IFERROR(Table1[[#This Row],[% change]]+J130,"") -> 15.3929 | M130: =IFERROR(Table1[[#This Row],[Volume]]*Table1[[#This Row],[Closing]]+J130,"") -> 8724000.013
A131: 2018-10-23T14:50:00+08:00 | B131: MJC | C131: Manila Jockey | D131: PHP | E131: 5.39 | F131: 0 | G131: 2200 | J131: 0.013 | K131: 130 | L131: =IFERROR(Table1[[#This Row],[% change]]+J131,"") -> 0.013 | M131: =IFERROR(Table1[[#This Row],[Volume]]*Table1[[#This Row],[Closing]]+J131,"") -> 11858.013
A132: 2018-10-23T14:50:00+08:00 | B132: MJIC | C132: MJCI | D132: PHP | E132: 3 | F132: -9.64 | G132: 20000 | J132: 0.0131 | K132: 131 | L132: =IFERROR(Table1[[#This Row],[% change]]+J132,"") -> -9.6269 | M132: =IFERROR(Table1[[#This Row],[Volume]]*Table1[[#This Row],[Closing]]+J132,"") -> 60000.0131
A133: 2018-10-23T14:50:00+08:00 | B133: MPI | C133: Metro Pac Inv | D133: PHP | E133: 4.93 | F133: -2.38 | G133: 3014500 | J133: 0.0132 | K133: 132 | L133: =IFERROR(Table1[[#This Row],[% change]]+J133,"") -> -2.3668 | M133: =IFERROR(Table1[[#This Row],[Volume]]*Table1[[#This Row],[Closing]]+J133,"") -> 14861485.01
A134: 2018-10-23T14:50:00+08:00 | B134: MRC | C134: MRC Allied | D134: PHP | E134: 0.59 | F134: -1.67 | G134: 24472000 | J134: 0.0133 | K134: 133 | L134: =IFERROR(Table1[[#This Row],[% change]]+J134,"") -> -1.6567 | M134: =IFERROR(Table1[[#This Row],[Volume]]*Table1[[#This Row],[Closing]]+J134,"") -> 14438480.01
A135: 2018-10-23T14:50:00+08:00 | B135: MRP | C135: MELCO RESORTS | D135: PHP | E135: 7.1 | F135: -0.7 | G135: 3621900 | J135: 0.0134 | K135: 134 | L135: =IFERROR(Table1[[#This Row],[% change]]+J135,"") -> -0.6866 | M135: =IFERROR(Table1[[#This Row],[Volume]]*Table1[[#This Row],[Closing]]+J135,"") -> 25715490.01
A136: 2018-10-23T14:50:00+08:00 | B136: MRSGI | C136: Metro Retail | D136: PHP | E136: 2.25 | F136: 1.81 | G136: 323000 | J136: 0.0135 | K136: 135 | L136: =IFERROR(Table1[[#This Row],[% change]]+J136,"") -> 1.8235 | M136: =IFERROR(Table1[[#This Row],[Volume]]*Table1[[#This Row],[Closing]]+J136,"") -> 726750.0135
A137: 2018-10-23T14:50:00+08:00 | B137: MWC | C137: Manila Water | D137: PHP | E137: 25.35 | F137: 0.8 | G137: 137600 | J137: 0.0136 | K137: 136 | L137: =IFERROR(Table1[[#This Row],[% change]]+J137,"") -> 0.8136 | M137: =IFERROR(Table1[[#This Row],[Volume]]*Table1[[#This Row],[Closing]]+J137,"") -> 3488160.014
A138: 2018-10-23T14:50:00+08:00 | B138: MWIDE | C138: Megawide | D138: PHP | E138: 17.08 | F138: 1.07 | G138: 6963700 | J138: 0.0137 | K138: 137 | L138: =IFERROR(Table1[[#This Row],[% change]]+J138,"") -> 1.0837 | M138: =IFERROR(Table1[[#This Row],[Volume]]*Table1[[#This Row],[Closing]]+J138,"") -> 118939996
A139: 2018-10-23T14:50:00+08:00 | B139: MWP | C139: MWIDE PREF | D139: PHP | E139: 99.8 | F139: -0.2 | G139: 10560 | J139: 0.0138 | K139: 138 | L139: =IFERROR(Table1[[#This Row],[% change]]+J139,"") -> -0.1862 | M139: =IFERROR(Table1[[#This Row],[Volume]]*Table1[[#This Row],[Closing]]+J139,"") -> 1053888.014
A140: 2018-10-23T14:50:00+08:00 | B140: NI | C140: NiHAO | D140: PHP | E140: 1.07 | F140: 0.94 | G140: 3000 | J140: 0.0139 | K140: 139 | L140: =IFERROR(Table1[[#This Row],[% change]]+J140,"") -> 0.9539 | M140: =IFERROR(Table1[[#This Row],[Volume]]*Table1[[#This Row],[Closing]]+J140,"") -> 3210.0139
A141: 2018-10-23T14:50:00+08:00 | B141: NIKL | C141: NICKELASIA | D141: PHP | E141: 2.7 | F141: -0.37 | G141: 844000 | J141: 0.014 | K141: 140 | L141: =IFERROR(Table1[[#This Row],[% change]]+J141,"") -> -0.356 | M141: =IFERROR(Table1[[#This Row],[Volume]]*Table1[[#This Row],[Closing]]+J141,"") -> 2278800.014
A142: 2018-10-23T14:50:00+08:00 | B142: NOW | C142: NOW CORP | D142: PHP | E142: 5.21 | F142: -4.93 | G142: 2643000 | J142: 0.0141 | K142: 141 | L142: =IFERROR(Table1[[#This Row],[% change]]+J142,"") -> -4.9159 | M142: =IFERROR(Table1[[#This Row],[Volume]]*Table1[[#This Row],[Closing]]+J142,"") -> 13770030.01
A143: 2018-10-23T14:50:00+08:00 | B143: NRCP | C143: PhilNaRe | D143: PHP | E143: 0.9 | F143: -3.23 | G143: 75000 | J143: 0.0142 | K143: 142 | L143: =IFERROR(Table1[[#This Row],[% change]]+J143,"") -> -3.2158 | M143: =IFERROR(Table1[[#This Row],[Volume]]*Table1[[#This Row],[Closing]]+J143,"") -> 67500.0142
A144: 2018-10-23T14:50:00+08:00 | B144: OM | C144: Omico Corp. | D144: PHP | E144: 0.59 | F144: -1.67 | G144: 119000 | J144: 0.0143 | K144: 143 | L144: =IFERROR(Table1[[#This Row],[% change]]+J144,"") -> -1.6557 | M144: =IFERROR(Table1[[#This Row],[Volume]]*Table1[[#This Row],[Closing]]+J144,"") -> 70210.0143
A145: 2018-10-23T14:50:00+08:00 | B145: OPM | C145: ORNTL PETROL A | D145: PHP | E145: 0.013 | F145: 8.33 | G145: 15300000 | J145: 0.0144 | K145: 144 | L145: =IFERROR(Table1[[#This Row],[% change]]+J145,"") -> 8.3444 | M145: =IFERROR(Table1[[#This Row],[Volume]]*Table1[[#This Row],[Closing]]+J145,"") -> 198900.0144
A146: 2018-10-23T14:50:00+08:00 | B146: ORE | C146: Oriental P | D146: PHP | E146: 1 | F146: -2.91 | G146: 1193000 | J146: 0.0145 | K146: 145 | L146: =IFERROR(Table1[[#This Row],[% change]]+J146,"") -> -2.8955 | M146: =IFERROR(Table1[[#This Row],[Volume]]*Table1[[#This Row],[Closing]]+J146,"") -> 1193000.015
A147: 2018-10-23T14:50:00+08:00 | B147: OV | C147: Philodrill A | D147: PHP | E147: 0.012 | F147: 0 | G147: 16800000 | J147: 0.0146 | K147: 146 | L147: =IFERROR(Table1[[#This Row],[% change]]+J147,"") -> 0.0146 | M147: =IFERROR(Table1[[#This Row],[Volume]]*Table1[[#This Row],[Closing]]+J147,"") -> 201600.0146
A148: 2018-10-23T14:50:00+08:00 | B148: PA | C148: Pacifica A | D148: PHP | E148: 0.038 | F148: 0 | G148: 2100000 | J148: 0.0147 | K148: 147 | L148: =IFERROR(Table1[[#This Row],[% change]]+J148,"") -> 0.0147 | M148: =IFERROR(Table1[[#This Row],[Volume]]*Table1[[#This Row],[Closing]]+J148,"") -> 79800.0147
A149: 2018-10-23T14:50:00+08:00 | B149: PAL | C149: PAL Holdings | D149: PHP | E149: 8.29 | F149: -1.19 | G149: 400 | J149: 0.0148 | K149: 148 | L149: =IFERROR(Table1[[#This Row],[% change]]+J149,"") -> -1.1752 | M149: =IFERROR(Table1[[#This Row],[Volume]]*Table1[[#This Row],[Closing]]+J149,"") -> 3316.0148
A150: 2018-10-23T14:50:00+08:00 | B150: PBC | C150: PBCom | D150: PHP | E150: 19.9 | F150: 0.2 | G150: 1500 | J150: 0.0149 | K150: 149 | L150: =IFERROR(Table1[[#This Row],[% change]]+J150,"") -> 0.2149 | M150: =IFERROR(Table1[[#This Row],[Volume]]*Table1[[#This Row],[Closing]]+J150,"") -> 29850.0149
A151: 2018-10-23T14:50:00+08:00 | B151: PCOR | C151: Petron | D151: PHP | E151: 8.18 | F151: -1.68 | G151: 1454200 | J151: 0.015 | K151: 150 | L151: =IFERROR(Table1[[#This Row],[% change]]+J151,"") -> -1.665 | M151: =IFERROR(Table1[[#This Row],[Volume]]*Table1[[#This Row],[Closing]]+J151,"") -> 11895356.02
A152: 2018-10-23T14:50:00+08:00 | B152: PERC | C152: PetroEnergy | D152: PHP | E152: 4.27 | F152: 0.23 | G152: 40000 | J152: 0.0151 | K152: 151 | L152: =IFERROR(Table1[[#This Row],[% change]]+J152,"") -> 0.2451 | M152: =IFERROR(Table1[[#This Row],[Volume]]*Table1[[#This Row],[Closing]]+J152,"") -> 170800.0151
A153: 2018-10-23T14:50:00+08:00 | B153: PGOLD | C153: PUREGOLD | D153: PHP | E153: 41.25 | F153: -1.67 | G153: 96800 | J153: 0.0152 | K153: 152 | L153: =IFERROR(Table1[[#This Row],[% change]]+J153,"") -> -1.6548 | M153: =IFERROR(Table1[[#This Row],[Volume]]*Table1[[#This Row],[Closing]]+J153,"") -> 3993000.015
A154: 2018-10-23T14:50:00+08:00 | B154: PHA | C154: PremiereHorizon | D154: PHP | E154: 0.355 | F154: 2.9 | G154: 650000 | J154: 0.0153 | K154: 153 | L154: =IFERROR(Table1[[#This Row],[% change]]+J154,"") -> 2.9153 | M154: =IFERROR(Table1[[#This Row],[Volume]]*Table1[[#This Row],[Closing]]+J154,"") -> 230750.0153
A155: 2018-10-23T14:50:00+08:00 | B155: PHEN | C155: PHINMA ENERGY | D155: PHP | E155: 0.97 | F155: 0 | G155: 132000 | J155: 0.0154 | K155: 154 | L155: =IFERROR(Table1[[#This Row],[% change]]+J155,"") -> 0.0154 | M155: =IFERROR(Table1[[#This Row],[Volume]]*Table1[[#This Row],[Closing]]+J155,"") -> 128040.0154
A156: 2018-10-23T14:50:00+08:00 | B156: PHES | C156: Phil Estates | D156: PHP | E156: 0.42 | F156: 1.2 | G156: 570000 | J156: 0.0155 | K156: 155 | L156: =IFERROR(Table1[[#This Row],[% change]]+J156,"") -> 1.2155 | M156: =IFERROR(Table1[[#This Row],[Volume]]*Table1[[#This Row],[Closing]]+J156,"") -> 239400.0155
A157: 2018-10-23T14:50:00+08:00 | B157: PHN | C157: Phinma | D157: PHP | E157: 8.95 | F157: -0.78 | G157: 23600 | J157: 0.0156 | K157: 156 | L157: =IFERROR(Table1[[#This Row],[% change]]+J157,"") -> -0.7644 | M157: =IFERROR(Table1[[#This Row],[Volume]]*Table1[[#This Row],[Closing]]+J157,"") -> 211220.0156
A158: 2018-10-23T14:50:00+08:00 | B158: PIP | C158: Pepsi-Cola | D158: PHP | E158: 1.66 | F158: -2.35 | G158: 3358000 | J158: 0.0157 | K158: 157 | L158: =IFERROR(Table1[[#This Row],[% change]]+J158,"") -> -2.3343 | M158: =IFERROR(Table1[[#This Row],[Volume]]*Table1[[#This Row],[Closing]]+J158,"") -> 5574280.016
A159: 2018-10-23T14:50:00+08:00 | B159: PIZZA | C159: SHAKEYS PIZZA | D159: PHP | E159: 11.18 | F159: -1.06 | G159: 104100 | J159: 0.0158 | K159: 158 | L159: =IFERROR(Table1[[#This Row],[% change]]+J159,"") -> -1.0442 | M159: =IFERROR(Table1[[#This Row],[Volume]]*Table1[[#This Row],[Closing]]+J159,"") -> 1163838.016
A160: 2018-10-23T14:50:00+08:00 | B160: PLC | C160: PREMIUM LEISURE | D160: PHP | E160: 0.82 | F160: -2.38 | G160: 1059000 | J160: 0.0159 | K160: 159 | L160: =IFERROR(Table1[[#This Row],[% change]]+J160,"") -> -2.3641 | M160: =IFERROR(Table1[[#This Row],[Volume]]*Table1[[#This Row],[Closing]]+J160,"") -> 868380.0159
A161: 2018-10-23T14:50:00+08:00 | B161: PNB | C161: Phil Natl Bank | D161: PHP | E161: 41.6 | F161: 0.12 | G161: 38800 | J161: 0.016 | K161: 160 | L161: =IFERROR(Table1[[#This Row],[% change]]+J161,"") -> 0.136 | M161: =IFERROR(Table1[[#This Row],[Volume]]*Table1[[#This Row],[Closing]]+J161,"") -> 1614080.016
A162: 2018-10-23T14:50:00+08:00 | B162: PNX | C162: PHX PETROLEUM | D162: PHP | E162: 10.5 | F162: -2.78 | G162: 24500 | J162: 0.0161 | K162: 161 | L162: =IFERROR(Table1[[#This Row],[% change]]+J162,"") -> -2.7639 | M162: =IFERROR(Table1[[#This Row],[Volume]]*Table1[[#This Row],[Closing]]+J162,"") -> 257250.0161
A163: 2018-10-23T14:50:00+08:00 | B163: PNX3B | C163: PNX PREF 3B | D163: PHP | E163: 105 | F163: 2.74 | G163: 200 | J163: 0.0162 | K163: 162 | L163: =IFERROR(Table1[[#This Row],[% change]]+J163,"") -> 2.7562 | M163: =IFERROR(Table1[[#This Row],[Volume]]*Table1[[#This Row],[Closing]]+J163,"") -> 21000.0162
A164: 2018-10-23T14:50:00+08:00 | B164: POPI | C164: Prime Orion | D164: PHP | E164: 2.39 | F164: 2.58 | G164: 205000 | J164: 0.0163 | K164: 163 | L164: =IFERROR(Table1[[#This Row],[% change]]+J164,"") -> 2.5963 | M164: =IFERROR(Table1[[#This Row],[Volume]]*Table1[[#This Row],[Closing]]+J164,"") -> 489950.0163
A165: 2018-10-23T14:50:00+08:00 | B165: PPC | C165: Pryce Corp. | D165: PHP | E165: 5.7 | F165: -2.56 | G165: 26500 | J165: 0.0164 | K165: 164 | L165: =IFERROR(Table1[[#This Row],[% change]]+J165,"") -> -2.5436 | M165: =IFERROR(Table1[[#This Row],[Volume]]*Table1[[#This Row],[Closing]]+J165,"") -> 151050.0164
A166: 2018-10-23T14:50:00+08:00 | B166: PPG | C166: PHINMA PETRO | D166: PHP | E166: 4 | F166: -4.76 | G166: 317000 | J166: 0.0165 | K166: 165 | L166: =IFERROR(Table1[[#This Row],[% change]]+J166,"") -> -4.7435 | M166: =IFERROR(Table1[[#This Row],[Volume]]*Table1[[#This Row],[Closing]]+J166,"") -> 1268000.016
A167: 2018-10-23T14:50:00+08:00 | B167: PRF2A | C167: PCOR PREF 2A | D167: PHP | E167: 1000 | F167: 0 | G167: 15 | J167: 0.0166 | K167: 166 | L167: =IFERROR(Table1[[#This Row],[% change]]+J167,"") -> 0.0166 | M167: =IFERROR(Table1[[#This Row],[Volume]]*Table1[[#This Row],[Closing]]+J167,"") -> 15000.0166
A168: 2018-10-23T14:50:00+08:00 | B168: PRF2B | C168: PCOR PREF 2B | D168: PHP | E168: 1020 | F168: 0.1 | G168: 125 | J168: 0.0167 | K168: 167 | L168: =IFERROR(Table1[[#This Row],[% change]]+J168,"") -> 0.1167 | M168: =IFERROR(Table1[[#This Row],[Volume]]*Table1[[#This Row],[Closing]]+J168,"") -> 127500.0167
A169: 2018-10-23T14:50:00+08:00 | B169: PRIM | C169: Prime Media | D169: PHP | E169: 1.16 | F169: -4.13 | G169: 54000 | J169: 0.0168 | K169: 168 | L169: =IFERROR(Table1[[#This Row],[% change]]+J169,"") -> -4.1132 | M169: =IFERROR(Table1[[#This Row],[Volume]]*Table1[[#This Row],[Closing]]+J169,"") -> 62640.0168
A170: 2018-10-23T14:50:00+08:00 | B170: PRMX | C170: Primex Corp. | D170: PHP | E170: 3.2 | F170: 0.31 | G170: 798000 | J170: 0.0169 | K170: 169 | L170: =IFERROR(Table1[[#This Row],[% change]]+J170,"") -> 0.3269 | M170: =IFERROR(Table1[[#This Row],[Volume]]*Table1[[#This Row],[Closing]]+J170,"") -> 2553600.017
A171: 2018-10-23T14:50:00+08:00 | B171: PSB | C171: PSBank | D171: PHP | E171: 76.2 | F171: -2.68 | G171: 2250 | J171: 0.017 | K171: 170 | L171: =IFERROR(Table1[[#This Row],[% change]]+J171,"") -> -2.663 | M171: =IFERROR(Table1[[#This Row],[Volume]]*Table1[[#This Row],[Closing]]+J171,"") -> 171450.017
A172: 2018-10-23T14:50:00+08:00 | B172: PSE | C172: PSE | D172: PHP | E172: 190 | F172: 0.05 | G172: 3400 | J172: 0.0171 | K172: 171 | L172: =IFERROR(Table1[[#This Row],[% change]]+J172,"") -> 0.0671 | M172: =IFERROR(Table1[[#This Row],[Volume]]*Table1[[#This Row],[Closing]]+J172,"") -> 646000.0171
A173: 2018-10-23T14:50:00+08:00 | B173: PTC | C173: Philtrust | D173: PHP | E173: 102.4 | F173: 0 | G173: 600 | J173: 0.0172 | K173: 172 | L173: =IFERROR(Table1[[#This Row],[% change]]+J173,"") -> 0.0172 | M173: =IFERROR(Table1[[#This Row],[Volume]]*Table1[[#This Row],[Closing]]+J173,"") -> 61440.0172
A174: 2018-10-23T14:50:00+08:00 | B174: PX | C174: PX MINING | D174: PHP | E174: 3.28 | F174: -3.81 | G174: 1919000 | J174: 0.0173 | K174: 173 | L174: =IFERROR(Table1[[#This Row],[% change]]+J174,"") -> -3.7927 | M174: =IFERROR(Table1[[#This Row],[Volume]]*Table1[[#This Row],[Closing]]+J174,"") -> 6294320.017
A175: 2018-10-23T14:50:00+08:00 | B175: PXP | C175: PXP ENERGY | D175: PHP | E175: 16.3 | F175: 1.75 | G175: 844600 | J175: 0.0174 | K175: 174 | L175: =IFERROR(Table1[[#This Row],[% change]]+J175,"") -> 1.7674 | M175: =IFERROR(Table1[[#This Row],[Volume]]*Table1[[#This Row],[Closing]]+J175,"") -> 13766980.02
A176: 2018-10-23T14:50:00+08:00 | B176: RCB | C176: RCBC | D176: PHP | E176: 28 | F176: -1.75 | G176: 4000 | J176: 0.0175 | K176: 175 | L176: =IFERROR(Table1[[#This Row],[% change]]+J176,"") -> -1.7325 | M176: =IFERROR(Table1[[#This Row],[Volume]]*Table1[[#This Row],[Closing]]+J176,"") -> 112000.0175
A177: 2018-10-23T14:50:00+08:00 | B177: RCI | C177: CADP Group | D177: PHP | E177: 2.27 | F177: -4.22 | G177: 236000 | J177: 0.0176 | K177: 176 | L177: =IFERROR(Table1[[#This Row],[% change]]+J177,"") -> -4.2024 | M177: =IFERROR(Table1[[#This Row],[Volume]]*Table1[[#This Row],[Closing]]+J177,"") -> 535720.0176
A178: 2018-10-23T14:50:00+08:00 | B178: RFM | C178: RFM Corp | D178: PHP | E178: 4.8 | F178: 0 | G178: 510000 | J178: 0.0177 | K178: 177 | L178: =IFERROR(Table1[[#This Row],[% change]]+J178,"") -> 0.0177 | M178: =IFERROR(Table1[[#This Row],[Volume]]*Table1[[#This Row],[Closing]]+J178,"") -> 2448000.018
A179: 2018-10-23T14:50:00+08:00 | B179: RLC | C179: Robinsons Land | D179: PHP | E179: 20.55 | F179: -0.72 | G179: 691000 | J179: 0.0178 | K179: 178 | L179: =IFERROR(Table1[[#This Row],[% change]]+J179,"") -> -0.7022 | M179: =IFERROR(Table1[[#This Row],[Volume]]*Table1[[#This Row],[Closing]]+J179,"") -> 14200050.02
A180: 2018-10-23T14:50:00+08:00 | B180: RLT | C180: PhilRealty | D180: PHP | E180: 0.41 | F180: -1.2 | G180: 1920000 | J180: 0.0179 | K180: 179 | L180: =IFERROR(Table1[[#This Row],[% change]]+J180,"") -> -1.1821 | M180: =IFERROR(Table1[[#This Row],[Volume]]*Table1[[#This Row],[Closing]]+J180,"") -> 787200.0179
A181: 2018-10-23T14:50:00+08:00 | B181: ROX | C181: Roxas Hldg. | D181: PHP | E181: 2.83 | F181: 0 | G181: 8000 | J181: 0.018 | K181: 180 | L181: =IFERROR(Table1[[#This Row],[% change]]+J181,"") -> 0.018 | M181: =IFERROR(Table1[[#This Row],[Volume]]*Table1[[#This Row],[Closing]]+J181,"") -> 22640.018
A182: 2018-10-23T14:50:00+08:00 | B182: RRHI | C182: ROBINSONS RTL | D182: PHP | E182: 77.5 | F182: -1.77 | G182: 125650 | J182: 0.0181 | K182: 181 | L182: =IFERROR(Table1[[#This Row],[% change]]+J182,"") -> -1.7519 | M182: =IFERROR(Table1[[#This Row],[Volume]]*Table1[[#This Row],[Closing]]+J182,"") -> 9737875.018
A183: 2018-10-23T14:50:00+08:00 | B183: RWM | C183: TRAVELLERS | D183: PHP | E183: 5.18 | F183: -0.19 | G183: 470500 | J183: 0.0182 | K183: 182 | L183: =IFERROR(Table1[[#This Row],[% change]]+J183,"") -> -0.1718 | M183: =IFERROR(Table1[[#This Row],[Volume]]*Table1[[#This Row],[Closing]]+J183,"") -> 2437190.018
A184: 2018-10-23T14:50:00+08:00 | B184: SBS | C184: SBS Phil Corp | D184: PHP | E184: 6.77 | F184: -5.97 | G184: 5200 | J184: 0.0183 | K184: 183 | L184: =IFERROR(Table1[[#This Row],[% change]]+J184,"") -> -5.9517 | M184: =IFERROR(Table1[[#This Row],[Volume]]*Table1[[#This Row],[Closing]]+J184,"") -> 35204.0183
A185: 2018-10-23T14:50:00+08:00 | B185: SCC | C185: Semirara Mining | D185: PHP | E185: 28.6 | F185: 0 | G185: 295000 | J185: 0.0184 | K185: 184 | L185: =IFERROR(Table1[[#This Row],[% change]]+J185,"") -> 0.0184 | M185: =IFERROR(Table1[[#This Row],[Volume]]*Table1[[#This Row],[Closing]]+J185,"") -> 8437000.018
A186: 2018-10-23T14:50:00+08:00 | B186: SECB | C186: Security Bank | D186: PHP | E186: 150.8 | F186: -1.18 | G186: 511070 | J186: 0.0185 | K186: 185 | L186: =IFERROR(Table1[[#This Row],[% change]]+J186,"") -> -1.1615 | M186: =IFERROR(Table1[[#This Row],[Volume]]*Table1[[#This Row],[Closing]]+J186,"") -> 77069356.02
A187: 2018-10-23T14:50:00+08:00 | B187: SEVN | C187: 11-Jul | D187: PHP | E187: 106 | F187: -3.46 | G187: 396060 | J187: 0.0186 | K187: 186 | L187: =IFERROR(Table1[[#This Row],[% change]]+J187,"") -> -3.4414 | M187: =IFERROR(Table1[[#This Row],[Volume]]*Table1[[#This Row],[Closing]]+J187,"") -> 41982360.02
A188: 2018-10-23T14:50:00+08:00 | B188: SGI | C188: Solid Group | D188: PHP | E188: 1.4 | F188: -1.41 | G188: 172000 | J188: 0.0187 | K188: 187 | L188: =IFERROR(Table1[[#This Row],[% change]]+J188,"") -> -1.3913 | M188: =IFERROR(Table1[[#This Row],[Volume]]*Table1[[#This Row],[Closing]]+J188,"") -> 240800.0187
A189: 2018-10-23T14:50:00+08:00 | B189: SGP | C189: TRANSGRID | D189: PHP | E189: 400 | F189: 25 | G189: 10 | J189: 0.0188 | K189: 188 | L189: =IFERROR(Table1[[#This Row],[% change]]+J189,"") -> 25.0188 | M189: =IFERROR(Table1[[#This Row],[Volume]]*Table1[[#This Row],[Closing]]+J189,"") -> 4000.0188
A190: 2018-10-23T14:50:00+08:00 | B190: SHLPH | C190: PILIPINAS SHELL | D190: PHP | E190: 50.2 | F190: -1.67 | G190: 322610 | J190: 0.0189 | K190: 189 | L190: =IFERROR(Table1[[#This Row],[% change]]+J190,"") -> -1.6511 | M190: =IFERROR(Table1[[#This Row],[Volume]]*Table1[[#This Row],[Closing]]+J190,"") -> 16195022.02
A191: 2018-10-23T14:50:00+08:00 | B191: SHNG | C191: SHNG Properties | D191: PHP | E191: 3.18 | F191: 2.25 | G191: 4000 | J191: 0.019 | K191: 190 | L191: =IFERROR(Table1[[#This Row],[% change]]+J191,"") -> 2.269 | M191: =IFERROR(Table1[[#This Row],[Volume]]*Table1[[#This Row],[Closing]]+J191,"") -> 12720.019
A192: 2018-10-23T14:50:00+08:00 | B192: SLF | C192: Sun Life | D192: PHP | E192: 1830 | F192: 0.27 | G192: 5 | J192: 0.0191 | K192: 191 | L192: =IFERROR(Table1[[#This Row],[% change]]+J192,"") -> 0.2891 | M192: =IFERROR(Table1[[#This Row],[Volume]]*Table1[[#This Row],[Closing]]+J192,"") -> 9150.0191
A193: 2018-10-23T14:50:00+08:00 | B193: SLI | C193: Sta.Lucia Land | D193: PHP | E193: 1.12 | F193: 0 | G193: 419000 | J193: 0.0192 | K193: 192 | L193: =IFERROR(Table1[[#This Row],[% change]]+J193,"") -> 0.0192 | M193: =IFERROR(Table1[[#This Row],[Volume]]*Table1[[#This Row],[Closing]]+J193,"") -> 469280.0192
A194: 2018-10-23T14:50:00+08:00 | B194: SM | C194: SM Investments | D194: PHP | E194: 882 | F194: 0.46 | G194: 200100 | J194: 0.0193 | K194: 193 | L194: =IFERROR(Table1[[#This Row],[% change]]+J194,"") -> 0.4793 | M194: =IFERROR(Table1[[#This Row],[Volume]]*Table1[[#This Row],[Closing]]+J194,"") -> 176488200
A195: 2018-10-23T14:50:00+08:00 | B195: SMC | C195: San Miguel A | D195: PHP | E195: 156.9 | F195: 0.58 | G195: 126330 | J195: 0.0194 | K195: 194 | L195: =IFERROR(Table1[[#This Row],[% change]]+J195,"") -> 0.5994 | M195: =IFERROR(Table1[[#This Row],[Volume]]*Table1[[#This Row],[Closing]]+J195,"") -> 19821177.02
A196: 2018-10-23T14:50:00+08:00 | B196: SMC2C | C196: SMCPrefs2C | D196: PHP | E196: 76 | F196: -1.23 | G196: 74380 | J196: 0.0195 | K196: 195 | L196: =IFERROR(Table1[[#This Row],[% change]]+J196,"") -> -1.2105 | M196: =IFERROR(Table1[[#This Row],[Volume]]*Table1[[#This Row],[Closing]]+J196,"") -> 5652880.02
A197: 2018-10-23T14:50:00+08:00 | B197: SMC2G | C197: SMC Pref 2G | D197: PHP | E197: 75 | F197: 0 | G197: 1100 | J197: 0.0196 | K197: 196 | L197: =IFERROR(Table1[[#This Row],[% change]]+J197,"") -> 0.0196 | M197: =IFERROR(Table1[[#This Row],[Volume]]*Table1[[#This Row],[Closing]]+J197,"") -> 82500.0196
A198: 2018-10-23T14:50:00+08:00 | B198: SMC2I | C198: SMC Pref 2I | D198: PHP | E198: 74.7 | F198: 0 | G198: 76540 | J198: 0.0197 | K198: 197 | L198: =IFERROR(Table1[[#This Row],[% change]]+J198,"") -> 0.0197 | M198: =IFERROR(Table1[[#This Row],[Volume]]*Table1[[#This Row],[Closing]]+J198,"") -> 5717538.02
A199: 2018-10-23T14:50:00+08:00 | B199: SMPH | C199: SM Prime Hldg. | D199: PHP | E199: 34.15 | F199: -2.15 | G199: 3923900 | J199: 0.0198 | K199: 198 | L199: =IFERROR(Table1[[#This Row],[% change]]+J199,"") -> -2.1302 | M199: =IFERROR(Table1[[#This Row],[Volume]]*Table1[[#This Row],[Closing]]+J199,"") -> 134001185
A200: 2018-10-23T14:50:00+08:00 | B200: SPC | C200: SPC POWER | D200: PHP | E200: 5.22 | F200: 0.38 | G200: 200700 | J200: 0.0199 | K200: 199 | L200: =IFERROR(Table1[[#This Row],[% change]]+J200,"") -> 0.3999 | M200: =IFERROR(Table1[[#This Row],[Volume]]*Table1[[#This Row],[Closing]]+J200,"") -> 1047654.02
... 105 more rows
